Workbook

Sheet Options
E16: f
C21: Description and details of Macro
C23: Purpose: | E23: Macro to prepopulate HRBP tool (2023 MTEF)
C24: Sheets: | E24: Results Sheet
C25: Applicable to: | E25: 2024 MTEF HRBP Tool
C26: Date of macro: | E26: 2023-06-02
C27: Effective until: | E27: 2024-03-31
C28: More Information: | E28: This macro will make the following adjustments to the model: 1. Pre-populates the HRBP with PERSAL data for the 2022/23 financial year. 2. Please ensure that the correct department name is selected on the "Results" sheet in the HRBP tool before running the macro.
I39: =COUNTA(I41:I90) -> 49
H40: Department Names | I40: ImportSource | J40: DestinationSource
E41: Vote 03: Cooperative Governance | F41: =MATCH($E$41,Depts,0) -> 3 | H41: Vote 01: The Presidency | I41: C27:C42 | J41: C27:C42
H42: Vote 02: Parliament | I42: D59:F78 | J42: D59:F78
H43: Vote 03: Cooperative Governance | I43: H59:J78 | J43: H59:J78
H44: Vote 04: Government Communication and Information System | I44: L59:L78 | J44: L59:L78
H45: Vote 05: Home Affairs | I45: D88:F107 | J45: D88:F107
H46: Vote 06: International Relations and Cooperation | I46: H88:J107 | J46: H88:J107
H47: Vote 07: National School of Government | I47: L88:L107 | J47: L88:L107
H48: Vote 08: National Treasury | I48: D117:F136 | J48: D117:F136
H49: Vote 09: Planning, Monitoring and Evaluation | I49: H117:J136 | J49: H117:J136
H50: Vote 10: Public Enterprises | I50: L117:L136 | J50: L117:L136
H51: Vote 11: Public Service and Administration | I51: D146:F165 | J51: D146:F165
H52: Vote 12: Public Service Commission | I52: H146:J165 | J52: H146:J165
H53: Vote 13: Public Works and Infrastructure | I53: L146:L165 | J53: L146:L165
H54: Vote 14: Statistics South Africa | I54: D175:F194 | J54: D175:F194
H55: Vote 15: Traditional Affairs | I55: H175:J194 | J55: H175:J194
H56: Vote 16: Basic Education | I56: L175:L194 | J56: L175:L194
H57: Vote 17: Higher Education and Training | I57: D204:F223 | J57: D204:F223
H58: Vote 18: Health | I58: H204:J223 | J58: H204:J223
H59: Vote 19: Social Development | I59: L204:L223 | J59: L204:L223
H60: Vote 20: Women, Youth and Persons with Disabilities | I60: D233:F252 | J60: D233:F252
H61: Vote 21: Civilian Secretariat for the Police Service | I61: H233:J252 | J61: H233:J252
H62: Vote 22: Correctional Services | I62: L233:L252 | J62: L233:L252
H63: Vote 23: Defence | I63: D262:F281 | J63: D262:F281
H64: Vote 24: Independent Police Investigative Directorate | I64: H262:J281 | J64: H262:J281
H65: Vote 25: Justice and Constitutional Development | I65: L262:L281 | J65: L262:L281
H66: Vote 26: Military Veterans | I66: D291:F310 | J66: D291:F310
H67: Vote 27: Office of the Chief Justice | I67: H291:J310 | J67: H291:J310
H68: Vote 28: Police | I68: L291:L310 | J68: L291:L310
H69: Vote 29: Agriculture, Land Reform and Rural Development | I69: D320:F339 | J69: D320:F339
H70: Vote 30: Communications and Digital Technologies | I70: H320:J339 | J70: H320:J339
H71: Vote 31: Employment and Labour | I71: L320:L339 | J71: L320:L339
H72: Vote 32: Environment, Forestry and Fisheries | I72: D349:F368 | J72: D349:F368
H73: Vote 33: Human Settlements | I73: H349:J368 | J73: H349:J368
H74: Vote 34: Mineral Resources and Energy | I74: L349:L368 | J74: L349:L368
H75: Vote 35: Science and Innovation | I75: D378:F397 | J75: D378:F397
H76: Vote 36: Small Business Development | I76: H378:J397 | J76: H378:J397
H77: Vote 37: Sports, Arts and Culture | I77: L378:L397 | J77: L378:L397
H78: Vote 38: Tourism | I78: D407:F426 | J78: D407:F426
H79: Vote 39: Trade, Industry and Competition | I79: H407:J426 | J79: H407:J426
H80: Vote 40: Transport | I80: L407:L426 | J80: L407:L426
H81: Vote 41: Water and Sanitation | I81: D436:F455 | J81: D436:F455
H82: National Center for Public Service Innovation | I82: H436:J455 | J82: H436:J455
I83: L436:L455 | J83: L436:L455
I84: D465:F484 | J84: D465:F484
I85: H465:J484 | J85: H465:J484
I86: L465:L484 | J86: L465:L484
I87: D494:F513 | J87: D494:F513
I88: H494:J513 | J88: H494:J513
I89: L494:L513 | J89: L494:L513
CC107: EASTERN CAPE | CD107: Eastern Cape Rural Finance Corporation (Uvimba)
CC108: EASTERN CAPE | CD108: Coega Development Corporation
CC109: EASTERN CAPE | CD109: Eastern Cape Development Corporation
CC110: EASTERN CAPE | CD110: Eastern Cape Gambling and Betting Board
CC111: EASTERN CAPE | CD111: Eastern Cape Liquor Board
CC112: EASTERN CAPE | CD112: Eastern Cape Parks Board
CC113: EASTERN CAPE | CD113: Eastern Cape Tourism Board
CC114: EASTERN CAPE | CD114: East London Industrial Development Zone
CC115: EASTERN CAPE | CD115: Eastern Cape Appropriate Technology Unit
CC116: EASTERN CAPE | CD116: Eastern Cape Socio Economic Council
CC117: EASTERN CAPE | CD117: Eastern Cape Youth Commission
CC118: EASTERN CAPE | CD118: Mayibuye Transport Corp
CC119: EASTERN CAPE | CD119: Eastern Cape Provincial Arts Council
CC131: FREE STATE | CD131: Free State AgriEco
CC132: FREE STATE | CD132: Centre for Citizenship Education
CC133: FREE STATE | CD133: Free State Youth Commission
CC134: FREE STATE | CD134: Mmabana Arts and Cultural Centre
CC135: FREE STATE | CD135: Phakisa Major Sport Events and Development Corporation
CC136: FREE STATE | CD136: Free State Development Corporation
CC137: FREE STATE | CD137: Free State Gambling and Racing Board
CC138: FREE STATE | CD138: Free State Investment Promotion Agency
CC139: FREE STATE | CD139: Free State Liquor Authority
CC140: FREE STATE | CD140: Free State Tourism Marketing Authority
CC155: GAUTENG | CD155: Blue IQ
CC156: GAUTENG | CD156: Gauteng Development Economic Agency
CC157: GAUTENG | CD157: Gauteng Enterprise Propeller/GAUMAC
CC158: GAUTENG | CD158: Gauteng Film Office
CC159: GAUTENG | CD159: Gauteng Gambling Board
CC160: GAUTENG | CD160: Gauteng Liquor Board
CC161: GAUTENG | CD161: Gauteng Tourism Agency
CC162: GAUTENG | CD162: Gauteng Youth Commission
CC179: KWAZULU-NATAL | CD179: Ezemvelo KZN Wildlife
CC180: KWAZULU-NATAL | CD180: Ithala Development Finance Corporation
CC181: KWAZULU-NATAL | CD181: Mjindi Farming (Pty) Ltd
CC182: KWAZULU-NATAL | CD182: KZN Tourism Authority
CC183: KWAZULU-NATAL | CD183: Natal Sharks Board
CC184: KWAZULU-NATAL | CD184: The Playhouse Company
CC185: KWAZULU-NATAL | CD185: Provincial Planning and Development Commission
CC186: KWAZULU-NATAL | CD186: Umsekeli
CC187: KWAZULU-NATAL | CD187: Amafa aKwaZulu-Natali
CC188: KWAZULU-NATAL | CD188: KwaZulu-Natal Youth Commission
CC189: KWAZULU-NATAL | CD189: KwaZulu-Natal Gambling Board
CC190: KWAZULU-NATAL | CD190: KwaZulu-Natal Taxi Council
CC203: LIMPOPO | CD203: ARDC
CC204: LIMPOPO | CD204: Entrepreneurial Support Centre
CC205: LIMPOPO | CD205: Gateway International Airport
CC206: LIMPOPO | CD206: International Convention Centre
CC207: LIMPOPO | CD207: Limpopo Casino & Gaming Board
CC208: LIMPOPO | CD208: Limpopo Developmental Corporation
CC209: LIMPOPO | CD209: Limpopo Investment Initiative
CC210: LIMPOPO | CD210: Limpopo Support Agency
CC211: LIMPOPO | CD211: Limpopo Tourism and Parks Board
CC212: LIMPOPO | CD212: Local Business Service Centre
CC213: LIMPOPO | CD213: SMME for African Ivory Route
CC214: LIMPOPO | CD214: Trade Investment Limpopo
CC215: LIMPOPO | CD215: Polokwane International Airport
CC216: LIMPOPO | CD216: Road Agency Limpopo
CC227: MPUMALANGA | CD227: Mpumalanga Agricultural Development Corporation
CC228: MPUMALANGA | CD228: Mpumalanga Economic Growth Agency
CC229: MPUMALANGA | CD229: Mpumalanga Gaming Board
CC230: MPUMALANGA | CD230: Mpumalanga Tourism and Parks Agency
CC231: MPUMALANGA | CD231: Zithabiseng Resort (Pty) Ltd
CC232: MPUMALANGA | CD232: Mpumalanga Regional Training Trust
CC233: MPUMALANGA | CD233: Mpumalanga Housing Finance Company
CC234: MPUMALANGA | CD234: Mpumalanga House of Traditional Leaders
CC235: MPUMALANGA | CD235: Mpumalanga Youth Commission
CC251: NORTH WEST | CD251: Directorate Entrepreneurial Development - Agriserve
CC252: NORTH WEST | CD252: ESC
CC253: NORTH WEST | CD253: Gambling Board
CC254: NORTH WEST | CD254: Invest North West
CC255: NORTH WEST | CD255: Mafikeng Industrial Development Zone
CC256: NORTH WEST | CD256: North West Parks and Tourism Board
CC257: NORTH WEST | CD257: NW Development Corporation
CC258: NORTH WEST | CD258: Provincial Council on Aids
CC259: NORTH WEST | CD259: North West Housing Corporation
CC260: NORTH WEST | CD260: North West Communications
CC261: NORTH WEST | CD261: Youth Development Trust
CC262: NORTH WEST | CD262: Mmabana Arts, Culture and Sport Foundation
CC263: NORTH WEST | CD263: Provincial Arts and Culture Council
CC275: NORTHERN CAPE | CD275: Northern Cape Tourism Authority
CC276: NORTHERN CAPE | CD276: Northern Cape Gambling Public Entity
CC277: NORTHERN CAPE | CD277: Northern Cape Liquor Public Entity
CC278: NORTHERN CAPE | CD278: Northern Cape Youth Commission
CC299: WESTERN CAPE | CD299: Western Cape Provincial Development Council
CC300: WESTERN CAPE | CD300: Western Cape Provincial Youth Commission
CC301: WESTERN CAPE | CD301: Casidra (Pty) Ltd
CC302: WESTERN CAPE | CD302: Independent Development Trust
CC303: WESTERN CAPE | CD303: South African Rail Commuter Corporation
CC304: WESTERN CAPE | CD304: Agricultural Research Council
CC305: WESTERN CAPE | CD305: Council for Scientific and Industrial Research
CC306: WESTERN CAPE | CD306: Western Cape Destination Marketing Organisation
CC307: WESTERN CAPE | CD307: Western Cape Investment and Trade Promotion Agency (Wesgro)
CC308: WESTERN CAPE | CD308: Western Cape Liquor Board
CC309: WESTERN CAPE | CD309: Artscape
CC310: WESTERN CAPE | CD310: Western Cape Cultural Commission
CC311: WESTERN CAPE | CD311: Western Cape Language Committee
CC312: WESTERN CAPE | CD312: Western Cape Gambling and Racing Board
CC313: WESTERN CAPE | CD313: Western Cape Environmental Commissioner
CC314: WESTERN CAPE | CD314: Western Cape Nature Conservation Board
A500: qazx123

Sheet 1 (hidden)
A1: Filter | C1: HUMAN RESOURCE BUDGET PLAN | K1: 1
A2: 1
A3: 1 | C3: Financial Year: | D3: 2023/24
A4: 1 | C4: Sphere of Government: | D4: National
A5: 1 | C5: Name of Department: | D5: =Options!H41 -> Vote 01: The Presidency
A6: -14
A7: -13
A8: -12
A9: -11
A10: -10
A11: -9
A12: -8
A13: -7
A14: -6
A15: -5
A16: -4
A17: -3
A18: -2
A19: -1
A20: 0
A21: 1
A22: 1 | C22: Department Summary Details
A23: 1
A24: 1 | D24: Establishment Structure | F24: Previous Financial Year | J24: Medium-term expenditure estimates
A25: 1 | D25: As at 31 March 2023 | F25: =LEFT($D$3,4)-1 & "/" & RIGHT($D$3,2)-1 -> 2022/23
A26: 1 | C26: Programmes | D26: Total number of funded posts | E26: of which: number of funded posts additional to the establishment | F26: FTE Headcount | G26: Unit Costs | H26: of which: Once-off Payments per person | I26: Total Annual Cost | J26: Initial Headcount | K26: Unit Costs | L26: of which: Once-off Payments per person
A27: 1 | B27: =IF(LEN(C27)>2,ROW()-26,"") -> 1 | C27: Administration | D27: =IF($C27="",0,OFFSET($C55,MATCH($C27,$C$55:$C$514,0)+24-SUM($A$27:$A27),COLUMN(D$1)-3)) -> 616.96938 | E27: =IF($C27="",0,OFFSET($C55,MATCH($C27,$C$55:$C$514,0)+24-SUM($A$27:$A27),COLUMN(E$1)-3)) -> 39 | F27: =IF($C27="",0,OFFSET($C55,MATCH($C27,$C$55:$C$514,0)+24-SUM($A$27:$A27),COLUMN(F$1)-3)) -> 568.4481361 | G27: =IF($C27="",0,OFFSET($C55,MATCH($C27,$C$55:$C$514,0)+24-SUM($A$27:$A27),COLUMN(G$1)-3)) -> 556.1984989 | H27: =IF($C27="",0,OFFSET($C55,MATCH($C27,$C$55:$C$514,0)+24-SUM($A$27:$A27),COLUMN(H$1)-3)) -> 0 | I27: =IF($C27="",0,OFFSET($C55,MATCH($C27,$C$55:$C$514,0)+24-SUM($A$27:$A27),COLUMN(I$1)-3)) -> 316170 | J27: =IF($C27="",0,OFFSET($C55,MATCH($C27,$C$55:$C$514,0)+24-SUM($A$27:$A27),COLUMN(J$1)-3)) -> 568.4481361 | K27: =IF($C27="",0,OFFSET($C55,MATCH($C27,$C$55:$C$514,0)+24-SUM($A$27:$A27),COLUMN(K$1)-3)) -> 0 | L27: =IF($C27="",0,OFFSET($C55,MATCH($C27,$C$55:$C$514,0)+24-SUM($A$27:$A27),COLUMN(L$1)-3)) -> 0
A28: =IF(LEN(C28)>1,1,0) -> 1 | B28: 2 | C28: Executive Support | D28: =IF($C28="",0,OFFSET($C56,MATCH($C28,$C$55:$C$514,0)+24-SUM($A$27:$A28),COLUMN(D$1)-3)) -> 20 | E28: =IF($C28="",0,OFFSET($C56,MATCH($C28,$C$55:$C$514,0)+24-SUM($A$27:$A28),COLUMN(E$1)-3)) -> 0 | F28: =IF($C28="",0,OFFSET($C56,MATCH($C28,$C$55:$C$514,0)+24-SUM($A$27:$A28),COLUMN(F$1)-3)) -> 19.86508326 | G28: =IF($C28="",0,OFFSET($C56,MATCH($C28,$C$55:$C$514,0)+24-SUM($A$27:$A28),COLUMN(G$1)-3)) -> 742.3074855 | H28: =IF($C28="",0,OFFSET($C56,MATCH($C28,$C$55:$C$514,0)+24-SUM($A$27:$A28),COLUMN(H$1)-3)) -> 0 | I28: =IF($C28="",0,OFFSET($C56,MATCH($C28,$C$55:$C$514,0)+24-SUM($A$27:$A28),COLUMN(I$1)-3)) -> 14746 | J28: =IF($C28="",0,OFFSET($C56,MATCH($C28,$C$55:$C$514,0)+24-SUM($A$27:$A28),COLUMN(J$1)-3)) -> 19.86508326 | K28: =IF($C28="",0,OFFSET($C56,MATCH($C28,$C$55:$C$514,0)+24-SUM($A$27:$A28),COLUMN(K$1)-3)) -> 0 | L28: =IF($C28="",0,OFFSET($C56,MATCH($C28,$C$55:$C$514,0)+24-SUM($A$27:$A28),COLUMN(L$1)-3)) -> 0
A29: 1 | B29: 3 | C29: Policy and Research Services | D29: =IF($C29="",0,OFFSET($C57,MATCH($C29,$C$55:$C$514,0)+24-SUM($A$27:$A29),COLUMN(D$1)-3)) -> 15 | E29: =IF($C29="",0,OFFSET($C57,MATCH($C29,$C$55:$C$514,0)+24-SUM($A$27:$A29),COLUMN(E$1)-3)) -> 1 | F29: =IF($C29="",0,OFFSET($C57,MATCH($C29,$C$55:$C$514,0)+24-SUM($A$27:$A29),COLUMN(F$1)-3)) -> 14.05868986 | G29: =IF($C29="",0,OFFSET($C57,MATCH($C29,$C$55:$C$514,0)+24-SUM($A$27:$A29),COLUMN(G$1)-3)) -> 1056.428455 | H29: =IF($C29="",0,OFFSET($C57,MATCH($C29,$C$55:$C$514,0)+24-SUM($A$27:$A29),COLUMN(H$1)-3)) -> 0 | I29: =IF($C29="",0,OFFSET($C57,MATCH($C29,$C$55:$C$514,0)+24-SUM($A$27:$A29),COLUMN(I$1)-3)) -> 14852 | J29: =IF($C29="",0,OFFSET($C57,MATCH($C29,$C$55:$C$514,0)+24-SUM($A$27:$A29),COLUMN(J$1)-3)) -> 14.05868986 | K29: =IF($C29="",0,OFFSET($C57,MATCH($C29,$C$55:$C$514,0)+24-SUM($A$27:$A29),COLUMN(K$1)-3)) -> 0 | L29: =IF($C29="",0,OFFSET($C57,MATCH($C29,$C$55:$C$514,0)+24-SUM($A$27:$A29),COLUMN(L$1)-3)) -> 0
A30: 0 | D30: =IF($C30="",0,OFFSET($C58,MATCH($C30,$C$55:$C$514,0)+24-SUM($A$27:$A30),COLUMN(D$1)-3)) -> 0 | E30: =IF($C30="",0,OFFSET($C58,MATCH($C30,$C$55:$C$514,0)+24-SUM($A$27:$A30),COLUMN(E$1)-3)) -> 0 | F30: =IF($C30="",0,OFFSET($C58,MATCH($C30,$C$55:$C$514,0)+24-SUM($A$27:$A30),COLUMN(F$1)-3)) -> 0 | G30: =IF($C30="",0,OFFSET($C58,MATCH($C30,$C$55:$C$514,0)+24-SUM($A$27:$A30),COLUMN(G$1)-3)) -> 0 | H30: =IF($C30="",0,OFFSET($C58,MATCH($C30,$C$55:$C$514,0)+24-SUM($A$27:$A30),COLUMN(H$1)-3)) -> 0 | I30: =IF($C30="",0,OFFSET($C58,MATCH($C30,$C$55:$C$514,0)+24-SUM($A$27:$A30),COLUMN(I$1)-3)) -> 0 | J30: =IF($C30="",0,OFFSET($C58,MATCH($C30,$C$55:$C$514,0)+24-SUM($A$27:$A30),COLUMN(J$1)-3)) -> 0 | K30: =IF($C30="",0,OFFSET($C58,MATCH($C30,$C$55:$C$514,0)+24-SUM($A$27:$A30),COLUMN(K$1)-3)) -> 0 | L30: =IF($C30="",0,OFFSET($C58,MATCH($C30,$C$55:$C$514,0)+24-SUM($A$27:$A30),COLUMN(L$1)-3)) -> 0
A31: 0 | D31: =IF($C31="",0,OFFSET($C59,MATCH($C31,$C$55:$C$514,0)+24-SUM($A$27:$A31),COLUMN(D$1)-3)) -> 0 | E31: =IF($C31="",0,OFFSET($C59,MATCH($C31,$C$55:$C$514,0)+24-SUM($A$27:$A31),COLUMN(E$1)-3)) -> 0 | F31: =IF($C31="",0,OFFSET($C59,MATCH($C31,$C$55:$C$514,0)+24-SUM($A$27:$A31),COLUMN(F$1)-3)) -> 0 | G31: =IF($C31="",0,OFFSET($C59,MATCH($C31,$C$55:$C$514,0)+24-SUM($A$27:$A31),COLUMN(G$1)-3)) -> 0 | H31: =IF($C31="",0,OFFSET($C59,MATCH($C31,$C$55:$C$514,0)+24-SUM($A$27:$A31),COLUMN(H$1)-3)) -> 0 | I31: =IF($C31="",0,OFFSET($C59,MATCH($C31,$C$55:$C$514,0)+24-SUM($A$27:$A31),COLUMN(I$1)-3)) -> 0 | J31: =IF($C31="",0,OFFSET($C59,MATCH($C31,$C$55:$C$514,0)+24-SUM($A$27:$A31),COLUMN(J$1)-3)) -> 0 | K31: =IF($C31="",0,OFFSET($C59,MATCH($C31,$C$55:$C$514,0)+24-SUM($A$27:$A31),COLUMN(K$1)-3)) -> 0 | L31: =IF($C31="",0,OFFSET($C59,MATCH($C31,$C$55:$C$514,0)+24-SUM($A$27:$A31),COLUMN(L$1)-3)) -> 0
A32: 0 | D32: =IF($C32="",0,OFFSET($C60,MATCH($C32,$C$55:$C$514,0)+24-SUM($A$27:$A32),COLUMN(D$1)-3)) -> 0 | E32: =IF($C32="",0,OFFSET($C60,MATCH($C32,$C$55:$C$514,0)+24-SUM($A$27:$A32),COLUMN(E$1)-3)) -> 0 | F32: =IF($C32="",0,OFFSET($C60,MATCH($C32,$C$55:$C$514,0)+24-SUM($A$27:$A32),COLUMN(F$1)-3)) -> 0 | G32: =IF($C32="",0,OFFSET($C60,MATCH($C32,$C$55:$C$514,0)+24-SUM($A$27:$A32),COLUMN(G$1)-3)) -> 0 | H32: =IF($C32="",0,OFFSET($C60,MATCH($C32,$C$55:$C$514,0)+24-SUM($A$27:$A32),COLUMN(H$1)-3)) -> 0 | I32: =IF($C32="",0,OFFSET($C60,MATCH($C32,$C$55:$C$514,0)+24-SUM($A$27:$A32),COLUMN(I$1)-3)) -> 0 | J32: =IF($C32="",0,OFFSET($C60,MATCH($C32,$C$55:$C$514,0)+24-SUM($A$27:$A32),COLUMN(J$1)-3)) -> 0 | K32: =IF($C32="",0,OFFSET($C60,MATCH($C32,$C$55:$C$514,0)+24-SUM($A$27:$A32),COLUMN(K$1)-3)) -> 0 | L32: =IF($C32="",0,OFFSET($C60,MATCH($C32,$C$55:$C$514,0)+24-SUM($A$27:$A32),COLUMN(L$1)-3)) -> 0
A33: 0 | D33: =IF($C33="",0,OFFSET($C61,MATCH($C33,$C$55:$C$514,0)+24-SUM($A$27:$A33),COLUMN(D$1)-3)) -> 0 | E33: =IF($C33="",0,OFFSET($C61,MATCH($C33,$C$55:$C$514,0)+24-SUM($A$27:$A33),COLUMN(E$1)-3)) -> 0 | F33: =IF($C33="",0,OFFSET($C61,MATCH($C33,$C$55:$C$514,0)+24-SUM($A$27:$A33),COLUMN(F$1)-3)) -> 0 | G33: =IF($C33="",0,OFFSET($C61,MATCH($C33,$C$55:$C$514,0)+24-SUM($A$27:$A33),COLUMN(G$1)-3)) -> 0 | H33: =IF($C33="",0,OFFSET($C61,MATCH($C33,$C$55:$C$514,0)+24-SUM($A$27:$A33),COLUMN(H$1)-3)) -> 0 | I33: =IF($C33="",0,OFFSET($C61,MATCH($C33,$C$55:$C$514,0)+24-SUM($A$27:$A33),COLUMN(I$1)-3)) -> 0 | J33: =IF($C33="",0,OFFSET($C61,MATCH($C33,$C$55:$C$514,0)+24-SUM($A$27:$A33),COLUMN(J$1)-3)) -> 0 | K33: =IF($C33="",0,OFFSET($C61,MATCH($C33,$C$55:$C$514,0)+24-SUM($A$27:$A33),COLUMN(K$1)-3)) -> 0 | L33: =IF($C33="",0,OFFSET($C61,MATCH($C33,$C$55:$C$514,0)+24-SUM($A$27:$A33),COLUMN(L$1)-3)) -> 0
A34: 0 | D34: =IF($C34="",0,OFFSET($C62,MATCH($C34,$C$55:$C$514,0)+24-SUM($A$27:$A34),COLUMN(D$1)-3)) -> 0 | E34: =IF($C34="",0,OFFSET($C62,MATCH($C34,$C$55:$C$514,0)+24-SUM($A$27:$A34),COLUMN(E$1)-3)) -> 0 | F34: =IF($C34="",0,OFFSET($C62,MATCH($C34,$C$55:$C$514,0)+24-SUM($A$27:$A34),COLUMN(F$1)-3)) -> 0 | G34: =IF($C34="",0,OFFSET($C62,MATCH($C34,$C$55:$C$514,0)+24-SUM($A$27:$A34),COLUMN(G$1)-3)) -> 0 | H34: =IF($C34="",0,OFFSET($C62,MATCH($C34,$C$55:$C$514,0)+24-SUM($A$27:$A34),COLUMN(H$1)-3)) -> 0 | I34: =IF($C34="",0,OFFSET($C62,MATCH($C34,$C$55:$C$514,0)+24-SUM($A$27:$A34),COLUMN(I$1)-3)) -> 0 | J34: =IF($C34="",0,OFFSET($C62,MATCH($C34,$C$55:$C$514,0)+24-SUM($A$27:$A34),COLUMN(J$1)-3)) -> 0 | K34: =IF($C34="",0,OFFSET($C62,MATCH($C34,$C$55:$C$514,0)+24-SUM($A$27:$A34),COLUMN(K$1)-3)) -> 0 | L34: =IF($C34="",0,OFFSET($C62,MATCH($C34,$C$55:$C$514,0)+24-SUM($A$27:$A34),COLUMN(L$1)-3)) -> 0
A35: 0 | D35: =IF($C35="",0,OFFSET($C63,MATCH($C35,$C$55:$C$514,0)+24-SUM($A$27:$A35),COLUMN(D$1)-3)) -> 0 | E35: =IF($C35="",0,OFFSET($C63,MATCH($C35,$C$55:$C$514,0)+24-SUM($A$27:$A35),COLUMN(E$1)-3)) -> 0 | F35: =IF($C35="",0,OFFSET($C63,MATCH($C35,$C$55:$C$514,0)+24-SUM($A$27:$A35),COLUMN(F$1)-3)) -> 0 | G35: =IF($C35="",0,OFFSET($C63,MATCH($C35,$C$55:$C$514,0)+24-SUM($A$27:$A35),COLUMN(G$1)-3)) -> 0 | H35: =IF($C35="",0,OFFSET($C63,MATCH($C35,$C$55:$C$514,0)+24-SUM($A$27:$A35),COLUMN(H$1)-3)) -> 0 | I35: =IF($C35="",0,OFFSET($C63,MATCH($C35,$C$55:$C$514,0)+24-SUM($A$27:$A35),COLUMN(I$1)-3)) -> 0 | J35: =IF($C35="",0,OFFSET($C63,MATCH($C35,$C$55:$C$514,0)+24-SUM($A$27:$A35),COLUMN(J$1)-3)) -> 0 | K35: =IF($C35="",0,OFFSET($C63,MATCH($C35,$C$55:$C$514,0)+24-SUM($A$27:$A35),COLUMN(K$1)-3)) -> 0 | L35: =IF($C35="",0,OFFSET($C63,MATCH($C35,$C$55:$C$514,0)+24-SUM($A$27:$A35),COLUMN(L$1)-3)) -> 0
A36: 0 | D36: =IF($C36="",0,OFFSET($C64,MATCH($C36,$C$55:$C$514,0)+24-SUM($A$27:$A36),COLUMN(D$1)-3)) -> 0 | E36: =IF($C36="",0,OFFSET($C64,MATCH($C36,$C$55:$C$514,0)+24-SUM($A$27:$A36),COLUMN(E$1)-3)) -> 0 | F36: =IF($C36="",0,OFFSET($C64,MATCH($C36,$C$55:$C$514,0)+24-SUM($A$27:$A36),COLUMN(F$1)-3)) -> 0 | G36: =IF($C36="",0,OFFSET($C64,MATCH($C36,$C$55:$C$514,0)+24-SUM($A$27:$A36),COLUMN(G$1)-3)) -> 0 | H36: =IF($C36="",0,OFFSET($C64,MATCH($C36,$C$55:$C$514,0)+24-SUM($A$27:$A36),COLUMN(H$1)-3)) -> 0 | I36: =IF($C36="",0,OFFSET($C64,MATCH($C36,$C$55:$C$514,0)+24-SUM($A$27:$A36),COLUMN(I$1)-3)) -> 0 | J36: =IF($C36="",0,OFFSET($C64,MATCH($C36,$C$55:$C$514,0)+24-SUM($A$27:$A36),COLUMN(J$1)-3)) -> 0 | K36: =IF($C36="",0,OFFSET($C64,MATCH($C36,$C$55:$C$514,0)+24-SUM($A$27:$A36),COLUMN(K$1)-3)) -> 0 | L36: =IF($C36="",0,OFFSET($C64,MATCH($C36,$C$55:$C$514,0)+24-SUM($A$27:$A36),COLUMN(L$1)-3)) -> 0
A37: 0 | D37: =IF($C37="",0,OFFSET($C65,MATCH($C37,$C$55:$C$514,0)+24-SUM($A$27:$A37),COLUMN(D$1)-3)) -> 0 | E37: =IF($C37="",0,OFFSET($C65,MATCH($C37,$C$55:$C$514,0)+24-SUM($A$27:$A37),COLUMN(E$1)-3)) -> 0 | F37: =IF($C37="",0,OFFSET($C65,MATCH($C37,$C$55:$C$514,0)+24-SUM($A$27:$A37),COLUMN(F$1)-3)) -> 0 | G37: =IF($C37="",0,OFFSET($C65,MATCH($C37,$C$55:$C$514,0)+24-SUM($A$27:$A37),COLUMN(G$1)-3)) -> 0 | H37: =IF($C37="",0,OFFSET($C65,MATCH($C37,$C$55:$C$514,0)+24-SUM($A$27:$A37),COLUMN(H$1)-3)) -> 0 | I37: =IF($C37="",0,OFFSET($C65,MATCH($C37,$C$55:$C$514,0)+24-SUM($A$27:$A37),COLUMN(I$1)-3)) -> 0 | J37: =IF($C37="",0,OFFSET($C65,MATCH($C37,$C$55:$C$514,0)+24-SUM($A$27:$A37),COLUMN(J$1)-3)) -> 0 | K37: =IF($C37="",0,OFFSET($C65,MATCH($C37,$C$55:$C$514,0)+24-SUM($A$27:$A37),COLUMN(K$1)-3)) -> 0 | L37: =IF($C37="",0,OFFSET($C65,MATCH($C37,$C$55:$C$514,0)+24-SUM($A$27:$A37),COLUMN(L$1)-3)) -> 0
A38: 0 | D38: =IF($C38="",0,OFFSET($C66,MATCH($C38,$C$55:$C$514,0)+24-SUM($A$27:$A38),COLUMN(D$1)-3)) -> 0 | E38: =IF($C38="",0,OFFSET($C66,MATCH($C38,$C$55:$C$514,0)+24-SUM($A$27:$A38),COLUMN(E$1)-3)) -> 0 | F38: =IF($C38="",0,OFFSET($C66,MATCH($C38,$C$55:$C$514,0)+24-SUM($A$27:$A38),COLUMN(F$1)-3)) -> 0 | G38: =IF($C38="",0,OFFSET($C66,MATCH($C38,$C$55:$C$514,0)+24-SUM($A$27:$A38),COLUMN(G$1)-3)) -> 0 | H38: =IF($C38="",0,OFFSET($C66,MATCH($C38,$C$55:$C$514,0)+24-SUM($A$27:$A38),COLUMN(H$1)-3)) -> 0 | I38: =IF($C38="",0,OFFSET($C66,MATCH($C38,$C$55:$C$514,0)+24-SUM($A$27:$A38),COLUMN(I$1)-3)) -> 0 | J38: =IF($C38="",0,OFFSET($C66,MATCH($C38,$C$55:$C$514,0)+24-SUM($A$27:$A38),COLUMN(J$1)-3)) -> 0 | K38: =IF($C38="",0,OFFSET($C66,MATCH($C38,$C$55:$C$514,0)+24-SUM($A$27:$A38),COLUMN(K$1)-3)) -> 0 | L38: =IF($C38="",0,OFFSET($C66,MATCH($C38,$C$55:$C$514,0)+24-SUM($A$27:$A38),COLUMN(L$1)-3)) -> 0
A39: 0 | D39: =IF($C39="",0,OFFSET($C67,MATCH($C39,$C$55:$C$514,0)+24-SUM($A$27:$A39),COLUMN(D$1)-3)) -> 0 | E39: =IF($C39="",0,OFFSET($C67,MATCH($C39,$C$55:$C$514,0)+24-SUM($A$27:$A39),COLUMN(E$1)-3)) -> 0 | F39: =IF($C39="",0,OFFSET($C67,MATCH($C39,$C$55:$C$514,0)+24-SUM($A$27:$A39),COLUMN(F$1)-3)) -> 0 | G39: =IF($C39="",0,OFFSET($C67,MATCH($C39,$C$55:$C$514,0)+24-SUM($A$27:$A39),COLUMN(G$1)-3)) -> 0 | H39: =IF($C39="",0,OFFSET($C67,MATCH($C39,$C$55:$C$514,0)+24-SUM($A$27:$A39),COLUMN(H$1)-3)) -> 0 | I39: =IF($C39="",0,OFFSET($C67,MATCH($C39,$C$55:$C$514,0)+24-SUM($A$27:$A39),COLUMN(I$1)-3)) -> 0 | J39: =IF($C39="",0,OFFSET($C67,MATCH($C39,$C$55:$C$514,0)+24-SUM($A$27:$A39),COLUMN(J$1)-3)) -> 0 | K39: =IF($C39="",0,OFFSET($C67,MATCH($C39,$C$55:$C$514,0)+24-SUM($A$27:$A39),COLUMN(K$1)-3)) -> 0 | L39: =IF($C39="",0,OFFSET($C67,MATCH($C39,$C$55:$C$514,0)+24-SUM($A$27:$A39),COLUMN(L$1)-3)) -> 0
A40: 0 | D40: =IF($C40="",0,OFFSET($C68,MATCH($C40,$C$55:$C$514,0)+24-SUM($A$27:$A40),COLUMN(D$1)-3)) -> 0 | E40: =IF($C40="",0,OFFSET($C68,MATCH($C40,$C$55:$C$514,0)+24-SUM($A$27:$A40),COLUMN(E$1)-3)) -> 0 | F40: =IF($C40="",0,OFFSET($C68,MATCH($C40,$C$55:$C$514,0)+24-SUM($A$27:$A40),COLUMN(F$1)-3)) -> 0 | G40: =IF($C40="",0,OFFSET($C68,MATCH($C40,$C$55:$C$514,0)+24-SUM($A$27:$A40),COLUMN(G$1)-3)) -> 0 | H40: =IF($C40="",0,OFFSET($C68,MATCH($C40,$C$55:$C$514,0)+24-SUM($A$27:$A40),COLUMN(H$1)-3)) -> 0 | I40: =IF($C40="",0,OFFSET($C68,MATCH($C40,$C$55:$C$514,0)+24-SUM($A$27:$A40),COLUMN(I$1)-3)) -> 0 | J40: =IF($C40="",0,OFFSET($C68,MATCH($C40,$C$55:$C$514,0)+24-SUM($A$27:$A40),COLUMN(J$1)-3)) -> 0 | K40: =IF($C40="",0,OFFSET($C68,MATCH($C40,$C$55:$C$514,0)+24-SUM($A$27:$A40),COLUMN(K$1)-3)) -> 0 | L40: =IF($C40="",0,OFFSET($C68,MATCH($C40,$C$55:$C$514,0)+24-SUM($A$27:$A40),COLUMN(L$1)-3)) -> 0
A41: 0 | D41: =IF($C41="",0,OFFSET($C69,MATCH($C41,$C$55:$C$514,0)+24-SUM($A$27:$A41),COLUMN(D$1)-3)) -> 0 | E41: =IF($C41="",0,OFFSET($C69,MATCH($C41,$C$55:$C$514,0)+24-SUM($A$27:$A41),COLUMN(E$1)-3)) -> 0 | F41: =IF($C41="",0,OFFSET($C69,MATCH($C41,$C$55:$C$514,0)+24-SUM($A$27:$A41),COLUMN(F$1)-3)) -> 0 | G41: =IF($C41="",0,OFFSET($C69,MATCH($C41,$C$55:$C$514,0)+24-SUM($A$27:$A41),COLUMN(G$1)-3)) -> 0 | H41: =IF($C41="",0,OFFSET($C69,MATCH($C41,$C$55:$C$514,0)+24-SUM($A$27:$A41),COLUMN(H$1)-3)) -> 0 | I41: =IF($C41="",0,OFFSET($C69,MATCH($C41,$C$55:$C$514,0)+24-SUM($A$27:$A41),COLUMN(I$1)-3)) -> 0 | J41: =IF($C41="",0,OFFSET($C69,MATCH($C41,$C$55:$C$514,0)+24-SUM($A$27:$A41),COLUMN(J$1)-3)) -> 0 | K41: =IF($C41="",0,OFFSET($C69,MATCH($C41,$C$55:$C$514,0)+24-SUM($A$27:$A41),COLUMN(K$1)-3)) -> 0 | L41: =IF($C41="",0,OFFSET($C69,MATCH($C41,$C$55:$C$514,0)+24-SUM($A$27:$A41),COLUMN(L$1)-3)) -> 0
A42: 1 | B42: 16 | C42: Direct Charges against NRF | D42: =IF($C42="",0,OFFSET($C70,MATCH($C42,$C$55:$C$514,0)+24-SUM($A$27:$A42),COLUMN(D$1)-3)) -> 0 | E42: =IF($C42="",0,OFFSET($C70,MATCH($C42,$C$55:$C$514,0)+24-SUM($A$27:$A42),COLUMN(E$1)-3)) -> 0 | F42: =IF($C42="",0,OFFSET($C70,MATCH($C42,$C$55:$C$514,0)+24-SUM($A$27:$A42),COLUMN(F$1)-3)) -> 0 | G42: =IF($C42="",0,OFFSET($C70,MATCH($C42,$C$55:$C$514,0)+24-SUM($A$27:$A42),COLUMN(G$1)-3)) -> 0 | H42: =IF($C42="",0,OFFSET($C70,MATCH($C42,$C$55:$C$514,0)+24-SUM($A$27:$A42),COLUMN(H$1)-3)) -> 0 | I42: =IF($C42="",0,OFFSET($C70,MATCH($C42,$C$55:$C$514,0)+24-SUM($A$27:$A42),COLUMN(I$1)-3)) -> 0 | J42: =IF($C42="",0,OFFSET($C70,MATCH($C42,$C$55:$C$514,0)+24-SUM($A$27:$A42),COLUMN(J$1)-3)) -> 0 | K42: =IF($C42="",0,OFFSET($C70,MATCH($C42,$C$55:$C$514,0)+24-SUM($A$27:$A42),COLUMN(K$1)-3)) -> 0 | L42: =IF($C42="",0,OFFSET($C70,MATCH($C42,$C$55:$C$514,0)+24-SUM($A$27:$A42),COLUMN(L$1)-3)) -> 0
A43: 1 | C43: Total | D43: =SUM(D23:D42) -> 651.96938 | E43: =SUM(E23:E42) -> 40 | F43: =SUM(F23:F42) -> 602.3719092 | G43: =IFERROR(I43/F43,0) -> 574.0108307 | H43: =IFERROR(SUM(H27:H42)/COUNTIF(H27:H42,">0"),0) -> 0 | I43: =SUM(I23:I42) -> 345768 | J43: =SUM(J23:J42) -> 602.3719092 | K43: =IFERROR(#REF!/#REF!,0) -> 0 | L43: =IFERROR(SUM(L27:L42)/COUNTIF(L27:L42,">0"),0) -> 0
A44: 1 | C44: Salary Bands
A45: 1 | C45: 1 - 6 | D45: =SUMIFS(D$55:D$514,$C$55:$C$514,">=1",$C$55:$C$514,"<=6") -> 204 | E45: =SUMIFS(E$55:E$514,$C$55:$C$514,">=1",$C$55:$C$514,"<=6") -> 1 | F45: =SUMIFS(F$55:F$514,$C$55:$C$514,">=1",$C$55:$C$514,"<=6") -> 206 | G45: =IFERROR(I45/F45,0) -> 268.7864078 | H45: =IFERROR(SUMIFS(H$55:H$514,$B$55:$B$514,">=1",$C$55:$C$514,"<>Total",$C$55:$C$514,">=1",$C$55:$C$514,"<=6")/COUNTIFS($B$55:$B$514,">=1",$C$55:$C$514,">=1",$C$55:$C$514,"<=6",#REF!,">0"),0) -> 0 | I45: =SUMIFS(I$55:I$514,$C$55:$C$514,">=1",$C$55:$C$514,"<=6") -> 55370 | J45: =SUMIFS(J$55:J$514,$C$55:$C$514,">=1",$C$55:$C$514,"<=6") -> 206 | K45: =IFERROR(#REF!/#REF!,0) -> 0 | L45: =IFERROR(SUMIFS(L$55:L$514,$B$55:$B$514,">=1",$C$55:$C$514,"<>Total",$C$55:$C$514,">=1",$C$55:$C$514,"<=6")/COUNTIFS($B$55:$B$514,">=1",$C$55:$C$514,">=1",$C$55:$C$514,"<=6",#REF!,">0"),0) -> 0
A46: 1 | C46: 7 - 10 | D46: =SUMIFS(D$55:D$514,$C$55:$C$514,">=7",$C$55:$C$514,"<=10") -> 190 | E46: =SUMIFS(E$55:E$514,$C$55:$C$514,">=7",$C$55:$C$514,"<=10") -> 0 | F46: =SUMIFS(F$55:F$514,$C$55:$C$514,">=7",$C$55:$C$514,"<=10") -> 189.951 | G46: 456.7651658 | H46: =IFERROR(SUMIFS(H$55:H$514,$B$55:$B$514,">=1",$C$55:$C$514,"<>Total",$C$55:$C$514,">=7",$C$55:$C$514,"<=10")/COUNTIFS($B$55:$B$514,">=1",$C$55:$C$514,">=7",$C$55:$C$514,"<=10",#REF!,">0"),0) -> 0 | I46: =SUMIFS(I$55:I$514,$C$55:$C$514,">=7",$C$55:$C$514,"<=10") -> 86763 | J46: =SUMIFS(J$55:J$514,$C$55:$C$514,">=7",$C$55:$C$514,"<=10") -> 189.951 | K46: =IFERROR(#REF!/#REF!,0) -> 0 | L46: =IFERROR(SUMIFS(L$55:L$514,$B$55:$B$514,">=1",$C$55:$C$514,"<>Total",$C$55:$C$514,">=7",$C$55:$C$514,"<=10")/COUNTIFS($B$55:$B$514,">=1",$C$55:$C$514,">=7",$C$55:$C$514,"<=10",#REF!,">0"),0) -> 0
A47: 1 | C47: 11 - 12 | D47: =SUMIFS(D$55:D$514,$C$55:$C$514,">=11",$C$55:$C$514,"<=12") -> 140.4269338 | E47: =SUMIFS(E$55:E$514,$C$55:$C$514,">=11",$C$55:$C$514,"<=12") -> 1 | F47: =SUMIFS(F$55:F$514,$C$55:$C$514,">=11",$C$55:$C$514,"<=12") -> 116.4966121 | G47: 865.5959877 | H47: =IFERROR(SUMIFS(H$55:H$514,$B$55:$B$514,">=1",$C$55:$C$514,"<>Total",$C$55:$C$514,">=11",$C$55:$C$514,"<=12")/COUNTIFS($B$55:$B$514,">=1",$C$55:$C$514,">=11",$C$55:$C$514,"<=12",#REF!,">0"),0) -> 0 | I47: =SUMIFS(I$55:I$514,$C$55:$C$514,">=11",$C$55:$C$514,"<=12") -> 100839 | J47: =SUMIFS(J$55:J$514,$C$55:$C$514,">=11",$C$55:$C$514,"<=12") -> 116.4966121 | K47: =IFERROR(#REF!/#REF!,0) -> 0 | L47: =IFERROR(SUMIFS(L$55:L$514,$B$55:$B$514,">=1",$C$55:$C$514,"<>Total",$C$55:$C$514,">=11",$C$55:$C$514,"<=12")/COUNTIFS($B$55:$B$514,">=1",$C$55:$C$514,">=11",$C$55:$C$514,"<=12",#REF!,">0"),0) -> 0
A48: 1 | C48: 13 - 16 | D48: =SUMIFS(D$55:D$514,$C$55:$C$514,">=13",$C$55:$C$514,"<=16") -> 94.54244615 | E48: =SUMIFS(E$55:E$514,$C$55:$C$514,">=13",$C$55:$C$514,"<=16") -> 13 | F48: =SUMIFS(F$55:F$514,$C$55:$C$514,">=13",$C$55:$C$514,"<=16") -> 67.50845818 | G48: 1607.724468 | H48: =IFERROR(SUMIFS(H$55:H$514,$B$55:$B$514,">=1",$C$55:$C$514,"<>Total",$C$55:$C$514,">=13",$C$55:$C$514,"<=16")/COUNTIFS($B$55:$B$514,">=1",$C$55:$C$514,">=13",$C$55:$C$514,"<=16",#REF!,">0"),0) -> 0 | I48: =SUMIFS(I$55:I$514,$C$55:$C$514,">=13",$C$55:$C$514,"<=16") -> 108535 | J48: =SUMIFS(J$55:J$514,$C$55:$C$514,">=13",$C$55:$C$514,"<=16") -> 67.50845818 | K48: =IFERROR(#REF!/#REF!,0) -> 0 | L48: =IFERROR(SUMIFS(L$55:L$514,$B$55:$B$514,">=1",$C$55:$C$514,"<>Total",$C$55:$C$514,">=13",$C$55:$C$514,"<=16")/COUNTIFS($B$55:$B$514,">=1",$C$55:$C$514,">=13",$C$55:$C$514,"<=16",#REF!,">0"),0) -> 0
A49: 1 | C49: Other | D49: =D43-SUM(D45:D48) -> 23 | E49: =E43-SUM(E45:E48) -> 25 | F49: =F43-SUM(F45:F48) -> 22.41583893 | G49: -256.0243236 | H49: =IFERROR((SUMIFS(H$55:H$514,$B$55:$B$514,">=1",$C$55:$C$514,"<>Total")-SUMIFS(H$55:H$514,$B$55:$B$514,">=1",$C$55:$C$514,"<=16"))/(COUNTIFS($B$55:$B$514,">=1",$C$55:$C$514,"<>Total",#REF!,">0")-COUNTIFS($B$55:$B$514,">=1",$C$55:$C$514,"<=16",#REF!,">0"=(SUMIFS(H$55:H$514,$B$55:$B$514,">=1",$C$55:$C$514,"<>Total")-SUMIFS(H$55:H$514,$B$55:$B$514,">=1",$C$55:$C$514,"<=16"))/(COUNTIFS($B$55:$B$514,">=1",$C$55:$C$514,"<>Total",#REF!,">0")-COUNTIFS($B$55:$B$514,">=1",$C$55:$C$514,"<=16",#REF!,">0")))),0) -> 0 | I49: =I43-SUM(I45:I48) -> -5739 | J49: =J43-SUM(J45:J48) -> 22.41583893 | K49: =IFERROR(#REF!/#REF!,0) -> 0 | L49: =IFERROR((SUMIFS(L$55:L$514,$B$55:$B$514,">=1",$C$55:$C$514,"<>Total")-SUMIFS(L$55:L$514,$B$55:$B$514,">=1",$C$55:$C$514,"<=16"))/(COUNTIFS($B$55:$B$514,">=1",$C$55:$C$514,"<>Total",#REF!,">0")-COUNTIFS($B$55:$B$514,">=1",$C$55:$C$514,"<=16",#REF!,">0"=(SUMIFS(L$55:L$514,$B$55:$B$514,">=1",$C$55:$C$514,"<>Total")-SUMIFS(L$55:L$514,$B$55:$B$514,">=1",$C$55:$C$514,"<=16"))/(COUNTIFS($B$55:$B$514,">=1",$C$55:$C$514,"<>Total",#REF!,">0")-COUNTIFS($B$55:$B$514,">=1",$C$55:$C$514,"<=16",#REF!,">0")))),0) -> 0
A50: 1 | C50: Total | D50: =SUM(D45:D49) -> 651.96938 | E50: =SUM(E45:E49) -> 40 | F50: =SUM(F45:F49) -> 602.3719092 | G50: 574.0108307 | H50: =IFERROR(SUMIF($C$55:$C$514,"Total",H$55:H$514)/COUNTIF(H27:H42,">0"),0) -> 0 | I50: =SUM(I45:I49) -> 345768 | J50: =SUM(J45:J49) -> 602.3719092 | K50: =IFERROR(#REF!/#REF!,0) -> 0 | L50: =IFERROR(SUMIF($C$55:$C$514,"Total",L$55:L$514)/COUNTIF(L27:L42,">0"),0) -> 0
A51: 1 | C51: Checks | D51: =D43-D50 -> 0 | E51: 0 | F51: 0 | G51: 0 | H51: 0 | I51: 0 | J51: 0 | K51: 0 | L51: 0
A52: 1
A53: 1 | C53: Department Programme Details
A54: 1
A55: =$A$27 -> 1 | C55: =$C$27 -> Administration
A56: =A$55 -> 1 | D56: Establishment Structure | F56: Previous Financial Year | J56: Medium-term expenditure estimates
A57: 1 | D57: As at 31 March 2023 | F57: =LEFT($D$3,4)-1 & "/" & RIGHT($D$3,2)-1 -> 2022/23
A58: 1 | B58: ProgNo. | C58: Salary level | D58: Total number of funded posts | E58: of which: number of funded posts additional to the establishment | F58: FTE Headcount | G58: Unit Costs | H58: of which: Once-off Payments per person | I58: Total Annual Cost | J58: Initial Headcount | K58: Unit Costs | L58: of which: Once-off Payments per person
A59: 1 | B59: 1 | C59: 1 | D59: 0 | E59: 0 | F59: 0 | G59: =IFERROR(IF(I59=0,O59,I59/F59),0) -> 99.95105925 | H59: 15 | I59: 0 | J59: 0 | K59: -15.91093358 | O59: 99.95105925
A60: 1 | B60: 1 | C60: 2 | D60: 33 | E60: 0 | F60: 33 | G60: =IFERROR(IF(I60=0,O60,I60/F60),0) -> 145.5151515 | H60: =1220/1000*12 -> 14.64 | I60: 4802 | J60: 33 | K60: 134.5714606 | O60: 179.5147433
A61: 1 | B61: 1 | C61: 3 | D61: 12 | E61: 0 | F61: 13 | G61: 284.6923077 | H61: =1220/1000*12 -> 14.64 | I61: 3701 | J61: 13 | K61: 277.5299714 | O61: 216.6722944
A62: 1 | B62: 1 | C62: 4 | D62: 53 | E62: 0 | F62: 53 | G62: 241 | H62: =1220/1000*12 -> 14.64 | I62: 12773 | J62: 53 | K62: 232.6830336 | O62: 236.0392102
A63: 1 | B63: 1 | C63: 5 | D63: 53 | E63: 1 | F63: 54 | G63: 245.7222222 | H63: =1220/1000*12 -> 14.64 | I63: 13269 | J63: 54 | K63: 236.620746 | O63: 290.5081548
A64: 1 | B64: 1 | C64: 6 | D64: 46 | E64: 0 | F64: 46 | G64: 405.7173913 | H64: =1352/1000*12 -> 16.224 | I64: 18663 | J64: 46 | K64: 399.0439014 | O64: 341.7085708
A65: 1 | B65: 1 | C65: 7 | D65: 74 | E65: 0 | F65: 74 | G65: 337.3918919 | H65: =1352/1000*12 -> 16.224 | I65: 24967 | J65: 74 | K65: 328.3305703 | O65: 455.5004418
A66: 1 | B66: 1 | C66: 8 | D66: 45 | E66: 0 | F66: 46 | G66: 496.5217391 | H66: =1450/1000*12 -> 17.4 | I66: 22840 | J66: 46 | K66: 490.0371501 | O66: 520.4674487
A67: 1 | B67: 1 | C67: 9 | D67: 49 | E67: 0 | F67: 47 | G67: 473.9574468 | H67: =1450/1000*12 -> 17.4 | I67: 22276 | J67: 47 | K67: 467.2083231 | O67: 586.4171069
A68: 1 | B68: 1 | C68: 10 | D68: 12 | E68: 0 | F68: 12 | G68: 887.4166667 | H68: =1640/1000*12 -> 19.68 | I68: 10649 | J68: 12 | K68: 884.6016109 | O68: 699.4852566
A69: 1 | B69: 1 | C69: 11 | D69: 77 | E69: 1 | F69: 66 | G69: 712.6969697 | H69: =1640/1000*12 -> 19.68 | I69: 47038 | J69: 66 | K69: 705.6915755 | O69: 799.6834333
A70: 1 | B70: 1 | C70: 12 | D70: 56.42693384 | E70: 0 | F70: 44.52383897 | G70: 1072.841002 | H70: =1695/1000*12 -> 20.34 | I70: 47767 | J70: 44.52383897 | K70: 1070.577585 | O70: 1014.272904
A71: 1 | B71: 1 | C71: 13 | D71: 43 | E71: 0 | F71: 12.96042614 | G71: 1005.753967 | H71: =1695/1000*12 -> 20.34 | I71: 13035 | J71: 12.96042614 | K71: 1001.770704 | O71: 1152.258047
A72: 1 | B72: 1 | C72: 14 | D72: 23.54244615 | E72: 2 | F72: 22.96387097 | G72: 1155.77204 | H72: 20.34 | I72: 26541 | J72: 22.96387097 | K72: 1153.824958 | O72: 1409.161406
A73: 1 | B73: 1 | C73: 15 | D73: 3 | E73: 0 | F73: 3 | G73: 2567.666667 | H73: 20.34 | I73: 7703 | J73: 3 | K73: 2588.905427 | O73: 1703.285814
A74: 1 | B74: 1 | C74: 16 | D74: 12 | E74: 10 | F74: 16 | G74: 2386.3125 | H74: =1818/1000*12 -> 21.816 | I74: 38181 | J74: 16 | K74: 2399.977765 | O74: 2168.595147
A75: 1 | B75: 1 | C75: Deputy Minister | D75: 0 | E75: 0 | F75: 0 | G75: 2007.461925 | I75: 0 | J75: 0 | K75: 0 | O75: 2007.461925
A76: 1 | B76: 1 | C76: Minister | D76: 0 | E76: 0 | F76: 0 | G76: 2437.657495 | I76: 0 | J76: 0 | K76: 0 | O76: 2437.657495
A77: 1 | B77: 1 | C77: Other | D77: 25 | E77: 25 | F77: 25 | G77: 78.6 | I77: 1965 | J77: 25 | K77: 79.76328094 | O77: 259.6159983
A78: 1 | B78: 1 | C78: Other | D78: 0 | E78: 0 | F78: 0 | G78: 259.6159983 | I78: 0 | J78: 0 | K78: 0 | O78: 259.6159983
A79: 1 | B79: 1 | C79: Total | D79: =SUM(D59:D78) -> 616.96938 | E79: =SUM(E59:E78) -> 39 | F79: 568.4481361 | G79: =IFERROR(I79/F79,0) -> 556.1984989 | H79: =IFERROR(SUM(H59:H78)/K79,0) -> 0 | I79: =SUM(I59:I78) -> 316170 | J79: =SUM(J59:J78) -> 568.4481361 | K79: =IFERROR(#REF!/#REF!,0) -> 0 | L79: =IFERROR(SUM(L59:L78)/#REF!,0) -> 0
A80: 1
A81: 1
A82: 1
A83: 1
A84: =$A$28 -> 1 | C84: =$C$28 -> Executive Support
A85: =A$84 -> 1 | D85: Establishment Structure | F85: Previous Financial Year | J85: Medium-term expenditure estimates
A86: 1 | D86: As at 31 March 2023 | F86: =LEFT($D$3,4)-1 & "/" & RIGHT($D$3,2)-1 -> 2022/23
A87: 1 | C87: Salary level | D87: Total number of funded posts | E87: of which: number of funded posts additional to the establishment | F87: FTE Headcount | G87: Unit Costs | H87: of which: Once-off Payments per person | I87: Total Annual Cost | J87: Initial Headcount | K87: Unit Costs | L87: of which: Once-off Payments per person
A88: 1 | B88: 2 | C88: 1 | D88: 0 | E88: 0 | F88: 0 | G88: =IFERROR(IF(I88=0,O88,I88/F88),0) -> 99.95105925 | H88: =1220/1000*12 -> 14.64 | I88: 0 | J88: 0 | K88: -15.52907117 | O88: 99.95105925
A89: 1 | B89: 2 | C89: 2 | D89: 0 | E89: 0 | F89: 0 | G89: =IFERROR(IF(I89=0,O89,I89/F89),0) -> 179.5147433 | H89: =1220/1000*12 -> 14.64 | I89: 0 | J89: 0 | K89: -15.79748885 | O89: 179.5147433
A90: 1 | B90: 2 | C90: 3 | D90: 0 | E90: 0 | F90: 0 | G90: 216.6722944 | H90: =1220/1000*12 -> 14.64 | I90: 0 | J90: 0 | K90: -15.80627234 | O90: 216.6722944
A91: 1 | B91: 2 | C91: 4 | D91: 0 | E91: 0 | F91: 0 | G91: 236.0392102 | H91: =1220/1000*12 -> 14.64 | I91: 0 | J91: 0 | K91: -15.83023976 | O91: 236.0392102
A92: 1 | B92: 2 | C92: 5 | D92: 1 | E92: 0 | F92: 1 | G92: 276 | H92: =1220/1000*12 -> 14.64 | I92: 276 | J92: 1 | K92: 268.0361075 | O92: 290.5081548
A93: 1 | B93: 2 | C93: 6 | D93: 6 | E93: 0 | F93: 6 | G93: 314.3333333 | H93: =1352/1000*12 -> 16.224 | I93: 1886 | J93: 6 | K93: 305.3533346 | O93: 341.7085708
A94: 1 | B94: 2 | C94: 7 | D94: 2 | E94: 0 | F94: 2 | G94: 358 | H94: =1352/1000*12 -> 16.224 | I94: 716 | J94: 2 | K94: 349.272755 | O94: 455.5004418
A95: 1 | B95: 2 | C95: 8 | D95: 1 | E95: 0 | F95: 2.077 | G95: 512.2773231 | H95: =1450/1000*12 -> 17.4 | I95: 1064 | J95: 2.077 | K95: 506.1120273 | O95: 520.4674487
A96: 1 | B96: 2 | C96: 9 | D96: 1 | E96: 0 | F96: 1 | G96: 601 | H96: =1450/1000*12 -> 17.4 | I96: 601 | J96: 1 | K96: 597.1911639 | O96: 586.4171069
A97: 1 | B97: 2 | C97: 10 | D97: 0 | E97: 0 | F97: 0 | G97: 699.4852566 | H97: =1640/1000*12 -> 19.68 | I97: 0 | J97: 0 | K97: -21.01465404 | O97: 699.4852566
A98: 1 | B98: 2 | C98: 11 | D98: 1 | E98: 0 | F98: 1 | G98: 839 | H98: =1640/1000*12 -> 19.68 | I98: 839 | J98: 1 | K98: 834.5658751 | O98: 799.6834333
A99: 1 | B99: 2 | C99: 12 | D99: 3 | E99: 0 | F99: 1.788083255 | G99: 978.7016319 | H99: =1695/1000*12 -> 20.34 | I99: 1750 | J99: 1.788083255 | K99: 974.9464701 | O99: 1014.272904
A100: 1 | B100: 2 | C100: 13 | D100: 1 | E100: 0 | F100: 1 | G100: 1156 | H100: =1695/1000*12 -> 20.34 | I100: 1156 | J100: 1 | K100: 1154.826656 | O100: 1152.258047
A101: 1 | B101: 2 | C101: 14 | D101: 3 | E101: 0 | F101: 3 | G101: 1467 | H101: 20.34 | I101: 4401 | J101: 3 | K101: 1470.02029 | O101: 1409.161406
A102: 1 | B102: 2 | C102: 15 | D102: 1 | E102: 0 | F102: 1 | G102: 2057 | H102: 20.34 | I102: 2057 | J102: 1 | K102: 2069.422023 | O102: 1703.285814
A103: 1 | B103: 2 | C103: 16 | D103: 0 | E103: 0 | F103: 0 | G103: 2168.595147 | H103: =1818/1000*12 -> 21.816 | I103: 0 | J103: 0 | K103: -23.139738 | O103: 2168.595147
A104: 1 | B104: 2 | C104: Other | D104: 0 | E104: 0 | F104: 0 | G104: 2007.461925 | I104: 0 | J104: 0 | K104: 0 | O104: 2007.461925
A105: 1 | B105: 2 | C105: Other | D105: 0 | E105: 0 | F105: 0 | G105: 2437.657495 | I105: 0 | J105: 0 | K105: 0 | O105: 2437.657495
A106: 1 | B106: 2 | C106: Other | D106: 0 | E106: 0 | F106: 0 | G106: 259.6159983 | I106: 0 | J106: 0 | K106: 0 | O106: 259.6159983
A107: 1 | B107: 2 | C107: Other | D107: 0 | E107: 0 | F107: 0 | G107: 259.6159983 | I107: 0 | J107: 0 | K107: 0 | O107: 259.6159983
A108: 1 | B108: 2 | C108: Total | D108: =SUM(D88:D107) -> 20 | E108: =SUM(E88:E107) -> 0 | F108: 19.86508326 | G108: =IFERROR(I108/F108,0) -> 742.3074855 | H108: =IFERROR(SUM(H88:H107)/K108,0) -> 0 | I108: =SUM(I88:I107) -> 14746 | J108: =SUM(J88:J107) -> 19.86508326 | K108: =IFERROR(#REF!/#REF!,0) -> 0 | L108: =IFERROR(SUM(L88:L107)/#REF!,0) -> 0
A109: 1
A110: 1
A111: 1
A112: 1
A113: =$A$29 -> 1 | C113: =$C$29 -> Policy and Research Services
A114: =A$113 -> 1 | D114: Establishment Structure | F114: Previous Financial Year | J114: Medium-term expenditure estimates
A115: 1 | D115: As at 31 March 2023 | F115: =LEFT($D$3,4)-1 & "/" & RIGHT($D$3,2)-1 -> 2022/23
A116: 1 | C116: Salary level | D116: Total number of funded posts | E116: of which: number of funded posts additional to the establishment | F116: FTE Headcount | G116: Unit Costs | H116: of which: Once-off Payments per person | I116: Total Annual Cost | J116: Initial Headcount | K116: Unit Costs | L116: of which: Once-off Payments per person
A117: 1 | B117: 3 | C117: 1 | D117: 0 | E117: 0 | F117: 0 | G117: =IFERROR(IF(I117=0,O117,I117/F117),0) -> 99.95105925 | H117: =1220/1000*12 -> 14.64 | I117: 0 | J117: 0 | K117: -15.52907117 | O117: 99.95105925
A118: 1 | B118: 3 | C118: 2 | D118: 0 | E118: 0 | F118: 0 | G118: =IFERROR(IF(I118=0,O118,I118/F118),0) -> 179.5147433 | H118: =1220/1000*12 -> 14.64 | I118: 0 | J118: 0 | K118: -15.79748885 | O118: 179.5147433
A119: 1 | B119: 3 | C119: 3 | D119: 0 | E119: 0 | F119: 0 | G119: 216.6722944 | H119: =1220/1000*12 -> 14.64 | I119: 0 | J119: 0 | K119: -15.80627234 | O119: 216.6722944
A120: 1 | B120: 3 | C120: 4 | D120: 0 | E120: 0 | F120: 0 | G120: 236.0392102 | H120: =1220/1000*12 -> 14.64 | I120: 0 | J120: 0 | K120: -15.83023976 | O120: 236.0392102
A121: 1 | B121: 3 | C121: 5 | D121: 0 | E121: 0 | F121: 0 | G121: 290.5081548 | H121: =1220/1000*12 -> 14.64 | I121: 0 | J121: 0 | K121: -15.73647984 | O121: 290.5081548
A122: 1 | B122: 3 | C122: 6 | D122: 0 | E122: 0 | F122: 0 | G122: 341.7085708 | H122: =1352/1000*12 -> 16.224 | I122: 0 | J122: 0 | K122: -17.45761622 | O122: 341.7085708
A123: 1 | B123: 3 | C123: 7 | D123: 3 | E123: 0 | F123: 2 | G123: 482.5 | H123: =1352/1000*12 -> 16.224 | I123: 965 | J123: 2 | K123: 476.8556888 | O123: 455.5004418
A124: 1 | B124: 3 | C124: 8 | D124: 0 | E124: 0 | F124: 0 | G124: 520.4674487 | H124: =1450/1000*12 -> 17.4 | I124: 0 | J124: 0 | K124: -18.67334452 | O124: 520.4674487
A125: 1 | B125: 3 | C125: 9 | D125: 0 | E125: 0 | F125: 0 | G125: 586.4171069 | H125: =1450/1000*12 -> 17.4 | I125: 0 | J125: 0 | K125: -18.70253105 | O125: 586.4171069
A126: 1 | B126: 3 | C126: 10 | D126: 3 | E126: 0 | F126: 3.874 | G126: 693.0820857 | H126: =1640/1000*12 -> 19.68 | I126: 2685 | J126: 3.874 | K126: 686.5925993 | O126: 699.4852566
A127: 1 | B127: 3 | C127: 11 | D127: 0 | E127: 0 | F127: 0 | G127: 799.6834333 | H127: =1640/1000*12 -> 19.68 | I127: 0 | J127: 0 | K127: -20.99429443 | O127: 799.6834333
A128: 1 | B128: 3 | C128: 12 | D128: 3 | E128: 0 | F128: 3.184689857 | G128: 1081.737988 | H128: =1695/1000*12 -> 20.34 | I128: 3445 | J128: 3.184689857 | K128: 1079.646617 | O128: 1014.272904
A129: 1 | B129: 3 | C129: 13 | D129: 1 | E129: 0 | F129: 1 | G129: 1267 | H129: =1695/1000*12 -> 20.34 | I129: 1267 | J129: 1 | K129: 1267.579843 | O129: 1152.258047
A130: 1 | B130: 3 | C130: 14 | D130: 2 | E130: 0 | F130: 3 | G130: 1567.666667 | H130: 20.34 | I130: 4703 | J130: 3 | K130: 1572.415544 | O130: 1409.161406
A131: 1 | B131: 3 | C131: 15 | D131: 2 | E131: 0 | F131: 1 | G131: 1787 | H131: 20.34 | I131: 1787 | J131: 1 | K131: 1795.151795 | O131: 1703.285814
A132: 1 | B132: 3 | C132: 16 | D132: 1 | E132: 1 | F132: 0 | G132: 2168.595147 | H132: =1818/1000*12 -> 21.816 | I132: 0 | J132: 0 | K132: 1280.432778 | O132: 2168.595147
A133: 1 | B133: 3 | C133: Other | D133: 0 | E133: 0 | F133: 0 | G133: 2007.461925 | I133: 0 | J133: 0 | K133: 0 | O133: 2007.461925
A134: 1 | B134: 3 | C134: Other | D134: 0 | E134: 0 | F134: 0 | G134: 2437.657495 | I134: 0 | J134: 0 | K134: 0 | O134: 2437.657495
A135: 1 | B135: 3 | C135: Other | D135: 0 | E135: 0 | F135: 0 | G135: 259.6159983 | I135: 0 | J135: 0 | K135: 0 | O135: 259.6159983
A136: 1 | B136: 3 | C136: Other | D136: 0 | E136: 0 | F136: 0 | G136: 259.6159983 | I136: 0 | J136: 0 | K136: 0 | O136: 259.6159983
A137: 1 | B137: 3 | C137: Total | D137: =SUM(D117:D136) -> 15 | E137: =SUM(E117:E136) -> 1 | F137: 14.05868986 | G137: =IFERROR(I137/F137,0) -> 1056.428455 | H137: =IFERROR(SUM(H117:H136)/K137,0) -> 0 | I137: =SUM(I117:I136) -> 14852 | J137: =SUM(J117:J136) -> 14.05868986 | K137: =IFERROR(#REF!/#REF!,0) -> 0 | L137: =IFERROR(SUM(L117:L136)/#REF!,0) -> 0
A138: 1
A139: 1
A140: 1
A141: 1
A142: =$A$30 -> 0 | C142: =$C$30 -> 
A143: =A$142 -> 0 | D143: Establishment Structure | F143: Previous Financial Year | J143: Medium-term expenditure estimates
A144: 0 | D144: As at 31 March 2023 | F144: =LEFT($D$3,4)-1 & "/" & RIGHT($D$3,2)-1 -> 2022/23
A145: 0 | C145: Salary level | D145: Total number of funded posts | E145: of which: number of funded posts additional to the establishment | F145: FTE Headcount | G145: Unit Costs | H145: of which: Once-off Payments per person | I145: Total Annual Cost | J145: Initial Headcount | K145: Unit Costs | L145: of which: Once-off Payments per person
A146: 0 | B146: 4 | C146: 1 | D146: 0 | E146: 0 | F146: 0 | G146: =IFERROR(IF(I146=0,O146,I146/F146),0) -> 99.95105925 | H146: =1220/1000*12 -> 14.64 | I146: 0 | J146: 0 | K146: 0 | O146: 99.95105925
A147: 0 | B147: 4 | C147: 2 | D147: 0 | E147: 0 | F147: 0 | G147: =IFERROR(IF(I147=0,O147,I147/F147),0) -> 179.5147433 | H147: =1220/1000*12 -> 14.64 | I147: 0 | J147: 0 | K147: 0 | O147: 179.5147433
A148: 0 | B148: 4 | C148: 3 | D148: 0 | E148: 0 | F148: 0 | G148: 216.6722944 | H148: =1220/1000*12 -> 14.64 | I148: 0 | J148: 0 | K148: 0 | O148: 216.6722944
A149: 0 | B149: 4 | C149: 4 | D149: 0 | E149: 0 | F149: 0 | G149: 236.0392102 | H149: =1220/1000*12 -> 14.64 | I149: 0 | J149: 0 | K149: 0 | O149: 236.0392102
A150: 0 | B150: 4 | C150: 5 | D150: 0 | E150: 0 | F150: 0 | G150: 290.5081548 | H150: =1220/1000*12 -> 14.64 | I150: 0 | J150: 0 | K150: 0 | O150: 290.5081548
A151: 0 | B151: 4 | C151: 6 | D151: 0 | E151: 0 | F151: 0 | G151: 341.7085708 | H151: =1352/1000*12 -> 16.224 | I151: 0 | J151: 0 | K151: 0 | O151: 341.7085708
A152: 0 | B152: 4 | C152: 7 | D152: 0 | E152: 0 | F152: 0 | G152: 455.5004418 | H152: =1352/1000*12 -> 16.224 | I152: 0 | J152: 0 | K152: 0 | O152: 455.5004418
A153: 0 | B153: 4 | C153: 8 | D153: 0 | E153: 0 | F153: 0 | G153: 520.4674487 | H153: =1450/1000*12 -> 17.4 | I153: 0 | J153: 0 | K153: 0 | O153: 520.4674487
A154: 0 | B154: 4 | C154: 9 | D154: 0 | E154: 0 | F154: 0 | G154: 586.4171069 | H154: =1450/1000*12 -> 17.4 | I154: 0 | J154: 0 | K154: 0 | O154: 586.4171069
A155: 0 | B155: 4 | C155: 10 | D155: 0 | E155: 0 | F155: 0 | G155: 699.4852566 | H155: =1640/1000*12 -> 19.68 | I155: 0 | J155: 0 | K155: 0 | O155: 699.4852566
A156: 0 | B156: 4 | C156: 11 | D156: 0 | E156: 0 | F156: 0 | G156: 799.6834333 | H156: =1640/1000*12 -> 19.68 | I156: 0 | J156: 0 | K156: 0 | O156: 799.6834333
A157: 0 | B157: 4 | C157: 12 | D157: 0 | E157: 0 | F157: 0 | G157: 1014.272904 | H157: =1695/1000*12 -> 20.34 | I157: 0 | J157: 0 | K157: 0 | O157: 1014.272904
A158: 0 | B158: 4 | C158: 13 | D158: 0 | E158: 0 | F158: 0 | G158: 1152.258047 | H158: =1695/1000*12 -> 20.34 | I158: 0 | J158: 0 | K158: 0 | O158: 1152.258047
A159: 0 | B159: 4 | C159: 14 | D159: 0 | E159: 0 | F159: 0 | G159: 1409.161406 | H159: 20.34 | I159: 0 | J159: 0 | K159: 0 | O159: 1409.161406
A160: 0 | B160: 4 | C160: 15 | D160: 0 | E160: 0 | F160: 0 | G160: 1703.285814 | H160: 20.34 | I160: 0 | J160: 0 | K160: 0 | O160: 1703.285814
A161: 0 | B161: 4 | C161: 16 | D161: 0 | E161: 0 | F161: 0 | G161: 2168.595147 | H161: =1818/1000*12 -> 21.816 | I161: 0 | J161: 0 | K161: 0 | O161: 2168.595147
A162: 0 | B162: 4 | C162: Other | D162: 0 | E162: 0 | F162: 0 | G162: 2007.461925 | I162: 0 | J162: 0 | K162: 0 | O162: 2007.461925
A163: 0 | B163: 4 | C163: Other | D163: 0 | E163: 0 | F163: 0 | G163: 2437.657495 | I163: 0 | J163: 0 | K163: 0 | O163: 2437.657495
A164: 0 | B164: 4 | C164: Other | D164: 0 | E164: 0 | F164: 0 | G164: 259.6159983 | I164: 0 | J164: 0 | K164: 0 | O164: 259.6159983
A165: 0 | B165: 4 | C165: Other | D165: 0 | E165: 0 | F165: 0 | G165: 259.6159983 | I165: 0 | J165: 0 | K165: 0 | O165: 259.6159983
A166: 0 | B166: 4 | C166: Total | D166: =SUM(D146:D165) -> 0 | E166: =SUM(E146:E165) -> 0 | F166: 0 | G166: =IFERROR(I166/F166,0) -> 0 | H166: =IFERROR(SUM(H146:H165)/K166,0) -> 0 | I166: =SUM(I146:I165) -> 0 | J166: =SUM(J146:J165) -> 0 | K166: =IFERROR(#REF!/#REF!,0) -> 0 | L166: =IFERROR(SUM(L146:L165)/#REF!,0) -> 0
A167: 0
A168: 0
A169: 0
A170: 0
A171: =$A$31 -> 0 | C171: =$C$31 -> 
A172: =A$171 -> 0 | D172: Establishment Structure | F172: Previous Financial Year | J172: Medium-term expenditure estimates
A173: 0 | D173: As at 31 March 2023 | F173: =LEFT($D$3,4)-1 & "/" & RIGHT($D$3,2)-1 -> 2022/23
A174: 0 | C174: Salary level | D174: Total number of funded posts | E174: of which: number of funded posts additional to the establishment | F174: FTE Headcount | G174: Unit Costs | H174: of which: Once-off Payments per person | I174: Total Annual Cost | J174: Initial Headcount | K174: Unit Costs | L174: of which: Once-off Payments per person
A175: 0 | B175: 5 | C175: 1 | D175: 0 | E175: 0 | F175: 0 | G175: =IFERROR(IF(I175=0,O175,I175/F175),0) -> 99.95105925 | H175: =1220/1000*12 -> 14.64 | I175: 0 | J175: 0 | K175: 0 | O175: 99.95105925
A176: 0 | B176: 5 | C176: 2 | D176: 0 | E176: 0 | F176: 0 | G176: =IFERROR(IF(I176=0,O176,I176/F176),0) -> 179.5147433 | H176: =1220/1000*12 -> 14.64 | I176: 0 | J176: 0 | K176: 0 | O176: 179.5147433
A177: 0 | B177: 5 | C177: 3 | D177: 0 | E177: 0 | F177: 0 | G177: 216.6722944 | H177: =1220/1000*12 -> 14.64 | I177: 0 | J177: 0 | K177: 0 | O177: 216.6722944
A178: 0 | B178: 5 | C178: 4 | D178: 0 | E178: 0 | F178: 0 | G178: 236.0392102 | H178: =1220/1000*12 -> 14.64 | I178: 0 | J178: 0 | K178: 0 | O178: 236.0392102
A179: 0 | B179: 5 | C179: 5 | D179: 0 | E179: 0 | F179: 0 | G179: 290.5081548 | H179: =1220/1000*12 -> 14.64 | I179: 0 | J179: 0 | K179: 0 | O179: 290.5081548
A180: 0 | B180: 5 | C180: 6 | D180: 0 | E180: 0 | F180: 0 | G180: 341.7085708 | H180: =1352/1000*12 -> 16.224 | I180: 0 | J180: 0 | K180: 0 | O180: 341.7085708
A181: 0 | B181: 5 | C181: 7 | D181: 0 | E181: 0 | F181: 0 | G181: 455.5004418 | H181: =1352/1000*12 -> 16.224 | I181: 0 | J181: 0 | K181: 0 | O181: 455.5004418
A182: 0 | B182: 5 | C182: 8 | D182: 0 | E182: 0 | F182: 0 | G182: 520.4674487 | H182: =1450/1000*12 -> 17.4 | I182: 0 | J182: 0 | K182: 0 | O182: 520.4674487
A183: 0 | B183: 5 | C183: 9 | D183: 0 | E183: 0 | F183: 0 | G183: 586.4171069 | H183: =1450/1000*12 -> 17.4 | I183: 0 | J183: 0 | K183: 0 | O183: 586.4171069
A184: 0 | B184: 5 | C184: 10 | D184: 0 | E184: 0 | F184: 0 | G184: 699.4852566 | H184: =1640/1000*12 -> 19.68 | I184: 0 | J184: 0 | K184: 0 | O184: 699.4852566
A185: 0 | B185: 5 | C185: 11 | D185: 0 | E185: 0 | F185: 0 | G185: 799.6834333 | H185: =1640/1000*12 -> 19.68 | I185: 0 | J185: 0 | K185: 0 | O185: 799.6834333
A186: 0 | B186: 5 | C186: 12 | D186: 0 | E186: 0 | F186: 0 | G186: 1014.272904 | H186: =1695/1000*12 -> 20.34 | I186: 0 | J186: 0 | K186: 0 | O186: 1014.272904
A187: 0 | B187: 5 | C187: 13 | D187: 0 | E187: 0 | F187: 0 | G187: 1152.258047 | H187: =1695/1000*12 -> 20.34 | I187: 0 | J187: 0 | K187: 0 | O187: 1152.258047
A188: 0 | B188: 5 | C188: 14 | D188: 0 | E188: 0 | F188: 0 | G188: 1409.161406 | H188: 20.34 | I188: 0 | J188: 0 | K188: 0 | O188: 1409.161406
A189: 0 | B189: 5 | C189: 15 | D189: 0 | E189: 0 | F189: 0 | G189: 1703.285814 | H189: 20.34 | I189: 0 | J189: 0 | K189: 0 | O189: 1703.285814
A190: 0 | B190: 5 | C190: 16 | D190: 0 | E190: 0 | F190: 0 | G190: 2168.595147 | H190: =1818/1000*12 -> 21.816 | I190: 0 | J190: 0 | K190: 0 | O190: 2168.595147
A191: 0 | B191: 5 | C191: Other | D191: 0 | E191: 0 | F191: 0 | G191: 2007.461925 | I191: 0 | J191: 0 | K191: 0 | O191: 2007.461925
A192: 0 | B192: 5 | C192: Other | D192: 0 | E192: 0 | F192: 0 | G192: 2437.657495 | I192: 0 | J192: 0 | K192: 0 | O192: 2437.657495
A193: 0 | B193: 5 | C193: Other | D193: 0 | E193: 0 | F193: 0 | G193: 259.6159983 | I193: 0 | J193: 0 | K193: 0 | O193: 259.6159983
A194: 0 | B194: 5 | C194: Other | D194: 0 | E194: 0 | F194: 0 | G194: 259.6159983 | I194: 0 | J194: 0 | K194: 0 | O194: 259.6159983
A195: 0 | B195: 5 | C195: Total | D195: =SUM(D175:D194) -> 0 | E195: =SUM(E175:E194) -> 0 | F195: 0 | G195: =IFERROR(I195/F195,0) -> 0 | H195: =IFERROR(SUM(H175:H194)/K195,0) -> 0 | I195: =SUM(I175:I194) -> 0 | J195: =SUM(J175:J194) -> 0 | K195: =IFERROR(#REF!/#REF!,0) -> 0 | L195: =IFERROR(SUM(L175:L194)/#REF!,0) -> 0
A196: 0
A197: 0
A198: 0
A199: 0
A200: =$A$32 -> 0 | C200: =$C$32 -> 
... 314 more rows

Sheet 2 (hidden)
A1: Filter | C1: HUMAN RESOURCE BUDGET PLAN | K1: 1
A2: 1
A3: 1 | C3: Financial Year: | D3: 2023/24
A4: 1 | C4: Sphere of Government: | D4: National
A5: 1 | C5: Name of Department: | D5: Vote 02: Parliament
A6: -14
A7: -13
A8: -12
A9: -11
A10: -10
A11: -9
A12: -8
A13: -7
A14: -6
A15: -5
A16: -4
A17: -3
A18: -2
A19: -1
A20: 0
A21: 1
A22: 1 | C22: Department Summary Details
A23: 1
A24: 1 | D24: Establishment Structure | F24: Previous Financial Year | J24: Medium-term expenditure estimates
A25: 1 | D25: As at 31 March 2023 | F25: =LEFT($D$3,4)-1 & "/" & RIGHT($D$3,2)-1 -> 2022/23
A26: 1 | C26: Programmes | D26: Total number of funded posts | E26: of which: number of funded posts additional to the establishment | F26: FTE Headcount | G26: Unit Costs | H26: of which: Once-off Payments per person | I26: Total Annual Cost | J26: Initial Headcount | K26: Unit Costs | L26: of which: Once-off Payments per person
A27: 1 | B27: =IF(LEN(C27)>2,ROW()-26,"") -> 1 | C27: Administration | D27: =IF($C27="",0,OFFSET($C55,MATCH($C27,$C$55:$C$514,0)+24-SUM($A$27:$A27),COLUMN(D$1)-3)) -> 664 | E27: =IF($C27="",0,OFFSET($C55,MATCH($C27,$C$55:$C$514,0)+24-SUM($A$27:$A27),COLUMN(E$1)-3)) -> 0 | F27: =IF($C27="",0,OFFSET($C55,MATCH($C27,$C$55:$C$514,0)+24-SUM($A$27:$A27),COLUMN(F$1)-3)) -> 718.3050054 | G27: =IF($C27="",0,OFFSET($C55,MATCH($C27,$C$55:$C$514,0)+24-SUM($A$27:$A27),COLUMN(G$1)-3)) -> 649.5861737 | H27: =IF($C27="",0,OFFSET($C55,MATCH($C27,$C$55:$C$514,0)+24-SUM($A$27:$A27),COLUMN(H$1)-3)) -> 0 | I27: =IF($C27="",0,OFFSET($C55,MATCH($C27,$C$55:$C$514,0)+24-SUM($A$27:$A27),COLUMN(I$1)-3)) -> 466601 | J27: =IF($C27="",0,OFFSET($C55,MATCH($C27,$C$55:$C$514,0)+24-SUM($A$27:$A27),COLUMN(J$1)-3)) -> 718.3050054 | K27: =IF($C27="",0,OFFSET($C55,MATCH($C27,$C$55:$C$514,0)+24-SUM($A$27:$A27),COLUMN(K$1)-3)) -> 0 | L27: =IF($C27="",0,OFFSET($C55,MATCH($C27,$C$55:$C$514,0)+24-SUM($A$27:$A27),COLUMN(L$1)-3)) -> 0
A28: =IF(LEN(C28)>1,1,0) -> 1 | B28: 2 | C28: Legislation and Oversight | D28: =IF($C28="",0,OFFSET($C56,MATCH($C28,$C$55:$C$514,0)+24-SUM($A$27:$A28),COLUMN(D$1)-3)) -> 601 | E28: =IF($C28="",0,OFFSET($C56,MATCH($C28,$C$55:$C$514,0)+24-SUM($A$27:$A28),COLUMN(E$1)-3)) -> 0 | F28: =IF($C28="",0,OFFSET($C56,MATCH($C28,$C$55:$C$514,0)+24-SUM($A$27:$A28),COLUMN(F$1)-3)) -> 606.3764868 | G28: =IF($C28="",0,OFFSET($C56,MATCH($C28,$C$55:$C$514,0)+24-SUM($A$27:$A28),COLUMN(G$1)-3)) -> 743.214834 | H28: =IF($C28="",0,OFFSET($C56,MATCH($C28,$C$55:$C$514,0)+24-SUM($A$27:$A28),COLUMN(H$1)-3)) -> 0 | I28: =IF($C28="",0,OFFSET($C56,MATCH($C28,$C$55:$C$514,0)+24-SUM($A$27:$A28),COLUMN(I$1)-3)) -> 450668 | J28: =IF($C28="",0,OFFSET($C56,MATCH($C28,$C$55:$C$514,0)+24-SUM($A$27:$A28),COLUMN(J$1)-3)) -> 606.3764868 | K28: =IF($C28="",0,OFFSET($C56,MATCH($C28,$C$55:$C$514,0)+24-SUM($A$27:$A28),COLUMN(K$1)-3)) -> 0 | L28: =IF($C28="",0,OFFSET($C56,MATCH($C28,$C$55:$C$514,0)+24-SUM($A$27:$A28),COLUMN(L$1)-3)) -> 0
A29: 1 | B29: 3 | C29: Associated Services | D29: =IF($C29="",0,OFFSET($C57,MATCH($C29,$C$55:$C$514,0)+24-SUM($A$27:$A29),COLUMN(D$1)-3)) -> 11 | E29: =IF($C29="",0,OFFSET($C57,MATCH($C29,$C$55:$C$514,0)+24-SUM($A$27:$A29),COLUMN(E$1)-3)) -> 0 | F29: =IF($C29="",0,OFFSET($C57,MATCH($C29,$C$55:$C$514,0)+24-SUM($A$27:$A29),COLUMN(F$1)-3)) -> 10.39666667 | G29: =IF($C29="",0,OFFSET($C57,MATCH($C29,$C$55:$C$514,0)+24-SUM($A$27:$A29),COLUMN(G$1)-3)) -> 7596.569413 | H29: =IF($C29="",0,OFFSET($C57,MATCH($C29,$C$55:$C$514,0)+24-SUM($A$27:$A29),COLUMN(H$1)-3)) -> 0 | I29: =IF($C29="",0,OFFSET($C57,MATCH($C29,$C$55:$C$514,0)+24-SUM($A$27:$A29),COLUMN(I$1)-3)) -> 78979 | J29: =IF($C29="",0,OFFSET($C57,MATCH($C29,$C$55:$C$514,0)+24-SUM($A$27:$A29),COLUMN(J$1)-3)) -> 10.39666667 | K29: =IF($C29="",0,OFFSET($C57,MATCH($C29,$C$55:$C$514,0)+24-SUM($A$27:$A29),COLUMN(K$1)-3)) -> 0 | L29: =IF($C29="",0,OFFSET($C57,MATCH($C29,$C$55:$C$514,0)+24-SUM($A$27:$A29),COLUMN(L$1)-3)) -> 0
A30: 1 | B30: 4 | C30: Programme 4 | D30: =IF($C30="",0,OFFSET($C58,MATCH($C30,$C$55:$C$514,0)+24-SUM($A$27:$A30),COLUMN(D$1)-3)) -> 0 | E30: =IF($C30="",0,OFFSET($C58,MATCH($C30,$C$55:$C$514,0)+24-SUM($A$27:$A30),COLUMN(E$1)-3)) -> 0 | F30: =IF($C30="",0,OFFSET($C58,MATCH($C30,$C$55:$C$514,0)+24-SUM($A$27:$A30),COLUMN(F$1)-3)) -> 0 | G30: =IF($C30="",0,OFFSET($C58,MATCH($C30,$C$55:$C$514,0)+24-SUM($A$27:$A30),COLUMN(G$1)-3)) -> 0 | H30: =IF($C30="",0,OFFSET($C58,MATCH($C30,$C$55:$C$514,0)+24-SUM($A$27:$A30),COLUMN(H$1)-3)) -> 0 | I30: =IF($C30="",0,OFFSET($C58,MATCH($C30,$C$55:$C$514,0)+24-SUM($A$27:$A30),COLUMN(I$1)-3)) -> 0 | J30: =IF($C30="",0,OFFSET($C58,MATCH($C30,$C$55:$C$514,0)+24-SUM($A$27:$A30),COLUMN(J$1)-3)) -> 0 | K30: =IF($C30="",0,OFFSET($C58,MATCH($C30,$C$55:$C$514,0)+24-SUM($A$27:$A30),COLUMN(K$1)-3)) -> 0 | L30: =IF($C30="",0,OFFSET($C58,MATCH($C30,$C$55:$C$514,0)+24-SUM($A$27:$A30),COLUMN(L$1)-3)) -> 0
A31: 1 | B31: 5 | C31: Programme 5 | D31: =IF($C31="",0,OFFSET($C59,MATCH($C31,$C$55:$C$514,0)+24-SUM($A$27:$A31),COLUMN(D$1)-3)) -> 0 | E31: =IF($C31="",0,OFFSET($C59,MATCH($C31,$C$55:$C$514,0)+24-SUM($A$27:$A31),COLUMN(E$1)-3)) -> 0 | F31: =IF($C31="",0,OFFSET($C59,MATCH($C31,$C$55:$C$514,0)+24-SUM($A$27:$A31),COLUMN(F$1)-3)) -> 0 | G31: =IF($C31="",0,OFFSET($C59,MATCH($C31,$C$55:$C$514,0)+24-SUM($A$27:$A31),COLUMN(G$1)-3)) -> 0 | H31: =IF($C31="",0,OFFSET($C59,MATCH($C31,$C$55:$C$514,0)+24-SUM($A$27:$A31),COLUMN(H$1)-3)) -> 0 | I31: =IF($C31="",0,OFFSET($C59,MATCH($C31,$C$55:$C$514,0)+24-SUM($A$27:$A31),COLUMN(I$1)-3)) -> 0 | J31: =IF($C31="",0,OFFSET($C59,MATCH($C31,$C$55:$C$514,0)+24-SUM($A$27:$A31),COLUMN(J$1)-3)) -> 0 | K31: =IF($C31="",0,OFFSET($C59,MATCH($C31,$C$55:$C$514,0)+24-SUM($A$27:$A31),COLUMN(K$1)-3)) -> 0 | L31: =IF($C31="",0,OFFSET($C59,MATCH($C31,$C$55:$C$514,0)+24-SUM($A$27:$A31),COLUMN(L$1)-3)) -> 0
A32: 1 | B32: 6 | C32: Programme 6 | D32: =IF($C32="",0,OFFSET($C60,MATCH($C32,$C$55:$C$514,0)+24-SUM($A$27:$A32),COLUMN(D$1)-3)) -> 0 | E32: =IF($C32="",0,OFFSET($C60,MATCH($C32,$C$55:$C$514,0)+24-SUM($A$27:$A32),COLUMN(E$1)-3)) -> 0 | F32: =IF($C32="",0,OFFSET($C60,MATCH($C32,$C$55:$C$514,0)+24-SUM($A$27:$A32),COLUMN(F$1)-3)) -> 0 | G32: =IF($C32="",0,OFFSET($C60,MATCH($C32,$C$55:$C$514,0)+24-SUM($A$27:$A32),COLUMN(G$1)-3)) -> 0 | H32: =IF($C32="",0,OFFSET($C60,MATCH($C32,$C$55:$C$514,0)+24-SUM($A$27:$A32),COLUMN(H$1)-3)) -> 0 | I32: =IF($C32="",0,OFFSET($C60,MATCH($C32,$C$55:$C$514,0)+24-SUM($A$27:$A32),COLUMN(I$1)-3)) -> 0 | J32: =IF($C32="",0,OFFSET($C60,MATCH($C32,$C$55:$C$514,0)+24-SUM($A$27:$A32),COLUMN(J$1)-3)) -> 0 | K32: =IF($C32="",0,OFFSET($C60,MATCH($C32,$C$55:$C$514,0)+24-SUM($A$27:$A32),COLUMN(K$1)-3)) -> 0 | L32: =IF($C32="",0,OFFSET($C60,MATCH($C32,$C$55:$C$514,0)+24-SUM($A$27:$A32),COLUMN(L$1)-3)) -> 0
A33: 1 | B33: 7 | C33: Programme 7 | D33: =IF($C33="",0,OFFSET($C61,MATCH($C33,$C$55:$C$514,0)+24-SUM($A$27:$A33),COLUMN(D$1)-3)) -> 0 | E33: =IF($C33="",0,OFFSET($C61,MATCH($C33,$C$55:$C$514,0)+24-SUM($A$27:$A33),COLUMN(E$1)-3)) -> 0 | F33: =IF($C33="",0,OFFSET($C61,MATCH($C33,$C$55:$C$514,0)+24-SUM($A$27:$A33),COLUMN(F$1)-3)) -> 0 | G33: =IF($C33="",0,OFFSET($C61,MATCH($C33,$C$55:$C$514,0)+24-SUM($A$27:$A33),COLUMN(G$1)-3)) -> 0 | H33: =IF($C33="",0,OFFSET($C61,MATCH($C33,$C$55:$C$514,0)+24-SUM($A$27:$A33),COLUMN(H$1)-3)) -> 0 | I33: =IF($C33="",0,OFFSET($C61,MATCH($C33,$C$55:$C$514,0)+24-SUM($A$27:$A33),COLUMN(I$1)-3)) -> 0 | J33: =IF($C33="",0,OFFSET($C61,MATCH($C33,$C$55:$C$514,0)+24-SUM($A$27:$A33),COLUMN(J$1)-3)) -> 0 | K33: =IF($C33="",0,OFFSET($C61,MATCH($C33,$C$55:$C$514,0)+24-SUM($A$27:$A33),COLUMN(K$1)-3)) -> 0 | L33: =IF($C33="",0,OFFSET($C61,MATCH($C33,$C$55:$C$514,0)+24-SUM($A$27:$A33),COLUMN(L$1)-3)) -> 0
A34: 1 | B34: 8 | C34: Programme 8 | D34: =IF($C34="",0,OFFSET($C62,MATCH($C34,$C$55:$C$514,0)+24-SUM($A$27:$A34),COLUMN(D$1)-3)) -> 0 | E34: =IF($C34="",0,OFFSET($C62,MATCH($C34,$C$55:$C$514,0)+24-SUM($A$27:$A34),COLUMN(E$1)-3)) -> 0 | F34: =IF($C34="",0,OFFSET($C62,MATCH($C34,$C$55:$C$514,0)+24-SUM($A$27:$A34),COLUMN(F$1)-3)) -> 0 | G34: =IF($C34="",0,OFFSET($C62,MATCH($C34,$C$55:$C$514,0)+24-SUM($A$27:$A34),COLUMN(G$1)-3)) -> 0 | H34: =IF($C34="",0,OFFSET($C62,MATCH($C34,$C$55:$C$514,0)+24-SUM($A$27:$A34),COLUMN(H$1)-3)) -> 0 | I34: =IF($C34="",0,OFFSET($C62,MATCH($C34,$C$55:$C$514,0)+24-SUM($A$27:$A34),COLUMN(I$1)-3)) -> 0 | J34: =IF($C34="",0,OFFSET($C62,MATCH($C34,$C$55:$C$514,0)+24-SUM($A$27:$A34),COLUMN(J$1)-3)) -> 0 | K34: =IF($C34="",0,OFFSET($C62,MATCH($C34,$C$55:$C$514,0)+24-SUM($A$27:$A34),COLUMN(K$1)-3)) -> 0 | L34: =IF($C34="",0,OFFSET($C62,MATCH($C34,$C$55:$C$514,0)+24-SUM($A$27:$A34),COLUMN(L$1)-3)) -> 0
A35: 1 | B35: 9 | C35: Programme 9 | D35: =IF($C35="",0,OFFSET($C63,MATCH($C35,$C$55:$C$514,0)+24-SUM($A$27:$A35),COLUMN(D$1)-3)) -> 0 | E35: =IF($C35="",0,OFFSET($C63,MATCH($C35,$C$55:$C$514,0)+24-SUM($A$27:$A35),COLUMN(E$1)-3)) -> 0 | F35: =IF($C35="",0,OFFSET($C63,MATCH($C35,$C$55:$C$514,0)+24-SUM($A$27:$A35),COLUMN(F$1)-3)) -> 0 | G35: =IF($C35="",0,OFFSET($C63,MATCH($C35,$C$55:$C$514,0)+24-SUM($A$27:$A35),COLUMN(G$1)-3)) -> 0 | H35: =IF($C35="",0,OFFSET($C63,MATCH($C35,$C$55:$C$514,0)+24-SUM($A$27:$A35),COLUMN(H$1)-3)) -> 0 | I35: =IF($C35="",0,OFFSET($C63,MATCH($C35,$C$55:$C$514,0)+24-SUM($A$27:$A35),COLUMN(I$1)-3)) -> 0 | J35: =IF($C35="",0,OFFSET($C63,MATCH($C35,$C$55:$C$514,0)+24-SUM($A$27:$A35),COLUMN(J$1)-3)) -> 0 | K35: =IF($C35="",0,OFFSET($C63,MATCH($C35,$C$55:$C$514,0)+24-SUM($A$27:$A35),COLUMN(K$1)-3)) -> 0 | L35: =IF($C35="",0,OFFSET($C63,MATCH($C35,$C$55:$C$514,0)+24-SUM($A$27:$A35),COLUMN(L$1)-3)) -> 0
A36: 1 | B36: 10 | C36: Programme 10 | D36: =IF($C36="",0,OFFSET($C64,MATCH($C36,$C$55:$C$514,0)+24-SUM($A$27:$A36),COLUMN(D$1)-3)) -> 0 | E36: =IF($C36="",0,OFFSET($C64,MATCH($C36,$C$55:$C$514,0)+24-SUM($A$27:$A36),COLUMN(E$1)-3)) -> 0 | F36: =IF($C36="",0,OFFSET($C64,MATCH($C36,$C$55:$C$514,0)+24-SUM($A$27:$A36),COLUMN(F$1)-3)) -> 0 | G36: =IF($C36="",0,OFFSET($C64,MATCH($C36,$C$55:$C$514,0)+24-SUM($A$27:$A36),COLUMN(G$1)-3)) -> 0 | H36: =IF($C36="",0,OFFSET($C64,MATCH($C36,$C$55:$C$514,0)+24-SUM($A$27:$A36),COLUMN(H$1)-3)) -> 0 | I36: =IF($C36="",0,OFFSET($C64,MATCH($C36,$C$55:$C$514,0)+24-SUM($A$27:$A36),COLUMN(I$1)-3)) -> 0 | J36: =IF($C36="",0,OFFSET($C64,MATCH($C36,$C$55:$C$514,0)+24-SUM($A$27:$A36),COLUMN(J$1)-3)) -> 0 | K36: =IF($C36="",0,OFFSET($C64,MATCH($C36,$C$55:$C$514,0)+24-SUM($A$27:$A36),COLUMN(K$1)-3)) -> 0 | L36: =IF($C36="",0,OFFSET($C64,MATCH($C36,$C$55:$C$514,0)+24-SUM($A$27:$A36),COLUMN(L$1)-3)) -> 0
A37: 1 | B37: 11 | C37: Programme 11 | D37: =IF($C37="",0,OFFSET($C65,MATCH($C37,$C$55:$C$514,0)+24-SUM($A$27:$A37),COLUMN(D$1)-3)) -> 0 | E37: =IF($C37="",0,OFFSET($C65,MATCH($C37,$C$55:$C$514,0)+24-SUM($A$27:$A37),COLUMN(E$1)-3)) -> 0 | F37: =IF($C37="",0,OFFSET($C65,MATCH($C37,$C$55:$C$514,0)+24-SUM($A$27:$A37),COLUMN(F$1)-3)) -> 0 | G37: =IF($C37="",0,OFFSET($C65,MATCH($C37,$C$55:$C$514,0)+24-SUM($A$27:$A37),COLUMN(G$1)-3)) -> 0 | H37: =IF($C37="",0,OFFSET($C65,MATCH($C37,$C$55:$C$514,0)+24-SUM($A$27:$A37),COLUMN(H$1)-3)) -> 0 | I37: =IF($C37="",0,OFFSET($C65,MATCH($C37,$C$55:$C$514,0)+24-SUM($A$27:$A37),COLUMN(I$1)-3)) -> 0 | J37: =IF($C37="",0,OFFSET($C65,MATCH($C37,$C$55:$C$514,0)+24-SUM($A$27:$A37),COLUMN(J$1)-3)) -> 0 | K37: =IF($C37="",0,OFFSET($C65,MATCH($C37,$C$55:$C$514,0)+24-SUM($A$27:$A37),COLUMN(K$1)-3)) -> 0 | L37: =IF($C37="",0,OFFSET($C65,MATCH($C37,$C$55:$C$514,0)+24-SUM($A$27:$A37),COLUMN(L$1)-3)) -> 0
A38: 1 | B38: 12 | C38: Programme 12 | D38: =IF($C38="",0,OFFSET($C66,MATCH($C38,$C$55:$C$514,0)+24-SUM($A$27:$A38),COLUMN(D$1)-3)) -> 0 | E38: =IF($C38="",0,OFFSET($C66,MATCH($C38,$C$55:$C$514,0)+24-SUM($A$27:$A38),COLUMN(E$1)-3)) -> 0 | F38: =IF($C38="",0,OFFSET($C66,MATCH($C38,$C$55:$C$514,0)+24-SUM($A$27:$A38),COLUMN(F$1)-3)) -> 0 | G38: =IF($C38="",0,OFFSET($C66,MATCH($C38,$C$55:$C$514,0)+24-SUM($A$27:$A38),COLUMN(G$1)-3)) -> 0 | H38: =IF($C38="",0,OFFSET($C66,MATCH($C38,$C$55:$C$514,0)+24-SUM($A$27:$A38),COLUMN(H$1)-3)) -> 0 | I38: =IF($C38="",0,OFFSET($C66,MATCH($C38,$C$55:$C$514,0)+24-SUM($A$27:$A38),COLUMN(I$1)-3)) -> 0 | J38: =IF($C38="",0,OFFSET($C66,MATCH($C38,$C$55:$C$514,0)+24-SUM($A$27:$A38),COLUMN(J$1)-3)) -> 0 | K38: =IF($C38="",0,OFFSET($C66,MATCH($C38,$C$55:$C$514,0)+24-SUM($A$27:$A38),COLUMN(K$1)-3)) -> 0 | L38: =IF($C38="",0,OFFSET($C66,MATCH($C38,$C$55:$C$514,0)+24-SUM($A$27:$A38),COLUMN(L$1)-3)) -> 0
A39: 1 | B39: 13 | C39: Programme 13 | D39: =IF($C39="",0,OFFSET($C67,MATCH($C39,$C$55:$C$514,0)+24-SUM($A$27:$A39),COLUMN(D$1)-3)) -> 0 | E39: =IF($C39="",0,OFFSET($C67,MATCH($C39,$C$55:$C$514,0)+24-SUM($A$27:$A39),COLUMN(E$1)-3)) -> 0 | F39: =IF($C39="",0,OFFSET($C67,MATCH($C39,$C$55:$C$514,0)+24-SUM($A$27:$A39),COLUMN(F$1)-3)) -> 0 | G39: =IF($C39="",0,OFFSET($C67,MATCH($C39,$C$55:$C$514,0)+24-SUM($A$27:$A39),COLUMN(G$1)-3)) -> 0 | H39: =IF($C39="",0,OFFSET($C67,MATCH($C39,$C$55:$C$514,0)+24-SUM($A$27:$A39),COLUMN(H$1)-3)) -> 0 | I39: =IF($C39="",0,OFFSET($C67,MATCH($C39,$C$55:$C$514,0)+24-SUM($A$27:$A39),COLUMN(I$1)-3)) -> 0 | J39: =IF($C39="",0,OFFSET($C67,MATCH($C39,$C$55:$C$514,0)+24-SUM($A$27:$A39),COLUMN(J$1)-3)) -> 0 | K39: =IF($C39="",0,OFFSET($C67,MATCH($C39,$C$55:$C$514,0)+24-SUM($A$27:$A39),COLUMN(K$1)-3)) -> 0 | L39: =IF($C39="",0,OFFSET($C67,MATCH($C39,$C$55:$C$514,0)+24-SUM($A$27:$A39),COLUMN(L$1)-3)) -> 0
A40: 1 | B40: 14 | C40: Programme 14 | D40: =IF($C40="",0,OFFSET($C68,MATCH($C40,$C$55:$C$514,0)+24-SUM($A$27:$A40),COLUMN(D$1)-3)) -> 0 | E40: =IF($C40="",0,OFFSET($C68,MATCH($C40,$C$55:$C$514,0)+24-SUM($A$27:$A40),COLUMN(E$1)-3)) -> 0 | F40: =IF($C40="",0,OFFSET($C68,MATCH($C40,$C$55:$C$514,0)+24-SUM($A$27:$A40),COLUMN(F$1)-3)) -> 0 | G40: =IF($C40="",0,OFFSET($C68,MATCH($C40,$C$55:$C$514,0)+24-SUM($A$27:$A40),COLUMN(G$1)-3)) -> 0 | H40: =IF($C40="",0,OFFSET($C68,MATCH($C40,$C$55:$C$514,0)+24-SUM($A$27:$A40),COLUMN(H$1)-3)) -> 0 | I40: =IF($C40="",0,OFFSET($C68,MATCH($C40,$C$55:$C$514,0)+24-SUM($A$27:$A40),COLUMN(I$1)-3)) -> 0 | J40: =IF($C40="",0,OFFSET($C68,MATCH($C40,$C$55:$C$514,0)+24-SUM($A$27:$A40),COLUMN(J$1)-3)) -> 0 | K40: =IF($C40="",0,OFFSET($C68,MATCH($C40,$C$55:$C$514,0)+24-SUM($A$27:$A40),COLUMN(K$1)-3)) -> 0 | L40: =IF($C40="",0,OFFSET($C68,MATCH($C40,$C$55:$C$514,0)+24-SUM($A$27:$A40),COLUMN(L$1)-3)) -> 0
A41: 1 | B41: 15 | C41: Programme 15 | D41: =IF($C41="",0,OFFSET($C69,MATCH($C41,$C$55:$C$514,0)+24-SUM($A$27:$A41),COLUMN(D$1)-3)) -> 0 | E41: =IF($C41="",0,OFFSET($C69,MATCH($C41,$C$55:$C$514,0)+24-SUM($A$27:$A41),COLUMN(E$1)-3)) -> 0 | F41: =IF($C41="",0,OFFSET($C69,MATCH($C41,$C$55:$C$514,0)+24-SUM($A$27:$A41),COLUMN(F$1)-3)) -> 0 | G41: =IF($C41="",0,OFFSET($C69,MATCH($C41,$C$55:$C$514,0)+24-SUM($A$27:$A41),COLUMN(G$1)-3)) -> 0 | H41: =IF($C41="",0,OFFSET($C69,MATCH($C41,$C$55:$C$514,0)+24-SUM($A$27:$A41),COLUMN(H$1)-3)) -> 0 | I41: =IF($C41="",0,OFFSET($C69,MATCH($C41,$C$55:$C$514,0)+24-SUM($A$27:$A41),COLUMN(I$1)-3)) -> 0 | J41: =IF($C41="",0,OFFSET($C69,MATCH($C41,$C$55:$C$514,0)+24-SUM($A$27:$A41),COLUMN(J$1)-3)) -> 0 | K41: =IF($C41="",0,OFFSET($C69,MATCH($C41,$C$55:$C$514,0)+24-SUM($A$27:$A41),COLUMN(K$1)-3)) -> 0 | L41: =IF($C41="",0,OFFSET($C69,MATCH($C41,$C$55:$C$514,0)+24-SUM($A$27:$A41),COLUMN(L$1)-3)) -> 0
A42: 1 | B42: 16 | C42: Direct charge against the National Revenue Fund | D42: =IF($C42="",0,OFFSET($C70,MATCH($C42,$C$55:$C$514,0)+24-SUM($A$27:$A42),COLUMN(D$1)-3)) -> 396 | E42: =IF($C42="",0,OFFSET($C70,MATCH($C42,$C$55:$C$514,0)+24-SUM($A$27:$A42),COLUMN(E$1)-3)) -> 0 | F42: =IF($C42="",0,OFFSET($C70,MATCH($C42,$C$55:$C$514,0)+24-SUM($A$27:$A42),COLUMN(F$1)-3)) -> 339.8304684 | G42: =IF($C42="",0,OFFSET($C70,MATCH($C42,$C$55:$C$514,0)+24-SUM($A$27:$A42),COLUMN(G$1)-3)) -> 1388.071535 | H42: =IF($C42="",0,OFFSET($C70,MATCH($C42,$C$55:$C$514,0)+24-SUM($A$27:$A42),COLUMN(H$1)-3)) -> 0 | I42: =IF($C42="",0,OFFSET($C70,MATCH($C42,$C$55:$C$514,0)+24-SUM($A$27:$A42),COLUMN(I$1)-3)) -> 471709 | J42: =IF($C42="",0,OFFSET($C70,MATCH($C42,$C$55:$C$514,0)+24-SUM($A$27:$A42),COLUMN(J$1)-3)) -> 339.8304684 | K42: =IF($C42="",0,OFFSET($C70,MATCH($C42,$C$55:$C$514,0)+24-SUM($A$27:$A42),COLUMN(K$1)-3)) -> 0 | L42: =IF($C42="",0,OFFSET($C70,MATCH($C42,$C$55:$C$514,0)+24-SUM($A$27:$A42),COLUMN(L$1)-3)) -> 0
A43: 1 | C43: Total | D43: =SUM(D23:D42) -> 1672 | E43: =SUM(E23:E42) -> 0 | F43: =SUM(F23:F42) -> 1674.908627 | G43: =IFERROR(I43/F43,0) -> 876.4400494 | H43: =IFERROR(SUM(H27:H42)/COUNTIF(H27:H42,">0"),0) -> 0 | I43: =SUM(I23:I42) -> 1467957 | J43: =SUM(J23:J42) -> 1674.908627 | K43: =IFERROR(#REF!/#REF!,0) -> 0 | L43: =IFERROR(SUM(L27:L42)/COUNTIF(L27:L42,">0"),0) -> 0
A44: 1 | C44: Salary Bands
A45: 1 | C45: 1 - 6 | D45: =SUMIFS(D$55:D$514,$C$55:$C$514,">=1",$C$55:$C$514,"<=6") -> 76 | E45: =SUMIFS(E$55:E$514,$C$55:$C$514,">=1",$C$55:$C$514,"<=6") -> 0 | F45: =SUMIFS(F$55:F$514,$C$55:$C$514,">=1",$C$55:$C$514,"<=6") -> 84 | G45: =IFERROR(I45/F45,0) -> 152.2380952 | H45: =IFERROR(SUMIFS(H$55:H$514,$B$55:$B$514,">=1",$C$55:$C$514,"<>Total",$C$55:$C$514,">=1",$C$55:$C$514,"<=6")/COUNTIFS($B$55:$B$514,">=1",$C$55:$C$514,">=1",$C$55:$C$514,"<=6",#REF!,">0"),0) -> 0 | I45: =SUMIFS(I$55:I$514,$C$55:$C$514,">=1",$C$55:$C$514,"<=6") -> 12788 | J45: =SUMIFS(J$55:J$514,$C$55:$C$514,">=1",$C$55:$C$514,"<=6") -> 84 | K45: =IFERROR(#REF!/#REF!,0) -> 0 | L45: =IFERROR(SUMIFS(L$55:L$514,$B$55:$B$514,">=1",$C$55:$C$514,"<>Total",$C$55:$C$514,">=1",$C$55:$C$514,"<=6")/COUNTIFS($B$55:$B$514,">=1",$C$55:$C$514,">=1",$C$55:$C$514,"<=6",#REF!,">0"),0) -> 0
A46: 1 | C46: 7 - 10 | D46: =SUMIFS(D$55:D$514,$C$55:$C$514,">=7",$C$55:$C$514,"<=10") -> 682 | E46: =SUMIFS(E$55:E$514,$C$55:$C$514,">=7",$C$55:$C$514,"<=10") -> 0 | F46: =SUMIFS(F$55:F$514,$C$55:$C$514,">=7",$C$55:$C$514,"<=10") -> 734.6814922 | G46: 504.5315608 | H46: =IFERROR(SUMIFS(H$55:H$514,$B$55:$B$514,">=1",$C$55:$C$514,"<>Total",$C$55:$C$514,">=7",$C$55:$C$514,"<=10")/COUNTIFS($B$55:$B$514,">=1",$C$55:$C$514,">=7",$C$55:$C$514,"<=10",#REF!,">0"),0) -> 0 | I46: =SUMIFS(I$55:I$514,$C$55:$C$514,">=7",$C$55:$C$514,"<=10") -> 370670 | J46: =SUMIFS(J$55:J$514,$C$55:$C$514,">=7",$C$55:$C$514,"<=10") -> 734.6814922 | K46: =IFERROR(#REF!/#REF!,0) -> 0 | L46: =IFERROR(SUMIFS(L$55:L$514,$B$55:$B$514,">=1",$C$55:$C$514,"<>Total",$C$55:$C$514,">=7",$C$55:$C$514,"<=10")/COUNTIFS($B$55:$B$514,">=1",$C$55:$C$514,">=7",$C$55:$C$514,"<=10",#REF!,">0"),0) -> 0
A47: 1 | C47: 11 - 12 | D47: =SUMIFS(D$55:D$514,$C$55:$C$514,">=11",$C$55:$C$514,"<=12") -> 259 | E47: =SUMIFS(E$55:E$514,$C$55:$C$514,">=11",$C$55:$C$514,"<=12") -> 0 | F47: =SUMIFS(F$55:F$514,$C$55:$C$514,">=11",$C$55:$C$514,"<=12") -> 264 | G47: 804.9507576 | H47: =IFERROR(SUMIFS(H$55:H$514,$B$55:$B$514,">=1",$C$55:$C$514,"<>Total",$C$55:$C$514,">=11",$C$55:$C$514,"<=12")/COUNTIFS($B$55:$B$514,">=1",$C$55:$C$514,">=11",$C$55:$C$514,"<=12",#REF!,">0"),0) -> 0 | I47: =SUMIFS(I$55:I$514,$C$55:$C$514,">=11",$C$55:$C$514,"<=12") -> 212507 | J47: =SUMIFS(J$55:J$514,$C$55:$C$514,">=11",$C$55:$C$514,"<=12") -> 264 | K47: =IFERROR(#REF!/#REF!,0) -> 0 | L47: =IFERROR(SUMIFS(L$55:L$514,$B$55:$B$514,">=1",$C$55:$C$514,"<>Total",$C$55:$C$514,">=11",$C$55:$C$514,"<=12")/COUNTIFS($B$55:$B$514,">=1",$C$55:$C$514,">=11",$C$55:$C$514,"<=12",#REF!,">0"),0) -> 0
A48: 1 | C48: 13 - 16 | D48: =SUMIFS(D$55:D$514,$C$55:$C$514,">=13",$C$55:$C$514,"<=16") -> 256 | E48: =SUMIFS(E$55:E$514,$C$55:$C$514,">=13",$C$55:$C$514,"<=16") -> 0 | F48: =SUMIFS(F$55:F$514,$C$55:$C$514,">=13",$C$55:$C$514,"<=16") -> 247.3966667 | G48: 1311.804255 | H48: =IFERROR(SUMIFS(H$55:H$514,$B$55:$B$514,">=1",$C$55:$C$514,"<>Total",$C$55:$C$514,">=13",$C$55:$C$514,"<=16")/COUNTIFS($B$55:$B$514,">=1",$C$55:$C$514,">=13",$C$55:$C$514,"<=16",#REF!,">0"),0) -> 0 | I48: =SUMIFS(I$55:I$514,$C$55:$C$514,">=13",$C$55:$C$514,"<=16") -> 324536 | J48: =SUMIFS(J$55:J$514,$C$55:$C$514,">=13",$C$55:$C$514,"<=16") -> 247.3966667 | K48: =IFERROR(#REF!/#REF!,0) -> 0 | L48: =IFERROR(SUMIFS(L$55:L$514,$B$55:$B$514,">=1",$C$55:$C$514,"<>Total",$C$55:$C$514,">=13",$C$55:$C$514,"<=16")/COUNTIFS($B$55:$B$514,">=1",$C$55:$C$514,">=13",$C$55:$C$514,"<=16",#REF!,">0"),0) -> 0
A49: 1 | C49: Other | D49: =D43-SUM(D45:D48) -> 399 | E49: =E43-SUM(E45:E48) -> 0 | F49: =F43-SUM(F45:F48) -> 344.8304684 | G49: 1587.60913 | H49: =IFERROR((SUMIFS(H$55:H$514,$B$55:$B$514,">=1",$C$55:$C$514,"<>Total")-SUMIFS(H$55:H$514,$B$55:$B$514,">=1",$C$55:$C$514,"<=16"))/(COUNTIFS($B$55:$B$514,">=1",$C$55:$C$514,"<>Total",#REF!,">0")-COUNTIFS($B$55:$B$514,">=1",$C$55:$C$514,"<=16",#REF!,">0"=(SUMIFS(H$55:H$514,$B$55:$B$514,">=1",$C$55:$C$514,"<>Total")-SUMIFS(H$55:H$514,$B$55:$B$514,">=1",$C$55:$C$514,"<=16"))/(COUNTIFS($B$55:$B$514,">=1",$C$55:$C$514,"<>Total",#REF!,">0")-COUNTIFS($B$55:$B$514,">=1",$C$55:$C$514,"<=16",#REF!,">0")))),0) -> 0 | I49: =I43-SUM(I45:I48) -> 547456 | J49: =J43-SUM(J45:J48) -> 344.8304684 | K49: =IFERROR(#REF!/#REF!,0) -> 0 | L49: =IFERROR((SUMIFS(L$55:L$514,$B$55:$B$514,">=1",$C$55:$C$514,"<>Total")-SUMIFS(L$55:L$514,$B$55:$B$514,">=1",$C$55:$C$514,"<=16"))/(COUNTIFS($B$55:$B$514,">=1",$C$55:$C$514,"<>Total",#REF!,">0")-COUNTIFS($B$55:$B$514,">=1",$C$55:$C$514,"<=16",#REF!,">0"=(SUMIFS(L$55:L$514,$B$55:$B$514,">=1",$C$55:$C$514,"<>Total")-SUMIFS(L$55:L$514,$B$55:$B$514,">=1",$C$55:$C$514,"<=16"))/(COUNTIFS($B$55:$B$514,">=1",$C$55:$C$514,"<>Total",#REF!,">0")-COUNTIFS($B$55:$B$514,">=1",$C$55:$C$514,"<=16",#REF!,">0")))),0) -> 0
A50: 1 | C50: Total | D50: =SUM(D45:D49) -> 1672 | E50: =SUM(E45:E49) -> 0 | F50: =SUM(F45:F49) -> 1674.908627 | G50: 876.4400494 | H50: =IFERROR(SUMIF($C$55:$C$514,"Total",H$55:H$514)/COUNTIF(H27:H42,">0"),0) -> 0 | I50: =SUM(I45:I49) -> 1467957 | J50: =SUM(J45:J49) -> 1674.908627 | K50: =IFERROR(#REF!/#REF!,0) -> 0 | L50: =IFERROR(SUMIF($C$55:$C$514,"Total",L$55:L$514)/COUNTIF(L27:L42,">0"),0) -> 0
A51: 1 | C51: Checks | D51: =D43-D50 -> 0 | E51: 0 | F51: 0 | G51: 0 | H51: 0 | I51: 0 | J51: 0 | K51: 0 | L51: 0
A52: 1
A53: 1 | C53: Department Programme Details
A54: 1
A55: =$A$27 -> 1 | C55: =$C$27 -> Administration
A56: =A$55 -> 1 | D56: Establishment Structure | F56: Previous Financial Year | J56: Medium-term expenditure estimates
A57: 1 | D57: As at 31 March 2023 | F57: =LEFT($D$3,4)-1 & "/" & RIGHT($D$3,2)-1 -> 2022/23
A58: 1 | B58: ProgNo. | C58: Salary level | D58: Total number of funded posts | E58: of which: number of funded posts additional to the establishment | F58: FTE Headcount | G58: Unit Costs | H58: of which: Once-off Payments per person | I58: Total Annual Cost | J58: Initial Headcount | K58: Unit Costs | L58: of which: Once-off Payments per person
A59: 1 | B59: 1 | C59: 1 | D59: 0 | E59: 0 | F59: 0 | G59: =IFERROR(IF(I59=0,O59,I59/F59),0) -> 99.95105925 | H59: 15 | I59: 0 | J59: 0 | K59: 0 | O59: 99.95105925
A60: 1 | B60: 1 | C60: 2 | D60: 0 | E60: 0 | F60: 0 | G60: =IFERROR(IF(I60=0,O60,I60/F60),0) -> 179.5147433 | H60: =1220/1000*12 -> 14.64 | I60: 0 | J60: 0 | K60: 0 | O60: 179.5147433
A61: 1 | B61: 1 | C61: 3 | D61: 73 | E61: 0 | F61: 76 | G61: 149.3815789 | H61: =1220/1000*12 -> 14.64 | I61: 11353 | J61: 76 | K61: 153.2423614 | O61: 216.6722944
A62: 1 | B62: 1 | C62: 4 | D62: 3 | E62: 0 | F62: 8 | G62: 179.375 | H62: =1220/1000*12 -> 14.64 | I62: 1435 | J62: 8 | K62: 184.0497056 | O62: 236.0392102
A63: 1 | B63: 1 | C63: 5 | D63: 0 | E63: 0 | F63: 0 | G63: 290.5081548 | H63: =1220/1000*12 -> 14.64 | I63: 0 | J63: 0 | K63: 0 | O63: 290.5081548
A64: 1 | B64: 1 | C64: 6 | D64: 0 | E64: 0 | F64: 0 | G64: 341.7085708 | H64: =1352/1000*12 -> 16.224 | I64: 0 | J64: 0 | K64: 0 | O64: 341.7085708
A65: 1 | B65: 1 | C65: 7 | D65: 12 | E65: 0 | F65: 18 | G65: 314.8333333 | H65: =1352/1000*12 -> 16.224 | I65: 5667 | J65: 18 | K65: 322.9874237 | O65: 455.5004418
A66: 1 | B66: 1 | C66: 8 | D66: 52 | E66: 0 | F66: 60 | G66: 364.8 | H66: =1450/1000*12 -> 17.4 | I66: 21888 | J66: 60 | K66: 374.2362485 | O66: 520.4674487
A67: 1 | B67: 1 | C67: 9 | D67: 96 | E67: 0 | F67: 116 | G67: 447.7155172 | H67: =1450/1000*12 -> 17.4 | I67: 51935 | J67: 116 | K67: 459.3026135 | O67: 586.4171069
A68: 1 | B68: 1 | C68: 10 | D68: 215 | E68: 0 | F68: 226.3050054 | G68: 599.1118038 | H68: =1640/1000*12 -> 19.68 | I68: 135582 | J68: 226.3050054 | K68: 614.6136084 | O68: 699.4852566
A69: 1 | B69: 1 | C69: 11 | D69: 18 | E69: 0 | F69: 19 | G69: 702.3684211 | H69: =1640/1000*12 -> 19.68 | I69: 13345 | J69: 19 | K69: 720.531186 | O69: 799.6834333
A70: 1 | B70: 1 | C70: 12 | D70: 75 | E70: 0 | F70: 77 | G70: 898.2337662 | H70: =1695/1000*12 -> 20.34 | I70: 69164 | J70: 77 | K70: 921.4731249 | O70: 1014.272904
A71: 1 | B71: 1 | C71: 13 | D71: 30 | E71: 0 | F71: 26 | G71: 982.5 | H71: =1695/1000*12 -> 20.34 | I71: 25545 | J71: 26 | K71: 1007.915257 | O71: 1152.258047
A72: 1 | B72: 1 | C72: 14 | D72: 49 | E72: 0 | F72: 48 | G72: 1184.604167 | H72: 20.34 | I72: 56861 | J72: 48 | K72: 1215.261705 | O72: 1409.161406
A73: 1 | B73: 1 | C73: 15 | D73: 30 | E73: 0 | F73: 31 | G73: 1428.806452 | H73: 20.34 | I73: 44293 | J73: 31 | K73: 1465.770415 | O73: 1703.285814
A74: 1 | B74: 1 | C74: 16 | D74: 10 | E74: 0 | F74: 11 | G74: 2224.090909 | H74: =1818/1000*12 -> 21.816 | I74: 24465 | J74: 11 | K74: 2281.640069 | O74: 2168.595147
A75: 1 | B75: 1 | C75: Deputy Minister | D75: 1 | E75: 0 | F75: 2 | G75: 2534 | I75: 5068 | J75: 2 | K75: 2599.747114 | O75: 2007.461925
A76: 1 | B76: 1 | C76: Minister | D76: 0 | E76: 0 | F76: 0 | G76: 2437.657495 | I76: 0 | J76: 0 | K76: 0 | O76: 2437.657495
A77: 1 | B77: 1 | C77: Other | D77: 0 | E77: 0 | F77: 0 | G77: 259.6159983 | I77: 0 | J77: 0 | K77: 0 | O77: 259.6159983
A78: 1 | B78: 1 | C78: Other | D78: 0 | E78: 0 | F78: 0 | G78: 259.6159983 | I78: 0 | J78: 0 | K78: 0 | O78: 259.6159983
A79: 1 | B79: 1 | C79: Total | D79: =SUM(D59:D78) -> 664 | E79: 0 | F79: 718.3050054 | G79: =IFERROR(I79/F79,0) -> 649.5861737 | H79: =IFERROR(SUM(H59:H78)/K79,0) -> 0 | I79: =SUM(I59:I78) -> 466601 | J79: =SUM(J59:J78) -> 718.3050054 | K79: =IFERROR(#REF!/#REF!,0) -> 0 | L79: =IFERROR(SUM(L59:L78)/#REF!,0) -> 0
A80: 1
A81: 1
A82: 1
A83: 1
A84: =$A$28 -> 1 | C84: =$C$28 -> Legislation and Oversight
A85: =A$84 -> 1 | D85: Establishment Structure | F85: Previous Financial Year | J85: Medium-term expenditure estimates
A86: 1 | D86: As at 31 March 2023 | F86: =LEFT($D$3,4)-1 & "/" & RIGHT($D$3,2)-1 -> 2022/23
A87: 1 | C87: Salary level | D87: Total number of funded posts | E87: of which: number of funded posts additional to the establishment | F87: FTE Headcount | G87: Unit Costs | H87: of which: Once-off Payments per person | I87: Total Annual Cost | J87: Initial Headcount | K87: Unit Costs | L87: of which: Once-off Payments per person
A88: 1 | B88: 2 | C88: 1 | D88: 0 | E88: 0 | F88: 0 | G88: =IFERROR(IF(I88=0,O88,I88/F88),0) -> 99.95105925 | H88: =1220/1000*12 -> 14.64 | I88: 0 | J88: 0 | K88: 0 | O88: 99.95105925
A89: 1 | B89: 2 | C89: 2 | D89: 0 | E89: 0 | F89: 0 | G89: =IFERROR(IF(I89=0,O89,I89/F89),0) -> 179.5147433 | H89: =1220/1000*12 -> 14.64 | I89: 0 | J89: 0 | K89: 0 | O89: 179.5147433
A90: 1 | B90: 2 | C90: 3 | D90: 0 | E90: 0 | F90: 0 | G90: 216.6722944 | H90: =1220/1000*12 -> 14.64 | I90: 0 | J90: 0 | K90: 0 | O90: 216.6722944
A91: 1 | B91: 2 | C91: 4 | D91: 0 | E91: 0 | F91: 0 | G91: 236.0392102 | H91: =1220/1000*12 -> 14.64 | I91: 0 | J91: 0 | K91: 0 | O91: 236.0392102
A92: 1 | B92: 2 | C92: 5 | D92: 0 | E92: 0 | F92: 0 | G92: 290.5081548 | H92: =1220/1000*12 -> 14.64 | I92: 0 | J92: 0 | K92: 0 | O92: 290.5081548
A93: 1 | B93: 2 | C93: 6 | D93: 0 | E93: 0 | F93: 0 | G93: 341.7085708 | H93: =1352/1000*12 -> 16.224 | I93: 0 | J93: 0 | K93: 0 | O93: 341.7085708
A94: 1 | B94: 2 | C94: 7 | D94: 0 | E94: 0 | F94: 0 | G94: 455.5004418 | H94: =1352/1000*12 -> 16.224 | I94: 0 | J94: 0 | K94: 0 | O94: 455.5004418
A95: 1 | B95: 2 | C95: 8 | D95: 5 | E95: 0 | F95: 8 | G95: 329.5 | H95: =1450/1000*12 -> 17.4 | I95: 2636 | J95: 8 | K95: 337.9887353 | O95: 520.4674487
A96: 1 | B96: 2 | C96: 9 | D96: 42 | E96: 0 | F96: 46.37648682 | G96: 425.1076645 | H96: =1450/1000*12 -> 17.4 | I96: 19715 | J96: 46.37648682 | K96: 436.0954095 | O96: 586.4171069
A97: 1 | B97: 2 | C97: 10 | D97: 259 | E97: 0 | F97: 258 | G97: 510.5426357 | H97: =1640/1000*12 -> 19.68 | I97: 131720 | J97: 258 | K97: 523.750874 | O97: 699.4852566
A98: 1 | B98: 2 | C98: 11 | D98: 22 | E98: 0 | F98: 22 | G98: 676.2727273 | H98: =1640/1000*12 -> 19.68 | I98: 14878 | J98: 22 | K98: 693.7472225 | O98: 799.6834333
A99: 1 | B99: 2 | C99: 12 | D99: 143 | E99: 0 | F99: 144 | G99: 785.9861111 | H99: =1695/1000*12 -> 20.34 | I99: 113182 | J99: 144 | K99: 806.3222313 | O99: 1014.272904
A100: 1 | B100: 2 | C100: 13 | D100: 7 | E100: 0 | F100: 6 | G100: 1045 | H100: =1695/1000*12 -> 20.34 | I100: 6270 | J100: 6 | K100: 1072.036795 | O100: 1152.258047
A101: 1 | B101: 2 | C101: 14 | D101: 83 | E101: 0 | F101: 82 | G101: 1239.707317 | H101: 20.34 | I101: 101656 | J101: 82 | K101: 1271.779864 | O101: 1409.161406
A102: 1 | B102: 2 | C102: 15 | D102: 31 | E102: 0 | F102: 31 | G102: 1302.967742 | H102: 20.34 | I102: 40392 | J102: 31 | K102: 1336.681174 | O102: 1703.285814
A103: 1 | B103: 2 | C103: 16 | D103: 7 | E103: 0 | F103: 7 | G103: 2190.714286 | H103: =1818/1000*12 -> 21.816 | I103: 15335 | J103: 7 | K103: 2247.341066 | O103: 2168.595147
A104: 1 | B104: 2 | C104: Other | D104: 2 | E104: 0 | F104: 2 | G104: 2442 | I104: 4884 | J104: 2 | K104: 2505.201032 | O104: 2007.461925
A105: 1 | B105: 2 | C105: Other | D105: 0 | E105: 0 | F105: 0 | G105: 2437.657495 | I105: 0 | J105: 0 | K105: 0 | O105: 2437.657495
A106: 1 | B106: 2 | C106: Other | D106: 0 | E106: 0 | F106: 0 | G106: 259.6159983 | I106: 0 | J106: 0 | K106: 0 | O106: 259.6159983
A107: 1 | B107: 2 | C107: Other | D107: 0 | E107: 0 | F107: 0 | G107: 259.6159983 | I107: 0 | J107: 0 | K107: 0 | O107: 259.6159983
A108: 1 | B108: 2 | C108: Total | D108: =SUM(D88:D107) -> 601 | E108: 0 | F108: 606.3764868 | G108: =IFERROR(I108/F108,0) -> 743.214834 | H108: =IFERROR(SUM(H88:H107)/K108,0) -> 0 | I108: =SUM(I88:I107) -> 450668 | J108: =SUM(J88:J107) -> 606.3764868 | K108: =IFERROR(#REF!/#REF!,0) -> 0 | L108: =IFERROR(SUM(L88:L107)/#REF!,0) -> 0
A109: 1
A110: 1
A111: 1
A112: 1
A113: =$A$29 -> 1 | C113: =$C$29 -> Associated Services
A114: =A$113 -> 1 | D114: Establishment Structure | F114: Previous Financial Year | J114: Medium-term expenditure estimates
A115: 1 | D115: As at 31 March 2023 | F115: =LEFT($D$3,4)-1 & "/" & RIGHT($D$3,2)-1 -> 2022/23
A116: 1 | C116: Salary level | D116: Total number of funded posts | E116: of which: number of funded posts additional to the establishment | F116: FTE Headcount | G116: Unit Costs | H116: of which: Once-off Payments per person | I116: Total Annual Cost | J116: Initial Headcount | K116: Unit Costs | L116: of which: Once-off Payments per person
A117: 1 | B117: 3 | C117: 1 | D117: 0 | E117: 0 | F117: 0 | G117: =IFERROR(IF(I117=0,O117,I117/F117),0) -> 99.95105925 | H117: =1220/1000*12 -> 14.64 | I117: 0 | J117: 0 | K117: 0 | O117: 99.95105925
A118: 1 | B118: 3 | C118: 2 | D118: 0 | E118: 0 | F118: 0 | G118: =IFERROR(IF(I118=0,O118,I118/F118),0) -> 179.5147433 | H118: =1220/1000*12 -> 14.64 | I118: 0 | J118: 0 | K118: 0 | O118: 179.5147433
A119: 1 | B119: 3 | C119: 3 | D119: 0 | E119: 0 | F119: 0 | G119: 216.6722944 | H119: =1220/1000*12 -> 14.64 | I119: 0 | J119: 0 | K119: 0 | O119: 216.6722944
A120: 1 | B120: 3 | C120: 4 | D120: 0 | E120: 0 | F120: 0 | G120: 236.0392102 | H120: =1220/1000*12 -> 14.64 | I120: 0 | J120: 0 | K120: 0 | O120: 236.0392102
A121: 1 | B121: 3 | C121: 5 | D121: 0 | E121: 0 | F121: 0 | G121: 290.5081548 | H121: =1220/1000*12 -> 14.64 | I121: 0 | J121: 0 | K121: 0 | O121: 290.5081548
A122: 1 | B122: 3 | C122: 6 | D122: 0 | E122: 0 | F122: 0 | G122: 341.7085708 | H122: =1352/1000*12 -> 16.224 | I122: 0 | J122: 0 | K122: 0 | O122: 341.7085708
A123: 1 | B123: 3 | C123: 7 | D123: 0 | E123: 0 | F123: 0 | G123: 455.5004418 | H123: =1352/1000*12 -> 16.224 | I123: 0 | J123: 0 | K123: 0 | O123: 455.5004418
A124: 1 | B124: 3 | C124: 8 | D124: 0 | E124: 0 | F124: 0 | G124: 520.4674487 | H124: =1450/1000*12 -> 17.4 | I124: 0 | J124: 0 | K124: 0 | O124: 520.4674487
A125: 1 | B125: 3 | C125: 9 | D125: 0 | E125: 0 | F125: 0 | G125: 586.4171069 | H125: =1450/1000*12 -> 17.4 | I125: 0 | J125: 0 | K125: 0 | O125: 586.4171069
A126: 1 | B126: 3 | C126: 10 | D126: 1 | E126: 0 | F126: 2 | G126: 763.5 | H126: =1640/1000*12 -> 19.68 | I126: 1527 | J126: 2 | K126: 783.3818194 | O126: 699.4852566
A127: 1 | B127: 3 | C127: 11 | D127: 0 | E127: 0 | F127: 0 | G127: 799.6834333 | H127: =1640/1000*12 -> 19.68 | I127: 0 | J127: 0 | K127: 0 | O127: 799.6834333
A128: 1 | B128: 3 | C128: 12 | D128: 1 | E128: 0 | F128: 2 | G128: 969 | H128: =1695/1000*12 -> 20.34 | I128: 1938 | J128: 2 | K128: 994.0845156 | O128: 1014.272904
A129: 1 | B129: 3 | C129: 13 | D129: 0 | E129: 0 | F129: 0 | G129: 1152.258047 | H129: =1695/1000*12 -> 20.34 | I129: 0 | J129: 0 | K129: 0 | O129: 1152.258047
A130: 1 | B130: 3 | C130: 14 | D130: 6 | E130: 0 | F130: 2.396666667 | G130: 1498.331015 | H130: 20.34 | I130: 3591 | J130: 2.396666667 | K130: 1537.049156 | O130: 1409.161406
A131: 1 | B131: 3 | C131: 15 | D131: 2 | E131: 0 | F131: 2 | G131: 1929 | H131: 20.34 | I131: 3858 | J131: 2 | K131: 1978.984555 | O131: 1703.285814
A132: 1 | B132: 3 | C132: 16 | D132: 1 | E132: 0 | F132: 1 | G132: 2270 | H132: =1818/1000*12 -> 21.816 | I132: 2270 | J132: 1 | K132: 2328.534925 | O132: 2168.595147
A133: 1 | B133: 3 | C133: Other | D133: 0 | E133: 0 | F133: 1 | G133: 65795 | I133: 65795 | J133: 1 | K133: 67497.25808 | O133: 2007.461925
A134: 1 | B134: 3 | C134: Other | D134: 0 | E134: 0 | F134: 0 | G134: 2437.657495 | I134: 0 | J134: 0 | K134: 0 | O134: 2437.657495
A135: 1 | B135: 3 | C135: Other | D135: 0 | E135: 0 | F135: 0 | G135: 259.6159983 | I135: 0 | J135: 0 | K135: 0 | O135: 259.6159983
A136: 1 | B136: 3 | C136: Other | D136: 0 | E136: 0 | F136: 0 | G136: 259.6159983 | I136: 0 | J136: 0 | K136: 0 | O136: 259.6159983
A137: 1 | B137: 3 | C137: Total | D137: =SUM(D117:D136) -> 11 | E137: 0 | F137: 10.39666667 | G137: =IFERROR(I137/F137,0) -> 7596.569413 | H137: =IFERROR(SUM(H117:H136)/K137,0) -> 0 | I137: =SUM(I117:I136) -> 78979 | J137: =SUM(J117:J136) -> 10.39666667 | K137: =IFERROR(#REF!/#REF!,0) -> 0 | L137: =IFERROR(SUM(L117:L136)/#REF!,0) -> 0
A138: 1
A139: 1
A140: 1
A141: 1
A142: =$A$30 -> 1 | C142: =$C$30 -> Programme 4
A143: =A$142 -> 1 | D143: Establishment Structure | F143: Previous Financial Year | J143: Medium-term expenditure estimates
A144: 1 | D144: As at 31 March 2023 | F144: =LEFT($D$3,4)-1 & "/" & RIGHT($D$3,2)-1 -> 2022/23
A145: 1 | C145: Salary level | D145: Total number of funded posts | E145: of which: number of funded posts additional to the establishment | F145: FTE Headcount | G145: Unit Costs | H145: of which: Once-off Payments per person | I145: Total Annual Cost | J145: Initial Headcount | K145: Unit Costs | L145: of which: Once-off Payments per person
A146: 1 | B146: 4 | C146: 1 | D146: 0 | E146: 0 | F146: 0 | G146: =IFERROR(IF(I146=0,O146,I146/F146),0) -> 99.95105925 | H146: =1220/1000*12 -> 14.64 | I146: 0 | J146: 0 | K146: 0 | O146: 99.95105925
A147: 1 | B147: 4 | C147: 2 | D147: 0 | E147: 0 | F147: 0 | G147: =IFERROR(IF(I147=0,O147,I147/F147),0) -> 179.5147433 | H147: =1220/1000*12 -> 14.64 | I147: 0 | J147: 0 | K147: 0 | O147: 179.5147433
A148: 1 | B148: 4 | C148: 3 | D148: 0 | E148: 0 | F148: 0 | G148: 216.6722944 | H148: =1220/1000*12 -> 14.64 | I148: 0 | J148: 0 | K148: 0 | O148: 216.6722944
A149: 1 | B149: 4 | C149: 4 | D149: 0 | E149: 0 | F149: 0 | G149: 236.0392102 | H149: =1220/1000*12 -> 14.64 | I149: 0 | J149: 0 | K149: 0 | O149: 236.0392102
A150: 1 | B150: 4 | C150: 5 | D150: 0 | E150: 0 | F150: 0 | G150: 290.5081548 | H150: =1220/1000*12 -> 14.64 | I150: 0 | J150: 0 | K150: 0 | O150: 290.5081548
A151: 1 | B151: 4 | C151: 6 | D151: 0 | E151: 0 | F151: 0 | G151: 341.7085708 | H151: =1352/1000*12 -> 16.224 | I151: 0 | J151: 0 | K151: 0 | O151: 341.7085708
A152: 1 | B152: 4 | C152: 7 | D152: 0 | E152: 0 | F152: 0 | G152: 455.5004418 | H152: =1352/1000*12 -> 16.224 | I152: 0 | J152: 0 | K152: 0 | O152: 455.5004418
A153: 1 | B153: 4 | C153: 8 | D153: 0 | E153: 0 | F153: 0 | G153: 520.4674487 | H153: =1450/1000*12 -> 17.4 | I153: 0 | J153: 0 | K153: 0 | O153: 520.4674487
A154: 1 | B154: 4 | C154: 9 | D154: 0 | E154: 0 | F154: 0 | G154: 586.4171069 | H154: =1450/1000*12 -> 17.4 | I154: 0 | J154: 0 | K154: 0 | O154: 586.4171069
A155: 1 | B155: 4 | C155: 10 | D155: 0 | E155: 0 | F155: 0 | G155: 699.4852566 | H155: =1640/1000*12 -> 19.68 | I155: 0 | J155: 0 | K155: 0 | O155: 699.4852566
A156: 1 | B156: 4 | C156: 11 | D156: 0 | E156: 0 | F156: 0 | G156: 799.6834333 | H156: =1640/1000*12 -> 19.68 | I156: 0 | J156: 0 | K156: 0 | O156: 799.6834333
A157: 1 | B157: 4 | C157: 12 | D157: 0 | E157: 0 | F157: 0 | G157: 1014.272904 | H157: =1695/1000*12 -> 20.34 | I157: 0 | J157: 0 | K157: 0 | O157: 1014.272904
A158: 1 | B158: 4 | C158: 13 | D158: 0 | E158: 0 | F158: 0 | G158: 1152.258047 | H158: =1695/1000*12 -> 20.34 | I158: 0 | J158: 0 | K158: 0 | O158: 1152.258047
A159: 1 | B159: 4 | C159: 14 | D159: 0 | E159: 0 | F159: 0 | G159: 1409.161406 | H159: 20.34 | I159: 0 | J159: 0 | K159: 0 | O159: 1409.161406
A160: 1 | B160: 4 | C160: 15 | D160: 0 | E160: 0 | F160: 0 | G160: 1703.285814 | H160: 20.34 | I160: 0 | J160: 0 | K160: 0 | O160: 1703.285814
A161: 1 | B161: 4 | C161: 16 | D161: 0 | E161: 0 | F161: 0 | G161: 2168.595147 | H161: =1818/1000*12 -> 21.816 | I161: 0 | J161: 0 | K161: 0 | O161: 2168.595147
A162: 1 | B162: 4 | C162: Other | D162: 0 | E162: 0 | F162: 0 | G162: 2007.461925 | I162: 0 | J162: 0 | K162: 0 | O162: 2007.461925
A163: 1 | B163: 4 | C163: Other | D163: 0 | E163: 0 | F163: 0 | G163: 2437.657495 | I163: 0 | J163: 0 | K163: 0 | O163: 2437.657495
A164: 1 | B164: 4 | C164: Other | D164: 0 | E164: 0 | F164: 0 | G164: 259.6159983 | I164: 0 | J164: 0 | K164: 0 | O164: 259.6159983
A165: 1 | B165: 4 | C165: Other | D165: 0 | E165: 0 | F165: 0 | G165: 259.6159983 | I165: 0 | J165: 0 | K165: 0 | O165: 259.6159983
A166: 1 | B166: 4 | C166: Total | D166: =SUM(D146:D165) -> 0 | E166: 0 | F166: 0 | G166: =IFERROR(I166/F166,0) -> 0 | H166: =IFERROR(SUM(H146:H165)/K166,0) -> 0 | I166: =SUM(I146:I165) -> 0 | J166: =SUM(J146:J165) -> 0 | K166: =IFERROR(#REF!/#REF!,0) -> 0 | L166: =IFERROR(SUM(L146:L165)/#REF!,0) -> 0
A167: 1
A168: 1
A169: 1
A170: 1
A171: =$A$31 -> 1 | C171: =$C$31 -> Programme 5
A172: =A$171 -> 1 | D172: Establishment Structure | F172: Previous Financial Year | J172: Medium-term expenditure estimates
A173: 1 | D173: As at 31 March 2023 | F173: =LEFT($D$3,4)-1 & "/" & RIGHT($D$3,2)-1 -> 2022/23
A174: 1 | C174: Salary level | D174: Total number of funded posts | E174: of which: number of funded posts additional to the establishment | F174: FTE Headcount | G174: Unit Costs | H174: of which: Once-off Payments per person | I174: Total Annual Cost | J174: Initial Headcount | K174: Unit Costs | L174: of which: Once-off Payments per person
A175: 1 | B175: 5 | C175: 1 | D175: 0 | E175: 0 | F175: 0 | G175: =IFERROR(IF(I175=0,O175,I175/F175),0) -> 99.95105925 | H175: =1220/1000*12 -> 14.64 | I175: 0 | J175: 0 | K175: 0 | O175: 99.95105925
A176: 1 | B176: 5 | C176: 2 | D176: 0 | E176: 0 | F176: 0 | G176: =IFERROR(IF(I176=0,O176,I176/F176),0) -> 179.5147433 | H176: =1220/1000*12 -> 14.64 | I176: 0 | J176: 0 | K176: 0 | O176: 179.5147433
A177: 1 | B177: 5 | C177: 3 | D177: 0 | E177: 0 | F177: 0 | G177: 216.6722944 | H177: =1220/1000*12 -> 14.64 | I177: 0 | J177: 0 | K177: 0 | O177: 216.6722944
A178: 1 | B178: 5 | C178: 4 | D178: 0 | E178: 0 | F178: 0 | G178: 236.0392102 | H178: =1220/1000*12 -> 14.64 | I178: 0 | J178: 0 | K178: 0 | O178: 236.0392102
A179: 1 | B179: 5 | C179: 5 | D179: 0 | E179: 0 | F179: 0 | G179: 290.5081548 | H179: =1220/1000*12 -> 14.64 | I179: 0 | J179: 0 | K179: 0 | O179: 290.5081548
A180: 1 | B180: 5 | C180: 6 | D180: 0 | E180: 0 | F180: 0 | G180: 341.7085708 | H180: =1352/1000*12 -> 16.224 | I180: 0 | J180: 0 | K180: 0 | O180: 341.7085708
A181: 1 | B181: 5 | C181: 7 | D181: 0 | E181: 0 | F181: 0 | G181: 455.5004418 | H181: =1352/1000*12 -> 16.224 | I181: 0 | J181: 0 | K181: 0 | O181: 455.5004418
A182: 1 | B182: 5 | C182: 8 | D182: 0 | E182: 0 | F182: 0 | G182: 520.4674487 | H182: =1450/1000*12 -> 17.4 | I182: 0 | J182: 0 | K182: 0 | O182: 520.4674487
A183: 1 | B183: 5 | C183: 9 | D183: 0 | E183: 0 | F183: 0 | G183: 586.4171069 | H183: =1450/1000*12 -> 17.4 | I183: 0 | J183: 0 | K183: 0 | O183: 586.4171069
A184: 1 | B184: 5 | C184: 10 | D184: 0 | E184: 0 | F184: 0 | G184: 699.4852566 | H184: =1640/1000*12 -> 19.68 | I184: 0 | J184: 0 | K184: 0 | O184: 699.4852566
A185: 1 | B185: 5 | C185: 11 | D185: 0 | E185: 0 | F185: 0 | G185: 799.6834333 | H185: =1640/1000*12 -> 19.68 | I185: 0 | J185: 0 | K185: 0 | O185: 799.6834333
A186: 1 | B186: 5 | C186: 12 | D186: 0 | E186: 0 | F186: 0 | G186: 1014.272904 | H186: =1695/1000*12 -> 20.34 | I186: 0 | J186: 0 | K186: 0 | O186: 1014.272904
A187: 1 | B187: 5 | C187: 13 | D187: 0 | E187: 0 | F187: 0 | G187: 1152.258047 | H187: =1695/1000*12 -> 20.34 | I187: 0 | J187: 0 | K187: 0 | O187: 1152.258047
A188: 1 | B188: 5 | C188: 14 | D188: 0 | E188: 0 | F188: 0 | G188: 1409.161406 | H188: 20.34 | I188: 0 | J188: 0 | K188: 0 | O188: 1409.161406
A189: 1 | B189: 5 | C189: 15 | D189: 0 | E189: 0 | F189: 0 | G189: 1703.285814 | H189: 20.34 | I189: 0 | J189: 0 | K189: 0 | O189: 1703.285814
A190: 1 | B190: 5 | C190: 16 | D190: 0 | E190: 0 | F190: 0 | G190: 2168.595147 | H190: =1818/1000*12 -> 21.816 | I190: 0 | J190: 0 | K190: 0 | O190: 2168.595147
A191: 1 | B191: 5 | C191: Other | D191: 0 | E191: 0 | F191: 0 | G191: 2007.461925 | I191: 0 | J191: 0 | K191: 0 | O191: 2007.461925
A192: 1 | B192: 5 | C192: Other | D192: 0 | E192: 0 | F192: 0 | G192: 2437.657495 | I192: 0 | J192: 0 | K192: 0 | O192: 2437.657495
A193: 1 | B193: 5 | C193: Other | D193: 0 | E193: 0 | F193: 0 | G193: 259.6159983 | I193: 0 | J193: 0 | K193: 0 | O193: 259.6159983
A194: 1 | B194: 5 | C194: Other | D194: 0 | E194: 0 | F194: 0 | G194: 259.6159983 | I194: 0 | J194: 0 | K194: 0 | O194: 259.6159983
A195: 1 | B195: 5 | C195: Total | D195: =SUM(D175:D194) -> 0 | E195: 0 | F195: 0 | G195: =IFERROR(I195/F195,0) -> 0 | H195: =IFERROR(SUM(H175:H194)/K195,0) -> 0 | I195: =SUM(I175:I194) -> 0 | J195: =SUM(J175:J194) -> 0 | K195: =IFERROR(#REF!/#REF!,0) -> 0 | L195: =IFERROR(SUM(L175:L194)/#REF!,0) -> 0
A196: 1
A197: 1
A198: 1
A199: 1
A200: =$A$32 -> 1 | C200: =$C$32 -> Programme 6
... 314 more rows

Sheet 3 (hidden)
A1: Filter | C1: HUMAN RESOURCE BUDGET PLAN | K1: 1
A2: 1
A3: 1 | C3: Financial Year: | D3: 2023/24
A4: 1 | C4: Sphere of Government: | D4: National
A5: 1 | C5: Name of Department: | D5: Vote 03: Cooperative Governance
A6: -14
A7: -13
A8: -12
A9: -11
A10: -10
A11: -9
A12: -8
A13: -7
A14: -6
A15: -5
A16: -4
A17: -3
A18: -2
A19: -1
A20: 0
A21: 1
A22: 1 | C22: Department Summary Details
A23: 1
A24: 1 | D24: Establishment Structure | F24: Previous Financial Year | J24: Medium-term expenditure estimates
A25: 1 | D25: As at 31 March 2023 | F25: =LEFT($D$3,4)-1 & "/" & RIGHT($D$3,2)-1 -> 2022/23
A26: 1 | C26: Programmes | D26: Total number of funded posts | E26: of which: number of funded posts additional to the establishment | F26: FTE Headcount | G26: Unit Costs | H26: of which: Once-off Payments per person | I26: Total Annual Cost | J26: Initial Headcount | K26: Unit Costs | L26: of which: Once-off Payments per person
A27: 1 | B27: =IF(LEN(C27)>2,ROW()-26,"") -> 1 | C27: Administration | D27: =IF($C27="",0,OFFSET($C55,MATCH($C27,$C$55:$C$514,0)+24-SUM($A$27:$A27),COLUMN(D$1)-3)) -> 293 | E27: =IF($C27="",0,OFFSET($C55,MATCH($C27,$C$55:$C$514,0)+24-SUM($A$27:$A27),COLUMN(E$1)-3)) -> 69 | F27: =IF($C27="",0,OFFSET($C55,MATCH($C27,$C$55:$C$514,0)+24-SUM($A$27:$A27),COLUMN(F$1)-3)) -> 296.2383097 | G27: =IF($C27="",0,OFFSET($C55,MATCH($C27,$C$55:$C$514,0)+24-SUM($A$27:$A27),COLUMN(G$1)-3)) -> 555.1307667 | H27: =IF($C27="",0,OFFSET($C55,MATCH($C27,$C$55:$C$514,0)+24-SUM($A$27:$A27),COLUMN(H$1)-3)) -> 0 | I27: =IF($C27="",0,OFFSET($C55,MATCH($C27,$C$55:$C$514,0)+24-SUM($A$27:$A27),COLUMN(I$1)-3)) -> 164451 | J27: =IF($C27="",0,OFFSET($C55,MATCH($C27,$C$55:$C$514,0)+24-SUM($A$27:$A27),COLUMN(J$1)-3)) -> 296.2383097 | K27: =IF($C27="",0,OFFSET($C55,MATCH($C27,$C$55:$C$514,0)+24-SUM($A$27:$A27),COLUMN(K$1)-3)) -> 0 | L27: =IF($C27="",0,OFFSET($C55,MATCH($C27,$C$55:$C$514,0)+24-SUM($A$27:$A27),COLUMN(L$1)-3)) -> 0
A28: =IF(LEN(C28)>1,1,0) -> 1 | B28: 2 | C28: Intergovenmental Support | D28: =IF($C28="",0,OFFSET($C56,MATCH($C28,$C$55:$C$514,0)+24-SUM($A$27:$A28),COLUMN(D$1)-3)) -> 110 | E28: =IF($C28="",0,OFFSET($C56,MATCH($C28,$C$55:$C$514,0)+24-SUM($A$27:$A28),COLUMN(E$1)-3)) -> 6 | F28: =IF($C28="",0,OFFSET($C56,MATCH($C28,$C$55:$C$514,0)+24-SUM($A$27:$A28),COLUMN(F$1)-3)) -> 102.5162608 | G28: =IF($C28="",0,OFFSET($C56,MATCH($C28,$C$55:$C$514,0)+24-SUM($A$27:$A28),COLUMN(G$1)-3)) -> 731.0840192 | H28: =IF($C28="",0,OFFSET($C56,MATCH($C28,$C$55:$C$514,0)+24-SUM($A$27:$A28),COLUMN(H$1)-3)) -> 0 | I28: =IF($C28="",0,OFFSET($C56,MATCH($C28,$C$55:$C$514,0)+24-SUM($A$27:$A28),COLUMN(I$1)-3)) -> 74948 | J28: =IF($C28="",0,OFFSET($C56,MATCH($C28,$C$55:$C$514,0)+24-SUM($A$27:$A28),COLUMN(J$1)-3)) -> 102.5162608 | K28: =IF($C28="",0,OFFSET($C56,MATCH($C28,$C$55:$C$514,0)+24-SUM($A$27:$A28),COLUMN(K$1)-3)) -> 0 | L28: =IF($C28="",0,OFFSET($C56,MATCH($C28,$C$55:$C$514,0)+24-SUM($A$27:$A28),COLUMN(L$1)-3)) -> 0
A29: 1 | B29: 3 | C29: Intergovenmental Policy and Governance | D29: =IF($C29="",0,OFFSET($C57,MATCH($C29,$C$55:$C$514,0)+24-SUM($A$27:$A29),COLUMN(D$1)-3)) -> 84 | E29: =IF($C29="",0,OFFSET($C57,MATCH($C29,$C$55:$C$514,0)+24-SUM($A$27:$A29),COLUMN(E$1)-3)) -> 2 | F29: =IF($C29="",0,OFFSET($C57,MATCH($C29,$C$55:$C$514,0)+24-SUM($A$27:$A29),COLUMN(F$1)-3)) -> 82.03482838 | G29: =IF($C29="",0,OFFSET($C57,MATCH($C29,$C$55:$C$514,0)+24-SUM($A$27:$A29),COLUMN(G$1)-3)) -> 852.4793845 | H29: =IF($C29="",0,OFFSET($C57,MATCH($C29,$C$55:$C$514,0)+24-SUM($A$27:$A29),COLUMN(H$1)-3)) -> 0 | I29: =IF($C29="",0,OFFSET($C57,MATCH($C29,$C$55:$C$514,0)+24-SUM($A$27:$A29),COLUMN(I$1)-3)) -> 69933 | J29: =IF($C29="",0,OFFSET($C57,MATCH($C29,$C$55:$C$514,0)+24-SUM($A$27:$A29),COLUMN(J$1)-3)) -> 82.03482838 | K29: =IF($C29="",0,OFFSET($C57,MATCH($C29,$C$55:$C$514,0)+24-SUM($A$27:$A29),COLUMN(K$1)-3)) -> 0 | L29: =IF($C29="",0,OFFSET($C57,MATCH($C29,$C$55:$C$514,0)+24-SUM($A$27:$A29),COLUMN(L$1)-3)) -> 0
A30: 1 | B30: 4 | C30: National Disaster Management Centre | D30: =IF($C30="",0,OFFSET($C58,MATCH($C30,$C$55:$C$514,0)+24-SUM($A$27:$A30),COLUMN(D$1)-3)) -> 30 | E30: =IF($C30="",0,OFFSET($C58,MATCH($C30,$C$55:$C$514,0)+24-SUM($A$27:$A30),COLUMN(E$1)-3)) -> 1 | F30: =IF($C30="",0,OFFSET($C58,MATCH($C30,$C$55:$C$514,0)+24-SUM($A$27:$A30),COLUMN(F$1)-3)) -> 32.40245964 | G30: =IF($C30="",0,OFFSET($C58,MATCH($C30,$C$55:$C$514,0)+24-SUM($A$27:$A30),COLUMN(G$1)-3)) -> 918.8499986 | H30: =IF($C30="",0,OFFSET($C58,MATCH($C30,$C$55:$C$514,0)+24-SUM($A$27:$A30),COLUMN(H$1)-3)) -> 0 | I30: =IF($C30="",0,OFFSET($C58,MATCH($C30,$C$55:$C$514,0)+24-SUM($A$27:$A30),COLUMN(I$1)-3)) -> 29773 | J30: =IF($C30="",0,OFFSET($C58,MATCH($C30,$C$55:$C$514,0)+24-SUM($A$27:$A30),COLUMN(J$1)-3)) -> 32.40245964 | K30: =IF($C30="",0,OFFSET($C58,MATCH($C30,$C$55:$C$514,0)+24-SUM($A$27:$A30),COLUMN(K$1)-3)) -> 0 | L30: =IF($C30="",0,OFFSET($C58,MATCH($C30,$C$55:$C$514,0)+24-SUM($A$27:$A30),COLUMN(L$1)-3)) -> 0
A31: 1 | B31: 5 | C31: Community Work Programme | D31: =IF($C31="",0,OFFSET($C59,MATCH($C31,$C$55:$C$514,0)+24-SUM($A$27:$A31),COLUMN(D$1)-3)) -> 22 | E31: =IF($C31="",0,OFFSET($C59,MATCH($C31,$C$55:$C$514,0)+24-SUM($A$27:$A31),COLUMN(E$1)-3)) -> 0 | F31: =IF($C31="",0,OFFSET($C59,MATCH($C31,$C$55:$C$514,0)+24-SUM($A$27:$A31),COLUMN(F$1)-3)) -> 71.95411765 | G31: =IF($C31="",0,OFFSET($C59,MATCH($C31,$C$55:$C$514,0)+24-SUM($A$27:$A31),COLUMN(G$1)-3)) -> 376.7261817 | H31: =IF($C31="",0,OFFSET($C59,MATCH($C31,$C$55:$C$514,0)+24-SUM($A$27:$A31),COLUMN(H$1)-3)) -> 0 | I31: =IF($C31="",0,OFFSET($C59,MATCH($C31,$C$55:$C$514,0)+24-SUM($A$27:$A31),COLUMN(I$1)-3)) -> 27107 | J31: =IF($C31="",0,OFFSET($C59,MATCH($C31,$C$55:$C$514,0)+24-SUM($A$27:$A31),COLUMN(J$1)-3)) -> 71.95411765 | K31: =IF($C31="",0,OFFSET($C59,MATCH($C31,$C$55:$C$514,0)+24-SUM($A$27:$A31),COLUMN(K$1)-3)) -> 0 | L31: =IF($C31="",0,OFFSET($C59,MATCH($C31,$C$55:$C$514,0)+24-SUM($A$27:$A31),COLUMN(L$1)-3)) -> 0
A32: 0 | D32: =IF($C32="",0,OFFSET($C60,MATCH($C32,$C$55:$C$514,0)+24-SUM($A$27:$A32),COLUMN(D$1)-3)) -> 0 | E32: =IF($C32="",0,OFFSET($C60,MATCH($C32,$C$55:$C$514,0)+24-SUM($A$27:$A32),COLUMN(E$1)-3)) -> 0 | F32: =IF($C32="",0,OFFSET($C60,MATCH($C32,$C$55:$C$514,0)+24-SUM($A$27:$A32),COLUMN(F$1)-3)) -> 0 | G32: =IF($C32="",0,OFFSET($C60,MATCH($C32,$C$55:$C$514,0)+24-SUM($A$27:$A32),COLUMN(G$1)-3)) -> 0 | H32: =IF($C32="",0,OFFSET($C60,MATCH($C32,$C$55:$C$514,0)+24-SUM($A$27:$A32),COLUMN(H$1)-3)) -> 0 | I32: =IF($C32="",0,OFFSET($C60,MATCH($C32,$C$55:$C$514,0)+24-SUM($A$27:$A32),COLUMN(I$1)-3)) -> 0 | J32: =IF($C32="",0,OFFSET($C60,MATCH($C32,$C$55:$C$514,0)+24-SUM($A$27:$A32),COLUMN(J$1)-3)) -> 0 | K32: =IF($C32="",0,OFFSET($C60,MATCH($C32,$C$55:$C$514,0)+24-SUM($A$27:$A32),COLUMN(K$1)-3)) -> 0 | L32: =IF($C32="",0,OFFSET($C60,MATCH($C32,$C$55:$C$514,0)+24-SUM($A$27:$A32),COLUMN(L$1)-3)) -> 0
A33: 0 | D33: =IF($C33="",0,OFFSET($C61,MATCH($C33,$C$55:$C$514,0)+24-SUM($A$27:$A33),COLUMN(D$1)-3)) -> 0 | E33: =IF($C33="",0,OFFSET($C61,MATCH($C33,$C$55:$C$514,0)+24-SUM($A$27:$A33),COLUMN(E$1)-3)) -> 0 | F33: =IF($C33="",0,OFFSET($C61,MATCH($C33,$C$55:$C$514,0)+24-SUM($A$27:$A33),COLUMN(F$1)-3)) -> 0 | G33: =IF($C33="",0,OFFSET($C61,MATCH($C33,$C$55:$C$514,0)+24-SUM($A$27:$A33),COLUMN(G$1)-3)) -> 0 | H33: =IF($C33="",0,OFFSET($C61,MATCH($C33,$C$55:$C$514,0)+24-SUM($A$27:$A33),COLUMN(H$1)-3)) -> 0 | I33: =IF($C33="",0,OFFSET($C61,MATCH($C33,$C$55:$C$514,0)+24-SUM($A$27:$A33),COLUMN(I$1)-3)) -> 0 | J33: =IF($C33="",0,OFFSET($C61,MATCH($C33,$C$55:$C$514,0)+24-SUM($A$27:$A33),COLUMN(J$1)-3)) -> 0 | K33: =IF($C33="",0,OFFSET($C61,MATCH($C33,$C$55:$C$514,0)+24-SUM($A$27:$A33),COLUMN(K$1)-3)) -> 0 | L33: =IF($C33="",0,OFFSET($C61,MATCH($C33,$C$55:$C$514,0)+24-SUM($A$27:$A33),COLUMN(L$1)-3)) -> 0
A34: 0 | D34: =IF($C34="",0,OFFSET($C62,MATCH($C34,$C$55:$C$514,0)+24-SUM($A$27:$A34),COLUMN(D$1)-3)) -> 0 | E34: =IF($C34="",0,OFFSET($C62,MATCH($C34,$C$55:$C$514,0)+24-SUM($A$27:$A34),COLUMN(E$1)-3)) -> 0 | F34: =IF($C34="",0,OFFSET($C62,MATCH($C34,$C$55:$C$514,0)+24-SUM($A$27:$A34),COLUMN(F$1)-3)) -> 0 | G34: =IF($C34="",0,OFFSET($C62,MATCH($C34,$C$55:$C$514,0)+24-SUM($A$27:$A34),COLUMN(G$1)-3)) -> 0 | H34: =IF($C34="",0,OFFSET($C62,MATCH($C34,$C$55:$C$514,0)+24-SUM($A$27:$A34),COLUMN(H$1)-3)) -> 0 | I34: =IF($C34="",0,OFFSET($C62,MATCH($C34,$C$55:$C$514,0)+24-SUM($A$27:$A34),COLUMN(I$1)-3)) -> 0 | J34: =IF($C34="",0,OFFSET($C62,MATCH($C34,$C$55:$C$514,0)+24-SUM($A$27:$A34),COLUMN(J$1)-3)) -> 0 | K34: =IF($C34="",0,OFFSET($C62,MATCH($C34,$C$55:$C$514,0)+24-SUM($A$27:$A34),COLUMN(K$1)-3)) -> 0 | L34: =IF($C34="",0,OFFSET($C62,MATCH($C34,$C$55:$C$514,0)+24-SUM($A$27:$A34),COLUMN(L$1)-3)) -> 0
A35: 0 | D35: =IF($C35="",0,OFFSET($C63,MATCH($C35,$C$55:$C$514,0)+24-SUM($A$27:$A35),COLUMN(D$1)-3)) -> 0 | E35: =IF($C35="",0,OFFSET($C63,MATCH($C35,$C$55:$C$514,0)+24-SUM($A$27:$A35),COLUMN(E$1)-3)) -> 0 | F35: =IF($C35="",0,OFFSET($C63,MATCH($C35,$C$55:$C$514,0)+24-SUM($A$27:$A35),COLUMN(F$1)-3)) -> 0 | G35: =IF($C35="",0,OFFSET($C63,MATCH($C35,$C$55:$C$514,0)+24-SUM($A$27:$A35),COLUMN(G$1)-3)) -> 0 | H35: =IF($C35="",0,OFFSET($C63,MATCH($C35,$C$55:$C$514,0)+24-SUM($A$27:$A35),COLUMN(H$1)-3)) -> 0 | I35: =IF($C35="",0,OFFSET($C63,MATCH($C35,$C$55:$C$514,0)+24-SUM($A$27:$A35),COLUMN(I$1)-3)) -> 0 | J35: =IF($C35="",0,OFFSET($C63,MATCH($C35,$C$55:$C$514,0)+24-SUM($A$27:$A35),COLUMN(J$1)-3)) -> 0 | K35: =IF($C35="",0,OFFSET($C63,MATCH($C35,$C$55:$C$514,0)+24-SUM($A$27:$A35),COLUMN(K$1)-3)) -> 0 | L35: =IF($C35="",0,OFFSET($C63,MATCH($C35,$C$55:$C$514,0)+24-SUM($A$27:$A35),COLUMN(L$1)-3)) -> 0
A36: 0 | D36: =IF($C36="",0,OFFSET($C64,MATCH($C36,$C$55:$C$514,0)+24-SUM($A$27:$A36),COLUMN(D$1)-3)) -> 0 | E36: =IF($C36="",0,OFFSET($C64,MATCH($C36,$C$55:$C$514,0)+24-SUM($A$27:$A36),COLUMN(E$1)-3)) -> 0 | F36: =IF($C36="",0,OFFSET($C64,MATCH($C36,$C$55:$C$514,0)+24-SUM($A$27:$A36),COLUMN(F$1)-3)) -> 0 | G36: =IF($C36="",0,OFFSET($C64,MATCH($C36,$C$55:$C$514,0)+24-SUM($A$27:$A36),COLUMN(G$1)-3)) -> 0 | H36: =IF($C36="",0,OFFSET($C64,MATCH($C36,$C$55:$C$514,0)+24-SUM($A$27:$A36),COLUMN(H$1)-3)) -> 0 | I36: =IF($C36="",0,OFFSET($C64,MATCH($C36,$C$55:$C$514,0)+24-SUM($A$27:$A36),COLUMN(I$1)-3)) -> 0 | J36: =IF($C36="",0,OFFSET($C64,MATCH($C36,$C$55:$C$514,0)+24-SUM($A$27:$A36),COLUMN(J$1)-3)) -> 0 | K36: =IF($C36="",0,OFFSET($C64,MATCH($C36,$C$55:$C$514,0)+24-SUM($A$27:$A36),COLUMN(K$1)-3)) -> 0 | L36: =IF($C36="",0,OFFSET($C64,MATCH($C36,$C$55:$C$514,0)+24-SUM($A$27:$A36),COLUMN(L$1)-3)) -> 0
A37: 0 | D37: =IF($C37="",0,OFFSET($C65,MATCH($C37,$C$55:$C$514,0)+24-SUM($A$27:$A37),COLUMN(D$1)-3)) -> 0 | E37: =IF($C37="",0,OFFSET($C65,MATCH($C37,$C$55:$C$514,0)+24-SUM($A$27:$A37),COLUMN(E$1)-3)) -> 0 | F37: =IF($C37="",0,OFFSET($C65,MATCH($C37,$C$55:$C$514,0)+24-SUM($A$27:$A37),COLUMN(F$1)-3)) -> 0 | G37: =IF($C37="",0,OFFSET($C65,MATCH($C37,$C$55:$C$514,0)+24-SUM($A$27:$A37),COLUMN(G$1)-3)) -> 0 | H37: =IF($C37="",0,OFFSET($C65,MATCH($C37,$C$55:$C$514,0)+24-SUM($A$27:$A37),COLUMN(H$1)-3)) -> 0 | I37: =IF($C37="",0,OFFSET($C65,MATCH($C37,$C$55:$C$514,0)+24-SUM($A$27:$A37),COLUMN(I$1)-3)) -> 0 | J37: =IF($C37="",0,OFFSET($C65,MATCH($C37,$C$55:$C$514,0)+24-SUM($A$27:$A37),COLUMN(J$1)-3)) -> 0 | K37: =IF($C37="",0,OFFSET($C65,MATCH($C37,$C$55:$C$514,0)+24-SUM($A$27:$A37),COLUMN(K$1)-3)) -> 0 | L37: =IF($C37="",0,OFFSET($C65,MATCH($C37,$C$55:$C$514,0)+24-SUM($A$27:$A37),COLUMN(L$1)-3)) -> 0
A38: 0 | D38: =IF($C38="",0,OFFSET($C66,MATCH($C38,$C$55:$C$514,0)+24-SUM($A$27:$A38),COLUMN(D$1)-3)) -> 0 | E38: =IF($C38="",0,OFFSET($C66,MATCH($C38,$C$55:$C$514,0)+24-SUM($A$27:$A38),COLUMN(E$1)-3)) -> 0 | F38: =IF($C38="",0,OFFSET($C66,MATCH($C38,$C$55:$C$514,0)+24-SUM($A$27:$A38),COLUMN(F$1)-3)) -> 0 | G38: =IF($C38="",0,OFFSET($C66,MATCH($C38,$C$55:$C$514,0)+24-SUM($A$27:$A38),COLUMN(G$1)-3)) -> 0 | H38: =IF($C38="",0,OFFSET($C66,MATCH($C38,$C$55:$C$514,0)+24-SUM($A$27:$A38),COLUMN(H$1)-3)) -> 0 | I38: =IF($C38="",0,OFFSET($C66,MATCH($C38,$C$55:$C$514,0)+24-SUM($A$27:$A38),COLUMN(I$1)-3)) -> 0 | J38: =IF($C38="",0,OFFSET($C66,MATCH($C38,$C$55:$C$514,0)+24-SUM($A$27:$A38),COLUMN(J$1)-3)) -> 0 | K38: =IF($C38="",0,OFFSET($C66,MATCH($C38,$C$55:$C$514,0)+24-SUM($A$27:$A38),COLUMN(K$1)-3)) -> 0 | L38: =IF($C38="",0,OFFSET($C66,MATCH($C38,$C$55:$C$514,0)+24-SUM($A$27:$A38),COLUMN(L$1)-3)) -> 0
A39: 0 | D39: =IF($C39="",0,OFFSET($C67,MATCH($C39,$C$55:$C$514,0)+24-SUM($A$27:$A39),COLUMN(D$1)-3)) -> 0 | E39: =IF($C39="",0,OFFSET($C67,MATCH($C39,$C$55:$C$514,0)+24-SUM($A$27:$A39),COLUMN(E$1)-3)) -> 0 | F39: =IF($C39="",0,OFFSET($C67,MATCH($C39,$C$55:$C$514,0)+24-SUM($A$27:$A39),COLUMN(F$1)-3)) -> 0 | G39: =IF($C39="",0,OFFSET($C67,MATCH($C39,$C$55:$C$514,0)+24-SUM($A$27:$A39),COLUMN(G$1)-3)) -> 0 | H39: =IF($C39="",0,OFFSET($C67,MATCH($C39,$C$55:$C$514,0)+24-SUM($A$27:$A39),COLUMN(H$1)-3)) -> 0 | I39: =IF($C39="",0,OFFSET($C67,MATCH($C39,$C$55:$C$514,0)+24-SUM($A$27:$A39),COLUMN(I$1)-3)) -> 0 | J39: =IF($C39="",0,OFFSET($C67,MATCH($C39,$C$55:$C$514,0)+24-SUM($A$27:$A39),COLUMN(J$1)-3)) -> 0 | K39: =IF($C39="",0,OFFSET($C67,MATCH($C39,$C$55:$C$514,0)+24-SUM($A$27:$A39),COLUMN(K$1)-3)) -> 0 | L39: =IF($C39="",0,OFFSET($C67,MATCH($C39,$C$55:$C$514,0)+24-SUM($A$27:$A39),COLUMN(L$1)-3)) -> 0
A40: 0 | D40: =IF($C40="",0,OFFSET($C68,MATCH($C40,$C$55:$C$514,0)+24-SUM($A$27:$A40),COLUMN(D$1)-3)) -> 0 | E40: =IF($C40="",0,OFFSET($C68,MATCH($C40,$C$55:$C$514,0)+24-SUM($A$27:$A40),COLUMN(E$1)-3)) -> 0 | F40: =IF($C40="",0,OFFSET($C68,MATCH($C40,$C$55:$C$514,0)+24-SUM($A$27:$A40),COLUMN(F$1)-3)) -> 0 | G40: =IF($C40="",0,OFFSET($C68,MATCH($C40,$C$55:$C$514,0)+24-SUM($A$27:$A40),COLUMN(G$1)-3)) -> 0 | H40: =IF($C40="",0,OFFSET($C68,MATCH($C40,$C$55:$C$514,0)+24-SUM($A$27:$A40),COLUMN(H$1)-3)) -> 0 | I40: =IF($C40="",0,OFFSET($C68,MATCH($C40,$C$55:$C$514,0)+24-SUM($A$27:$A40),COLUMN(I$1)-3)) -> 0 | J40: =IF($C40="",0,OFFSET($C68,MATCH($C40,$C$55:$C$514,0)+24-SUM($A$27:$A40),COLUMN(J$1)-3)) -> 0 | K40: =IF($C40="",0,OFFSET($C68,MATCH($C40,$C$55:$C$514,0)+24-SUM($A$27:$A40),COLUMN(K$1)-3)) -> 0 | L40: =IF($C40="",0,OFFSET($C68,MATCH($C40,$C$55:$C$514,0)+24-SUM($A$27:$A40),COLUMN(L$1)-3)) -> 0
A41: 0 | D41: =IF($C41="",0,OFFSET($C69,MATCH($C41,$C$55:$C$514,0)+24-SUM($A$27:$A41),COLUMN(D$1)-3)) -> 0 | E41: =IF($C41="",0,OFFSET($C69,MATCH($C41,$C$55:$C$514,0)+24-SUM($A$27:$A41),COLUMN(E$1)-3)) -> 0 | F41: =IF($C41="",0,OFFSET($C69,MATCH($C41,$C$55:$C$514,0)+24-SUM($A$27:$A41),COLUMN(F$1)-3)) -> 0 | G41: =IF($C41="",0,OFFSET($C69,MATCH($C41,$C$55:$C$514,0)+24-SUM($A$27:$A41),COLUMN(G$1)-3)) -> 0 | H41: =IF($C41="",0,OFFSET($C69,MATCH($C41,$C$55:$C$514,0)+24-SUM($A$27:$A41),COLUMN(H$1)-3)) -> 0 | I41: =IF($C41="",0,OFFSET($C69,MATCH($C41,$C$55:$C$514,0)+24-SUM($A$27:$A41),COLUMN(I$1)-3)) -> 0 | J41: =IF($C41="",0,OFFSET($C69,MATCH($C41,$C$55:$C$514,0)+24-SUM($A$27:$A41),COLUMN(J$1)-3)) -> 0 | K41: =IF($C41="",0,OFFSET($C69,MATCH($C41,$C$55:$C$514,0)+24-SUM($A$27:$A41),COLUMN(K$1)-3)) -> 0 | L41: =IF($C41="",0,OFFSET($C69,MATCH($C41,$C$55:$C$514,0)+24-SUM($A$27:$A41),COLUMN(L$1)-3)) -> 0
A42: 0 | D42: =IF($C42="",0,OFFSET($C70,MATCH($C42,$C$55:$C$514,0)+24-SUM($A$27:$A42),COLUMN(D$1)-3)) -> 0 | E42: =IF($C42="",0,OFFSET($C70,MATCH($C42,$C$55:$C$514,0)+24-SUM($A$27:$A42),COLUMN(E$1)-3)) -> 0 | F42: =IF($C42="",0,OFFSET($C70,MATCH($C42,$C$55:$C$514,0)+24-SUM($A$27:$A42),COLUMN(F$1)-3)) -> 0 | G42: =IF($C42="",0,OFFSET($C70,MATCH($C42,$C$55:$C$514,0)+24-SUM($A$27:$A42),COLUMN(G$1)-3)) -> 0 | H42: =IF($C42="",0,OFFSET($C70,MATCH($C42,$C$55:$C$514,0)+24-SUM($A$27:$A42),COLUMN(H$1)-3)) -> 0 | I42: =IF($C42="",0,OFFSET($C70,MATCH($C42,$C$55:$C$514,0)+24-SUM($A$27:$A42),COLUMN(I$1)-3)) -> 0 | J42: =IF($C42="",0,OFFSET($C70,MATCH($C42,$C$55:$C$514,0)+24-SUM($A$27:$A42),COLUMN(J$1)-3)) -> 0 | K42: =IF($C42="",0,OFFSET($C70,MATCH($C42,$C$55:$C$514,0)+24-SUM($A$27:$A42),COLUMN(K$1)-3)) -> 0 | L42: =IF($C42="",0,OFFSET($C70,MATCH($C42,$C$55:$C$514,0)+24-SUM($A$27:$A42),COLUMN(L$1)-3)) -> 0
A43: 1 | C43: Total | D43: =SUM(D23:D42) -> 539 | E43: =SUM(E23:E42) -> 78 | F43: =SUM(F23:F42) -> 585.1459762 | G43: =IFERROR(I43/F43,0) -> 625.8472499 | H43: =IFERROR(SUM(H27:H42)/COUNTIF(H27:H42,">0"),0) -> 0 | I43: =SUM(I23:I42) -> 366212 | J43: =SUM(J23:J42) -> 585.1459762 | K43: =IFERROR(#REF!/#REF!,0) -> 0 | L43: =IFERROR(SUM(L27:L42)/COUNTIF(L27:L42,">0"),0) -> 0
A44: 1 | C44: Salary Bands
A45: 1 | C45: 1 - 6 | D45: =SUMIFS(D$55:D$514,$C$55:$C$514,">=1",$C$55:$C$514,"<=6") -> 185 | E45: =SUMIFS(E$55:E$514,$C$55:$C$514,">=1",$C$55:$C$514,"<=6") -> 45 | F45: =SUMIFS(F$55:F$514,$C$55:$C$514,">=1",$C$55:$C$514,"<=6") -> 215.97375 | G45: =IFERROR(I45/F45,0) -> 263.5551774 | H45: =IFERROR(SUMIFS(H$55:H$514,$B$55:$B$514,">=1",$C$55:$C$514,"<>Total",$C$55:$C$514,">=1",$C$55:$C$514,"<=6")/COUNTIFS($B$55:$B$514,">=1",$C$55:$C$514,">=1",$C$55:$C$514,"<=6",#REF!,">0"),0) -> 0 | I45: =SUMIFS(I$55:I$514,$C$55:$C$514,">=1",$C$55:$C$514,"<=6") -> 56921 | J45: =SUMIFS(J$55:J$514,$C$55:$C$514,">=1",$C$55:$C$514,"<=6") -> 215.97375 | K45: =IFERROR(#REF!/#REF!,0) -> 0 | L45: =IFERROR(SUMIFS(L$55:L$514,$B$55:$B$514,">=1",$C$55:$C$514,"<>Total",$C$55:$C$514,">=1",$C$55:$C$514,"<=6")/COUNTIFS($B$55:$B$514,">=1",$C$55:$C$514,">=1",$C$55:$C$514,"<=6",#REF!,">0"),0) -> 0
A46: 1 | C46: 7 - 10 | D46: =SUMIFS(D$55:D$514,$C$55:$C$514,">=7",$C$55:$C$514,"<=10") -> 131 | E46: =SUMIFS(E$55:E$514,$C$55:$C$514,">=7",$C$55:$C$514,"<=10") -> 5 | F46: =SUMIFS(F$55:F$514,$C$55:$C$514,">=7",$C$55:$C$514,"<=10") -> 133 | G46: 454.0150376 | H46: =IFERROR(SUMIFS(H$55:H$514,$B$55:$B$514,">=1",$C$55:$C$514,"<>Total",$C$55:$C$514,">=7",$C$55:$C$514,"<=10")/COUNTIFS($B$55:$B$514,">=1",$C$55:$C$514,">=7",$C$55:$C$514,"<=10",#REF!,">0"),0) -> 0 | I46: =SUMIFS(I$55:I$514,$C$55:$C$514,">=7",$C$55:$C$514,"<=10") -> 60384 | J46: =SUMIFS(J$55:J$514,$C$55:$C$514,">=7",$C$55:$C$514,"<=10") -> 133 | K46: =IFERROR(#REF!/#REF!,0) -> 0 | L46: =IFERROR(SUMIFS(L$55:L$514,$B$55:$B$514,">=1",$C$55:$C$514,"<>Total",$C$55:$C$514,">=7",$C$55:$C$514,"<=10")/COUNTIFS($B$55:$B$514,">=1",$C$55:$C$514,">=7",$C$55:$C$514,"<=10",#REF!,">0"),0) -> 0
A47: 1 | C47: 11 - 12 | D47: =SUMIFS(D$55:D$514,$C$55:$C$514,">=11",$C$55:$C$514,"<=12") -> 101 | E47: =SUMIFS(E$55:E$514,$C$55:$C$514,">=11",$C$55:$C$514,"<=12") -> 2 | F47: =SUMIFS(F$55:F$514,$C$55:$C$514,">=11",$C$55:$C$514,"<=12") -> 107.7018477 | G47: 961.6548108 | H47: =IFERROR(SUMIFS(H$55:H$514,$B$55:$B$514,">=1",$C$55:$C$514,"<>Total",$C$55:$C$514,">=11",$C$55:$C$514,"<=12")/COUNTIFS($B$55:$B$514,">=1",$C$55:$C$514,">=11",$C$55:$C$514,"<=12",#REF!,">0"),0) -> 0 | I47: =SUMIFS(I$55:I$514,$C$55:$C$514,">=11",$C$55:$C$514,"<=12") -> 103572 | J47: =SUMIFS(J$55:J$514,$C$55:$C$514,">=11",$C$55:$C$514,"<=12") -> 107.7018477 | K47: =IFERROR(#REF!/#REF!,0) -> 0 | L47: =IFERROR(SUMIFS(L$55:L$514,$B$55:$B$514,">=1",$C$55:$C$514,"<>Total",$C$55:$C$514,">=11",$C$55:$C$514,"<=12")/COUNTIFS($B$55:$B$514,">=1",$C$55:$C$514,">=11",$C$55:$C$514,"<=12",#REF!,">0"),0) -> 0
A48: 1 | C48: 13 - 16 | D48: =SUMIFS(D$55:D$514,$C$55:$C$514,">=13",$C$55:$C$514,"<=16") -> 103 | E48: =SUMIFS(E$55:E$514,$C$55:$C$514,">=13",$C$55:$C$514,"<=16") -> 9 | F48: =SUMIFS(F$55:F$514,$C$55:$C$514,">=13",$C$55:$C$514,"<=16") -> 107.4703785 | G48: 1334.944587 | H48: =IFERROR(SUMIFS(H$55:H$514,$B$55:$B$514,">=1",$C$55:$C$514,"<>Total",$C$55:$C$514,">=13",$C$55:$C$514,"<=16")/COUNTIFS($B$55:$B$514,">=1",$C$55:$C$514,">=13",$C$55:$C$514,"<=16",#REF!,">0"),0) -> 0 | I48: =SUMIFS(I$55:I$514,$C$55:$C$514,">=13",$C$55:$C$514,"<=16") -> 143467 | J48: =SUMIFS(J$55:J$514,$C$55:$C$514,">=13",$C$55:$C$514,"<=16") -> 107.4703785 | K48: =IFERROR(#REF!/#REF!,0) -> 0 | L48: =IFERROR(SUMIFS(L$55:L$514,$B$55:$B$514,">=1",$C$55:$C$514,"<>Total",$C$55:$C$514,">=13",$C$55:$C$514,"<=16")/COUNTIFS($B$55:$B$514,">=1",$C$55:$C$514,">=13",$C$55:$C$514,"<=16",#REF!,">0"),0) -> 0
A49: 1 | C49: Other | D49: =D43-SUM(D45:D48) -> 19 | E49: =E43-SUM(E45:E48) -> 17 | F49: =F43-SUM(F45:F48) -> 21 | G49: 88.95238095 | H49: =IFERROR((SUMIFS(H$55:H$514,$B$55:$B$514,">=1",$C$55:$C$514,"<>Total")-SUMIFS(H$55:H$514,$B$55:$B$514,">=1",$C$55:$C$514,"<=16"))/(COUNTIFS($B$55:$B$514,">=1",$C$55:$C$514,"<>Total",#REF!,">0")-COUNTIFS($B$55:$B$514,">=1",$C$55:$C$514,"<=16",#REF!,">0"=(SUMIFS(H$55:H$514,$B$55:$B$514,">=1",$C$55:$C$514,"<>Total")-SUMIFS(H$55:H$514,$B$55:$B$514,">=1",$C$55:$C$514,"<=16"))/(COUNTIFS($B$55:$B$514,">=1",$C$55:$C$514,"<>Total",#REF!,">0")-COUNTIFS($B$55:$B$514,">=1",$C$55:$C$514,"<=16",#REF!,">0")))),0) -> 0 | I49: =I43-SUM(I45:I48) -> 1868 | J49: =J43-SUM(J45:J48) -> 21 | K49: =IFERROR(#REF!/#REF!,0) -> 0 | L49: =IFERROR((SUMIFS(L$55:L$514,$B$55:$B$514,">=1",$C$55:$C$514,"<>Total")-SUMIFS(L$55:L$514,$B$55:$B$514,">=1",$C$55:$C$514,"<=16"))/(COUNTIFS($B$55:$B$514,">=1",$C$55:$C$514,"<>Total",#REF!,">0")-COUNTIFS($B$55:$B$514,">=1",$C$55:$C$514,"<=16",#REF!,">0"=(SUMIFS(L$55:L$514,$B$55:$B$514,">=1",$C$55:$C$514,"<>Total")-SUMIFS(L$55:L$514,$B$55:$B$514,">=1",$C$55:$C$514,"<=16"))/(COUNTIFS($B$55:$B$514,">=1",$C$55:$C$514,"<>Total",#REF!,">0")-COUNTIFS($B$55:$B$514,">=1",$C$55:$C$514,"<=16",#REF!,">0")))),0) -> 0
A50: 1 | C50: Total | D50: =SUM(D45:D49) -> 539 | E50: =SUM(E45:E49) -> 78 | F50: =SUM(F45:F49) -> 585.1459762 | G50: 625.8472499 | H50: =IFERROR(SUMIF($C$55:$C$514,"Total",H$55:H$514)/COUNTIF(H27:H42,">0"),0) -> 0 | I50: =SUM(I45:I49) -> 366212 | J50: =SUM(J45:J49) -> 585.1459762 | K50: =IFERROR(#REF!/#REF!,0) -> 0 | L50: =IFERROR(SUMIF($C$55:$C$514,"Total",L$55:L$514)/COUNTIF(L27:L42,">0"),0) -> 0
A51: 1 | C51: Checks | D51: =D43-D50 -> 0 | E51: 0 | F51: 0 | G51: 0 | H51: 0 | I51: 0 | J51: 0 | K51: 0 | L51: 0
A52: 1
A53: 1 | C53: Department Programme Details
A54: 1
A55: =$A$27 -> 1 | C55: =$C$27 -> Administration
A56: =A$55 -> 1 | D56: Establishment Structure | F56: Previous Financial Year | J56: Medium-term expenditure estimates
A57: 1 | D57: As at 31 March 2023 | F57: =LEFT($D$3,4)-1 & "/" & RIGHT($D$3,2)-1 -> 2022/23
A58: 1 | B58: ProgNo. | C58: Salary level | D58: Total number of funded posts | E58: of which: number of funded posts additional to the establishment | F58: FTE Headcount | G58: Unit Costs | H58: of which: Once-off Payments per person | I58: Total Annual Cost | J58: Initial Headcount | K58: Unit Costs | L58: of which: Once-off Payments per person
A59: 1 | B59: 1 | C59: 1 | D59: 0 | E59: 0 | F59: 0 | G59: =IFERROR(IF(I59=0,O59,I59/F59),0) -> 99.95105925 | H59: 15 | I59: 0 | J59: 0 | K59: 0 | O59: 99.95105925
A60: 1 | B60: 1 | C60: 2 | D60: 1 | E60: 0 | F60: 0 | G60: =IFERROR(IF(I60=0,O60,I60/F60),0) -> 179.5147433 | H60: =1220/1000*12 -> 14.64 | I60: 0 | J60: 0 | K60: 170.7742134 | O60: 179.5147433
A61: 1 | B61: 1 | C61: 3 | D61: 25 | E61: 0 | F61: 25 | G61: 200.8 | H61: =1220/1000*12 -> 14.64 | I61: 5020 | J61: 25 | K61: 193.4971914 | O61: 216.6722944
A62: 1 | B62: 1 | C62: 4 | D62: 4 | E62: 0 | F62: 4 | G62: 232.5 | H62: =1220/1000*12 -> 14.64 | I62: 930 | J62: 4 | K62: 225.5872637 | O62: 236.0392102
A63: 1 | B63: 1 | C63: 5 | D63: 69 | E63: 40 | F63: 62.97375 | G63: 253.8518033 | H63: =1220/1000*12 -> 14.64 | I63: 15986 | J63: 62.97375 | K63: 244.268296 | O63: 290.5081548
A64: 1 | B64: 1 | C64: 6 | D64: 33 | E64: 4 | F64: 35 | G64: 320.5428571 | H64: =1352/1000*12 -> 16.224 | I64: 11219 | J64: 35 | K64: 312.6052319 | O64: 341.7085708
A65: 1 | B65: 1 | C65: 7 | D65: 12 | E65: 3 | F65: 16 | G65: 470.75 | H65: =1352/1000*12 -> 16.224 | I65: 7532 | J65: 16 | K65: 465.5096115 | O65: 455.5004418
A66: 1 | B66: 1 | C66: 8 | D66: 23 | E66: 0 | F66: 25 | G66: 11.96 | H66: =1450/1000*12 -> 17.4 | I66: 299 | J66: 25 | K66: -3.111882913 | O66: 520.4674487
A67: 1 | B67: 1 | C67: 9 | D67: 24 | E67: 2 | F67: 23 | G67: 557.9565217 | H67: =1450/1000*12 -> 17.4 | I67: 12833 | J67: 23 | K67: 550.88623 | O67: 586.4171069
A68: 1 | B68: 1 | C68: 10 | D68: 3 | E68: 0 | F68: 3 | G68: 798.6666667 | H68: =1640/1000*12 -> 19.68 | I68: 2396 | J68: 3 | K68: 796.7758719 | O68: 699.4852566
A69: 1 | B69: 1 | C69: 11 | D69: 37 | E69: 1 | F69: 42.26455971 | G69: 948.3122568 | H69: =1640/1000*12 -> 19.68 | I69: 40080 | J69: 42.26455971 | K69: 962.9773295 | O69: 799.6834333
A70: 1 | B70: 1 | C70: 12 | D70: 6 | E70: 0 | F70: 8 | G70: 963.5 | H70: =1695/1000*12 -> 20.34 | I70: 7708 | J70: 8 | K70: 978.3162273 | O70: 1014.272904
A71: 1 | B71: 1 | C71: 13 | D71: 30 | E71: 4 | F71: 28 | G71: 1146.392857 | H71: =1695/1000*12 -> 20.34 | I71: 32099 | J71: 28 | K71: 1164.169323 | O71: 1152.258047
A72: 1 | B72: 1 | C72: 14 | D72: 9 | E72: 2 | F72: 8 | G72: 1576.125 | H72: 20.34 | I72: 12609 | J72: 8 | K72: 1600.518682 | O72: 1409.161406
A73: 1 | B73: 1 | C73: 15 | D73: 2 | E73: 1 | F73: 2 | G73: 2154.5 | H73: 20.34 | I73: 4309 | J73: 2 | K73: 2191.424303 | O73: 1703.285814
A74: 1 | B74: 1 | C74: 16 | D74: 5 | E74: 2 | F74: 4 | G74: 2639.25 | H74: =1818/1000*12 -> 21.816 | I74: 10557 | J74: 4 | K74: 2678.845137 | O74: 2168.595147
A75: 1 | B75: 1 | C75: Deputy Minister | D75: 0 | E75: 0 | F75: 0 | G75: 2007.461925 | I75: 0 | J75: 0 | K75: 0 | O75: 2007.461925
A76: 1 | B76: 1 | C76: Minister | D76: 0 | E76: 0 | F76: 0 | G76: 2437.657495 | I76: 0 | J76: 0 | K76: 0 | O76: 2437.657495
A77: 1 | B77: 1 | C77: Other | D77: 10 | E77: 10 | F77: 10 | G77: 87.4 | I77: 874 | J77: 10 | K77: 89.68170303 | O77: 259.6159983
A78: 1 | B78: 1 | C78: Other | D78: 0 | E78: 0 | F78: 0 | G78: 259.6159983 | I78: 0 | J78: 0 | K78: 0 | O78: 259.6159983
A79: 1 | B79: 1 | C79: Total | D79: =SUM(D59:D78) -> 293 | E79: 69 | F79: 296.2383097 | G79: =IFERROR(I79/F79,0) -> 555.1307667 | H79: =IFERROR(SUM(H59:H78)/K79,0) -> 0 | I79: =SUM(I59:I78) -> 164451 | J79: =SUM(J59:J78) -> 296.2383097 | K79: =IFERROR(#REF!/#REF!,0) -> 0 | L79: =IFERROR(SUM(L59:L78)/#REF!,0) -> 0
A80: 1
A81: 1
A82: 1
A83: 1
A84: =$A$28 -> 1 | C84: =$C$28 -> Intergovenmental Support
A85: =A$84 -> 1 | D85: Establishment Structure | F85: Previous Financial Year | J85: Medium-term expenditure estimates
A86: 1 | D86: As at 31 March 2023 | F86: =LEFT($D$3,4)-1 & "/" & RIGHT($D$3,2)-1 -> 2022/23
A87: 1 | C87: Salary level | D87: Total number of funded posts | E87: of which: number of funded posts additional to the establishment | F87: FTE Headcount | G87: Unit Costs | H87: of which: Once-off Payments per person | I87: Total Annual Cost | J87: Initial Headcount | K87: Unit Costs | L87: of which: Once-off Payments per person
A88: 1 | B88: 2 | C88: 1 | D88: 0 | E88: 0 | F88: 0 | G88: =IFERROR(IF(I88=0,O88,I88/F88),0) -> 99.95105925 | H88: =1220/1000*12 -> 14.64 | I88: 0 | J88: 0 | K88: 0 | O88: 99.95105925
A89: 1 | B89: 2 | C89: 2 | D89: 0 | E89: 0 | F89: 0 | G89: =IFERROR(IF(I89=0,O89,I89/F89),0) -> 179.5147433 | H89: =1220/1000*12 -> 14.64 | I89: 0 | J89: 0 | K89: 0 | O89: 179.5147433
A90: 1 | B90: 2 | C90: 3 | D90: 0 | E90: 0 | F90: 0 | G90: 216.6722944 | H90: =1220/1000*12 -> 14.64 | I90: 0 | J90: 0 | K90: 0 | O90: 216.6722944
A91: 1 | B91: 2 | C91: 4 | D91: 0 | E91: 0 | F91: 0 | G91: 236.0392102 | H91: =1220/1000*12 -> 14.64 | I91: 0 | J91: 0 | K91: 0 | O91: 236.0392102
A92: 1 | B92: 2 | C92: 5 | D92: 2 | E92: 0 | F92: 1 | G92: 298 | H92: =1220/1000*12 -> 14.64 | I92: 298 | J92: 1 | K92: 288.9824484 | O92: 290.5081548
A93: 1 | B93: 2 | C93: 6 | D93: 15 | E93: 0 | F93: 10 | G93: 310.1 | H93: =1352/1000*12 -> 16.224 | I93: 3101 | J93: 10 | K93: 301.9204319 | O93: 341.7085708
A94: 1 | B94: 2 | C94: 7 | D94: 3 | E94: 0 | F94: 6 | G94: 343.8333333 | H94: =1352/1000*12 -> 16.224 | I94: 2063 | J94: 6 | K94: 335.9237304 | O94: 455.5004418
A95: 1 | B95: 2 | C95: 8 | D95: 8 | E95: 0 | F95: 8 | G95: 438.75 | H95: =1450/1000*12 -> 17.4 | I95: 3510 | J95: 8 | K95: 432.2304155 | O95: 520.4674487
A96: 1 | B96: 2 | C96: 9 | D96: 19 | E96: 0 | F96: 14 | G96: 609.7857143 | H96: =1450/1000*12 -> 17.4 | I96: 8537 | J96: 14 | K96: 603.7692454 | O96: 586.4171069
A97: 1 | B97: 2 | C97: 10 | D97: 0 | E97: 0 | F97: 0 | G97: 699.4852566 | H97: =1640/1000*12 -> 19.68 | I97: 0 | J97: 0 | K97: 0 | O97: 699.4852566
A98: 1 | B98: 2 | C98: 11 | D98: 24 | E98: 0 | F98: 22 | G98: 888.2272727 | H98: =1640/1000*12 -> 19.68 | I98: 19541 | J98: 22 | K98: 901.944296 | O98: 799.6834333
A99: 1 | B99: 2 | C99: 12 | D99: 6 | E99: 0 | F99: 5 | G99: 1036.6 | H99: =1695/1000*12 -> 20.34 | I99: 5183 | J99: 5 | K99: 1052.428413 | O99: 1014.272904
A100: 1 | B100: 2 | C100: 13 | D100: 21 | E100: 0 | F100: 23.51626083 | G100: 911.2843303 | H100: =1695/1000*12 -> 20.34 | I100: 21430 | J100: 23.51626083 | K100: 925.4271906 | O100: 1152.258047
A101: 1 | B101: 2 | C101: 14 | D101: 6 | E101: 0 | F101: 7 | G101: 1532.571429 | H101: 20.34 | I101: 10728 | J101: 7 | K101: 1556.285908 | O101: 1409.161406
A102: 1 | B102: 2 | C102: 15 | D102: 0 | E102: 0 | F102: 0 | G102: 1703.285814 | H102: 20.34 | I102: 0 | J102: 0 | K102: 0 | O102: 1703.285814
A103: 1 | B103: 2 | C103: 16 | D103: 0 | E103: 0 | F103: 0 | G103: 2168.595147 | H103: =1818/1000*12 -> 21.816 | I103: 0 | J103: 0 | K103: 0 | O103: 2168.595147
A104: 1 | B104: 2 | C104: Other | D104: 6 | E104: 6 | F104: 6 | G104: 92.83333333 | I104: 557 | J104: 6 | K104: 95.26643274 | O104: 2007.461925
A105: 1 | B105: 2 | C105: Other | D105: 0 | E105: 0 | F105: 0 | G105: 2437.657495 | I105: 0 | J105: 0 | K105: 0 | O105: 2437.657495
A106: 1 | B106: 2 | C106: Other | D106: 0 | E106: 0 | F106: 0 | G106: 259.6159983 | I106: 0 | J106: 0 | K106: 0 | O106: 259.6159983
A107: 1 | B107: 2 | C107: Other | D107: 0 | E107: 0 | F107: 0 | G107: 259.6159983 | I107: 0 | J107: 0 | K107: 0 | O107: 259.6159983
A108: 1 | B108: 2 | C108: Total | D108: =SUM(D88:D107) -> 110 | E108: 6 | F108: 102.5162608 | G108: =IFERROR(I108/F108,0) -> 731.0840192 | H108: =IFERROR(SUM(H88:H107)/K108,0) -> 0 | I108: =SUM(I88:I107) -> 74948 | J108: =SUM(J88:J107) -> 102.5162608 | K108: =IFERROR(#REF!/#REF!,0) -> 0 | L108: =IFERROR(SUM(L88:L107)/#REF!,0) -> 0
A109: 1
A110: 1
A111: 1
A112: 1
A113: =$A$29 -> 1 | C113: =$C$29 -> Intergovenmental Policy and Governance
A114: =A$113 -> 1 | D114: Establishment Structure | F114: Previous Financial Year | J114: Medium-term expenditure estimates
A115: 1 | D115: As at 31 March 2023 | F115: =LEFT($D$3,4)-1 & "/" & RIGHT($D$3,2)-1 -> 2022/23
A116: 1 | C116: Salary level | D116: Total number of funded posts | E116: of which: number of funded posts additional to the establishment | F116: FTE Headcount | G116: Unit Costs | H116: of which: Once-off Payments per person | I116: Total Annual Cost | J116: Initial Headcount | K116: Unit Costs | L116: of which: Once-off Payments per person
A117: 1 | B117: 3 | C117: 1 | D117: 0 | E117: 0 | F117: 0 | G117: =IFERROR(IF(I117=0,O117,I117/F117),0) -> 99.95105925 | H117: =1220/1000*12 -> 14.64 | I117: 0 | J117: 0 | K117: 0 | O117: 99.95105925
A118: 1 | B118: 3 | C118: 2 | D118: 0 | E118: 0 | F118: 0 | G118: =IFERROR(IF(I118=0,O118,I118/F118),0) -> 179.5147433 | H118: =1220/1000*12 -> 14.64 | I118: 0 | J118: 0 | K118: 0 | O118: 179.5147433
A119: 1 | B119: 3 | C119: 3 | D119: 0 | E119: 0 | F119: 0 | G119: 216.6722944 | H119: =1220/1000*12 -> 14.64 | I119: 0 | J119: 0 | K119: 0 | O119: 216.6722944
A120: 1 | B120: 3 | C120: 4 | D120: 0 | E120: 0 | F120: 0 | G120: 236.0392102 | H120: =1220/1000*12 -> 14.64 | I120: 0 | J120: 0 | K120: 0 | O120: 236.0392102
A121: 1 | B121: 3 | C121: 5 | D121: 0 | E121: 0 | F121: 5 | G121: 235.8 | H121: =1220/1000*12 -> 14.64 | I121: 1179 | J121: 5 | K121: 225.8277336 | O121: 290.5081548
A122: 1 | B122: 3 | C122: 6 | D122: 20 | E122: 1 | F122: 18 | G122: 364.2222222 | H122: =1352/1000*12 -> 16.224 | I122: 6556 | J122: 18 | K122: 357.3226164 | O122: 341.7085708
A123: 1 | B123: 3 | C123: 7 | D123: 5 | E123: 0 | F123: 4 | G123: 606.5 | H123: =1352/1000*12 -> 16.224 | I123: 2426 | J123: 4 | K123: 604.2343316 | O123: 455.5004418
A124: 1 | B124: 3 | C124: 8 | D124: 5 | E124: 0 | F124: 5 | G124: 624.8 | H124: =1450/1000*12 -> 17.4 | I124: 3124 | J124: 5 | K124: 622.112603 | O124: 520.4674487
A125: 1 | B125: 3 | C125: 9 | D125: 15 | E125: 0 | F125: 14 | G125: 685.4285714 | H125: =1450/1000*12 -> 17.4 | I125: 9596 | J125: 14 | K125: 683.9717926 | O125: 586.4171069
A126: 1 | B126: 3 | C126: 10 | D126: 1 | E126: 0 | F126: 1 | G126: 1019 | H126: =1640/1000*12 -> 19.68 | I126: 1019 | J126: 1 | K126: 1039.551876 | O126: 699.4852566
A127: 1 | B127: 3 | C127: 11 | D127: 15 | E127: 1 | F127: 13.03482838 | G127: 1181.987177 | H127: =1640/1000*12 -> 19.68 | I127: 15407 | J127: 13.03482838 | K127: 1200.233445 | O127: 799.6834333
A128: 1 | B128: 3 | C128: 12 | D128: 0 | E128: 0 | F128: 0 | G128: 1014.272904 | H128: =1695/1000*12 -> 20.34 | I128: 0 | J128: 0 | K128: 0 | O128: 1014.272904
A129: 1 | B129: 3 | C129: 13 | D129: 15 | E129: 0 | F129: 14 | G129: 1370.142857 | H129: =1695/1000*12 -> 20.34 | I129: 19182 | J129: 14 | K129: 1391.355385 | O129: 1152.258047
A130: 1 | B130: 3 | C130: 14 | D130: 5 | E130: 0 | F130: 5 | G130: 1815.6 | H130: 20.34 | I130: 9078 | J130: 5 | K130: 1843.763551 | O130: 1409.161406
A131: 1 | B131: 3 | C131: 15 | D131: 1 | E131: 0 | F131: 1 | G131: 2197 | H131: 20.34 | I131: 2197 | J131: 1 | K131: 2235.082416 | O131: 1703.285814
A132: 1 | B132: 3 | C132: 16 | D132: 0 | E132: 0 | F132: 0 | G132: 2168.595147 | H132: =1818/1000*12 -> 21.816 | I132: 0 | J132: 0 | K132: 0 | O132: 2168.595147
A133: 1 | B133: 3 | C133: Other | D133: 2 | E133: 0 | F133: 2 | G133: 84.5 | I133: 169 | J133: 2 | K133: 86.44213179 | O133: 2007.461925
A134: 1 | B134: 3 | C134: Other | D134: 0 | E134: 0 | F134: 0 | G134: 2437.657495 | I134: 0 | J134: 0 | K134: 0 | O134: 2437.657495
A135: 1 | B135: 3 | C135: Other | D135: 0 | E135: 0 | F135: 0 | G135: 259.6159983 | I135: 0 | J135: 0 | K135: 0 | O135: 259.6159983
A136: 1 | B136: 3 | C136: Other | D136: 0 | E136: 0 | F136: 0 | G136: 259.6159983 | I136: 0 | J136: 0 | K136: 0 | O136: 259.6159983
A137: 1 | B137: 3 | C137: Total | D137: =SUM(D117:D136) -> 84 | E137: 2 | F137: 82.03482838 | G137: =IFERROR(I137/F137,0) -> 852.4793845 | H137: =IFERROR(SUM(H117:H136)/K137,0) -> 0 | I137: =SUM(I117:I136) -> 69933 | J137: =SUM(J117:J136) -> 82.03482838 | K137: =IFERROR(#REF!/#REF!,0) -> 0 | L137: =IFERROR(SUM(L117:L136)/#REF!,0) -> 0
A138: 1
A139: 1
A140: 1
A141: 1
A142: =$A$30 -> 1 | C142: =$C$30 -> National Disaster Management Centre
A143: =A$142 -> 1 | D143: Establishment Structure | F143: Previous Financial Year | J143: Medium-term expenditure estimates
A144: 1 | D144: As at 31 March 2023 | F144: =LEFT($D$3,4)-1 & "/" & RIGHT($D$3,2)-1 -> 2022/23
A145: 1 | C145: Salary level | D145: Total number of funded posts | E145: of which: number of funded posts additional to the establishment | F145: FTE Headcount | G145: Unit Costs | H145: of which: Once-off Payments per person | I145: Total Annual Cost | J145: Initial Headcount | K145: Unit Costs | L145: of which: Once-off Payments per person
A146: 1 | B146: 4 | C146: 1 | D146: 0 | E146: 0 | F146: 0 | G146: =IFERROR(IF(I146=0,O146,I146/F146),0) -> 99.95105925 | H146: =1220/1000*12 -> 14.64 | I146: 0 | J146: 0 | K146: 0 | O146: 99.95105925
A147: 1 | B147: 4 | C147: 2 | D147: 0 | E147: 0 | F147: 0 | G147: =IFERROR(IF(I147=0,O147,I147/F147),0) -> 179.5147433 | H147: =1220/1000*12 -> 14.64 | I147: 0 | J147: 0 | K147: 0 | O147: 179.5147433
A148: 1 | B148: 4 | C148: 3 | D148: 0 | E148: 0 | F148: 0 | G148: 216.6722944 | H148: =1220/1000*12 -> 14.64 | I148: 0 | J148: 0 | K148: 0 | O148: 216.6722944
A149: 1 | B149: 4 | C149: 4 | D149: 0 | E149: 0 | F149: 0 | G149: 236.0392102 | H149: =1220/1000*12 -> 14.64 | I149: 0 | J149: 0 | K149: 0 | O149: 236.0392102
A150: 1 | B150: 4 | C150: 5 | D150: 0 | E150: 0 | F150: 0 | G150: 290.5081548 | H150: =1220/1000*12 -> 14.64 | I150: 0 | J150: 0 | K150: 0 | O150: 290.5081548
A151: 1 | B151: 4 | C151: 6 | D151: 3 | E151: 0 | F151: 3 | G151: 421 | H151: =1352/1000*12 -> 16.224 | I151: 1263 | J151: 3 | K151: 415.5163839 | O151: 341.7085708
A152: 1 | B152: 4 | C152: 7 | D152: 3 | E152: 0 | F152: 2 | G152: 508 | H152: =1352/1000*12 -> 16.224 | I152: 1016 | J152: 2 | K152: 503.7071026 | O152: 455.5004418
A153: 1 | B153: 4 | C153: 8 | D153: 2 | E153: 0 | F153: 2 | G153: 540 | H153: =1450/1000*12 -> 17.4 | I153: 1080 | J153: 2 | K153: 535.5668772 | O153: 520.4674487
A154: 1 | B154: 4 | C154: 9 | D154: 4 | E154: 0 | F154: 5 | G154: 563.8 | H154: =1450/1000*12 -> 17.4 | I154: 2819 | J154: 5 | K154: 556.853793 | O154: 586.4171069
A155: 1 | B155: 4 | C155: 10 | D155: 0 | E155: 0 | F155: 0 | G155: 699.4852566 | H155: =1640/1000*12 -> 19.68 | I155: 0 | J155: 0 | K155: -19.25096066 | O155: 699.4852566
A156: 1 | B156: 4 | C156: 11 | D156: 8 | E156: 0 | F156: 10.40245964 | G156: 841.9162679 | H156: =1640/1000*12 -> 19.68 | I156: 8758 | J156: 10.40245964 | K156: 854.9451313 | O156: 799.6834333
A157: 1 | B157: 4 | C157: 12 | D157: 2 | E157: 0 | F157: 2 | G157: 1210.5 | H157: =1695/1000*12 -> 20.34 | I157: 2421 | J157: 2 | K157: 1228.802558 | O157: 1014.272904
A158: 1 | B158: 4 | C158: 13 | D158: 5 | E158: 0 | F158: 4 | G158: 1122.5 | H158: =1695/1000*12 -> 20.34 | I158: 4490 | J158: 4 | K158: 1139.888252 | O158: 1152.258047
A159: 1 | B159: 4 | C159: 14 | D159: 1 | E159: 0 | F159: 2 | G159: 2902 | H159: 20.34 | I159: 5804 | J159: 2 | K159: 2946.964312 | O159: 1409.161406
A160: 1 | B160: 4 | C160: 15 | D160: 1 | E160: 0 | F160: 1 | G160: 2045 | H160: 20.34 | I160: 2045 | J160: 1 | K160: 2080.540959 | O160: 1703.285814
A161: 1 | B161: 4 | C161: 16 | D161: 0 | E161: 0 | F161: 0 | G161: 2168.595147 | H161: =1818/1000*12 -> 21.816 | I161: 0 | J161: 0 | K161: 0 | O161: 2168.595147
A162: 1 | B162: 4 | C162: Other | D162: 1 | E162: 1 | F162: 1 | G162: 77 | I162: 77 | J162: 1 | K162: 79.00210073 | O162: 2007.461925
A163: 1 | B163: 4 | C163: Other | D163: 0 | E163: 0 | F163: 0 | G163: 2437.657495 | I163: 0 | J163: 0 | K163: 0 | O163: 2437.657495
A164: 1 | B164: 4 | C164: Other | D164: 0 | E164: 0 | F164: 0 | G164: 259.6159983 | I164: 0 | J164: 0 | K164: 0 | O164: 259.6159983
A165: 1 | B165: 4 | C165: Other | D165: 0 | E165: 0 | F165: 0 | G165: 259.6159983 | I165: 0 | J165: 0 | K165: 0 | O165: 259.6159983
A166: 1 | B166: 4 | C166: Total | D166: =SUM(D146:D165) -> 30 | E166: 1 | F166: 32.40245964 | G166: =IFERROR(I166/F166,0) -> 918.8499986 | H166: =IFERROR(SUM(H146:H165)/K166,0) -> 0 | I166: =SUM(I146:I165) -> 29773 | J166: =SUM(J146:J165) -> 32.40245964 | K166: =IFERROR(#REF!/#REF!,0) -> 0 | L166: =IFERROR(SUM(L146:L165)/#REF!,0) -> 0
A167: 1
A168: 1
A169: 1
A170: 1
A171: =$A$31 -> 1 | C171: =$C$31 -> Community Work Programme
A172: =A$171 -> 1 | D172: Establishment Structure | F172: Previous Financial Year | J172: Medium-term expenditure estimates
A173: 1 | D173: As at 31 March 2023 | F173: =LEFT($D$3,4)-1 & "/" & RIGHT($D$3,2)-1 -> 2022/23
A174: 1 | C174: Salary level | D174: Total number of funded posts | E174: of which: number of funded posts additional to the establishment | F174: FTE Headcount | G174: Unit Costs | H174: of which: Once-off Payments per person | I174: Total Annual Cost | J174: Initial Headcount | K174: Unit Costs | L174: of which: Once-off Payments per person
A175: 1 | B175: 5 | C175: 1 | D175: 0 | E175: 0 | F175: 0 | G175: =IFERROR(IF(I175=0,O175,I175/F175),0) -> 99.95105925 | H175: =1220/1000*12 -> 14.64 | I175: 0 | J175: 0 | K175: 0 | O175: 99.95105925
A176: 1 | B176: 5 | C176: 2 | D176: 0 | E176: 0 | F176: 0 | G176: =IFERROR(IF(I176=0,O176,I176/F176),0) -> 179.5147433 | H176: =1220/1000*12 -> 14.64 | I176: 0 | J176: 0 | K176: 0 | O176: 179.5147433
A177: 1 | B177: 5 | C177: 3 | D177: 0 | E177: 0 | F177: 0 | G177: 216.6722944 | H177: =1220/1000*12 -> 14.64 | I177: 0 | J177: 0 | K177: 0 | O177: 216.6722944
A178: 1 | B178: 5 | C178: 4 | D178: 0 | E178: 0 | F178: 0 | G178: 236.0392102 | H178: =1220/1000*12 -> 14.64 | I178: 0 | J178: 0 | K178: 0 | O178: 236.0392102
A179: 1 | B179: 5 | C179: 5 | D179: 12 | E179: 0 | F179: 50 | G179: 212.04 | H179: =1220/1000*12 -> 14.64 | I179: 10602 | J179: 50 | K179: 201.5042494 | O179: 290.5081548
A180: 1 | B180: 5 | C180: 6 | D180: 1 | E180: 0 | F180: 2 | G180: 383.5 | H180: =1352/1000*12 -> 16.224 | I180: 767 | J180: 2 | K180: 376.863697 | O180: 341.7085708
A181: 1 | B181: 5 | C181: 7 | D181: 0 | E181: 0 | F181: 0 | G181: 455.5004418 | H181: =1352/1000*12 -> 16.224 | I181: 0 | J181: 0 | K181: -16.06436543 | O181: 455.5004418
A182: 1 | B182: 5 | C182: 8 | D182: 3 | E182: 0 | F182: 3 | G182: 375.3333333 | H182: =1450/1000*12 -> 17.4 | I182: 1126 | J182: 3 | K182: 367.5828503 | O182: 520.4674487
A183: 1 | B183: 5 | C183: 9 | D183: 1 | E183: 0 | F183: 2 | G183: 504 | H183: =1450/1000*12 -> 17.4 | I183: 1008 | J183: 2 | K183: 499.1376609 | O183: 586.4171069
A184: 1 | B184: 5 | C184: 10 | D184: 0 | E184: 0 | F184: 0 | G184: 699.4852566 | H184: =1640/1000*12 -> 19.68 | I184: 0 | J184: 0 | K184: 0 | O184: 699.4852566
A185: 1 | B185: 5 | C185: 11 | D185: 3 | E185: 0 | F185: 5 | G185: 894.8 | H185: =1640/1000*12 -> 19.68 | I185: 4474 | J185: 5 | K185: 908.6673017 | O185: 799.6834333
A186: 1 | B186: 5 | C186: 12 | D186: 0 | E186: 0 | F186: 0 | G186: 1014.272904 | H186: =1695/1000*12 -> 20.34 | I186: 0 | J186: 0 | K186: 0 | O186: 1014.272904
A187: 1 | B187: 5 | C187: 13 | D187: 2 | E187: 0 | F187: 7.954117647 | G187: 1123.820441 | H187: =1695/1000*12 -> 20.34 | I187: 8939 | J187: 7.954117647 | K187: 1141.22963 | O187: 1152.258047
A188: 1 | B188: 5 | C188: 14 | D188: 0 | E188: 0 | F188: 0 | G188: 1409.161406 | H188: 20.34 | I188: 0 | J188: 0 | K188: 0 | O188: 1409.161406
A189: 1 | B189: 5 | C189: 15 | D189: 0 | E189: 0 | F189: 0 | G189: 1703.285814 | H189: 20.34 | I189: 0 | J189: 0 | K189: 0 | O189: 1703.285814
A190: 1 | B190: 5 | C190: 16 | D190: 0 | E190: 0 | F190: 0 | G190: 2168.595147 | H190: =1818/1000*12 -> 21.816 | I190: 0 | J190: 0 | K190: 0 | O190: 2168.595147
A191: 1 | B191: 5 | C191: Other | D191: 0 | E191: 0 | F191: 2 | G191: 95.5 | I191: 191 | J191: 2 | K191: 97.79658134 | O191: 2007.461925
A192: 1 | B192: 5 | C192: Other | D192: 0 | E192: 0 | F192: 0 | G192: 2437.657495 | I192: 0 | J192: 0 | K192: 0 | O192: 2437.657495
A193: 1 | B193: 5 | C193: Other | D193: 0 | E193: 0 | F193: 0 | G193: 259.6159983 | I193: 0 | J193: 0 | K193: 0 | O193: 259.6159983
A194: 1 | B194: 5 | C194: Other | D194: 0 | E194: 0 | F194: 0 | G194: 259.6159983 | I194: 0 | J194: 0 | K194: 0 | O194: 259.6159983
A195: 1 | B195: 5 | C195: Total | D195: =SUM(D175:D194) -> 22 | E195: 0 | F195: 71.95411765 | G195: =IFERROR(I195/F195,0) -> 376.7261817 | H195: =IFERROR(SUM(H175:H194)/K195,0) -> 0 | I195: =SUM(I175:I194) -> 27107 | J195: =SUM(J175:J194) -> 71.95411765 | K195: =IFERROR(#REF!/#REF!,0) -> 0 | L195: =IFERROR(SUM(L175:L194)/#REF!,0) -> 0
A196: 1
A197: 1
A198: 1
A199: 1
A200: =$A$32 -> 0 | C200: =$C$32 -> 
... 314 more rows

Sheet 4 (hidden)
A1: Filter | C1: HUMAN RESOURCE BUDGET PLAN | K1: 1
A2: 1
A3: 1 | C3: Financial Year: | D3: 2023/24
A4: 1 | C4: Sphere of Government: | D4: National
A5: 1 | C5: Name of Department: | D5: Vote 04: Government Communication and Information System
A6: -14
A7: -13
A8: -12
A9: -11
A10: -10
A11: -9
A12: -8
A13: -7
A14: -6
A15: -5
A16: -4
A17: -3
A18: -2
A19: -1
A20: 0
A21: 1
A22: 1 | C22: Department Summary Details
A23: 1
A24: 1 | D24: Establishment Structure | F24: Previous Financial Year | J24: Medium-term expenditure estimates
A25: 1 | D25: As at 31 March 2023 | F25: =LEFT($D$3,4)-1 & "/" & RIGHT($D$3,2)-1 -> 2022/23
A26: 1 | C26: Programmes | D26: Total number of funded posts | E26: of which: number of funded posts additional to the establishment | F26: FTE Headcount | G26: Unit Costs | H26: of which: Once-off Payments per person | I26: Total Annual Cost | J26: Initial Headcount | K26: Unit Costs | L26: of which: Once-off Payments per person
A27: 1 | B27: =IF(LEN(C27)>2,ROW()-26,"") -> 1 | C27: Administration | D27: =IF($C27="",0,OFFSET($C55,MATCH($C27,$C$55:$C$514,0)+24-SUM($A$27:$A27),COLUMN(D$1)-3)) -> 162 | E27: =IF($C27="",0,OFFSET($C55,MATCH($C27,$C$55:$C$514,0)+24-SUM($A$27:$A27),COLUMN(E$1)-3)) -> 13 | F27: =IF($C27="",0,OFFSET($C55,MATCH($C27,$C$55:$C$514,0)+24-SUM($A$27:$A27),COLUMN(F$1)-3)) -> 146.4389965 | G27: =IF($C27="",0,OFFSET($C55,MATCH($C27,$C$55:$C$514,0)+24-SUM($A$27:$A27),COLUMN(G$1)-3)) -> 550.693476 | H27: =IF($C27="",0,OFFSET($C55,MATCH($C27,$C$55:$C$514,0)+24-SUM($A$27:$A27),COLUMN(H$1)-3)) -> 0 | I27: =IF($C27="",0,OFFSET($C55,MATCH($C27,$C$55:$C$514,0)+24-SUM($A$27:$A27),COLUMN(I$1)-3)) -> 80643 | J27: =IF($C27="",0,OFFSET($C55,MATCH($C27,$C$55:$C$514,0)+24-SUM($A$27:$A27),COLUMN(J$1)-3)) -> 146.4389965 | K27: =IF($C27="",0,OFFSET($C55,MATCH($C27,$C$55:$C$514,0)+24-SUM($A$27:$A27),COLUMN(K$1)-3)) -> 0 | L27: =IF($C27="",0,OFFSET($C55,MATCH($C27,$C$55:$C$514,0)+24-SUM($A$27:$A27),COLUMN(L$1)-3)) -> 0
A28: =IF(LEN(C28)>1,1,0) -> 1 | B28: 2 | C28: Content Processing and Dissemination | D28: =IF($C28="",0,OFFSET($C56,MATCH($C28,$C$55:$C$514,0)+24-SUM($A$27:$A28),COLUMN(D$1)-3)) -> 163 | E28: =IF($C28="",0,OFFSET($C56,MATCH($C28,$C$55:$C$514,0)+24-SUM($A$27:$A28),COLUMN(E$1)-3)) -> 13 | F28: =IF($C28="",0,OFFSET($C56,MATCH($C28,$C$55:$C$514,0)+24-SUM($A$27:$A28),COLUMN(F$1)-3)) -> 154.5501307 | G28: =IF($C28="",0,OFFSET($C56,MATCH($C28,$C$55:$C$514,0)+24-SUM($A$27:$A28),COLUMN(G$1)-3)) -> 659.14535 | H28: =IF($C28="",0,OFFSET($C56,MATCH($C28,$C$55:$C$514,0)+24-SUM($A$27:$A28),COLUMN(H$1)-3)) -> 0 | I28: =IF($C28="",0,OFFSET($C56,MATCH($C28,$C$55:$C$514,0)+24-SUM($A$27:$A28),COLUMN(I$1)-3)) -> 101871 | J28: =IF($C28="",0,OFFSET($C56,MATCH($C28,$C$55:$C$514,0)+24-SUM($A$27:$A28),COLUMN(J$1)-3)) -> 154.5501307 | K28: =IF($C28="",0,OFFSET($C56,MATCH($C28,$C$55:$C$514,0)+24-SUM($A$27:$A28),COLUMN(K$1)-3)) -> 0 | L28: =IF($C28="",0,OFFSET($C56,MATCH($C28,$C$55:$C$514,0)+24-SUM($A$27:$A28),COLUMN(L$1)-3)) -> 0
A29: 1 | B29: 3 | C29: Intergovernmental Coordination and Stakeholder Management | D29: =IF($C29="",0,OFFSET($C57,MATCH($C29,$C$55:$C$514,0)+24-SUM($A$27:$A29),COLUMN(D$1)-3)) -> 190 | E29: =IF($C29="",0,OFFSET($C57,MATCH($C29,$C$55:$C$514,0)+24-SUM($A$27:$A29),COLUMN(E$1)-3)) -> 14 | F29: =IF($C29="",0,OFFSET($C57,MATCH($C29,$C$55:$C$514,0)+24-SUM($A$27:$A29),COLUMN(F$1)-3)) -> 183.7314533 | G29: =IF($C29="",0,OFFSET($C57,MATCH($C29,$C$55:$C$514,0)+24-SUM($A$27:$A29),COLUMN(G$1)-3)) -> 591.5318148 | H29: =IF($C29="",0,OFFSET($C57,MATCH($C29,$C$55:$C$514,0)+24-SUM($A$27:$A29),COLUMN(H$1)-3)) -> 0 | I29: =IF($C29="",0,OFFSET($C57,MATCH($C29,$C$55:$C$514,0)+24-SUM($A$27:$A29),COLUMN(I$1)-3)) -> 108683 | J29: =IF($C29="",0,OFFSET($C57,MATCH($C29,$C$55:$C$514,0)+24-SUM($A$27:$A29),COLUMN(J$1)-3)) -> 183.7314533 | K29: =IF($C29="",0,OFFSET($C57,MATCH($C29,$C$55:$C$514,0)+24-SUM($A$27:$A29),COLUMN(K$1)-3)) -> 0 | L29: =IF($C29="",0,OFFSET($C57,MATCH($C29,$C$55:$C$514,0)+24-SUM($A$27:$A29),COLUMN(L$1)-3)) -> 0
A30: 0 | D30: =IF($C30="",0,OFFSET($C58,MATCH($C30,$C$55:$C$514,0)+24-SUM($A$27:$A30),COLUMN(D$1)-3)) -> 0 | E30: =IF($C30="",0,OFFSET($C58,MATCH($C30,$C$55:$C$514,0)+24-SUM($A$27:$A30),COLUMN(E$1)-3)) -> 0 | F30: =IF($C30="",0,OFFSET($C58,MATCH($C30,$C$55:$C$514,0)+24-SUM($A$27:$A30),COLUMN(F$1)-3)) -> 0 | G30: =IF($C30="",0,OFFSET($C58,MATCH($C30,$C$55:$C$514,0)+24-SUM($A$27:$A30),COLUMN(G$1)-3)) -> 0 | H30: =IF($C30="",0,OFFSET($C58,MATCH($C30,$C$55:$C$514,0)+24-SUM($A$27:$A30),COLUMN(H$1)-3)) -> 0 | I30: =IF($C30="",0,OFFSET($C58,MATCH($C30,$C$55:$C$514,0)+24-SUM($A$27:$A30),COLUMN(I$1)-3)) -> 0 | J30: =IF($C30="",0,OFFSET($C58,MATCH($C30,$C$55:$C$514,0)+24-SUM($A$27:$A30),COLUMN(J$1)-3)) -> 0 | K30: =IF($C30="",0,OFFSET($C58,MATCH($C30,$C$55:$C$514,0)+24-SUM($A$27:$A30),COLUMN(K$1)-3)) -> 0 | L30: =IF($C30="",0,OFFSET($C58,MATCH($C30,$C$55:$C$514,0)+24-SUM($A$27:$A30),COLUMN(L$1)-3)) -> 0
A31: 0 | D31: =IF($C31="",0,OFFSET($C59,MATCH($C31,$C$55:$C$514,0)+24-SUM($A$27:$A31),COLUMN(D$1)-3)) -> 0 | E31: =IF($C31="",0,OFFSET($C59,MATCH($C31,$C$55:$C$514,0)+24-SUM($A$27:$A31),COLUMN(E$1)-3)) -> 0 | F31: =IF($C31="",0,OFFSET($C59,MATCH($C31,$C$55:$C$514,0)+24-SUM($A$27:$A31),COLUMN(F$1)-3)) -> 0 | G31: =IF($C31="",0,OFFSET($C59,MATCH($C31,$C$55:$C$514,0)+24-SUM($A$27:$A31),COLUMN(G$1)-3)) -> 0 | H31: =IF($C31="",0,OFFSET($C59,MATCH($C31,$C$55:$C$514,0)+24-SUM($A$27:$A31),COLUMN(H$1)-3)) -> 0 | I31: =IF($C31="",0,OFFSET($C59,MATCH($C31,$C$55:$C$514,0)+24-SUM($A$27:$A31),COLUMN(I$1)-3)) -> 0 | J31: =IF($C31="",0,OFFSET($C59,MATCH($C31,$C$55:$C$514,0)+24-SUM($A$27:$A31),COLUMN(J$1)-3)) -> 0 | K31: =IF($C31="",0,OFFSET($C59,MATCH($C31,$C$55:$C$514,0)+24-SUM($A$27:$A31),COLUMN(K$1)-3)) -> 0 | L31: =IF($C31="",0,OFFSET($C59,MATCH($C31,$C$55:$C$514,0)+24-SUM($A$27:$A31),COLUMN(L$1)-3)) -> 0
A32: 0 | D32: =IF($C32="",0,OFFSET($C60,MATCH($C32,$C$55:$C$514,0)+24-SUM($A$27:$A32),COLUMN(D$1)-3)) -> 0 | E32: =IF($C32="",0,OFFSET($C60,MATCH($C32,$C$55:$C$514,0)+24-SUM($A$27:$A32),COLUMN(E$1)-3)) -> 0 | F32: =IF($C32="",0,OFFSET($C60,MATCH($C32,$C$55:$C$514,0)+24-SUM($A$27:$A32),COLUMN(F$1)-3)) -> 0 | G32: =IF($C32="",0,OFFSET($C60,MATCH($C32,$C$55:$C$514,0)+24-SUM($A$27:$A32),COLUMN(G$1)-3)) -> 0 | H32: =IF($C32="",0,OFFSET($C60,MATCH($C32,$C$55:$C$514,0)+24-SUM($A$27:$A32),COLUMN(H$1)-3)) -> 0 | I32: =IF($C32="",0,OFFSET($C60,MATCH($C32,$C$55:$C$514,0)+24-SUM($A$27:$A32),COLUMN(I$1)-3)) -> 0 | J32: =IF($C32="",0,OFFSET($C60,MATCH($C32,$C$55:$C$514,0)+24-SUM($A$27:$A32),COLUMN(J$1)-3)) -> 0 | K32: =IF($C32="",0,OFFSET($C60,MATCH($C32,$C$55:$C$514,0)+24-SUM($A$27:$A32),COLUMN(K$1)-3)) -> 0 | L32: =IF($C32="",0,OFFSET($C60,MATCH($C32,$C$55:$C$514,0)+24-SUM($A$27:$A32),COLUMN(L$1)-3)) -> 0
A33: 0 | D33: =IF($C33="",0,OFFSET($C61,MATCH($C33,$C$55:$C$514,0)+24-SUM($A$27:$A33),COLUMN(D$1)-3)) -> 0 | E33: =IF($C33="",0,OFFSET($C61,MATCH($C33,$C$55:$C$514,0)+24-SUM($A$27:$A33),COLUMN(E$1)-3)) -> 0 | F33: =IF($C33="",0,OFFSET($C61,MATCH($C33,$C$55:$C$514,0)+24-SUM($A$27:$A33),COLUMN(F$1)-3)) -> 0 | G33: =IF($C33="",0,OFFSET($C61,MATCH($C33,$C$55:$C$514,0)+24-SUM($A$27:$A33),COLUMN(G$1)-3)) -> 0 | H33: =IF($C33="",0,OFFSET($C61,MATCH($C33,$C$55:$C$514,0)+24-SUM($A$27:$A33),COLUMN(H$1)-3)) -> 0 | I33: =IF($C33="",0,OFFSET($C61,MATCH($C33,$C$55:$C$514,0)+24-SUM($A$27:$A33),COLUMN(I$1)-3)) -> 0 | J33: =IF($C33="",0,OFFSET($C61,MATCH($C33,$C$55:$C$514,0)+24-SUM($A$27:$A33),COLUMN(J$1)-3)) -> 0 | K33: =IF($C33="",0,OFFSET($C61,MATCH($C33,$C$55:$C$514,0)+24-SUM($A$27:$A33),COLUMN(K$1)-3)) -> 0 | L33: =IF($C33="",0,OFFSET($C61,MATCH($C33,$C$55:$C$514,0)+24-SUM($A$27:$A33),COLUMN(L$1)-3)) -> 0
A34: 0 | D34: =IF($C34="",0,OFFSET($C62,MATCH($C34,$C$55:$C$514,0)+24-SUM($A$27:$A34),COLUMN(D$1)-3)) -> 0 | E34: =IF($C34="",0,OFFSET($C62,MATCH($C34,$C$55:$C$514,0)+24-SUM($A$27:$A34),COLUMN(E$1)-3)) -> 0 | F34: =IF($C34="",0,OFFSET($C62,MATCH($C34,$C$55:$C$514,0)+24-SUM($A$27:$A34),COLUMN(F$1)-3)) -> 0 | G34: =IF($C34="",0,OFFSET($C62,MATCH($C34,$C$55:$C$514,0)+24-SUM($A$27:$A34),COLUMN(G$1)-3)) -> 0 | H34: =IF($C34="",0,OFFSET($C62,MATCH($C34,$C$55:$C$514,0)+24-SUM($A$27:$A34),COLUMN(H$1)-3)) -> 0 | I34: =IF($C34="",0,OFFSET($C62,MATCH($C34,$C$55:$C$514,0)+24-SUM($A$27:$A34),COLUMN(I$1)-3)) -> 0 | J34: =IF($C34="",0,OFFSET($C62,MATCH($C34,$C$55:$C$514,0)+24-SUM($A$27:$A34),COLUMN(J$1)-3)) -> 0 | K34: =IF($C34="",0,OFFSET($C62,MATCH($C34,$C$55:$C$514,0)+24-SUM($A$27:$A34),COLUMN(K$1)-3)) -> 0 | L34: =IF($C34="",0,OFFSET($C62,MATCH($C34,$C$55:$C$514,0)+24-SUM($A$27:$A34),COLUMN(L$1)-3)) -> 0
A35: 0 | D35: =IF($C35="",0,OFFSET($C63,MATCH($C35,$C$55:$C$514,0)+24-SUM($A$27:$A35),COLUMN(D$1)-3)) -> 0 | E35: =IF($C35="",0,OFFSET($C63,MATCH($C35,$C$55:$C$514,0)+24-SUM($A$27:$A35),COLUMN(E$1)-3)) -> 0 | F35: =IF($C35="",0,OFFSET($C63,MATCH($C35,$C$55:$C$514,0)+24-SUM($A$27:$A35),COLUMN(F$1)-3)) -> 0 | G35: =IF($C35="",0,OFFSET($C63,MATCH($C35,$C$55:$C$514,0)+24-SUM($A$27:$A35),COLUMN(G$1)-3)) -> 0 | H35: =IF($C35="",0,OFFSET($C63,MATCH($C35,$C$55:$C$514,0)+24-SUM($A$27:$A35),COLUMN(H$1)-3)) -> 0 | I35: =IF($C35="",0,OFFSET($C63,MATCH($C35,$C$55:$C$514,0)+24-SUM($A$27:$A35),COLUMN(I$1)-3)) -> 0 | J35: =IF($C35="",0,OFFSET($C63,MATCH($C35,$C$55:$C$514,0)+24-SUM($A$27:$A35),COLUMN(J$1)-3)) -> 0 | K35: =IF($C35="",0,OFFSET($C63,MATCH($C35,$C$55:$C$514,0)+24-SUM($A$27:$A35),COLUMN(K$1)-3)) -> 0 | L35: =IF($C35="",0,OFFSET($C63,MATCH($C35,$C$55:$C$514,0)+24-SUM($A$27:$A35),COLUMN(L$1)-3)) -> 0
A36: 0 | D36: =IF($C36="",0,OFFSET($C64,MATCH($C36,$C$55:$C$514,0)+24-SUM($A$27:$A36),COLUMN(D$1)-3)) -> 0 | E36: =IF($C36="",0,OFFSET($C64,MATCH($C36,$C$55:$C$514,0)+24-SUM($A$27:$A36),COLUMN(E$1)-3)) -> 0 | F36: =IF($C36="",0,OFFSET($C64,MATCH($C36,$C$55:$C$514,0)+24-SUM($A$27:$A36),COLUMN(F$1)-3)) -> 0 | G36: =IF($C36="",0,OFFSET($C64,MATCH($C36,$C$55:$C$514,0)+24-SUM($A$27:$A36),COLUMN(G$1)-3)) -> 0 | H36: =IF($C36="",0,OFFSET($C64,MATCH($C36,$C$55:$C$514,0)+24-SUM($A$27:$A36),COLUMN(H$1)-3)) -> 0 | I36: =IF($C36="",0,OFFSET($C64,MATCH($C36,$C$55:$C$514,0)+24-SUM($A$27:$A36),COLUMN(I$1)-3)) -> 0 | J36: =IF($C36="",0,OFFSET($C64,MATCH($C36,$C$55:$C$514,0)+24-SUM($A$27:$A36),COLUMN(J$1)-3)) -> 0 | K36: =IF($C36="",0,OFFSET($C64,MATCH($C36,$C$55:$C$514,0)+24-SUM($A$27:$A36),COLUMN(K$1)-3)) -> 0 | L36: =IF($C36="",0,OFFSET($C64,MATCH($C36,$C$55:$C$514,0)+24-SUM($A$27:$A36),COLUMN(L$1)-3)) -> 0
A37: 0 | D37: =IF($C37="",0,OFFSET($C65,MATCH($C37,$C$55:$C$514,0)+24-SUM($A$27:$A37),COLUMN(D$1)-3)) -> 0 | E37: =IF($C37="",0,OFFSET($C65,MATCH($C37,$C$55:$C$514,0)+24-SUM($A$27:$A37),COLUMN(E$1)-3)) -> 0 | F37: =IF($C37="",0,OFFSET($C65,MATCH($C37,$C$55:$C$514,0)+24-SUM($A$27:$A37),COLUMN(F$1)-3)) -> 0 | G37: =IF($C37="",0,OFFSET($C65,MATCH($C37,$C$55:$C$514,0)+24-SUM($A$27:$A37),COLUMN(G$1)-3)) -> 0 | H37: =IF($C37="",0,OFFSET($C65,MATCH($C37,$C$55:$C$514,0)+24-SUM($A$27:$A37),COLUMN(H$1)-3)) -> 0 | I37: =IF($C37="",0,OFFSET($C65,MATCH($C37,$C$55:$C$514,0)+24-SUM($A$27:$A37),COLUMN(I$1)-3)) -> 0 | J37: =IF($C37="",0,OFFSET($C65,MATCH($C37,$C$55:$C$514,0)+24-SUM($A$27:$A37),COLUMN(J$1)-3)) -> 0 | K37: =IF($C37="",0,OFFSET($C65,MATCH($C37,$C$55:$C$514,0)+24-SUM($A$27:$A37),COLUMN(K$1)-3)) -> 0 | L37: =IF($C37="",0,OFFSET($C65,MATCH($C37,$C$55:$C$514,0)+24-SUM($A$27:$A37),COLUMN(L$1)-3)) -> 0
A38: 0 | D38: =IF($C38="",0,OFFSET($C66,MATCH($C38,$C$55:$C$514,0)+24-SUM($A$27:$A38),COLUMN(D$1)-3)) -> 0 | E38: =IF($C38="",0,OFFSET($C66,MATCH($C38,$C$55:$C$514,0)+24-SUM($A$27:$A38),COLUMN(E$1)-3)) -> 0 | F38: =IF($C38="",0,OFFSET($C66,MATCH($C38,$C$55:$C$514,0)+24-SUM($A$27:$A38),COLUMN(F$1)-3)) -> 0 | G38: =IF($C38="",0,OFFSET($C66,MATCH($C38,$C$55:$C$514,0)+24-SUM($A$27:$A38),COLUMN(G$1)-3)) -> 0 | H38: =IF($C38="",0,OFFSET($C66,MATCH($C38,$C$55:$C$514,0)+24-SUM($A$27:$A38),COLUMN(H$1)-3)) -> 0 | I38: =IF($C38="",0,OFFSET($C66,MATCH($C38,$C$55:$C$514,0)+24-SUM($A$27:$A38),COLUMN(I$1)-3)) -> 0 | J38: =IF($C38="",0,OFFSET($C66,MATCH($C38,$C$55:$C$514,0)+24-SUM($A$27:$A38),COLUMN(J$1)-3)) -> 0 | K38: =IF($C38="",0,OFFSET($C66,MATCH($C38,$C$55:$C$514,0)+24-SUM($A$27:$A38),COLUMN(K$1)-3)) -> 0 | L38: =IF($C38="",0,OFFSET($C66,MATCH($C38,$C$55:$C$514,0)+24-SUM($A$27:$A38),COLUMN(L$1)-3)) -> 0
A39: 0 | D39: =IF($C39="",0,OFFSET($C67,MATCH($C39,$C$55:$C$514,0)+24-SUM($A$27:$A39),COLUMN(D$1)-3)) -> 0 | E39: =IF($C39="",0,OFFSET($C67,MATCH($C39,$C$55:$C$514,0)+24-SUM($A$27:$A39),COLUMN(E$1)-3)) -> 0 | F39: =IF($C39="",0,OFFSET($C67,MATCH($C39,$C$55:$C$514,0)+24-SUM($A$27:$A39),COLUMN(F$1)-3)) -> 0 | G39: =IF($C39="",0,OFFSET($C67,MATCH($C39,$C$55:$C$514,0)+24-SUM($A$27:$A39),COLUMN(G$1)-3)) -> 0 | H39: =IF($C39="",0,OFFSET($C67,MATCH($C39,$C$55:$C$514,0)+24-SUM($A$27:$A39),COLUMN(H$1)-3)) -> 0 | I39: =IF($C39="",0,OFFSET($C67,MATCH($C39,$C$55:$C$514,0)+24-SUM($A$27:$A39),COLUMN(I$1)-3)) -> 0 | J39: =IF($C39="",0,OFFSET($C67,MATCH($C39,$C$55:$C$514,0)+24-SUM($A$27:$A39),COLUMN(J$1)-3)) -> 0 | K39: =IF($C39="",0,OFFSET($C67,MATCH($C39,$C$55:$C$514,0)+24-SUM($A$27:$A39),COLUMN(K$1)-3)) -> 0 | L39: =IF($C39="",0,OFFSET($C67,MATCH($C39,$C$55:$C$514,0)+24-SUM($A$27:$A39),COLUMN(L$1)-3)) -> 0
A40: 0 | D40: =IF($C40="",0,OFFSET($C68,MATCH($C40,$C$55:$C$514,0)+24-SUM($A$27:$A40),COLUMN(D$1)-3)) -> 0 | E40: =IF($C40="",0,OFFSET($C68,MATCH($C40,$C$55:$C$514,0)+24-SUM($A$27:$A40),COLUMN(E$1)-3)) -> 0 | F40: =IF($C40="",0,OFFSET($C68,MATCH($C40,$C$55:$C$514,0)+24-SUM($A$27:$A40),COLUMN(F$1)-3)) -> 0 | G40: =IF($C40="",0,OFFSET($C68,MATCH($C40,$C$55:$C$514,0)+24-SUM($A$27:$A40),COLUMN(G$1)-3)) -> 0 | H40: =IF($C40="",0,OFFSET($C68,MATCH($C40,$C$55:$C$514,0)+24-SUM($A$27:$A40),COLUMN(H$1)-3)) -> 0 | I40: =IF($C40="",0,OFFSET($C68,MATCH($C40,$C$55:$C$514,0)+24-SUM($A$27:$A40),COLUMN(I$1)-3)) -> 0 | J40: =IF($C40="",0,OFFSET($C68,MATCH($C40,$C$55:$C$514,0)+24-SUM($A$27:$A40),COLUMN(J$1)-3)) -> 0 | K40: =IF($C40="",0,OFFSET($C68,MATCH($C40,$C$55:$C$514,0)+24-SUM($A$27:$A40),COLUMN(K$1)-3)) -> 0 | L40: =IF($C40="",0,OFFSET($C68,MATCH($C40,$C$55:$C$514,0)+24-SUM($A$27:$A40),COLUMN(L$1)-3)) -> 0
A41: 0 | D41: =IF($C41="",0,OFFSET($C69,MATCH($C41,$C$55:$C$514,0)+24-SUM($A$27:$A41),COLUMN(D$1)-3)) -> 0 | E41: =IF($C41="",0,OFFSET($C69,MATCH($C41,$C$55:$C$514,0)+24-SUM($A$27:$A41),COLUMN(E$1)-3)) -> 0 | F41: =IF($C41="",0,OFFSET($C69,MATCH($C41,$C$55:$C$514,0)+24-SUM($A$27:$A41),COLUMN(F$1)-3)) -> 0 | G41: =IF($C41="",0,OFFSET($C69,MATCH($C41,$C$55:$C$514,0)+24-SUM($A$27:$A41),COLUMN(G$1)-3)) -> 0 | H41: =IF($C41="",0,OFFSET($C69,MATCH($C41,$C$55:$C$514,0)+24-SUM($A$27:$A41),COLUMN(H$1)-3)) -> 0 | I41: =IF($C41="",0,OFFSET($C69,MATCH($C41,$C$55:$C$514,0)+24-SUM($A$27:$A41),COLUMN(I$1)-3)) -> 0 | J41: =IF($C41="",0,OFFSET($C69,MATCH($C41,$C$55:$C$514,0)+24-SUM($A$27:$A41),COLUMN(J$1)-3)) -> 0 | K41: =IF($C41="",0,OFFSET($C69,MATCH($C41,$C$55:$C$514,0)+24-SUM($A$27:$A41),COLUMN(K$1)-3)) -> 0 | L41: =IF($C41="",0,OFFSET($C69,MATCH($C41,$C$55:$C$514,0)+24-SUM($A$27:$A41),COLUMN(L$1)-3)) -> 0
A42: 0 | D42: =IF($C42="",0,OFFSET($C70,MATCH($C42,$C$55:$C$514,0)+24-SUM($A$27:$A42),COLUMN(D$1)-3)) -> 0 | E42: =IF($C42="",0,OFFSET($C70,MATCH($C42,$C$55:$C$514,0)+24-SUM($A$27:$A42),COLUMN(E$1)-3)) -> 0 | F42: =IF($C42="",0,OFFSET($C70,MATCH($C42,$C$55:$C$514,0)+24-SUM($A$27:$A42),COLUMN(F$1)-3)) -> 0 | G42: =IF($C42="",0,OFFSET($C70,MATCH($C42,$C$55:$C$514,0)+24-SUM($A$27:$A42),COLUMN(G$1)-3)) -> 0 | H42: =IF($C42="",0,OFFSET($C70,MATCH($C42,$C$55:$C$514,0)+24-SUM($A$27:$A42),COLUMN(H$1)-3)) -> 0 | I42: =IF($C42="",0,OFFSET($C70,MATCH($C42,$C$55:$C$514,0)+24-SUM($A$27:$A42),COLUMN(I$1)-3)) -> 0 | J42: =IF($C42="",0,OFFSET($C70,MATCH($C42,$C$55:$C$514,0)+24-SUM($A$27:$A42),COLUMN(J$1)-3)) -> 0 | K42: =IF($C42="",0,OFFSET($C70,MATCH($C42,$C$55:$C$514,0)+24-SUM($A$27:$A42),COLUMN(K$1)-3)) -> 0 | L42: =IF($C42="",0,OFFSET($C70,MATCH($C42,$C$55:$C$514,0)+24-SUM($A$27:$A42),COLUMN(L$1)-3)) -> 0
A43: 1 | C43: Total | D43: =SUM(D23:D42) -> 515 | E43: =SUM(E23:E42) -> 40 | F43: =SUM(F23:F42) -> 484.7205805 | G43: =IFERROR(I43/F43,0) -> 600.7522926 | H43: =IFERROR(SUM(H27:H42)/COUNTIF(H27:H42,">0"),0) -> 0 | I43: =SUM(I23:I42) -> 291197 | J43: =SUM(J23:J42) -> 484.7205805 | K43: =IFERROR(#REF!/#REF!,0) -> 0 | L43: =IFERROR(SUM(L27:L42)/COUNTIF(L27:L42,">0"),0) -> 0
A44: 1 | C44: Salary Bands
A45: 1 | C45: 1 - 6 | D45: =SUMIFS(D$55:D$514,$C$55:$C$514,">=1",$C$55:$C$514,"<=6") -> 112 | E45: =SUMIFS(E$55:E$514,$C$55:$C$514,">=1",$C$55:$C$514,"<=6") -> 1 | F45: =SUMIFS(F$55:F$514,$C$55:$C$514,">=1",$C$55:$C$514,"<=6") -> 89.28158401 | G45: =IFERROR(I45/F45,0) -> 296.8137303 | H45: =IFERROR(SUMIFS(H$55:H$514,$B$55:$B$514,">=1",$C$55:$C$514,"<>Total",$C$55:$C$514,">=1",$C$55:$C$514,"<=6")/COUNTIFS($B$55:$B$514,">=1",$C$55:$C$514,">=1",$C$55:$C$514,"<=6",#REF!,">0"),0) -> 0 | I45: =SUMIFS(I$55:I$514,$C$55:$C$514,">=1",$C$55:$C$514,"<=6") -> 26500 | J45: =SUMIFS(J$55:J$514,$C$55:$C$514,">=1",$C$55:$C$514,"<=6") -> 89.28158401 | K45: =IFERROR(#REF!/#REF!,0) -> 0 | L45: =IFERROR(SUMIFS(L$55:L$514,$B$55:$B$514,">=1",$C$55:$C$514,"<>Total",$C$55:$C$514,">=1",$C$55:$C$514,"<=6")/COUNTIFS($B$55:$B$514,">=1",$C$55:$C$514,">=1",$C$55:$C$514,"<=6",#REF!,">0"),0) -> 0
A46: 1 | C46: 7 - 10 | D46: =SUMIFS(D$55:D$514,$C$55:$C$514,">=7",$C$55:$C$514,"<=10") -> 226 | E46: =SUMIFS(E$55:E$514,$C$55:$C$514,">=7",$C$55:$C$514,"<=10") -> 5 | F46: =SUMIFS(F$55:F$514,$C$55:$C$514,">=7",$C$55:$C$514,"<=10") -> 206.4389965 | G46: 575.5259521 | H46: =IFERROR(SUMIFS(H$55:H$514,$B$55:$B$514,">=1",$C$55:$C$514,"<>Total",$C$55:$C$514,">=7",$C$55:$C$514,"<=10")/COUNTIFS($B$55:$B$514,">=1",$C$55:$C$514,">=7",$C$55:$C$514,"<=10",#REF!,">0"),0) -> 0 | I46: =SUMIFS(I$55:I$514,$C$55:$C$514,">=7",$C$55:$C$514,"<=10") -> 118811 | J46: =SUMIFS(J$55:J$514,$C$55:$C$514,">=7",$C$55:$C$514,"<=10") -> 206.4389965 | K46: =IFERROR(#REF!/#REF!,0) -> 0 | L46: =IFERROR(SUMIFS(L$55:L$514,$B$55:$B$514,">=1",$C$55:$C$514,"<>Total",$C$55:$C$514,">=7",$C$55:$C$514,"<=10")/COUNTIFS($B$55:$B$514,">=1",$C$55:$C$514,">=7",$C$55:$C$514,"<=10",#REF!,">0"),0) -> 0
A47: 1 | C47: 11 - 12 | D47: =SUMIFS(D$55:D$514,$C$55:$C$514,">=11",$C$55:$C$514,"<=12") -> 86 | E47: =SUMIFS(E$55:E$514,$C$55:$C$514,">=11",$C$55:$C$514,"<=12") -> 1 | F47: =SUMIFS(F$55:F$514,$C$55:$C$514,">=11",$C$55:$C$514,"<=12") -> 79 | G47: 883.8101266 | H47: =IFERROR(SUMIFS(H$55:H$514,$B$55:$B$514,">=1",$C$55:$C$514,"<>Total",$C$55:$C$514,">=11",$C$55:$C$514,"<=12")/COUNTIFS($B$55:$B$514,">=1",$C$55:$C$514,">=11",$C$55:$C$514,"<=12",#REF!,">0"),0) -> 0 | I47: =SUMIFS(I$55:I$514,$C$55:$C$514,">=11",$C$55:$C$514,"<=12") -> 69821 | J47: =SUMIFS(J$55:J$514,$C$55:$C$514,">=11",$C$55:$C$514,"<=12") -> 79 | K47: =IFERROR(#REF!/#REF!,0) -> 0 | L47: =IFERROR(SUMIFS(L$55:L$514,$B$55:$B$514,">=1",$C$55:$C$514,"<>Total",$C$55:$C$514,">=11",$C$55:$C$514,"<=12")/COUNTIFS($B$55:$B$514,">=1",$C$55:$C$514,">=11",$C$55:$C$514,"<=12",#REF!,">0"),0) -> 0
A48: 1 | C48: 13 - 16 | D48: =SUMIFS(D$55:D$514,$C$55:$C$514,">=13",$C$55:$C$514,"<=16") -> 58 | E48: =SUMIFS(E$55:E$514,$C$55:$C$514,">=13",$C$55:$C$514,"<=16") -> 0 | F48: =SUMIFS(F$55:F$514,$C$55:$C$514,">=13",$C$55:$C$514,"<=16") -> 56 | G48: 1255.285714 | H48: =IFERROR(SUMIFS(H$55:H$514,$B$55:$B$514,">=1",$C$55:$C$514,"<>Total",$C$55:$C$514,">=13",$C$55:$C$514,"<=16")/COUNTIFS($B$55:$B$514,">=1",$C$55:$C$514,">=13",$C$55:$C$514,"<=16",#REF!,">0"),0) -> 0 | I48: =SUMIFS(I$55:I$514,$C$55:$C$514,">=13",$C$55:$C$514,"<=16") -> 70296 | J48: =SUMIFS(J$55:J$514,$C$55:$C$514,">=13",$C$55:$C$514,"<=16") -> 56 | K48: =IFERROR(#REF!/#REF!,0) -> 0 | L48: =IFERROR(SUMIFS(L$55:L$514,$B$55:$B$514,">=1",$C$55:$C$514,"<>Total",$C$55:$C$514,">=13",$C$55:$C$514,"<=16")/COUNTIFS($B$55:$B$514,">=1",$C$55:$C$514,">=13",$C$55:$C$514,"<=16",#REF!,">0"),0) -> 0
A49: 1 | C49: Other | D49: =D43-SUM(D45:D48) -> 33 | E49: =E43-SUM(E45:E48) -> 33 | F49: =F43-SUM(F45:F48) -> 54 | G49: 106.8333333 | H49: =IFERROR((SUMIFS(H$55:H$514,$B$55:$B$514,">=1",$C$55:$C$514,"<>Total")-SUMIFS(H$55:H$514,$B$55:$B$514,">=1",$C$55:$C$514,"<=16"))/(COUNTIFS($B$55:$B$514,">=1",$C$55:$C$514,"<>Total",#REF!,">0")-COUNTIFS($B$55:$B$514,">=1",$C$55:$C$514,"<=16",#REF!,">0"=(SUMIFS(H$55:H$514,$B$55:$B$514,">=1",$C$55:$C$514,"<>Total")-SUMIFS(H$55:H$514,$B$55:$B$514,">=1",$C$55:$C$514,"<=16"))/(COUNTIFS($B$55:$B$514,">=1",$C$55:$C$514,"<>Total",#REF!,">0")-COUNTIFS($B$55:$B$514,">=1",$C$55:$C$514,"<=16",#REF!,">0")))),0) -> 0 | I49: =I43-SUM(I45:I48) -> 5769 | J49: =J43-SUM(J45:J48) -> 54 | K49: =IFERROR(#REF!/#REF!,0) -> 0 | L49: =IFERROR((SUMIFS(L$55:L$514,$B$55:$B$514,">=1",$C$55:$C$514,"<>Total")-SUMIFS(L$55:L$514,$B$55:$B$514,">=1",$C$55:$C$514,"<=16"))/(COUNTIFS($B$55:$B$514,">=1",$C$55:$C$514,"<>Total",#REF!,">0")-COUNTIFS($B$55:$B$514,">=1",$C$55:$C$514,"<=16",#REF!,">0"=(SUMIFS(L$55:L$514,$B$55:$B$514,">=1",$C$55:$C$514,"<>Total")-SUMIFS(L$55:L$514,$B$55:$B$514,">=1",$C$55:$C$514,"<=16"))/(COUNTIFS($B$55:$B$514,">=1",$C$55:$C$514,"<>Total",#REF!,">0")-COUNTIFS($B$55:$B$514,">=1",$C$55:$C$514,"<=16",#REF!,">0")))),0) -> 0
A50: 1 | C50: Total | D50: =SUM(D45:D49) -> 515 | E50: =SUM(E45:E49) -> 40 | F50: =SUM(F45:F49) -> 484.7205805 | G50: 600.7522926 | H50: =IFERROR(SUMIF($C$55:$C$514,"Total",H$55:H$514)/COUNTIF(H27:H42,">0"),0) -> 0 | I50: =SUM(I45:I49) -> 291197 | J50: =SUM(J45:J49) -> 484.7205805 | K50: =IFERROR(#REF!/#REF!,0) -> 0 | L50: =IFERROR(SUMIF($C$55:$C$514,"Total",L$55:L$514)/COUNTIF(L27:L42,">0"),0) -> 0
A51: 1 | C51: Checks | D51: =D43-D50 -> 0 | E51: 0 | F51: 0 | G51: 0 | H51: 0 | I51: 0 | J51: 0 | K51: 0 | L51: 0
A52: 1
A53: 1 | C53: Department Programme Details
A54: 1
A55: =$A$27 -> 1 | C55: =$C$27 -> Administration
A56: =A$55 -> 1 | D56: Establishment Structure | F56: Previous Financial Year | J56: Medium-term expenditure estimates
A57: 1 | D57: As at 31 March 2023 | F57: =LEFT($D$3,4)-1 & "/" & RIGHT($D$3,2)-1 -> 2022/23
A58: 1 | B58: ProgNo. | C58: Salary level | D58: Total number of funded posts | E58: of which: number of funded posts additional to the establishment | F58: FTE Headcount | G58: Unit Costs | H58: of which: Once-off Payments per person | I58: Total Annual Cost | J58: Initial Headcount | K58: Unit Costs | L58: of which: Once-off Payments per person
A59: 1 | B59: 1 | C59: 1 | D59: 0 | E59: 0 | F59: 0 | G59: =IFERROR(IF(I59=0,O59,I59/F59),0) -> 99.95105925 | H59: 15 | I59: 0 | J59: 0 | K59: -15.52907117 | O59: 99.95105925
A60: 1 | B60: 1 | C60: 2 | D60: 2 | E60: 0 | F60: 2 | G60: =IFERROR(IF(I60=0,O60,I60/F60),0) -> 154.5 | H60: =1220/1000*12 -> 14.64 | I60: 309 | J60: 2 | K60: 142.2151732 | O60: 179.5147433
A61: 1 | B61: 1 | C61: 3 | D61: 12 | E61: 0 | F61: 11 | G61: 240.8181818 | H61: =1220/1000*12 -> 14.64 | I61: 2649 | J61: 11 | K61: 232.0940857 | O61: 216.6722944
A62: 1 | B62: 1 | C62: 4 | D62: 3 | E62: 0 | F62: 3 | G62: 251.3333333 | H62: =1220/1000*12 -> 14.64 | I62: 754 | J62: 3 | K62: 243.0228555 | O62: 236.0392102
A63: 1 | B63: 1 | C63: 5 | D63: 8 | E63: 0 | F63: 7 | G63: 290.4285714 | H63: =1220/1000*12 -> 14.64 | I63: 2033 | J63: 7 | K63: 281.9122361 | O63: 290.5081548
A64: 1 | B64: 1 | C64: 6 | D64: 33 | E64: 1 | F64: 25 | G64: 337.48 | H64: =1352/1000*12 -> 16.224 | I64: 8437 | J64: 25 | K64: 328.174318 | O64: 341.7085708
A65: 1 | B65: 1 | C65: 7 | D65: 27 | E65: 1 | F65: 30.43899649 | G65: 422.2543934 | H65: =1352/1000*12 -> 16.224 | I65: 12853 | J65: 30.43899649 | K65: 415.0368489 | O65: 455.5004418
A66: 1 | B66: 1 | C66: 8 | D66: 8 | E66: 0 | F66: 8 | G66: 515.875 | H66: =1450/1000*12 -> 17.4 | I66: 4127 | J66: 8 | K66: 508.8564507 | O66: 520.4674487
A67: 1 | B67: 1 | C67: 9 | D67: 17 | E67: 0 | F67: 14 | G67: 599.0714286 | H67: =1450/1000*12 -> 17.4 | I67: 8387 | J67: 14 | K67: 593.7476692 | O67: 586.4171069
A68: 1 | B68: 1 | C68: 10 | D68: 2 | E68: 0 | F68: 3 | G68: 746.6666667 | H68: =1640/1000*12 -> 19.68 | I68: 2240 | J68: 3 | K68: 741.2657141 | O68: 699.4852566
A69: 1 | B69: 1 | C69: 11 | D69: 20 | E69: 1 | F69: 16 | G69: 870.1875 | H69: =1640/1000*12 -> 19.68 | I69: 13923 | J69: 16 | K69: 864.1380391 | O69: 799.6834333
A70: 1 | B70: 1 | C70: 12 | D70: 3 | E70: 0 | F70: 3 | G70: 1034 | H70: =1695/1000*12 -> 20.34 | I70: 3102 | J70: 3 | K70: 1029.421707 | O70: 1014.272904
A71: 1 | B71: 1 | C71: 13 | D71: 10 | E71: 0 | F71: 10 | G71: 1251.2 | H71: =1695/1000*12 -> 20.34 | I71: 12512 | J71: 10 | K71: 1249.775232 | O71: 1152.258047
A72: 1 | B72: 1 | C72: 14 | D72: 5 | E72: 0 | F72: 5 | G72: 1480.4 | H72: 20.34 | I72: 7402 | J72: 5 | K72: 1483.323825 | O72: 1409.161406
A73: 1 | B73: 1 | C73: 15 | D73: 1 | E73: 0 | F73: 1 | G73: 1275 | H73: 20.34 | I73: 1275 | J73: 1 | K73: 1274.211548 | O73: 1703.285814
A74: 1 | B74: 1 | C74: 16 | D74: 1 | E74: 0 | F74: 1 | G74: -1 | H74: =1818/1000*12 -> 21.816 | I74: -1 | J74: 1 | K74: -23.13974705 | O74: 2168.595147
A75: 1 | B75: 1 | C75: Deputy Minister | D75: 0 | E75: 0 | F75: 0 | G75: 2007.461925 | I75: 0 | J75: 0 | K75: 0 | O75: 2007.461925
A76: 1 | B76: 1 | C76: Minister | D76: 0 | E76: 0 | F76: 0 | G76: 2437.657495 | I76: 0 | J76: 0 | K76: 0 | O76: 2437.657495
A77: 1 | B77: 1 | C77: Other | D77: 0 | E77: 0 | F77: 0 | G77: 259.6159983 | I77: 0 | J77: 0 | K77: 0 | O77: 259.6159983
A78: 1 | B78: 1 | C78: Other | D78: 10 | E78: 10 | F78: 7 | G78: 91.57142857 | I78: 641 | J78: 7 | K78: 95.07943957 | O78: 259.6159983
A79: 1 | B79: 1 | C79: Total | D79: =SUM(D59:D78) -> 162 | E79: 13 | F79: 146.4389965 | G79: =IFERROR(I79/F79,0) -> 550.693476 | H79: =IFERROR(SUM(H59:H78)/K79,0) -> 0 | I79: =SUM(I59:I78) -> 80643 | J79: =SUM(J59:J78) -> 146.4389965 | K79: =IFERROR(#REF!/#REF!,0) -> 0 | L79: =IFERROR(SUM(L59:L78)/#REF!,0) -> 0
A80: 1
A81: 1
A82: 1
A83: 1
A84: =$A$28 -> 1 | C84: =$C$28 -> Content Processing and Dissemination
A85: =A$84 -> 1 | D85: Establishment Structure | F85: Previous Financial Year | J85: Medium-term expenditure estimates
A86: 1 | D86: As at 31 March 2023 | F86: =LEFT($D$3,4)-1 & "/" & RIGHT($D$3,2)-1 -> 2022/23
A87: 1 | C87: Salary level | D87: Total number of funded posts | E87: of which: number of funded posts additional to the establishment | F87: FTE Headcount | G87: Unit Costs | H87: of which: Once-off Payments per person | I87: Total Annual Cost | J87: Initial Headcount | K87: Unit Costs | L87: of which: Once-off Payments per person
A88: 1 | B88: 2 | C88: 1 | D88: 0 | E88: 0 | F88: 0 | G88: =IFERROR(IF(I88=0,O88,I88/F88),0) -> 99.95105925 | H88: =1220/1000*12 -> 14.64 | I88: 0 | J88: 0 | K88: -15.52907117 | O88: 99.95105925
A89: 1 | B89: 2 | C89: 2 | D89: 0 | E89: 0 | F89: 0 | G89: =IFERROR(IF(I89=0,O89,I89/F89),0) -> 179.5147433 | H89: =1220/1000*12 -> 14.64 | I89: 0 | J89: 0 | K89: -15.61210359 | O89: 179.5147433
A90: 1 | B90: 2 | C90: 3 | D90: 0 | E90: 0 | F90: 0 | G90: 216.6722944 | H90: =1220/1000*12 -> 14.64 | I90: 0 | J90: 0 | K90: -15.78789497 | O90: 216.6722944
A91: 1 | B91: 2 | C91: 4 | D91: 0 | E91: 0 | F91: 0 | G91: 236.0392102 | H91: =1220/1000*12 -> 14.64 | I91: 0 | J91: 0 | K91: -15.78742725 | O91: 236.0392102
A92: 1 | B92: 2 | C92: 5 | D92: 5 | E92: 0 | F92: 5 | G92: 198.4 | H92: =1220/1000*12 -> 14.64 | I92: 992 | J92: 5 | K92: 187.9807963 | O92: 290.5081548
A93: 1 | B93: 2 | C93: 6 | D93: 17 | E93: 0 | F93: 6.550130719 | G93: 382.5877845 | H93: =1352/1000*12 -> 16.224 | I93: 2506 | J93: 6.550130719 | K93: 374.2807792 | O93: 341.7085708
A94: 1 | B94: 2 | C94: 7 | D94: 8 | E94: 0 | F94: 7 | G94: 458.2857143 | H94: =1352/1000*12 -> 16.224 | I94: 3208 | J94: 7 | K94: 451.8093963 | O94: 455.5004418
A95: 1 | B95: 2 | C95: 8 | D95: 18 | E95: 0 | F95: 16 | G95: 558.875 | H95: =1450/1000*12 -> 17.4 | I95: 8942 | J95: 16 | K95: 552.7118597 | O95: 520.4674487
A96: 1 | B96: 2 | C96: 9 | D96: 45 | E96: 0 | F96: 39 | G96: 658 | H96: =1450/1000*12 -> 17.4 | I96: 25662 | J96: 39 | K96: 653.8762248 | O96: 586.4171069
A97: 1 | B97: 2 | C97: 10 | D97: 3 | E97: 0 | F97: 3 | G97: 992.6666667 | H97: =1640/1000*12 -> 19.68 | I97: 2978 | J97: 3 | K97: 991.8943802 | O97: 699.4852566
A98: 1 | B98: 2 | C98: 11 | D98: 32 | E98: 0 | F98: 30 | G98: 948.7666667 | H98: =1640/1000*12 -> 19.68 | I98: 28463 | J98: 30 | K98: 943.984319 | O98: 799.6834333
A99: 1 | B99: 2 | C99: 12 | D99: 3 | E99: 0 | F99: 3 | G99: 910 | H99: =1695/1000*12 -> 20.34 | I99: 2730 | J99: 3 | K99: 903.4414229 | O99: 1014.272904
A100: 1 | B100: 2 | C100: 13 | D100: 13 | E100: 0 | F100: 12 | G100: 1212.833333 | H100: =1695/1000*12 -> 20.34 | I100: 14554 | J100: 12 | K100: 1210.869186 | O100: 1152.258047
A101: 1 | B101: 2 | C101: 14 | D101: 3 | E101: 0 | F101: 3 | G101: 1438.333333 | H101: 20.34 | I101: 4315 | J101: 3 | K101: 1440.464575 | O101: 1409.161406
A102: 1 | B102: 2 | C102: 15 | D102: 3 | E102: 0 | F102: 3 | G102: 1798.666667 | H102: 20.34 | I102: 5396 | J102: 3 | K102: 1806.34564 | O102: 1703.285814
A103: 1 | B103: 2 | C103: 16 | D103: 0 | E103: 0 | F103: 0 | G103: 2168.595147 | H103: =1818/1000*12 -> 21.816 | I103: 0 | J103: 0 | K103: 0 | O103: 2168.595147
A104: 1 | B104: 2 | C104: Other | D104: 0 | E104: 0 | F104: 0 | G104: 2007.461925 | I104: 0 | J104: 0 | K104: 0 | O104: 2007.461925
A105: 1 | B105: 2 | C105: Other | D105: 13 | E105: 13 | F105: 27 | G105: 78.7037037 | I105: 2125 | J105: 27 | K105: 81.64500681 | O105: 2437.657495
A106: 1 | B106: 2 | C106: Other | D106: 0 | E106: 0 | F106: 0 | G106: 259.6159983 | I106: 0 | J106: 0 | K106: 0 | O106: 259.6159983
A107: 1 | B107: 2 | C107: Other | D107: 0 | E107: 0 | F107: 0 | G107: 259.6159983 | I107: 0 | J107: 0 | K107: 0 | O107: 259.6159983
A108: 1 | B108: 2 | C108: Total | D108: =SUM(D88:D107) -> 163 | E108: 13 | F108: 154.5501307 | G108: =IFERROR(I108/F108,0) -> 659.14535 | H108: =IFERROR(SUM(H88:H107)/K108,0) -> 0 | I108: =SUM(I88:I107) -> 101871 | J108: =SUM(J88:J107) -> 154.5501307 | K108: =IFERROR(#REF!/#REF!,0) -> 0 | L108: =IFERROR(SUM(L88:L107)/#REF!,0) -> 0
A109: 1
A110: 1
A111: 1
A112: 1
A113: =$A$29 -> 1 | C113: =$C$29 -> Intergovernmental Coordination and Stakeholder Management
A114: =A$113 -> 1 | D114: Establishment Structure | F114: Previous Financial Year | J114: Medium-term expenditure estimates
A115: 1 | D115: As at 31 March 2023 | F115: =LEFT($D$3,4)-1 & "/" & RIGHT($D$3,2)-1 -> 2022/23
A116: 1 | C116: Salary level | D116: Total number of funded posts | E116: of which: number of funded posts additional to the establishment | F116: FTE Headcount | G116: Unit Costs | H116: of which: Once-off Payments per person | I116: Total Annual Cost | J116: Initial Headcount | K116: Unit Costs | L116: of which: Once-off Payments per person
A117: 1 | B117: 3 | C117: 1 | D117: 0 | E117: 0 | F117: 0 | G117: =IFERROR(IF(I117=0,O117,I117/F117),0) -> 99.95105925 | H117: =1220/1000*12 -> 14.64 | I117: 0 | J117: 0 | K117: -15.52907117 | O117: 99.95105925
A118: 1 | B118: 3 | C118: 2 | D118: 0 | E118: 0 | F118: 0 | G118: =IFERROR(IF(I118=0,O118,I118/F118),0) -> 179.5147433 | H118: =1220/1000*12 -> 14.64 | I118: 0 | J118: 0 | K118: -15.61210359 | O118: 179.5147433
A119: 1 | B119: 3 | C119: 3 | D119: 8 | E119: 0 | F119: 6 | G119: 229.6666667 | H119: =1220/1000*12 -> 14.64 | I119: 1378 | J119: 6 | K119: 220.6530868 | O119: 216.6722944
A120: 1 | B120: 3 | C120: 4 | D120: 0 | E120: 0 | F120: 0 | G120: 236.0392102 | H120: =1220/1000*12 -> 14.64 | I120: 0 | J120: 0 | K120: -15.78742725 | O120: 236.0392102
A121: 1 | B121: 3 | C121: 5 | D121: 9 | E121: 0 | F121: 9 | G121: 234.8888889 | H121: =1220/1000*12 -> 14.64 | I121: 2114 | J121: 9 | K121: 225.1424501 | O121: 290.5081548
A122: 1 | B122: 3 | C122: 6 | D122: 15 | E122: 0 | F122: 14.73145329 | G122: 361.6751108 | H122: =1352/1000*12 -> 16.224 | I122: 5328 | J122: 14.73145329 | K122: 352.9387433 | O122: 341.7085708
A123: 1 | B123: 3 | C123: 7 | D123: 19 | E123: 0 | F123: 17 | G123: 426.2352941 | H123: =1352/1000*12 -> 16.224 | I123: 7246 | J123: 17 | K123: 419.1239436 | O123: 455.5004418
A124: 1 | B124: 3 | C124: 8 | D124: 9 | E124: 3 | F124: 6 | G124: 451 | H124: =1450/1000*12 -> 17.4 | I124: 2706 | J124: 6 | K124: 442.538515 | O124: 520.4674487
A125: 1 | B125: 3 | C125: 9 | D125: 70 | E125: 1 | F125: 63 | G125: 642.2539683 | H125: =1450/1000*12 -> 17.4 | I125: 40462 | J125: 63 | K125: 637.7923398 | O125: 586.4171069
A126: 1 | B126: 3 | C126: 10 | D126: 0 | E126: 0 | F126: 0 | G126: 699.4852566 | H126: =1640/1000*12 -> 19.68 | I126: 0 | J126: 0 | K126: 0 | O126: 699.4852566
A127: 1 | B127: 3 | C127: 11 | D127: 26 | E127: 0 | F127: 25 | G127: 864.2 | H127: =1640/1000*12 -> 19.68 | I127: 21605 | J127: 25 | K127: 858.0567965 | O127: 799.6834333
A128: 1 | B128: 3 | C128: 12 | D128: 2 | E128: 0 | F128: 2 | G128: -1 | H128: =1695/1000*12 -> 20.34 | I128: -2 | J128: 2 | K128: -21.59358696 | O128: 1014.272904
A129: 1 | B129: 3 | C129: 13 | D129: 17 | E129: 0 | F129: 17 | G129: 1204.470588 | H129: =1695/1000*12 -> 20.34 | I129: 20476 | J129: 17 | K129: 1202.310018 | O129: 1152.258047
A130: 1 | B130: 3 | C130: 14 | D130: 4 | E130: 0 | F130: 3 | G130: 1081.333333 | H130: 20.34 | I130: 3244 | J130: 3 | K130: 1077.867973 | O130: 1409.161406
A131: 1 | B131: 3 | C131: 15 | D131: 1 | E131: 0 | F131: 1 | G131: 1123 | H131: 20.34 | I131: 1123 | J131: 1 | K131: 1119.669611 | O131: 1703.285814
A132: 1 | B132: 3 | C132: 16 | D132: 0 | E132: 0 | F132: 0 | G132: 2168.595147 | H132: =1818/1000*12 -> 21.816 | I132: 0 | J132: 0 | K132: -23.13974705 | O132: 2168.595147
A133: 1 | B133: 3 | C133: Other | D133: 0 | E133: 0 | F133: 0 | G133: 2007.461925 | I133: 0 | J133: 0 | K133: 0 | O133: 2007.461925
A134: 1 | B134: 3 | C134: Other | D134: 10 | E134: 10 | F134: 20 | G134: 150.15 | I134: 3003 | J134: 20 | K134: 155.7674393 | O134: 2437.657495
A135: 1 | B135: 3 | C135: Other | D135: 0 | E135: 0 | F135: 0 | G135: 259.6159983 | I135: 0 | J135: 0 | K135: 0 | O135: 259.6159983
A136: 1 | B136: 3 | C136: Other | D136: 0 | E136: 0 | F136: 0 | G136: 259.6159983 | I136: 0 | J136: 0 | K136: 0 | O136: 259.6159983
A137: 1 | B137: 3 | C137: Total | D137: =SUM(D117:D136) -> 190 | E137: 14 | F137: 183.7314533 | G137: =IFERROR(I137/F137,0) -> 591.5318148 | H137: =IFERROR(SUM(H117:H136)/K137,0) -> 0 | I137: =SUM(I117:I136) -> 108683 | J137: =SUM(J117:J136) -> 183.7314533 | K137: =IFERROR(#REF!/#REF!,0) -> 0 | L137: =IFERROR(SUM(L117:L136)/#REF!,0) -> 0
A138: 1
A139: 1
A140: 1
A141: 1
A142: =$A$30 -> 0 | C142: =$C$30 -> 
A143: =A$142 -> 0 | D143: Establishment Structure | F143: Previous Financial Year | J143: Medium-term expenditure estimates
A144: 0 | D144: As at 31 March 2023 | F144: =LEFT($D$3,4)-1 & "/" & RIGHT($D$3,2)-1 -> 2022/23
A145: 0 | C145: Salary level | D145: Total number of funded posts | E145: of which: number of funded posts additional to the establishment | F145: FTE Headcount | G145: Unit Costs | H145: of which: Once-off Payments per person | I145: Total Annual Cost | J145: Initial Headcount | K145: Unit Costs | L145: of which: Once-off Payments per person
A146: 0 | B146: 4 | C146: 1 | D146: 0 | E146: 0 | F146: 0 | G146: =IFERROR(IF(I146=0,O146,I146/F146),0) -> 99.95105925 | H146: =1220/1000*12 -> 14.64 | I146: 0 | J146: 0 | K146: 0 | O146: 99.95105925
A147: 0 | B147: 4 | C147: 2 | D147: 0 | E147: 0 | F147: 0 | G147: =IFERROR(IF(I147=0,O147,I147/F147),0) -> 179.5147433 | H147: =1220/1000*12 -> 14.64 | I147: 0 | J147: 0 | K147: 0 | O147: 179.5147433
A148: 0 | B148: 4 | C148: 3 | D148: 0 | E148: 0 | F148: 0 | G148: 216.6722944 | H148: =1220/1000*12 -> 14.64 | I148: 0 | J148: 0 | K148: 0 | O148: 216.6722944
A149: 0 | B149: 4 | C149: 4 | D149: 0 | E149: 0 | F149: 0 | G149: 236.0392102 | H149: =1220/1000*12 -> 14.64 | I149: 0 | J149: 0 | K149: 0 | O149: 236.0392102
A150: 0 | B150: 4 | C150: 5 | D150: 0 | E150: 0 | F150: 0 | G150: 290.5081548 | H150: =1220/1000*12 -> 14.64 | I150: 0 | J150: 0 | K150: 0 | O150: 290.5081548
A151: 0 | B151: 4 | C151: 6 | D151: 0 | E151: 0 | F151: 0 | G151: 341.7085708 | H151: =1352/1000*12 -> 16.224 | I151: 0 | J151: 0 | K151: 0 | O151: 341.7085708
A152: 0 | B152: 4 | C152: 7 | D152: 0 | E152: 0 | F152: 0 | G152: 455.5004418 | H152: =1352/1000*12 -> 16.224 | I152: 0 | J152: 0 | K152: 0 | O152: 455.5004418
A153: 0 | B153: 4 | C153: 8 | D153: 0 | E153: 0 | F153: 0 | G153: 520.4674487 | H153: =1450/1000*12 -> 17.4 | I153: 0 | J153: 0 | K153: 0 | O153: 520.4674487
A154: 0 | B154: 4 | C154: 9 | D154: 0 | E154: 0 | F154: 0 | G154: 586.4171069 | H154: =1450/1000*12 -> 17.4 | I154: 0 | J154: 0 | K154: 0 | O154: 586.4171069
A155: 0 | B155: 4 | C155: 10 | D155: 0 | E155: 0 | F155: 0 | G155: 699.4852566 | H155: =1640/1000*12 -> 19.68 | I155: 0 | J155: 0 | K155: 0 | O155: 699.4852566
A156: 0 | B156: 4 | C156: 11 | D156: 0 | E156: 0 | F156: 0 | G156: 799.6834333 | H156: =1640/1000*12 -> 19.68 | I156: 0 | J156: 0 | K156: 0 | O156: 799.6834333
A157: 0 | B157: 4 | C157: 12 | D157: 0 | E157: 0 | F157: 0 | G157: 1014.272904 | H157: =1695/1000*12 -> 20.34 | I157: 0 | J157: 0 | K157: 0 | O157: 1014.272904
A158: 0 | B158: 4 | C158: 13 | D158: 0 | E158: 0 | F158: 0 | G158: 1152.258047 | H158: =1695/1000*12 -> 20.34 | I158: 0 | J158: 0 | K158: 0 | O158: 1152.258047
A159: 0 | B159: 4 | C159: 14 | D159: 0 | E159: 0 | F159: 0 | G159: 1409.161406 | H159: 20.34 | I159: 0 | J159: 0 | K159: 0 | O159: 1409.161406
A160: 0 | B160: 4 | C160: 15 | D160: 0 | E160: 0 | F160: 0 | G160: 1703.285814 | H160: 20.34 | I160: 0 | J160: 0 | K160: 0 | O160: 1703.285814
A161: 0 | B161: 4 | C161: 16 | D161: 0 | E161: 0 | F161: 0 | G161: 2168.595147 | H161: =1818/1000*12 -> 21.816 | I161: 0 | J161: 0 | K161: 0 | O161: 2168.595147
A162: 0 | B162: 4 | C162: Other | D162: 0 | E162: 0 | F162: 0 | G162: 2007.461925 | I162: 0 | J162: 0 | K162: 0 | O162: 2007.461925
A163: 0 | B163: 4 | C163: Other | D163: 0 | E163: 0 | F163: 0 | G163: 2437.657495 | I163: 0 | J163: 0 | K163: 0 | O163: 2437.657495
A164: 0 | B164: 4 | C164: Other | D164: 0 | E164: 0 | F164: 0 | G164: 259.6159983 | I164: 0 | J164: 0 | K164: 0 | O164: 259.6159983
A165: 0 | B165: 4 | C165: Other | D165: 0 | E165: 0 | F165: 0 | G165: 259.6159983 | I165: 0 | J165: 0 | K165: 0 | O165: 259.6159983
A166: 0 | B166: 4 | C166: Total | D166: =SUM(D146:D165) -> 0 | E166: 0 | F166: 0 | G166: =IFERROR(I166/F166,0) -> 0 | H166: =IFERROR(SUM(H146:H165)/K166,0) -> 0 | I166: =SUM(I146:I165) -> 0 | J166: =SUM(J146:J165) -> 0 | K166: =IFERROR(#REF!/#REF!,0) -> 0 | L166: =IFERROR(SUM(L146:L165)/#REF!,0) -> 0
A167: 0
A168: 0
A169: 0
A170: 0
A171: =$A$31 -> 0 | C171: =$C$31 -> 
A172: =A$171 -> 0 | D172: Establishment Structure | F172: Previous Financial Year | J172: Medium-term expenditure estimates
A173: 0 | D173: As at 31 March 2023 | F173: =LEFT($D$3,4)-1 & "/" & RIGHT($D$3,2)-1 -> 2022/23
A174: 0 | C174: Salary level | D174: Total number of funded posts | E174: of which: number of funded posts additional to the establishment | F174: FTE Headcount | G174: Unit Costs | H174: of which: Once-off Payments per person | I174: Total Annual Cost | J174: Initial Headcount | K174: Unit Costs | L174: of which: Once-off Payments per person
A175: 0 | B175: 5 | C175: 1 | D175: 0 | E175: 0 | F175: 0 | G175: =IFERROR(IF(I175=0,O175,I175/F175),0) -> 99.95105925 | H175: =1220/1000*12 -> 14.64 | I175: 0 | J175: 0 | K175: -15.52907117 | O175: 99.95105925
A176: 0 | B176: 5 | C176: 2 | D176: 0 | E176: 0 | F176: 0 | G176: =IFERROR(IF(I176=0,O176,I176/F176),0) -> 179.5147433 | H176: =1220/1000*12 -> 14.64 | I176: 0 | J176: 0 | K176: -15.61210359 | O176: 179.5147433
A177: 0 | B177: 5 | C177: 3 | D177: 0 | E177: 0 | F177: 0 | G177: 216.6722944 | H177: =1220/1000*12 -> 14.64 | I177: 0 | J177: 0 | K177: -15.78789497 | O177: 216.6722944
A178: 0 | B178: 5 | C178: 4 | D178: 0 | E178: 0 | F178: 0 | G178: 236.0392102 | H178: =1220/1000*12 -> 14.64 | I178: 0 | J178: 0 | K178: -15.78742725 | O178: 236.0392102
A179: 0 | B179: 5 | C179: 5 | D179: 0 | E179: 0 | F179: 0 | G179: 290.5081548 | H179: =1220/1000*12 -> 14.64 | I179: 0 | J179: 0 | K179: -15.69365225 | O179: 290.5081548
A180: 0 | B180: 5 | C180: 6 | D180: 0 | E180: 0 | F180: 0 | G180: 341.7085708 | H180: =1352/1000*12 -> 16.224 | I180: 0 | J180: 0 | K180: -17.37056137 | O180: 341.7085708
A181: 0 | B181: 5 | C181: 7 | D181: 0 | E181: 0 | F181: 0 | G181: 455.5004418 | H181: =1352/1000*12 -> 16.224 | I181: 0 | J181: 0 | K181: -17.39104291 | O181: 455.5004418
A182: 0 | B182: 5 | C182: 8 | D182: 0 | E182: 0 | F182: 0 | G182: 520.4674487 | H182: =1450/1000*12 -> 17.4 | I182: 0 | J182: 0 | K182: -18.61180775 | O182: 520.4674487
A183: 0 | B183: 5 | C183: 9 | D183: 0 | E183: 0 | F183: 0 | G183: 586.4171069 | H183: =1450/1000*12 -> 17.4 | I183: 0 | J183: 0 | K183: -18.61314915 | O183: 586.4171069
A184: 0 | B184: 5 | C184: 10 | D184: 0 | E184: 0 | F184: 0 | G184: 699.4852566 | H184: =1640/1000*12 -> 19.68 | I184: 0 | J184: 0 | K184: -21.02020281 | O184: 699.4852566
A185: 0 | B185: 5 | C185: 11 | D185: 0 | E185: 0 | F185: 0 | G185: 799.6834333 | H185: =1640/1000*12 -> 19.68 | I185: 0 | J185: 0 | K185: -20.91162789 | O185: 799.6834333
A186: 0 | B186: 5 | C186: 12 | D186: 0 | E186: 0 | F186: 0 | G186: 1014.272904 | H186: =1695/1000*12 -> 20.34 | I186: 0 | J186: 0 | K186: -21.59358696 | O186: 1014.272904
A187: 0 | B187: 5 | C187: 13 | D187: 0 | E187: 0 | F187: 0 | G187: 1152.258047 | H187: =1695/1000*12 -> 20.34 | I187: 0 | J187: 0 | K187: -21.58851371 | O187: 1152.258047
A188: 0 | B188: 5 | C188: 14 | D188: 0 | E188: 0 | F188: 0 | G188: 1409.161406 | H188: 20.34 | I188: 0 | J188: 0 | K188: -21.60707485 | O188: 1409.161406
A189: 0 | B189: 5 | C189: 15 | D189: 0 | E189: 0 | F189: 0 | G189: 1703.285814 | H189: 20.34 | I189: 0 | J189: 0 | K189: -21.60400687 | O189: 1703.285814
A190: 0 | B190: 5 | C190: 16 | D190: 0 | E190: 0 | F190: 0 | G190: 2168.595147 | H190: =1818/1000*12 -> 21.816 | I190: 0 | J190: 0 | K190: -23.13974705 | O190: 2168.595147
A191: 0 | B191: 5 | C191: Other | D191: 0 | E191: 0 | F191: 0 | G191: 2007.461925 | I191: 0 | J191: 0 | K191: 0 | O191: 2007.461925
A192: 0 | B192: 5 | C192: Other | D192: 0 | E192: 0 | F192: 0 | G192: 2437.657495 | I192: 0 | J192: 0 | K192: 0 | O192: 2437.657495
A193: 0 | B193: 5 | C193: Other | D193: 0 | E193: 0 | F193: 0 | G193: 259.6159983 | I193: 0 | J193: 0 | K193: 0 | O193: 259.6159983
A194: 0 | B194: 5 | C194: Other | D194: 0 | E194: 0 | F194: 0 | G194: 259.6159983 | I194: 0 | J194: 0 | K194: 0 | O194: 259.6159983
A195: 0 | B195: 5 | C195: Total | D195: =SUM(D175:D194) -> 0 | E195: 0 | F195: 0 | G195: =IFERROR(I195/F195,0) -> 0 | H195: =IFERROR(SUM(H175:H194)/K195,0) -> 0 | I195: =SUM(I175:I194) -> 0 | J195: =SUM(J175:J194) -> 0 | K195: =IFERROR(#REF!/#REF!,0) -> 0 | L195: =IFERROR(SUM(L175:L194)/#REF!,0) -> 0
A196: 0
A197: 0
A198: 0
A199: 0
A200: =$A$32 -> 0 | C200: =$C$32 -> 
... 314 more rows

Sheet 5 (hidden)
A1: Filter | C1: HUMAN RESOURCE BUDGET PLAN | K1: 1
A2: 1
A3: 1 | C3: Financial Year: | D3: 2023/24
A4: 1 | C4: Sphere of Government: | D4: National
A5: 1 | C5: Name of Department: | D5: Vote 05: Home Affairs
A6: -14
A7: -13
A8: -12
A9: -11
A10: -10
A11: -9
A12: -8
A13: -7
A14: -6
A15: -5
A16: -4
A17: -3
A18: -2
A19: -1
A20: 0
A21: 1
A22: 1 | C22: Department Summary Details
A23: 1
A24: 1 | D24: Establishment Structure | F24: Previous Financial Year | J24: Medium-term expenditure estimates
A25: 1 | D25: As at 31 March 2023 | F25: =LEFT($D$3,4)-1 & "/" & RIGHT($D$3,2)-1 -> 2022/23
A26: 1 | C26: Programmes | D26: Total number of funded posts | E26: of which: number of funded posts additional to the establishment | F26: FTE Headcount | G26: Unit Costs | H26: of which: Once-off Payments per person | I26: Total Annual Cost | J26: Initial Headcount | K26: Unit Costs | L26: of which: Once-off Payments per person
A27: 1 | B27: =IF(LEN(C27)>2,ROW()-26,"") -> 1 | C27: DHF: Administration | D27: =IF($C27="",0,OFFSET($C55,MATCH($C27,$C$55:$C$514,0)+24-SUM($A$27:$A27),COLUMN(D$1)-3)) -> 964 | E27: =IF($C27="",0,OFFSET($C55,MATCH($C27,$C$55:$C$514,0)+24-SUM($A$27:$A27),COLUMN(E$1)-3)) -> 33 | F27: =IF($C27="",0,OFFSET($C55,MATCH($C27,$C$55:$C$514,0)+24-SUM($A$27:$A27),COLUMN(F$1)-3)) -> 1101.642866 | G27: =IF($C27="",0,OFFSET($C55,MATCH($C27,$C$55:$C$514,0)+24-SUM($A$27:$A27),COLUMN(G$1)-3)) -> 605.3613385 | H27: =IF($C27="",0,OFFSET($C55,MATCH($C27,$C$55:$C$514,0)+24-SUM($A$27:$A27),COLUMN(H$1)-3)) -> 0 | I27: =IF($C27="",0,OFFSET($C55,MATCH($C27,$C$55:$C$514,0)+24-SUM($A$27:$A27),COLUMN(I$1)-3)) -> 666892 | J27: =IF($C27="",0,OFFSET($C55,MATCH($C27,$C$55:$C$514,0)+24-SUM($A$27:$A27),COLUMN(J$1)-3)) -> 1101.642866 | K27: =IF($C27="",0,OFFSET($C55,MATCH($C27,$C$55:$C$514,0)+24-SUM($A$27:$A27),COLUMN(K$1)-3)) -> 0 | L27: =IF($C27="",0,OFFSET($C55,MATCH($C27,$C$55:$C$514,0)+24-SUM($A$27:$A27),COLUMN(L$1)-3)) -> 0
A28: =IF(LEN(C28)>1,1,0) -> 1 | B28: 2 | C28: DHF: Citizen Affairs | D28: =IF($C28="",0,OFFSET($C56,MATCH($C28,$C$55:$C$514,0)+24-SUM($A$27:$A28),COLUMN(D$1)-3)) -> 5574 | E28: =IF($C28="",0,OFFSET($C56,MATCH($C28,$C$55:$C$514,0)+24-SUM($A$27:$A28),COLUMN(E$1)-3)) -> 0 | F28: =IF($C28="",0,OFFSET($C56,MATCH($C28,$C$55:$C$514,0)+24-SUM($A$27:$A28),COLUMN(F$1)-3)) -> 5932.609886 | G28: =IF($C28="",0,OFFSET($C56,MATCH($C28,$C$55:$C$514,0)+24-SUM($A$27:$A28),COLUMN(G$1)-3)) -> 442.114019 | H28: =IF($C28="",0,OFFSET($C56,MATCH($C28,$C$55:$C$514,0)+24-SUM($A$27:$A28),COLUMN(H$1)-3)) -> 0 | I28: =IF($C28="",0,OFFSET($C56,MATCH($C28,$C$55:$C$514,0)+24-SUM($A$27:$A28),COLUMN(I$1)-3)) -> 2622890 | J28: =IF($C28="",0,OFFSET($C56,MATCH($C28,$C$55:$C$514,0)+24-SUM($A$27:$A28),COLUMN(J$1)-3)) -> 5932.609886 | K28: =IF($C28="",0,OFFSET($C56,MATCH($C28,$C$55:$C$514,0)+24-SUM($A$27:$A28),COLUMN(K$1)-3)) -> 0 | L28: =IF($C28="",0,OFFSET($C56,MATCH($C28,$C$55:$C$514,0)+24-SUM($A$27:$A28),COLUMN(L$1)-3)) -> 0
A29: 1 | B29: 3 | C29: DHF: Immigration Affairs | D29: =IF($C29="",0,OFFSET($C57,MATCH($C29,$C$55:$C$514,0)+24-SUM($A$27:$A29),COLUMN(D$1)-3)) -> 730 | E29: =IF($C29="",0,OFFSET($C57,MATCH($C29,$C$55:$C$514,0)+24-SUM($A$27:$A29),COLUMN(E$1)-3)) -> 0 | F29: =IF($C29="",0,OFFSET($C57,MATCH($C29,$C$55:$C$514,0)+24-SUM($A$27:$A29),COLUMN(F$1)-3)) -> 1924.509395 | G29: =IF($C29="",0,OFFSET($C57,MATCH($C29,$C$55:$C$514,0)+24-SUM($A$27:$A29),COLUMN(G$1)-3)) -> 466.2585709 | H29: =IF($C29="",0,OFFSET($C57,MATCH($C29,$C$55:$C$514,0)+24-SUM($A$27:$A29),COLUMN(H$1)-3)) -> 0 | I29: =IF($C29="",0,OFFSET($C57,MATCH($C29,$C$55:$C$514,0)+24-SUM($A$27:$A29),COLUMN(I$1)-3)) -> 897319 | J29: =IF($C29="",0,OFFSET($C57,MATCH($C29,$C$55:$C$514,0)+24-SUM($A$27:$A29),COLUMN(J$1)-3)) -> 1924.509395 | K29: =IF($C29="",0,OFFSET($C57,MATCH($C29,$C$55:$C$514,0)+24-SUM($A$27:$A29),COLUMN(K$1)-3)) -> 0 | L29: =IF($C29="",0,OFFSET($C57,MATCH($C29,$C$55:$C$514,0)+24-SUM($A$27:$A29),COLUMN(L$1)-3)) -> 0
A30: 1 | B30: 4 | C30: DHF: Institutional Support and Transfer | D30: =IF($C30="",0,OFFSET($C58,MATCH($C30,$C$55:$C$514,0)+24-SUM($A$27:$A30),COLUMN(D$1)-3)) -> 205 | E30: =IF($C30="",0,OFFSET($C58,MATCH($C30,$C$55:$C$514,0)+24-SUM($A$27:$A30),COLUMN(E$1)-3)) -> 2 | F30: =IF($C30="",0,OFFSET($C58,MATCH($C30,$C$55:$C$514,0)+24-SUM($A$27:$A30),COLUMN(F$1)-3)) -> 197.6255944 | G30: =IF($C30="",0,OFFSET($C58,MATCH($C30,$C$55:$C$514,0)+24-SUM($A$27:$A30),COLUMN(G$1)-3)) -> 394.827402 | H30: =IF($C30="",0,OFFSET($C58,MATCH($C30,$C$55:$C$514,0)+24-SUM($A$27:$A30),COLUMN(H$1)-3)) -> 0 | I30: =IF($C30="",0,OFFSET($C58,MATCH($C30,$C$55:$C$514,0)+24-SUM($A$27:$A30),COLUMN(I$1)-3)) -> 78028 | J30: =IF($C30="",0,OFFSET($C58,MATCH($C30,$C$55:$C$514,0)+24-SUM($A$27:$A30),COLUMN(J$1)-3)) -> 197.6255944 | K30: =IF($C30="",0,OFFSET($C58,MATCH($C30,$C$55:$C$514,0)+24-SUM($A$27:$A30),COLUMN(K$1)-3)) -> 0 | L30: =IF($C30="",0,OFFSET($C58,MATCH($C30,$C$55:$C$514,0)+24-SUM($A$27:$A30),COLUMN(L$1)-3)) -> 0
A31: 0 | D31: =IF($C31="",0,OFFSET($C59,MATCH($C31,$C$55:$C$514,0)+24-SUM($A$27:$A31),COLUMN(D$1)-3)) -> 0 | E31: =IF($C31="",0,OFFSET($C59,MATCH($C31,$C$55:$C$514,0)+24-SUM($A$27:$A31),COLUMN(E$1)-3)) -> 0 | F31: =IF($C31="",0,OFFSET($C59,MATCH($C31,$C$55:$C$514,0)+24-SUM($A$27:$A31),COLUMN(F$1)-3)) -> 0 | G31: =IF($C31="",0,OFFSET($C59,MATCH($C31,$C$55:$C$514,0)+24-SUM($A$27:$A31),COLUMN(G$1)-3)) -> 0 | H31: =IF($C31="",0,OFFSET($C59,MATCH($C31,$C$55:$C$514,0)+24-SUM($A$27:$A31),COLUMN(H$1)-3)) -> 0 | I31: =IF($C31="",0,OFFSET($C59,MATCH($C31,$C$55:$C$514,0)+24-SUM($A$27:$A31),COLUMN(I$1)-3)) -> 0 | J31: =IF($C31="",0,OFFSET($C59,MATCH($C31,$C$55:$C$514,0)+24-SUM($A$27:$A31),COLUMN(J$1)-3)) -> 0 | K31: =IF($C31="",0,OFFSET($C59,MATCH($C31,$C$55:$C$514,0)+24-SUM($A$27:$A31),COLUMN(K$1)-3)) -> 0 | L31: =IF($C31="",0,OFFSET($C59,MATCH($C31,$C$55:$C$514,0)+24-SUM($A$27:$A31),COLUMN(L$1)-3)) -> 0
A32: 0 | D32: =IF($C32="",0,OFFSET($C60,MATCH($C32,$C$55:$C$514,0)+24-SUM($A$27:$A32),COLUMN(D$1)-3)) -> 0 | E32: =IF($C32="",0,OFFSET($C60,MATCH($C32,$C$55:$C$514,0)+24-SUM($A$27:$A32),COLUMN(E$1)-3)) -> 0 | F32: =IF($C32="",0,OFFSET($C60,MATCH($C32,$C$55:$C$514,0)+24-SUM($A$27:$A32),COLUMN(F$1)-3)) -> 0 | G32: =IF($C32="",0,OFFSET($C60,MATCH($C32,$C$55:$C$514,0)+24-SUM($A$27:$A32),COLUMN(G$1)-3)) -> 0 | H32: =IF($C32="",0,OFFSET($C60,MATCH($C32,$C$55:$C$514,0)+24-SUM($A$27:$A32),COLUMN(H$1)-3)) -> 0 | I32: =IF($C32="",0,OFFSET($C60,MATCH($C32,$C$55:$C$514,0)+24-SUM($A$27:$A32),COLUMN(I$1)-3)) -> 0 | J32: =IF($C32="",0,OFFSET($C60,MATCH($C32,$C$55:$C$514,0)+24-SUM($A$27:$A32),COLUMN(J$1)-3)) -> 0 | K32: =IF($C32="",0,OFFSET($C60,MATCH($C32,$C$55:$C$514,0)+24-SUM($A$27:$A32),COLUMN(K$1)-3)) -> 0 | L32: =IF($C32="",0,OFFSET($C60,MATCH($C32,$C$55:$C$514,0)+24-SUM($A$27:$A32),COLUMN(L$1)-3)) -> 0
A33: 0 | D33: =IF($C33="",0,OFFSET($C61,MATCH($C33,$C$55:$C$514,0)+24-SUM($A$27:$A33),COLUMN(D$1)-3)) -> 0 | E33: =IF($C33="",0,OFFSET($C61,MATCH($C33,$C$55:$C$514,0)+24-SUM($A$27:$A33),COLUMN(E$1)-3)) -> 0 | F33: =IF($C33="",0,OFFSET($C61,MATCH($C33,$C$55:$C$514,0)+24-SUM($A$27:$A33),COLUMN(F$1)-3)) -> 0 | G33: =IF($C33="",0,OFFSET($C61,MATCH($C33,$C$55:$C$514,0)+24-SUM($A$27:$A33),COLUMN(G$1)-3)) -> 0 | H33: =IF($C33="",0,OFFSET($C61,MATCH($C33,$C$55:$C$514,0)+24-SUM($A$27:$A33),COLUMN(H$1)-3)) -> 0 | I33: =IF($C33="",0,OFFSET($C61,MATCH($C33,$C$55:$C$514,0)+24-SUM($A$27:$A33),COLUMN(I$1)-3)) -> 0 | J33: =IF($C33="",0,OFFSET($C61,MATCH($C33,$C$55:$C$514,0)+24-SUM($A$27:$A33),COLUMN(J$1)-3)) -> 0 | K33: =IF($C33="",0,OFFSET($C61,MATCH($C33,$C$55:$C$514,0)+24-SUM($A$27:$A33),COLUMN(K$1)-3)) -> 0 | L33: =IF($C33="",0,OFFSET($C61,MATCH($C33,$C$55:$C$514,0)+24-SUM($A$27:$A33),COLUMN(L$1)-3)) -> 0
A34: 0 | D34: =IF($C34="",0,OFFSET($C62,MATCH($C34,$C$55:$C$514,0)+24-SUM($A$27:$A34),COLUMN(D$1)-3)) -> 0 | E34: =IF($C34="",0,OFFSET($C62,MATCH($C34,$C$55:$C$514,0)+24-SUM($A$27:$A34),COLUMN(E$1)-3)) -> 0 | F34: =IF($C34="",0,OFFSET($C62,MATCH($C34,$C$55:$C$514,0)+24-SUM($A$27:$A34),COLUMN(F$1)-3)) -> 0 | G34: =IF($C34="",0,OFFSET($C62,MATCH($C34,$C$55:$C$514,0)+24-SUM($A$27:$A34),COLUMN(G$1)-3)) -> 0 | H34: =IF($C34="",0,OFFSET($C62,MATCH($C34,$C$55:$C$514,0)+24-SUM($A$27:$A34),COLUMN(H$1)-3)) -> 0 | I34: =IF($C34="",0,OFFSET($C62,MATCH($C34,$C$55:$C$514,0)+24-SUM($A$27:$A34),COLUMN(I$1)-3)) -> 0 | J34: =IF($C34="",0,OFFSET($C62,MATCH($C34,$C$55:$C$514,0)+24-SUM($A$27:$A34),COLUMN(J$1)-3)) -> 0 | K34: =IF($C34="",0,OFFSET($C62,MATCH($C34,$C$55:$C$514,0)+24-SUM($A$27:$A34),COLUMN(K$1)-3)) -> 0 | L34: =IF($C34="",0,OFFSET($C62,MATCH($C34,$C$55:$C$514,0)+24-SUM($A$27:$A34),COLUMN(L$1)-3)) -> 0
A35: 0 | D35: =IF($C35="",0,OFFSET($C63,MATCH($C35,$C$55:$C$514,0)+24-SUM($A$27:$A35),COLUMN(D$1)-3)) -> 0 | E35: =IF($C35="",0,OFFSET($C63,MATCH($C35,$C$55:$C$514,0)+24-SUM($A$27:$A35),COLUMN(E$1)-3)) -> 0 | F35: =IF($C35="",0,OFFSET($C63,MATCH($C35,$C$55:$C$514,0)+24-SUM($A$27:$A35),COLUMN(F$1)-3)) -> 0 | G35: =IF($C35="",0,OFFSET($C63,MATCH($C35,$C$55:$C$514,0)+24-SUM($A$27:$A35),COLUMN(G$1)-3)) -> 0 | H35: =IF($C35="",0,OFFSET($C63,MATCH($C35,$C$55:$C$514,0)+24-SUM($A$27:$A35),COLUMN(H$1)-3)) -> 0 | I35: =IF($C35="",0,OFFSET($C63,MATCH($C35,$C$55:$C$514,0)+24-SUM($A$27:$A35),COLUMN(I$1)-3)) -> 0 | J35: =IF($C35="",0,OFFSET($C63,MATCH($C35,$C$55:$C$514,0)+24-SUM($A$27:$A35),COLUMN(J$1)-3)) -> 0 | K35: =IF($C35="",0,OFFSET($C63,MATCH($C35,$C$55:$C$514,0)+24-SUM($A$27:$A35),COLUMN(K$1)-3)) -> 0 | L35: =IF($C35="",0,OFFSET($C63,MATCH($C35,$C$55:$C$514,0)+24-SUM($A$27:$A35),COLUMN(L$1)-3)) -> 0
A36: 0 | D36: =IF($C36="",0,OFFSET($C64,MATCH($C36,$C$55:$C$514,0)+24-SUM($A$27:$A36),COLUMN(D$1)-3)) -> 0 | E36: =IF($C36="",0,OFFSET($C64,MATCH($C36,$C$55:$C$514,0)+24-SUM($A$27:$A36),COLUMN(E$1)-3)) -> 0 | F36: =IF($C36="",0,OFFSET($C64,MATCH($C36,$C$55:$C$514,0)+24-SUM($A$27:$A36),COLUMN(F$1)-3)) -> 0 | G36: =IF($C36="",0,OFFSET($C64,MATCH($C36,$C$55:$C$514,0)+24-SUM($A$27:$A36),COLUMN(G$1)-3)) -> 0 | H36: =IF($C36="",0,OFFSET($C64,MATCH($C36,$C$55:$C$514,0)+24-SUM($A$27:$A36),COLUMN(H$1)-3)) -> 0 | I36: =IF($C36="",0,OFFSET($C64,MATCH($C36,$C$55:$C$514,0)+24-SUM($A$27:$A36),COLUMN(I$1)-3)) -> 0 | J36: =IF($C36="",0,OFFSET($C64,MATCH($C36,$C$55:$C$514,0)+24-SUM($A$27:$A36),COLUMN(J$1)-3)) -> 0 | K36: =IF($C36="",0,OFFSET($C64,MATCH($C36,$C$55:$C$514,0)+24-SUM($A$27:$A36),COLUMN(K$1)-3)) -> 0 | L36: =IF($C36="",0,OFFSET($C64,MATCH($C36,$C$55:$C$514,0)+24-SUM($A$27:$A36),COLUMN(L$1)-3)) -> 0
A37: 0 | D37: =IF($C37="",0,OFFSET($C65,MATCH($C37,$C$55:$C$514,0)+24-SUM($A$27:$A37),COLUMN(D$1)-3)) -> 0 | E37: =IF($C37="",0,OFFSET($C65,MATCH($C37,$C$55:$C$514,0)+24-SUM($A$27:$A37),COLUMN(E$1)-3)) -> 0 | F37: =IF($C37="",0,OFFSET($C65,MATCH($C37,$C$55:$C$514,0)+24-SUM($A$27:$A37),COLUMN(F$1)-3)) -> 0 | G37: =IF($C37="",0,OFFSET($C65,MATCH($C37,$C$55:$C$514,0)+24-SUM($A$27:$A37),COLUMN(G$1)-3)) -> 0 | H37: =IF($C37="",0,OFFSET($C65,MATCH($C37,$C$55:$C$514,0)+24-SUM($A$27:$A37),COLUMN(H$1)-3)) -> 0 | I37: =IF($C37="",0,OFFSET($C65,MATCH($C37,$C$55:$C$514,0)+24-SUM($A$27:$A37),COLUMN(I$1)-3)) -> 0 | J37: =IF($C37="",0,OFFSET($C65,MATCH($C37,$C$55:$C$514,0)+24-SUM($A$27:$A37),COLUMN(J$1)-3)) -> 0 | K37: =IF($C37="",0,OFFSET($C65,MATCH($C37,$C$55:$C$514,0)+24-SUM($A$27:$A37),COLUMN(K$1)-3)) -> 0 | L37: =IF($C37="",0,OFFSET($C65,MATCH($C37,$C$55:$C$514,0)+24-SUM($A$27:$A37),COLUMN(L$1)-3)) -> 0
A38: 0 | D38: =IF($C38="",0,OFFSET($C66,MATCH($C38,$C$55:$C$514,0)+24-SUM($A$27:$A38),COLUMN(D$1)-3)) -> 0 | E38: =IF($C38="",0,OFFSET($C66,MATCH($C38,$C$55:$C$514,0)+24-SUM($A$27:$A38),COLUMN(E$1)-3)) -> 0 | F38: =IF($C38="",0,OFFSET($C66,MATCH($C38,$C$55:$C$514,0)+24-SUM($A$27:$A38),COLUMN(F$1)-3)) -> 0 | G38: =IF($C38="",0,OFFSET($C66,MATCH($C38,$C$55:$C$514,0)+24-SUM($A$27:$A38),COLUMN(G$1)-3)) -> 0 | H38: =IF($C38="",0,OFFSET($C66,MATCH($C38,$C$55:$C$514,0)+24-SUM($A$27:$A38),COLUMN(H$1)-3)) -> 0 | I38: =IF($C38="",0,OFFSET($C66,MATCH($C38,$C$55:$C$514,0)+24-SUM($A$27:$A38),COLUMN(I$1)-3)) -> 0 | J38: =IF($C38="",0,OFFSET($C66,MATCH($C38,$C$55:$C$514,0)+24-SUM($A$27:$A38),COLUMN(J$1)-3)) -> 0 | K38: =IF($C38="",0,OFFSET($C66,MATCH($C38,$C$55:$C$514,0)+24-SUM($A$27:$A38),COLUMN(K$1)-3)) -> 0 | L38: =IF($C38="",0,OFFSET($C66,MATCH($C38,$C$55:$C$514,0)+24-SUM($A$27:$A38),COLUMN(L$1)-3)) -> 0
A39: 0 | D39: =IF($C39="",0,OFFSET($C67,MATCH($C39,$C$55:$C$514,0)+24-SUM($A$27:$A39),COLUMN(D$1)-3)) -> 0 | E39: =IF($C39="",0,OFFSET($C67,MATCH($C39,$C$55:$C$514,0)+24-SUM($A$27:$A39),COLUMN(E$1)-3)) -> 0 | F39: =IF($C39="",0,OFFSET($C67,MATCH($C39,$C$55:$C$514,0)+24-SUM($A$27:$A39),COLUMN(F$1)-3)) -> 0 | G39: =IF($C39="",0,OFFSET($C67,MATCH($C39,$C$55:$C$514,0)+24-SUM($A$27:$A39),COLUMN(G$1)-3)) -> 0 | H39: =IF($C39="",0,OFFSET($C67,MATCH($C39,$C$55:$C$514,0)+24-SUM($A$27:$A39),COLUMN(H$1)-3)) -> 0 | I39: =IF($C39="",0,OFFSET($C67,MATCH($C39,$C$55:$C$514,0)+24-SUM($A$27:$A39),COLUMN(I$1)-3)) -> 0 | J39: =IF($C39="",0,OFFSET($C67,MATCH($C39,$C$55:$C$514,0)+24-SUM($A$27:$A39),COLUMN(J$1)-3)) -> 0 | K39: =IF($C39="",0,OFFSET($C67,MATCH($C39,$C$55:$C$514,0)+24-SUM($A$27:$A39),COLUMN(K$1)-3)) -> 0 | L39: =IF($C39="",0,OFFSET($C67,MATCH($C39,$C$55:$C$514,0)+24-SUM($A$27:$A39),COLUMN(L$1)-3)) -> 0
A40: 0 | D40: =IF($C40="",0,OFFSET($C68,MATCH($C40,$C$55:$C$514,0)+24-SUM($A$27:$A40),COLUMN(D$1)-3)) -> 0 | E40: =IF($C40="",0,OFFSET($C68,MATCH($C40,$C$55:$C$514,0)+24-SUM($A$27:$A40),COLUMN(E$1)-3)) -> 0 | F40: =IF($C40="",0,OFFSET($C68,MATCH($C40,$C$55:$C$514,0)+24-SUM($A$27:$A40),COLUMN(F$1)-3)) -> 0 | G40: =IF($C40="",0,OFFSET($C68,MATCH($C40,$C$55:$C$514,0)+24-SUM($A$27:$A40),COLUMN(G$1)-3)) -> 0 | H40: =IF($C40="",0,OFFSET($C68,MATCH($C40,$C$55:$C$514,0)+24-SUM($A$27:$A40),COLUMN(H$1)-3)) -> 0 | I40: =IF($C40="",0,OFFSET($C68,MATCH($C40,$C$55:$C$514,0)+24-SUM($A$27:$A40),COLUMN(I$1)-3)) -> 0 | J40: =IF($C40="",0,OFFSET($C68,MATCH($C40,$C$55:$C$514,0)+24-SUM($A$27:$A40),COLUMN(J$1)-3)) -> 0 | K40: =IF($C40="",0,OFFSET($C68,MATCH($C40,$C$55:$C$514,0)+24-SUM($A$27:$A40),COLUMN(K$1)-3)) -> 0 | L40: =IF($C40="",0,OFFSET($C68,MATCH($C40,$C$55:$C$514,0)+24-SUM($A$27:$A40),COLUMN(L$1)-3)) -> 0
A41: 0 | D41: =IF($C41="",0,OFFSET($C69,MATCH($C41,$C$55:$C$514,0)+24-SUM($A$27:$A41),COLUMN(D$1)-3)) -> 0 | E41: =IF($C41="",0,OFFSET($C69,MATCH($C41,$C$55:$C$514,0)+24-SUM($A$27:$A41),COLUMN(E$1)-3)) -> 0 | F41: =IF($C41="",0,OFFSET($C69,MATCH($C41,$C$55:$C$514,0)+24-SUM($A$27:$A41),COLUMN(F$1)-3)) -> 0 | G41: =IF($C41="",0,OFFSET($C69,MATCH($C41,$C$55:$C$514,0)+24-SUM($A$27:$A41),COLUMN(G$1)-3)) -> 0 | H41: =IF($C41="",0,OFFSET($C69,MATCH($C41,$C$55:$C$514,0)+24-SUM($A$27:$A41),COLUMN(H$1)-3)) -> 0 | I41: =IF($C41="",0,OFFSET($C69,MATCH($C41,$C$55:$C$514,0)+24-SUM($A$27:$A41),COLUMN(I$1)-3)) -> 0 | J41: =IF($C41="",0,OFFSET($C69,MATCH($C41,$C$55:$C$514,0)+24-SUM($A$27:$A41),COLUMN(J$1)-3)) -> 0 | K41: =IF($C41="",0,OFFSET($C69,MATCH($C41,$C$55:$C$514,0)+24-SUM($A$27:$A41),COLUMN(K$1)-3)) -> 0 | L41: =IF($C41="",0,OFFSET($C69,MATCH($C41,$C$55:$C$514,0)+24-SUM($A$27:$A41),COLUMN(L$1)-3)) -> 0
A42: 0 | D42: =IF($C42="",0,OFFSET($C70,MATCH($C42,$C$55:$C$514,0)+24-SUM($A$27:$A42),COLUMN(D$1)-3)) -> 0 | E42: =IF($C42="",0,OFFSET($C70,MATCH($C42,$C$55:$C$514,0)+24-SUM($A$27:$A42),COLUMN(E$1)-3)) -> 0 | F42: =IF($C42="",0,OFFSET($C70,MATCH($C42,$C$55:$C$514,0)+24-SUM($A$27:$A42),COLUMN(F$1)-3)) -> 0 | G42: =IF($C42="",0,OFFSET($C70,MATCH($C42,$C$55:$C$514,0)+24-SUM($A$27:$A42),COLUMN(G$1)-3)) -> 0 | H42: =IF($C42="",0,OFFSET($C70,MATCH($C42,$C$55:$C$514,0)+24-SUM($A$27:$A42),COLUMN(H$1)-3)) -> 0 | I42: =IF($C42="",0,OFFSET($C70,MATCH($C42,$C$55:$C$514,0)+24-SUM($A$27:$A42),COLUMN(I$1)-3)) -> 0 | J42: =IF($C42="",0,OFFSET($C70,MATCH($C42,$C$55:$C$514,0)+24-SUM($A$27:$A42),COLUMN(J$1)-3)) -> 0 | K42: =IF($C42="",0,OFFSET($C70,MATCH($C42,$C$55:$C$514,0)+24-SUM($A$27:$A42),COLUMN(K$1)-3)) -> 0 | L42: =IF($C42="",0,OFFSET($C70,MATCH($C42,$C$55:$C$514,0)+24-SUM($A$27:$A42),COLUMN(L$1)-3)) -> 0
A43: 1 | C43: Total | D43: =SUM(D23:D42) -> 7473 | E43: =SUM(E23:E42) -> 35 | F43: =SUM(F23:F42) -> 9156.387741 | G43: =IFERROR(I43/F43,0) -> 465.8091292 | H43: =IFERROR(SUM(H27:H42)/COUNTIF(H27:H42,">0"),0) -> 0 | I43: =SUM(I23:I42) -> 4265129 | J43: =SUM(J23:J42) -> 9156.387741 | K43: =IFERROR(#REF!/#REF!,0) -> 0 | L43: =IFERROR(SUM(L27:L42)/COUNTIF(L27:L42,">0"),0) -> 0
A44: 1 | C44: Salary Bands
A45: 1 | C45: 1 - 6 | D45: =SUMIFS(D$55:D$514,$C$55:$C$514,">=1",$C$55:$C$514,"<=6") -> 5210 | E45: =SUMIFS(E$55:E$514,$C$55:$C$514,">=1",$C$55:$C$514,"<=6") -> 0 | F45: =SUMIFS(F$55:F$514,$C$55:$C$514,">=1",$C$55:$C$514,"<=6") -> 6186.134989 | G45: =IFERROR(I45/F45,0) -> 357.1097307 | H45: =IFERROR(SUMIFS(H$55:H$514,$B$55:$B$514,">=1",$C$55:$C$514,"<>Total",$C$55:$C$514,">=1",$C$55:$C$514,"<=6")/COUNTIFS($B$55:$B$514,">=1",$C$55:$C$514,">=1",$C$55:$C$514,"<=6",#REF!,">0"),0) -> 0 | I45: =SUMIFS(I$55:I$514,$C$55:$C$514,">=1",$C$55:$C$514,"<=6") -> 2209129 | J45: =SUMIFS(J$55:J$514,$C$55:$C$514,">=1",$C$55:$C$514,"<=6") -> 6186.134989 | K45: =IFERROR(#REF!/#REF!,0) -> 0 | L45: =IFERROR(SUMIFS(L$55:L$514,$B$55:$B$514,">=1",$C$55:$C$514,"<>Total",$C$55:$C$514,">=1",$C$55:$C$514,"<=6")/COUNTIFS($B$55:$B$514,">=1",$C$55:$C$514,">=1",$C$55:$C$514,"<=6",#REF!,">0"),0) -> 0
A46: 1 | C46: 7 - 10 | D46: =SUMIFS(D$55:D$514,$C$55:$C$514,">=7",$C$55:$C$514,"<=10") -> 1940 | E46: =SUMIFS(E$55:E$514,$C$55:$C$514,">=7",$C$55:$C$514,"<=10") -> 0 | F46: =SUMIFS(F$55:F$514,$C$55:$C$514,">=7",$C$55:$C$514,"<=10") -> 2525.252752 | G46: 606.3796976 | H46: =IFERROR(SUMIFS(H$55:H$514,$B$55:$B$514,">=1",$C$55:$C$514,"<>Total",$C$55:$C$514,">=7",$C$55:$C$514,"<=10")/COUNTIFS($B$55:$B$514,">=1",$C$55:$C$514,">=7",$C$55:$C$514,"<=10",#REF!,">0"),0) -> 0 | I46: =SUMIFS(I$55:I$514,$C$55:$C$514,">=7",$C$55:$C$514,"<=10") -> 1531262 | J46: =SUMIFS(J$55:J$514,$C$55:$C$514,">=7",$C$55:$C$514,"<=10") -> 2525.252752 | K46: =IFERROR(#REF!/#REF!,0) -> 0 | L46: =IFERROR(SUMIFS(L$55:L$514,$B$55:$B$514,">=1",$C$55:$C$514,"<>Total",$C$55:$C$514,">=7",$C$55:$C$514,"<=10")/COUNTIFS($B$55:$B$514,">=1",$C$55:$C$514,">=7",$C$55:$C$514,"<=10",#REF!,">0"),0) -> 0
A47: 1 | C47: 11 - 12 | D47: =SUMIFS(D$55:D$514,$C$55:$C$514,">=11",$C$55:$C$514,"<=12") -> 201 | E47: =SUMIFS(E$55:E$514,$C$55:$C$514,">=11",$C$55:$C$514,"<=12") -> 33 | F47: =SUMIFS(F$55:F$514,$C$55:$C$514,">=11",$C$55:$C$514,"<=12") -> 296 | G47: 1008.702703 | H47: =IFERROR(SUMIFS(H$55:H$514,$B$55:$B$514,">=1",$C$55:$C$514,"<>Total",$C$55:$C$514,">=11",$C$55:$C$514,"<=12")/COUNTIFS($B$55:$B$514,">=1",$C$55:$C$514,">=11",$C$55:$C$514,"<=12",#REF!,">0"),0) -> 0 | I47: =SUMIFS(I$55:I$514,$C$55:$C$514,">=11",$C$55:$C$514,"<=12") -> 298576 | J47: =SUMIFS(J$55:J$514,$C$55:$C$514,">=11",$C$55:$C$514,"<=12") -> 296 | K47: =IFERROR(#REF!/#REF!,0) -> 0 | L47: =IFERROR(SUMIFS(L$55:L$514,$B$55:$B$514,">=1",$C$55:$C$514,"<>Total",$C$55:$C$514,">=11",$C$55:$C$514,"<=12")/COUNTIFS($B$55:$B$514,">=1",$C$55:$C$514,">=11",$C$55:$C$514,"<=12",#REF!,">0"),0) -> 0
A48: 1 | C48: 13 - 16 | D48: =SUMIFS(D$55:D$514,$C$55:$C$514,">=13",$C$55:$C$514,"<=16") -> 120 | E48: =SUMIFS(E$55:E$514,$C$55:$C$514,">=13",$C$55:$C$514,"<=16") -> 2 | F48: =SUMIFS(F$55:F$514,$C$55:$C$514,">=13",$C$55:$C$514,"<=16") -> 147 | G48: 1490.612245 | H48: =IFERROR(SUMIFS(H$55:H$514,$B$55:$B$514,">=1",$C$55:$C$514,"<>Total",$C$55:$C$514,">=13",$C$55:$C$514,"<=16")/COUNTIFS($B$55:$B$514,">=1",$C$55:$C$514,">=13",$C$55:$C$514,"<=16",#REF!,">0"),0) -> 0 | I48: =SUMIFS(I$55:I$514,$C$55:$C$514,">=13",$C$55:$C$514,"<=16") -> 219120 | J48: =SUMIFS(J$55:J$514,$C$55:$C$514,">=13",$C$55:$C$514,"<=16") -> 147 | K48: =IFERROR(#REF!/#REF!,0) -> 0 | L48: =IFERROR(SUMIFS(L$55:L$514,$B$55:$B$514,">=1",$C$55:$C$514,"<>Total",$C$55:$C$514,">=13",$C$55:$C$514,"<=16")/COUNTIFS($B$55:$B$514,">=1",$C$55:$C$514,">=13",$C$55:$C$514,"<=16",#REF!,">0"),0) -> 0
A49: 1 | C49: Other | D49: =D43-SUM(D45:D48) -> 2 | E49: =E43-SUM(E45:E48) -> 0 | F49: =F43-SUM(F45:F48) -> 2 | G49: 3521 | H49: =IFERROR((SUMIFS(H$55:H$514,$B$55:$B$514,">=1",$C$55:$C$514,"<>Total")-SUMIFS(H$55:H$514,$B$55:$B$514,">=1",$C$55:$C$514,"<=16"))/(COUNTIFS($B$55:$B$514,">=1",$C$55:$C$514,"<>Total",#REF!,">0")-COUNTIFS($B$55:$B$514,">=1",$C$55:$C$514,"<=16",#REF!,">0"=(SUMIFS(H$55:H$514,$B$55:$B$514,">=1",$C$55:$C$514,"<>Total")-SUMIFS(H$55:H$514,$B$55:$B$514,">=1",$C$55:$C$514,"<=16"))/(COUNTIFS($B$55:$B$514,">=1",$C$55:$C$514,"<>Total",#REF!,">0")-COUNTIFS($B$55:$B$514,">=1",$C$55:$C$514,"<=16",#REF!,">0")))),0) -> 0 | I49: =I43-SUM(I45:I48) -> 7042 | J49: =J43-SUM(J45:J48) -> 2 | K49: =IFERROR(#REF!/#REF!,0) -> 0 | L49: =IFERROR((SUMIFS(L$55:L$514,$B$55:$B$514,">=1",$C$55:$C$514,"<>Total")-SUMIFS(L$55:L$514,$B$55:$B$514,">=1",$C$55:$C$514,"<=16"))/(COUNTIFS($B$55:$B$514,">=1",$C$55:$C$514,"<>Total",#REF!,">0")-COUNTIFS($B$55:$B$514,">=1",$C$55:$C$514,"<=16",#REF!,">0"=(SUMIFS(L$55:L$514,$B$55:$B$514,">=1",$C$55:$C$514,"<>Total")-SUMIFS(L$55:L$514,$B$55:$B$514,">=1",$C$55:$C$514,"<=16"))/(COUNTIFS($B$55:$B$514,">=1",$C$55:$C$514,"<>Total",#REF!,">0")-COUNTIFS($B$55:$B$514,">=1",$C$55:$C$514,"<=16",#REF!,">0")))),0) -> 0
A50: 1 | C50: Total | D50: =SUM(D45:D49) -> 7473 | E50: =SUM(E45:E49) -> 35 | F50: =SUM(F45:F49) -> 9156.387741 | G50: 465.8091292 | H50: =IFERROR(SUMIF($C$55:$C$514,"Total",H$55:H$514)/COUNTIF(H27:H42,">0"),0) -> 0 | I50: =SUM(I45:I49) -> 4265129 | J50: =SUM(J45:J49) -> 9156.387741 | K50: =IFERROR(#REF!/#REF!,0) -> 0 | L50: =IFERROR(SUMIF($C$55:$C$514,"Total",L$55:L$514)/COUNTIF(L27:L42,">0"),0) -> 0
A51: 1 | C51: Checks | D51: =D43-D50 -> 0 | E51: 0 | F51: 0 | G51: 0 | H51: 0 | I51: 0 | J51: 0 | K51: 0 | L51: 0
A52: 1
A53: 1 | C53: Department Programme Details
A54: 1
A55: =$A$27 -> 1 | C55: =$C$27 -> DHF: Administration
A56: =A$55 -> 1 | D56: Establishment Structure | F56: Previous Financial Year | J56: Medium-term expenditure estimates
A57: 1 | D57: As at 31 March 2023 | F57: =LEFT($D$3,4)-1 & "/" & RIGHT($D$3,2)-1 -> 2022/23
A58: 1 | B58: ProgNo. | C58: Salary level | D58: Total number of funded posts | E58: of which: number of funded posts additional to the establishment | F58: FTE Headcount | G58: Unit Costs | H58: of which: Once-off Payments per person | I58: Total Annual Cost | J58: Initial Headcount | K58: Unit Costs | L58: of which: Once-off Payments per person
A59: 1 | B59: 1 | C59: 1 | D59: 0 | E59: 0 | F59: 0 | G59: =IFERROR(IF(I59=0,O59,I59/F59),0) -> 99.95105925 | H59: 15 | I59: 0 | J59: 0 | K59: -15.52907117 | O59: 99.95105925
A60: 1 | B60: 1 | C60: 2 | D60: 1 | E60: 0 | F60: 1 | G60: =IFERROR(IF(I60=0,O60,I60/F60),0) -> 1386 | H60: =1220/1000*12 -> 14.64 | I60: 1386 | J60: 1 | K60: 1392.039866 | O60: 179.5147433
A61: 1 | B61: 1 | C61: 3 | D61: 41 | E61: 0 | F61: 41 | G61: 245.1707317 | H61: =1220/1000*12 -> 14.64 | I61: 10052 | J61: 41 | K61: 236.5524208 | O61: 216.6722944
A62: 1 | B62: 1 | C62: 4 | D62: 0 | E62: 0 | F62: 3 | G62: 246.6666667 | H62: =1220/1000*12 -> 14.64 | I62: 740 | J62: 3 | K62: 236.7793534 | O62: 236.0392102
A63: 1 | B63: 1 | C63: 5 | D63: 13 | E63: 0 | F63: 21 | G63: 384.9047619 | H63: =1220/1000*12 -> 14.64 | I63: 8083 | J63: 21 | K63: 379.1099122 | O63: 290.5081548
A64: 1 | B64: 1 | C64: 6 | D64: 370 | E64: 0 | F64: 372 | G64: 364.2473118 | H64: =1352/1000*12 -> 16.224 | I64: 135500 | J64: 372 | K64: 356.2388696 | O64: 341.7085708
A65: 1 | B65: 1 | C65: 7 | D65: 87 | E65: 0 | F65: 92 | G65: 490.6630435 | H65: =1352/1000*12 -> 16.224 | I65: 45141 | J65: 92 | K65: 484.9224134 | O65: 455.5004418
A66: 1 | B66: 1 | C66: 8 | D66: 133 | E66: 0 | F66: 137 | G66: 552.8321168 | H66: =1450/1000*12 -> 17.4 | I66: 75738 | J66: 137 | K66: 546.8298984 | O66: 520.4674487
A67: 1 | B67: 1 | C67: 9 | D67: 97 | E67: 0 | F67: 131.6428662 | G67: 624.3634949 | H67: =1450/1000*12 -> 17.4 | I67: 82193 | J67: 131.6428662 | K67: 619.0061158 | O67: 586.4171069
A68: 1 | B68: 1 | C68: 10 | D68: 27 | E68: 0 | F68: 31 | G68: 768.6451613 | H68: =1640/1000*12 -> 19.68 | I68: 23828 | J68: 31 | K68: 763.6765401 | O68: 699.4852566
A69: 1 | B69: 1 | C69: 11 | D69: 108 | E69: 32 | F69: 165 | G69: 846.3272727 | H69: =1640/1000*12 -> 19.68 | I69: 139644 | J69: 165 | K69: 839.4291993 | O69: 799.6834333
A70: 1 | B70: 1 | C70: 12 | D70: 17 | E70: 1 | F70: 27 | G70: 1122.37037 | H70: =1695/1000*12 -> 20.34 | I70: 30304 | J70: 27 | K70: 1119.335838 | O70: 1014.272904
A71: 1 | B71: 1 | C71: 13 | D71: 46 | E71: 0 | F71: 56 | G71: 1225.696429 | H71: =1695/1000*12 -> 20.34 | I71: 68639 | J71: 56 | K71: 1224.191254 | O71: 1152.258047
A72: 1 | B72: 1 | C72: 14 | D72: 15 | E72: 0 | F72: 16 | G72: 1546.625 | H72: 20.34 | I72: 24746 | J72: 16 | K72: 1549.448745 | O72: 1409.161406
A73: 1 | B73: 1 | C73: 15 | D73: 6 | E73: 0 | F73: 5 | G73: 2078.4 | H73: 20.34 | I73: 10392 | J73: 5 | K73: 2088.91155 | O73: 1703.285814
A74: 1 | B74: 1 | C74: 16 | D74: 1 | E74: 0 | F74: 1 | G74: 3464 | H74: =1818/1000*12 -> 21.816 | I74: 3464 | J74: 1 | K74: 3494.062488 | O74: 2168.595147
A75: 1 | B75: 1 | C75: Deputy Minister | D75: 1 | E75: 0 | F75: 1 | G75: 3296 | I75: 3296 | J75: 1 | K75: 3345.542274 | O75: 2007.461925
A76: 1 | B76: 1 | C76: Minister | D76: 1 | E76: 0 | F76: 1 | G76: 3746 | I76: 3746 | J76: 1 | K76: 3802.716884 | O76: 2437.657495
A77: 1 | B77: 1 | C77: Other | D77: 0 | E77: 0 | F77: 0 | G77: 259.6159983 | I77: 0 | J77: 0 | K77: 0 | O77: 259.6159983
A78: 1 | B78: 1 | C78: Other | D78: 0 | E78: 0 | F78: 0 | G78: 259.6159983 | I78: 0 | J78: 0 | K78: 0 | O78: 259.6159983
A79: 1 | B79: 1 | C79: Total | D79: =SUM(D59:D78) -> 964 | E79: 33 | F79: 1101.642866 | G79: =IFERROR(I79/F79,0) -> 605.3613385 | H79: =IFERROR(SUM(H59:H78)/K79,0) -> 0 | I79: =SUM(I59:I78) -> 666892 | J79: =SUM(J59:J78) -> 1101.642866 | K79: =IFERROR(#REF!/#REF!,0) -> 0 | L79: =IFERROR(SUM(L59:L78)/#REF!,0) -> 0
A80: 1
A81: 1
A82: 1
A83: 1
A84: =$A$28 -> 1 | C84: =$C$28 -> DHF: Citizen Affairs
A85: =A$84 -> 1 | D85: Establishment Structure | F85: Previous Financial Year | J85: Medium-term expenditure estimates
A86: 1 | D86: As at 31 March 2023 | F86: =LEFT($D$3,4)-1 & "/" & RIGHT($D$3,2)-1 -> 2022/23
A87: 1 | C87: Salary level | D87: Total number of funded posts | E87: of which: number of funded posts additional to the establishment | F87: FTE Headcount | G87: Unit Costs | H87: of which: Once-off Payments per person | I87: Total Annual Cost | J87: Initial Headcount | K87: Unit Costs | L87: of which: Once-off Payments per person
A88: 1 | B88: 2 | C88: 1 | D88: 0 | E88: 0 | F88: 0 | G88: =IFERROR(IF(I88=0,O88,I88/F88),0) -> 99.95105925 | H88: =1220/1000*12 -> 14.64 | I88: 0 | J88: 0 | K88: -15.52907117 | O88: 99.95105925
A89: 1 | B89: 2 | C89: 2 | D89: 0 | E89: 0 | F89: 0 | G89: =IFERROR(IF(I89=0,O89,I89/F89),0) -> 179.5147433 | H89: =1220/1000*12 -> 14.64 | I89: 0 | J89: 0 | K89: -15.52886681 | O89: 179.5147433
A90: 1 | B90: 2 | C90: 3 | D90: 249 | E90: 0 | F90: 246 | G90: 227.199187 | H90: =1220/1000*12 -> 14.64 | I90: 55891 | J90: 246 | K90: 218.1013217 | O90: 216.6722944
A91: 1 | B91: 2 | C91: 4 | D91: 1 | E91: 0 | F91: 1 | G91: 12383 | H91: =1220/1000*12 -> 14.64 | I91: 12383 | J91: 1 | K91: 12623.3149 | O91: 236.0392102
A92: 1 | B92: 2 | C92: 5 | D92: 151 | E92: 0 | F92: 147 | G92: 348.7482993 | H92: =1220/1000*12 -> 14.64 | I92: 51266 | J92: 147 | K92: 342.0757076 | O92: 290.5081548
A93: 1 | B93: 2 | C93: 6 | D93: 3798 | E93: 0 | F93: 3844 | G93: 360.5796046 | H93: =1352/1000*12 -> 16.224 | I93: 1386068 | J93: 3844 | K93: 352.4840283 | O93: 341.7085708
A94: 1 | B94: 2 | C94: 7 | D94: 567 | E94: 0 | F94: 565 | G94: 491.7097345 | H94: =1352/1000*12 -> 16.224 | I94: 277816 | J94: 565 | K94: 485.9931321 | O94: 455.5004418
A95: 1 | B95: 2 | C95: 8 | D95: 442 | E95: 0 | F95: 410 | G95: 562.3829268 | H95: =1450/1000*12 -> 17.4 | I95: 230577 | J95: 410 | K95: 556.5820483 | O95: 520.4674487
A96: 1 | B96: 2 | C96: 9 | D96: 97 | E96: 0 | F96: 100 | G96: 678.06 | H96: =1450/1000*12 -> 17.4 | I96: 67806 | J96: 100 | K96: 673.7700641 | O96: 586.4171069
A97: 1 | B97: 2 | C97: 10 | D97: 168 | E97: 0 | F97: 514.6098858 | G97: 769.8647284 | H97: =1640/1000*12 -> 19.68 | I97: 396180 | J97: 514.6098858 | K97: 764.9112237 | O97: 699.4852566
A98: 1 | B98: 2 | C98: 11 | D98: 20 | E98: 0 | F98: 20 | G98: 1107.2 | H98: =1640/1000*12 -> 19.68 | I98: 22144 | J98: 20 | K98: 1104.341344 | O98: 799.6834333
A99: 1 | B99: 2 | C99: 12 | D99: 35 | E99: 0 | F99: 38 | G99: 1243.5 | H99: =1695/1000*12 -> 20.34 | I99: 47253 | J99: 38 | K99: 1242.350568 | O99: 1014.272904
A100: 1 | B100: 2 | C100: 13 | D100: 35 | E100: 0 | F100: 36 | G100: 1636.333333 | H100: =1695/1000*12 -> 20.34 | I100: 58908 | J100: 36 | K100: 1641.237088 | O100: 1152.258047
A101: 1 | B101: 2 | C101: 14 | D101: 10 | E101: 0 | F101: 10 | G101: 855.9 | H101: 20.34 | I101: 8559 | J101: 10 | K101: 848.238035 | O101: 1409.161406
A102: 1 | B102: 2 | C102: 15 | D102: 1 | E102: 0 | F102: 1 | G102: 8039 | H102: 20.34 | I102: 8039 | J102: 1 | K102: 8139.288925 | O102: 1703.285814
A103: 1 | B103: 2 | C103: 16 | D103: 0 | E103: 0 | F103: 0 | G103: 2168.595147 | H103: =1818/1000*12 -> 21.816 | I103: 0 | J103: 0 | K103: -23.13971146 | O103: 2168.595147
A104: 1 | B104: 2 | C104: Other | D104: 0 | E104: 0 | F104: 0 | G104: 2007.461925 | I104: 0 | J104: 0 | K104: 0 | O104: 2007.461925
A105: 1 | B105: 2 | C105: Other | D105: 0 | E105: 0 | F105: 0 | G105: 2437.657495 | I105: 0 | J105: 0 | K105: 0 | O105: 2437.657495
A106: 1 | B106: 2 | C106: Other | D106: 0 | E106: 0 | F106: 0 | G106: 259.6159983 | I106: 0 | J106: 0 | K106: 0 | O106: 259.6159983
A107: 1 | B107: 2 | C107: Other | D107: 0 | E107: 0 | F107: 0 | G107: 259.6159983 | I107: 0 | J107: 0 | K107: 0 | O107: 259.6159983
A108: 1 | B108: 2 | C108: Total | D108: =SUM(D88:D107) -> 5574 | E108: 0 | F108: 5932.609886 | G108: =IFERROR(I108/F108,0) -> 442.114019 | H108: =IFERROR(SUM(H88:H107)/K108,0) -> 0 | I108: =SUM(I88:I107) -> 2622890 | J108: =SUM(J88:J107) -> 5932.609886 | K108: =IFERROR(#REF!/#REF!,0) -> 0 | L108: =IFERROR(SUM(L88:L107)/#REF!,0) -> 0
A109: 1
A110: 1
A111: 1
A112: 1
A113: =$A$29 -> 1 | C113: =$C$29 -> DHF: Immigration Affairs
A114: =A$113 -> 1 | D114: Establishment Structure | F114: Previous Financial Year | J114: Medium-term expenditure estimates
A115: 1 | D115: As at 31 March 2023 | F115: =LEFT($D$3,4)-1 & "/" & RIGHT($D$3,2)-1 -> 2022/23
A116: 1 | C116: Salary level | D116: Total number of funded posts | E116: of which: number of funded posts additional to the establishment | F116: FTE Headcount | G116: Unit Costs | H116: of which: Once-off Payments per person | I116: Total Annual Cost | J116: Initial Headcount | K116: Unit Costs | L116: of which: Once-off Payments per person
A117: 1 | B117: 3 | C117: 1 | D117: 0 | E117: 0 | F117: 0 | G117: =IFERROR(IF(I117=0,O117,I117/F117),0) -> 99.95105925 | H117: =1220/1000*12 -> 14.64 | I117: 0 | J117: 0 | K117: -15.52907117 | O117: 99.95105925
A118: 1 | B118: 3 | C118: 2 | D118: 0 | E118: 0 | F118: 2 | G118: =IFERROR(IF(I118=0,O118,I118/F118),0) -> 187 | H118: =1220/1000*12 -> 14.64 | I118: 374 | J118: 2 | K118: 174.8851044 | O118: 179.5147433
A119: 1 | B119: 3 | C119: 3 | D119: 4 | E119: 0 | F119: 57 | G119: 299.2982456 | H119: =1220/1000*12 -> 14.64 | I119: 17060 | J119: 57 | K119: 292.0814118 | O119: 216.6722944
A120: 1 | B120: 3 | C120: 4 | D120: 1 | E120: 0 | F120: 4 | G120: 1167.25 | H120: =1220/1000*12 -> 14.64 | I120: 4669 | J120: 4 | K120: 1176.371936 | O120: 236.0392102
A121: 1 | B121: 3 | C121: 5 | D121: 1 | E121: 0 | F121: 4 | G121: 1226.75 | H121: =1220/1000*12 -> 14.64 | I121: 4907 | J121: 4 | K121: 1240.996856 | O121: 290.5081548
A122: 1 | B122: 3 | C122: 6 | D122: 395 | E122: 0 | F122: 1271.509395 | G122: 361.6788063 | H122: =1352/1000*12 -> 16.224 | I122: 459878 | J122: 1271.509395 | K122: 353.6092324 | O122: 341.7085708
A123: 1 | B123: 3 | C123: 7 | D123: 2 | E123: 0 | F123: 26 | G123: 648.0769231 | H123: =1352/1000*12 -> 16.224 | I123: 16850 | J123: 26 | K123: 645.8191265 | O123: 455.5004418
A124: 1 | B124: 3 | C124: 8 | D124: 223 | E124: 0 | F124: 389 | G124: 556.3933162 | H124: =1450/1000*12 -> 17.4 | I124: 216437 | J124: 389 | K124: 550.4652956 | O124: 520.4674487
A125: 1 | B125: 3 | C125: 9 | D125: 6 | E125: 0 | F125: 7 | G125: 1270.428571 | H125: =1450/1000*12 -> 17.4 | I125: 8893 | J125: 7 | K125: 1277.850877 | O125: 586.4171069
A126: 1 | B126: 3 | C126: 10 | D126: 73 | E126: 0 | F126: 101 | G126: 780.5841584 | H126: =1640/1000*12 -> 19.68 | I126: 78839 | J126: 101 | K126: 775.8421749 | O126: 699.4852566
A127: 1 | B127: 3 | C127: 11 | D127: 3 | E127: 0 | F127: 3 | G127: 2366.333333 | H127: =1640/1000*12 -> 19.68 | I127: 7099 | J127: 3 | K127: 2382.789409 | O127: 799.6834333
A128: 1 | B128: 3 | C128: 12 | D128: 18 | E128: 0 | F128: 43 | G128: 1212.372093 | H128: =1695/1000*12 -> 20.34 | I128: 52132 | J128: 43 | K128: 1210.733317 | O128: 1014.272904
A129: 1 | B129: 3 | C129: 13 | D129: 2 | E129: 0 | F129: 13 | G129: 1586.230769 | H129: =1695/1000*12 -> 20.34 | I129: 20621 | J129: 13 | K129: 1590.357457 | O129: 1152.258047
A130: 1 | B130: 3 | C130: 14 | D130: 2 | E130: 0 | F130: 4 | G130: 2390 | H130: 20.34 | I130: 9560 | J130: 4 | K130: 2405.593985 | O130: 1409.161406
A131: 1 | B131: 3 | C131: 15 | D131: 0 | E131: 0 | F131: 0 | G131: 1703.285814 | H131: 20.34 | I131: 0 | J131: 0 | K131: 6445.384789 | O131: 1703.285814
A132: 1 | B132: 3 | C132: 16 | D132: 0 | E132: 0 | F132: 0 | G132: 2168.595147 | H132: =1818/1000*12 -> 21.816 | I132: 0 | J132: 0 | K132: -23.13971146 | O132: 2168.595147
A133: 1 | B133: 3 | C133: Other | D133: 0 | E133: 0 | F133: 0 | G133: 2007.461925 | I133: 0 | J133: 0 | K133: 0 | O133: 2007.461925
A134: 1 | B134: 3 | C134: Other | D134: 0 | E134: 0 | F134: 0 | G134: 2437.657495 | I134: 0 | J134: 0 | K134: 0 | O134: 2437.657495
A135: 1 | B135: 3 | C135: Other | D135: 0 | E135: 0 | F135: 0 | G135: 259.6159983 | I135: 0 | J135: 0 | K135: 0 | O135: 259.6159983
A136: 1 | B136: 3 | C136: Other | D136: 0 | E136: 0 | F136: 0 | G136: 259.6159983 | I136: 0 | J136: 0 | K136: 0 | O136: 259.6159983
A137: 1 | B137: 3 | C137: Total | D137: =SUM(D117:D136) -> 730 | E137: 0 | F137: 1924.509395 | G137: =IFERROR(I137/F137,0) -> 466.2585709 | H137: =IFERROR(SUM(H117:H136)/K137,0) -> 0 | I137: =SUM(I117:I136) -> 897319 | J137: =SUM(J117:J136) -> 1924.509395 | K137: =IFERROR(#REF!/#REF!,0) -> 0 | L137: =IFERROR(SUM(L117:L136)/#REF!,0) -> 0
A138: 1
A139: 1
A140: 1
A141: 1
A142: =$A$30 -> 1 | C142: =$C$30 -> DHF: Institutional Support and Transfer
A143: =A$142 -> 1 | D143: Establishment Structure | F143: Previous Financial Year | J143: Medium-term expenditure estimates
A144: 1 | D144: As at 31 March 2023 | F144: =LEFT($D$3,4)-1 & "/" & RIGHT($D$3,2)-1 -> 2022/23
A145: 1 | C145: Salary level | D145: Total number of funded posts | E145: of which: number of funded posts additional to the establishment | F145: FTE Headcount | G145: Unit Costs | H145: of which: Once-off Payments per person | I145: Total Annual Cost | J145: Initial Headcount | K145: Unit Costs | L145: of which: Once-off Payments per person
A146: 1 | B146: 4 | C146: 1 | D146: 0 | E146: 0 | F146: 0 | G146: =IFERROR(IF(I146=0,O146,I146/F146),0) -> 99.95105925 | H146: =1220/1000*12 -> 14.64 | I146: 0 | J146: 0 | K146: -15.52907117 | O146: 99.95105925
A147: 1 | B147: 4 | C147: 2 | D147: 1 | E147: 0 | F147: 2 | G147: =IFERROR(IF(I147=0,O147,I147/F147),0) -> 187 | H147: =1220/1000*12 -> 14.64 | I147: 374 | J147: 2 | K147: 174.8851044 | O147: 179.5147433
A148: 1 | B148: 4 | C148: 3 | D148: 1 | E148: 0 | F148: 1 | G148: 227 | H148: =1220/1000*12 -> 14.64 | I148: 227 | J148: 1 | K148: 218.1013217 | O148: 216.6722944
A149: 1 | B149: 4 | C149: 4 | D149: 1 | E149: 0 | F149: 1 | G149: 247 | H149: =1220/1000*12 -> 14.64 | I149: 247 | J149: 1 | K149: 236.7793534 | O149: 236.0392102
A150: 1 | B150: 4 | C150: 5 | D150: 0 | E150: 0 | F150: 0 | G150: 290.5081548 | H150: =1220/1000*12 -> 14.64 | I150: 0 | J150: 0 | K150: -15.73058286 | O150: 290.5081548
A151: 1 | B151: 4 | C151: 6 | D151: 182 | E151: 0 | F151: 167.6255944 | G151: 358.0837414 | H151: =1352/1000*12 -> 16.224 | I151: 60024 | J151: 167.6255944 | K151: 349.931346 | O151: 341.7085708
A152: 1 | B152: 4 | C152: 7 | D152: 11 | E152: 0 | F152: 11 | G152: 476.9090909 | H152: =1352/1000*12 -> 16.224 | I152: 5246 | J152: 11 | K152: 470.8758256 | O152: 455.5004418
A153: 1 | B153: 4 | C153: 8 | D153: 6 | E153: 0 | F153: 6 | G153: 544.3333333 | H153: =1450/1000*12 -> 17.4 | I153: 3266 | J153: 6 | K153: 538.1202394 | O153: 520.4674487
A154: 1 | B154: 4 | C154: 9 | D154: 1 | E154: 0 | F154: 4 | G154: 613 | H154: =1450/1000*12 -> 17.4 | I154: 2452 | J154: 4 | K154: 607.4263196 | O154: 586.4171069
A155: 1 | B155: 4 | C155: 10 | D155: 0 | E155: 0 | F155: 0 | G155: 699.4852566 | H155: =1640/1000*12 -> 19.68 | I155: 0 | J155: 0 | K155: -21.01498336 | O155: 699.4852566
A156: 1 | B156: 4 | C156: 11 | D156: 0 | E156: 0 | F156: 0 | G156: 799.6834333 | H156: =1640/1000*12 -> 19.68 | I156: 0 | J156: 0 | K156: -20.89110816 | O156: 799.6834333
A157: 1 | B157: 4 | C157: 12 | D157: 0 | E157: 0 | F157: 0 | G157: 1014.272904 | H157: =1695/1000*12 -> 20.34 | I157: 0 | J157: 0 | K157: -21.60026285 | O157: 1014.272904
A158: 1 | B158: 4 | C158: 13 | D158: 0 | E158: 0 | F158: 0 | G158: 1152.258047 | H158: =1695/1000*12 -> 20.34 | I158: 0 | J158: 0 | K158: -21.59773971 | O158: 1152.258047
A159: 1 | B159: 4 | C159: 14 | D159: 0 | E159: 0 | F159: 0 | G159: 1409.161406 | H159: 20.34 | I159: 0 | J159: 0 | K159: -21.58101923 | O159: 1409.161406
A160: 1 | B160: 4 | C160: 15 | D160: 1 | E160: 2 | F160: 4 | G160: 981.5 | H160: 20.34 | I160: 3926 | J160: 4 | K160: 975.4639185 | O160: 1703.285814
A161: 1 | B161: 4 | C161: 16 | D161: 1 | E161: 0 | F161: 1 | G161: 2266 | H161: =1818/1000*12 -> 21.816 | I161: 2266 | J161: 1 | K161: 2277.466914 | O161: 2168.595147
A162: 1 | B162: 4 | C162: Other | D162: 0 | E162: 0 | F162: 0 | G162: 2007.461925 | I162: 0 | J162: 0 | K162: 0 | O162: 2007.461925
A163: 1 | B163: 4 | C163: Other | D163: 0 | E163: 0 | F163: 0 | G163: 2437.657495 | I163: 0 | J163: 0 | K163: 0 | O163: 2437.657495
A164: 1 | B164: 4 | C164: Other | D164: 0 | E164: 0 | F164: 0 | G164: 259.6159983 | I164: 0 | J164: 0 | K164: 0 | O164: 259.6159983
A165: 1 | B165: 4 | C165: Other | D165: 0 | E165: 0 | F165: 0 | G165: 259.6159983 | I165: 0 | J165: 0 | K165: 0 | O165: 259.6159983
A166: 1 | B166: 4 | C166: Total | D166: =SUM(D146:D165) -> 205 | E166: 2 | F166: 197.6255944 | G166: =IFERROR(I166/F166,0) -> 394.827402 | H166: =IFERROR(SUM(H146:H165)/K166,0) -> 0 | I166: =SUM(I146:I165) -> 78028 | J166: =SUM(J146:J165) -> 197.6255944 | K166: =IFERROR(#REF!/#REF!,0) -> 0 | L166: =IFERROR(SUM(L146:L165)/#REF!,0) -> 0
A167: 1
A168: 1
A169: 1
A170: 1
A171: =$A$31 -> 0 | C171: =$C$31 -> 
A172: =A$171 -> 0 | D172: Establishment Structure | F172: Previous Financial Year | J172: Medium-term expenditure estimates
A173: 0 | D173: As at 31 March 2023 | F173: =LEFT($D$3,4)-1 & "/" & RIGHT($D$3,2)-1 -> 2022/23
A174: 0 | C174: Salary level | D174: Total number of funded posts | E174: of which: number of funded posts additional to the establishment | F174: FTE Headcount | G174: Unit Costs | H174: of which: Once-off Payments per person | I174: Total Annual Cost | J174: Initial Headcount | K174: Unit Costs | L174: of which: Once-off Payments per person
A175: 0 | B175: 5 | C175: 1 | D175: 0 | E175: 0 | F175: 0 | G175: =IFERROR(IF(I175=0,O175,I175/F175),0) -> 99.95105925 | H175: =1220/1000*12 -> 14.64 | I175: 0 | J175: 0 | K175: 0 | O175: 99.95105925
A176: 0 | B176: 5 | C176: 2 | D176: 0 | E176: 0 | F176: 0 | G176: =IFERROR(IF(I176=0,O176,I176/F176),0) -> 179.5147433 | H176: =1220/1000*12 -> 14.64 | I176: 0 | J176: 0 | K176: 0 | O176: 179.5147433
A177: 0 | B177: 5 | C177: 3 | D177: 0 | E177: 0 | F177: 0 | G177: 216.6722944 | H177: =1220/1000*12 -> 14.64 | I177: 0 | J177: 0 | K177: 0 | O177: 216.6722944
A178: 0 | B178: 5 | C178: 4 | D178: 0 | E178: 0 | F178: 0 | G178: 236.0392102 | H178: =1220/1000*12 -> 14.64 | I178: 0 | J178: 0 | K178: 0 | O178: 236.0392102
A179: 0 | B179: 5 | C179: 5 | D179: 0 | E179: 0 | F179: 0 | G179: 290.5081548 | H179: =1220/1000*12 -> 14.64 | I179: 0 | J179: 0 | K179: 0 | O179: 290.5081548
A180: 0 | B180: 5 | C180: 6 | D180: 0 | E180: 0 | F180: 0 | G180: 341.7085708 | H180: =1352/1000*12 -> 16.224 | I180: 0 | J180: 0 | K180: 0 | O180: 341.7085708
A181: 0 | B181: 5 | C181: 7 | D181: 0 | E181: 0 | F181: 0 | G181: 455.5004418 | H181: =1352/1000*12 -> 16.224 | I181: 0 | J181: 0 | K181: 0 | O181: 455.5004418
A182: 0 | B182: 5 | C182: 8 | D182: 0 | E182: 0 | F182: 0 | G182: 520.4674487 | H182: =1450/1000*12 -> 17.4 | I182: 0 | J182: 0 | K182: 0 | O182: 520.4674487
A183: 0 | B183: 5 | C183: 9 | D183: 0 | E183: 0 | F183: 0 | G183: 586.4171069 | H183: =1450/1000*12 -> 17.4 | I183: 0 | J183: 0 | K183: 0 | O183: 586.4171069
A184: 0 | B184: 5 | C184: 10 | D184: 0 | E184: 0 | F184: 0 | G184: 699.4852566 | H184: =1640/1000*12 -> 19.68 | I184: 0 | J184: 0 | K184: 0 | O184: 699.4852566
A185: 0 | B185: 5 | C185: 11 | D185: 0 | E185: 0 | F185: 0 | G185: 799.6834333 | H185: =1640/1000*12 -> 19.68 | I185: 0 | J185: 0 | K185: 0 | O185: 799.6834333
A186: 0 | B186: 5 | C186: 12 | D186: 0 | E186: 0 | F186: 0 | G186: 1014.272904 | H186: =1695/1000*12 -> 20.34 | I186: 0 | J186: 0 | K186: 0 | O186: 1014.272904
A187: 0 | B187: 5 | C187: 13 | D187: 0 | E187: 0 | F187: 0 | G187: 1152.258047 | H187: =1695/1000*12 -> 20.34 | I187: 0 | J187: 0 | K187: 0 | O187: 1152.258047
A188: 0 | B188: 5 | C188: 14 | D188: 0 | E188: 0 | F188: 0 | G188: 1409.161406 | H188: 20.34 | I188: 0 | J188: 0 | K188: 0 | O188: 1409.161406
A189: 0 | B189: 5 | C189: 15 | D189: 0 | E189: 0 | F189: 0 | G189: 1703.285814 | H189: 20.34 | I189: 0 | J189: 0 | K189: 0 | O189: 1703.285814
A190: 0 | B190: 5 | C190: 16 | D190: 0 | E190: 0 | F190: 0 | G190: 2168.595147 | H190: =1818/1000*12 -> 21.816 | I190: 0 | J190: 0 | K190: 0 | O190: 2168.595147
A191: 0 | B191: 5 | C191: Other | D191: 0 | E191: 0 | F191: 0 | G191: 2007.461925 | I191: 0 | J191: 0 | K191: 0 | O191: 2007.461925
A192: 0 | B192: 5 | C192: Other | D192: 0 | E192: 0 | F192: 0 | G192: 2437.657495 | I192: 0 | J192: 0 | K192: 0 | O192: 2437.657495
A193: 0 | B193: 5 | C193: Other | D193: 0 | E193: 0 | F193: 0 | G193: 259.6159983 | I193: 0 | J193: 0 | K193: 0 | O193: 259.6159983
A194: 0 | B194: 5 | C194: Other | D194: 0 | E194: 0 | F194: 0 | G194: 259.6159983 | I194: 0 | J194: 0 | K194: 0 | O194: 259.6159983
A195: 0 | B195: 5 | C195: Total | D195: =SUM(D175:D194) -> 0 | E195: 0 | F195: 0 | G195: =IFERROR(I195/F195,0) -> 0 | H195: =IFERROR(SUM(H175:H194)/K195,0) -> 0 | I195: =SUM(I175:I194) -> 0 | J195: =SUM(J175:J194) -> 0 | K195: =IFERROR(#REF!/#REF!,0) -> 0 | L195: =IFERROR(SUM(L175:L194)/#REF!,0) -> 0
A196: 0
A197: 0
A198: 0
A199: 0
A200: =$A$32 -> 0 | C200: =$C$32 -> 
... 314 more rows

Sheet 6 (hidden)
A1: Filter | C1: HUMAN RESOURCE BUDGET PLAN | K1: 1
A2: 1
A3: 1 | C3: Financial Year: | D3: 2023/24
A4: 1 | C4: Sphere of Government: | D4: National
A5: 1 | C5: Name of Department: | D5: Vote 06: International Relations and Cooperation
A6: -14
A7: -13
A8: -12
A9: -11
A10: -10
A11: -9
A12: -8
A13: -7
A14: -6
A15: -5
A16: -4
A17: -3
A18: -2
A19: -1
A20: 0
A21: 1
A22: 1 | C22: Department Summary Details
A23: 1
A24: 1 | D24: Establishment Structure | F24: Previous Financial Year | J24: Medium-term expenditure estimates
A25: 1 | D25: As at 31 March 2023 | F25: =LEFT($D$3,4)-1 & "/" & RIGHT($D$3,2)-1 -> 2022/23
A26: 1 | C26: Programmes | D26: Total number of funded posts | E26: of which: number of funded posts additional to the establishment | F26: FTE Headcount | G26: Unit Costs | H26: of which: Once-off Payments per person | I26: Total Annual Cost | J26: Initial Headcount | K26: Unit Costs | L26: of which: Once-off Payments per person
A27: 1 | B27: =IF(LEN(C27)>2,ROW()-26,"") -> 1 | C27: Administration | D27: =IF($C27="",0,OFFSET($C55,MATCH($C27,$C$55:$C$514,0)+24-SUM($A$27:$A27),COLUMN(D$1)-3)) -> 744 | E27: =IF($C27="",0,OFFSET($C55,MATCH($C27,$C$55:$C$514,0)+24-SUM($A$27:$A27),COLUMN(E$1)-3)) -> 12 | F27: =IF($C27="",0,OFFSET($C55,MATCH($C27,$C$55:$C$514,0)+24-SUM($A$27:$A27),COLUMN(F$1)-3)) -> 768.2878814 | G27: =IF($C27="",0,OFFSET($C55,MATCH($C27,$C$55:$C$514,0)+24-SUM($A$27:$A27),COLUMN(G$1)-3)) -> 656.9373437 | H27: =IF($C27="",0,OFFSET($C55,MATCH($C27,$C$55:$C$514,0)+24-SUM($A$27:$A27),COLUMN(H$1)-3)) -> 0 | I27: =IF($C27="",0,OFFSET($C55,MATCH($C27,$C$55:$C$514,0)+24-SUM($A$27:$A27),COLUMN(I$1)-3)) -> 504717 | J27: =IF($C27="",0,OFFSET($C55,MATCH($C27,$C$55:$C$514,0)+24-SUM($A$27:$A27),COLUMN(J$1)-3)) -> 768.2878814 | K27: =IF($C27="",0,OFFSET($C55,MATCH($C27,$C$55:$C$514,0)+24-SUM($A$27:$A27),COLUMN(K$1)-3)) -> 0 | L27: =IF($C27="",0,OFFSET($C55,MATCH($C27,$C$55:$C$514,0)+24-SUM($A$27:$A27),COLUMN(L$1)-3)) -> 0
A28: =IF(LEN(C28)>1,1,0) -> 1 | B28: 2 | C28: International Relations | D28: =IF($C28="",0,OFFSET($C56,MATCH($C28,$C$55:$C$514,0)+24-SUM($A$27:$A28),COLUMN(D$1)-3)) -> 1972 | E28: =IF($C28="",0,OFFSET($C56,MATCH($C28,$C$55:$C$514,0)+24-SUM($A$27:$A28),COLUMN(E$1)-3)) -> 0 | F28: =IF($C28="",0,OFFSET($C56,MATCH($C28,$C$55:$C$514,0)+24-SUM($A$27:$A28),COLUMN(F$1)-3)) -> 2041.757724 | G28: =IF($C28="",0,OFFSET($C56,MATCH($C28,$C$55:$C$514,0)+24-SUM($A$27:$A28),COLUMN(G$1)-3)) -> 978.3844463 | H28: =IF($C28="",0,OFFSET($C56,MATCH($C28,$C$55:$C$514,0)+24-SUM($A$27:$A28),COLUMN(H$1)-3)) -> 0 | I28: =IF($C28="",0,OFFSET($C56,MATCH($C28,$C$55:$C$514,0)+24-SUM($A$27:$A28),COLUMN(I$1)-3)) -> 1997624 | J28: =IF($C28="",0,OFFSET($C56,MATCH($C28,$C$55:$C$514,0)+24-SUM($A$27:$A28),COLUMN(J$1)-3)) -> 2041.757724 | K28: =IF($C28="",0,OFFSET($C56,MATCH($C28,$C$55:$C$514,0)+24-SUM($A$27:$A28),COLUMN(K$1)-3)) -> 0 | L28: =IF($C28="",0,OFFSET($C56,MATCH($C28,$C$55:$C$514,0)+24-SUM($A$27:$A28),COLUMN(L$1)-3)) -> 0
A29: 1 | B29: 3 | C29: International Cooperation | D29: =IF($C29="",0,OFFSET($C57,MATCH($C29,$C$55:$C$514,0)+24-SUM($A$27:$A29),COLUMN(D$1)-3)) -> 302 | E29: =IF($C29="",0,OFFSET($C57,MATCH($C29,$C$55:$C$514,0)+24-SUM($A$27:$A29),COLUMN(E$1)-3)) -> 1 | F29: =IF($C29="",0,OFFSET($C57,MATCH($C29,$C$55:$C$514,0)+24-SUM($A$27:$A29),COLUMN(F$1)-3)) -> 312.0734821 | G29: =IF($C29="",0,OFFSET($C57,MATCH($C29,$C$55:$C$514,0)+24-SUM($A$27:$A29),COLUMN(G$1)-3)) -> 1091.544202 | H29: =IF($C29="",0,OFFSET($C57,MATCH($C29,$C$55:$C$514,0)+24-SUM($A$27:$A29),COLUMN(H$1)-3)) -> 0 | I29: =IF($C29="",0,OFFSET($C57,MATCH($C29,$C$55:$C$514,0)+24-SUM($A$27:$A29),COLUMN(I$1)-3)) -> 340642 | J29: =IF($C29="",0,OFFSET($C57,MATCH($C29,$C$55:$C$514,0)+24-SUM($A$27:$A29),COLUMN(J$1)-3)) -> 312.0734821 | K29: =IF($C29="",0,OFFSET($C57,MATCH($C29,$C$55:$C$514,0)+24-SUM($A$27:$A29),COLUMN(K$1)-3)) -> 0 | L29: =IF($C29="",0,OFFSET($C57,MATCH($C29,$C$55:$C$514,0)+24-SUM($A$27:$A29),COLUMN(L$1)-3)) -> 0
A30: 1 | B30: 4 | C30: Public Diplomacy and Protocol Services | D30: =IF($C30="",0,OFFSET($C58,MATCH($C30,$C$55:$C$514,0)+24-SUM($A$27:$A30),COLUMN(D$1)-3)) -> 260 | E30: =IF($C30="",0,OFFSET($C58,MATCH($C30,$C$55:$C$514,0)+24-SUM($A$27:$A30),COLUMN(E$1)-3)) -> 0 | F30: =IF($C30="",0,OFFSET($C58,MATCH($C30,$C$55:$C$514,0)+24-SUM($A$27:$A30),COLUMN(F$1)-3)) -> 267.895131 | G30: =IF($C30="",0,OFFSET($C58,MATCH($C30,$C$55:$C$514,0)+24-SUM($A$27:$A30),COLUMN(G$1)-3)) -> 681.6174647 | H30: =IF($C30="",0,OFFSET($C58,MATCH($C30,$C$55:$C$514,0)+24-SUM($A$27:$A30),COLUMN(H$1)-3)) -> 0 | I30: =IF($C30="",0,OFFSET($C58,MATCH($C30,$C$55:$C$514,0)+24-SUM($A$27:$A30),COLUMN(I$1)-3)) -> 182602 | J30: =IF($C30="",0,OFFSET($C58,MATCH($C30,$C$55:$C$514,0)+24-SUM($A$27:$A30),COLUMN(J$1)-3)) -> 267.895131 | K30: =IF($C30="",0,OFFSET($C58,MATCH($C30,$C$55:$C$514,0)+24-SUM($A$27:$A30),COLUMN(K$1)-3)) -> 0 | L30: =IF($C30="",0,OFFSET($C58,MATCH($C30,$C$55:$C$514,0)+24-SUM($A$27:$A30),COLUMN(L$1)-3)) -> 0
A31: 0 | D31: =IF($C31="",0,OFFSET($C59,MATCH($C31,$C$55:$C$514,0)+24-SUM($A$27:$A31),COLUMN(D$1)-3)) -> 0 | E31: =IF($C31="",0,OFFSET($C59,MATCH($C31,$C$55:$C$514,0)+24-SUM($A$27:$A31),COLUMN(E$1)-3)) -> 0 | F31: =IF($C31="",0,OFFSET($C59,MATCH($C31,$C$55:$C$514,0)+24-SUM($A$27:$A31),COLUMN(F$1)-3)) -> 0 | G31: =IF($C31="",0,OFFSET($C59,MATCH($C31,$C$55:$C$514,0)+24-SUM($A$27:$A31),COLUMN(G$1)-3)) -> 0 | H31: =IF($C31="",0,OFFSET($C59,MATCH($C31,$C$55:$C$514,0)+24-SUM($A$27:$A31),COLUMN(H$1)-3)) -> 0 | I31: =IF($C31="",0,OFFSET($C59,MATCH($C31,$C$55:$C$514,0)+24-SUM($A$27:$A31),COLUMN(I$1)-3)) -> 0 | J31: =IF($C31="",0,OFFSET($C59,MATCH($C31,$C$55:$C$514,0)+24-SUM($A$27:$A31),COLUMN(J$1)-3)) -> 0 | K31: =IF($C31="",0,OFFSET($C59,MATCH($C31,$C$55:$C$514,0)+24-SUM($A$27:$A31),COLUMN(K$1)-3)) -> 0 | L31: =IF($C31="",0,OFFSET($C59,MATCH($C31,$C$55:$C$514,0)+24-SUM($A$27:$A31),COLUMN(L$1)-3)) -> 0
A32: 0 | D32: =IF($C32="",0,OFFSET($C60,MATCH($C32,$C$55:$C$514,0)+24-SUM($A$27:$A32),COLUMN(D$1)-3)) -> 0 | E32: =IF($C32="",0,OFFSET($C60,MATCH($C32,$C$55:$C$514,0)+24-SUM($A$27:$A32),COLUMN(E$1)-3)) -> 0 | F32: =IF($C32="",0,OFFSET($C60,MATCH($C32,$C$55:$C$514,0)+24-SUM($A$27:$A32),COLUMN(F$1)-3)) -> 0 | G32: =IF($C32="",0,OFFSET($C60,MATCH($C32,$C$55:$C$514,0)+24-SUM($A$27:$A32),COLUMN(G$1)-3)) -> 0 | H32: =IF($C32="",0,OFFSET($C60,MATCH($C32,$C$55:$C$514,0)+24-SUM($A$27:$A32),COLUMN(H$1)-3)) -> 0 | I32: =IF($C32="",0,OFFSET($C60,MATCH($C32,$C$55:$C$514,0)+24-SUM($A$27:$A32),COLUMN(I$1)-3)) -> 0 | J32: =IF($C32="",0,OFFSET($C60,MATCH($C32,$C$55:$C$514,0)+24-SUM($A$27:$A32),COLUMN(J$1)-3)) -> 0 | K32: =IF($C32="",0,OFFSET($C60,MATCH($C32,$C$55:$C$514,0)+24-SUM($A$27:$A32),COLUMN(K$1)-3)) -> 0 | L32: =IF($C32="",0,OFFSET($C60,MATCH($C32,$C$55:$C$514,0)+24-SUM($A$27:$A32),COLUMN(L$1)-3)) -> 0
A33: 0 | D33: =IF($C33="",0,OFFSET($C61,MATCH($C33,$C$55:$C$514,0)+24-SUM($A$27:$A33),COLUMN(D$1)-3)) -> 0 | E33: =IF($C33="",0,OFFSET($C61,MATCH($C33,$C$55:$C$514,0)+24-SUM($A$27:$A33),COLUMN(E$1)-3)) -> 0 | F33: =IF($C33="",0,OFFSET($C61,MATCH($C33,$C$55:$C$514,0)+24-SUM($A$27:$A33),COLUMN(F$1)-3)) -> 0 | G33: =IF($C33="",0,OFFSET($C61,MATCH($C33,$C$55:$C$514,0)+24-SUM($A$27:$A33),COLUMN(G$1)-3)) -> 0 | H33: =IF($C33="",0,OFFSET($C61,MATCH($C33,$C$55:$C$514,0)+24-SUM($A$27:$A33),COLUMN(H$1)-3)) -> 0 | I33: =IF($C33="",0,OFFSET($C61,MATCH($C33,$C$55:$C$514,0)+24-SUM($A$27:$A33),COLUMN(I$1)-3)) -> 0 | J33: =IF($C33="",0,OFFSET($C61,MATCH($C33,$C$55:$C$514,0)+24-SUM($A$27:$A33),COLUMN(J$1)-3)) -> 0 | K33: =IF($C33="",0,OFFSET($C61,MATCH($C33,$C$55:$C$514,0)+24-SUM($A$27:$A33),COLUMN(K$1)-3)) -> 0 | L33: =IF($C33="",0,OFFSET($C61,MATCH($C33,$C$55:$C$514,0)+24-SUM($A$27:$A33),COLUMN(L$1)-3)) -> 0
A34: 0 | D34: =IF($C34="",0,OFFSET($C62,MATCH($C34,$C$55:$C$514,0)+24-SUM($A$27:$A34),COLUMN(D$1)-3)) -> 0 | E34: =IF($C34="",0,OFFSET($C62,MATCH($C34,$C$55:$C$514,0)+24-SUM($A$27:$A34),COLUMN(E$1)-3)) -> 0 | F34: =IF($C34="",0,OFFSET($C62,MATCH($C34,$C$55:$C$514,0)+24-SUM($A$27:$A34),COLUMN(F$1)-3)) -> 0 | G34: =IF($C34="",0,OFFSET($C62,MATCH($C34,$C$55:$C$514,0)+24-SUM($A$27:$A34),COLUMN(G$1)-3)) -> 0 | H34: =IF($C34="",0,OFFSET($C62,MATCH($C34,$C$55:$C$514,0)+24-SUM($A$27:$A34),COLUMN(H$1)-3)) -> 0 | I34: =IF($C34="",0,OFFSET($C62,MATCH($C34,$C$55:$C$514,0)+24-SUM($A$27:$A34),COLUMN(I$1)-3)) -> 0 | J34: =IF($C34="",0,OFFSET($C62,MATCH($C34,$C$55:$C$514,0)+24-SUM($A$27:$A34),COLUMN(J$1)-3)) -> 0 | K34: =IF($C34="",0,OFFSET($C62,MATCH($C34,$C$55:$C$514,0)+24-SUM($A$27:$A34),COLUMN(K$1)-3)) -> 0 | L34: =IF($C34="",0,OFFSET($C62,MATCH($C34,$C$55:$C$514,0)+24-SUM($A$27:$A34),COLUMN(L$1)-3)) -> 0
A35: 0 | D35: =IF($C35="",0,OFFSET($C63,MATCH($C35,$C$55:$C$514,0)+24-SUM($A$27:$A35),COLUMN(D$1)-3)) -> 0 | E35: =IF($C35="",0,OFFSET($C63,MATCH($C35,$C$55:$C$514,0)+24-SUM($A$27:$A35),COLUMN(E$1)-3)) -> 0 | F35: =IF($C35="",0,OFFSET($C63,MATCH($C35,$C$55:$C$514,0)+24-SUM($A$27:$A35),COLUMN(F$1)-3)) -> 0 | G35: =IF($C35="",0,OFFSET($C63,MATCH($C35,$C$55:$C$514,0)+24-SUM($A$27:$A35),COLUMN(G$1)-3)) -> 0 | H35: =IF($C35="",0,OFFSET($C63,MATCH($C35,$C$55:$C$514,0)+24-SUM($A$27:$A35),COLUMN(H$1)-3)) -> 0 | I35: =IF($C35="",0,OFFSET($C63,MATCH($C35,$C$55:$C$514,0)+24-SUM($A$27:$A35),COLUMN(I$1)-3)) -> 0 | J35: =IF($C35="",0,OFFSET($C63,MATCH($C35,$C$55:$C$514,0)+24-SUM($A$27:$A35),COLUMN(J$1)-3)) -> 0 | K35: =IF($C35="",0,OFFSET($C63,MATCH($C35,$C$55:$C$514,0)+24-SUM($A$27:$A35),COLUMN(K$1)-3)) -> 0 | L35: =IF($C35="",0,OFFSET($C63,MATCH($C35,$C$55:$C$514,0)+24-SUM($A$27:$A35),COLUMN(L$1)-3)) -> 0
A36: 0 | D36: =IF($C36="",0,OFFSET($C64,MATCH($C36,$C$55:$C$514,0)+24-SUM($A$27:$A36),COLUMN(D$1)-3)) -> 0 | E36: =IF($C36="",0,OFFSET($C64,MATCH($C36,$C$55:$C$514,0)+24-SUM($A$27:$A36),COLUMN(E$1)-3)) -> 0 | F36: =IF($C36="",0,OFFSET($C64,MATCH($C36,$C$55:$C$514,0)+24-SUM($A$27:$A36),COLUMN(F$1)-3)) -> 0 | G36: =IF($C36="",0,OFFSET($C64,MATCH($C36,$C$55:$C$514,0)+24-SUM($A$27:$A36),COLUMN(G$1)-3)) -> 0 | H36: =IF($C36="",0,OFFSET($C64,MATCH($C36,$C$55:$C$514,0)+24-SUM($A$27:$A36),COLUMN(H$1)-3)) -> 0 | I36: =IF($C36="",0,OFFSET($C64,MATCH($C36,$C$55:$C$514,0)+24-SUM($A$27:$A36),COLUMN(I$1)-3)) -> 0 | J36: =IF($C36="",0,OFFSET($C64,MATCH($C36,$C$55:$C$514,0)+24-SUM($A$27:$A36),COLUMN(J$1)-3)) -> 0 | K36: =IF($C36="",0,OFFSET($C64,MATCH($C36,$C$55:$C$514,0)+24-SUM($A$27:$A36),COLUMN(K$1)-3)) -> 0 | L36: =IF($C36="",0,OFFSET($C64,MATCH($C36,$C$55:$C$514,0)+24-SUM($A$27:$A36),COLUMN(L$1)-3)) -> 0
A37: 0 | D37: =IF($C37="",0,OFFSET($C65,MATCH($C37,$C$55:$C$514,0)+24-SUM($A$27:$A37),COLUMN(D$1)-3)) -> 0 | E37: =IF($C37="",0,OFFSET($C65,MATCH($C37,$C$55:$C$514,0)+24-SUM($A$27:$A37),COLUMN(E$1)-3)) -> 0 | F37: =IF($C37="",0,OFFSET($C65,MATCH($C37,$C$55:$C$514,0)+24-SUM($A$27:$A37),COLUMN(F$1)-3)) -> 0 | G37: =IF($C37="",0,OFFSET($C65,MATCH($C37,$C$55:$C$514,0)+24-SUM($A$27:$A37),COLUMN(G$1)-3)) -> 0 | H37: =IF($C37="",0,OFFSET($C65,MATCH($C37,$C$55:$C$514,0)+24-SUM($A$27:$A37),COLUMN(H$1)-3)) -> 0 | I37: =IF($C37="",0,OFFSET($C65,MATCH($C37,$C$55:$C$514,0)+24-SUM($A$27:$A37),COLUMN(I$1)-3)) -> 0 | J37: =IF($C37="",0,OFFSET($C65,MATCH($C37,$C$55:$C$514,0)+24-SUM($A$27:$A37),COLUMN(J$1)-3)) -> 0 | K37: =IF($C37="",0,OFFSET($C65,MATCH($C37,$C$55:$C$514,0)+24-SUM($A$27:$A37),COLUMN(K$1)-3)) -> 0 | L37: =IF($C37="",0,OFFSET($C65,MATCH($C37,$C$55:$C$514,0)+24-SUM($A$27:$A37),COLUMN(L$1)-3)) -> 0
A38: 0 | D38: =IF($C38="",0,OFFSET($C66,MATCH($C38,$C$55:$C$514,0)+24-SUM($A$27:$A38),COLUMN(D$1)-3)) -> 0 | E38: =IF($C38="",0,OFFSET($C66,MATCH($C38,$C$55:$C$514,0)+24-SUM($A$27:$A38),COLUMN(E$1)-3)) -> 0 | F38: =IF($C38="",0,OFFSET($C66,MATCH($C38,$C$55:$C$514,0)+24-SUM($A$27:$A38),COLUMN(F$1)-3)) -> 0 | G38: =IF($C38="",0,OFFSET($C66,MATCH($C38,$C$55:$C$514,0)+24-SUM($A$27:$A38),COLUMN(G$1)-3)) -> 0 | H38: =IF($C38="",0,OFFSET($C66,MATCH($C38,$C$55:$C$514,0)+24-SUM($A$27:$A38),COLUMN(H$1)-3)) -> 0 | I38: =IF($C38="",0,OFFSET($C66,MATCH($C38,$C$55:$C$514,0)+24-SUM($A$27:$A38),COLUMN(I$1)-3)) -> 0 | J38: =IF($C38="",0,OFFSET($C66,MATCH($C38,$C$55:$C$514,0)+24-SUM($A$27:$A38),COLUMN(J$1)-3)) -> 0 | K38: =IF($C38="",0,OFFSET($C66,MATCH($C38,$C$55:$C$514,0)+24-SUM($A$27:$A38),COLUMN(K$1)-3)) -> 0 | L38: =IF($C38="",0,OFFSET($C66,MATCH($C38,$C$55:$C$514,0)+24-SUM($A$27:$A38),COLUMN(L$1)-3)) -> 0
A39: 0 | D39: =IF($C39="",0,OFFSET($C67,MATCH($C39,$C$55:$C$514,0)+24-SUM($A$27:$A39),COLUMN(D$1)-3)) -> 0 | E39: =IF($C39="",0,OFFSET($C67,MATCH($C39,$C$55:$C$514,0)+24-SUM($A$27:$A39),COLUMN(E$1)-3)) -> 0 | F39: =IF($C39="",0,OFFSET($C67,MATCH($C39,$C$55:$C$514,0)+24-SUM($A$27:$A39),COLUMN(F$1)-3)) -> 0 | G39: =IF($C39="",0,OFFSET($C67,MATCH($C39,$C$55:$C$514,0)+24-SUM($A$27:$A39),COLUMN(G$1)-3)) -> 0 | H39: =IF($C39="",0,OFFSET($C67,MATCH($C39,$C$55:$C$514,0)+24-SUM($A$27:$A39),COLUMN(H$1)-3)) -> 0 | I39: =IF($C39="",0,OFFSET($C67,MATCH($C39,$C$55:$C$514,0)+24-SUM($A$27:$A39),COLUMN(I$1)-3)) -> 0 | J39: =IF($C39="",0,OFFSET($C67,MATCH($C39,$C$55:$C$514,0)+24-SUM($A$27:$A39),COLUMN(J$1)-3)) -> 0 | K39: =IF($C39="",0,OFFSET($C67,MATCH($C39,$C$55:$C$514,0)+24-SUM($A$27:$A39),COLUMN(K$1)-3)) -> 0 | L39: =IF($C39="",0,OFFSET($C67,MATCH($C39,$C$55:$C$514,0)+24-SUM($A$27:$A39),COLUMN(L$1)-3)) -> 0
A40: 0 | D40: =IF($C40="",0,OFFSET($C68,MATCH($C40,$C$55:$C$514,0)+24-SUM($A$27:$A40),COLUMN(D$1)-3)) -> 0 | E40: =IF($C40="",0,OFFSET($C68,MATCH($C40,$C$55:$C$514,0)+24-SUM($A$27:$A40),COLUMN(E$1)-3)) -> 0 | F40: =IF($C40="",0,OFFSET($C68,MATCH($C40,$C$55:$C$514,0)+24-SUM($A$27:$A40),COLUMN(F$1)-3)) -> 0 | G40: =IF($C40="",0,OFFSET($C68,MATCH($C40,$C$55:$C$514,0)+24-SUM($A$27:$A40),COLUMN(G$1)-3)) -> 0 | H40: =IF($C40="",0,OFFSET($C68,MATCH($C40,$C$55:$C$514,0)+24-SUM($A$27:$A40),COLUMN(H$1)-3)) -> 0 | I40: =IF($C40="",0,OFFSET($C68,MATCH($C40,$C$55:$C$514,0)+24-SUM($A$27:$A40),COLUMN(I$1)-3)) -> 0 | J40: =IF($C40="",0,OFFSET($C68,MATCH($C40,$C$55:$C$514,0)+24-SUM($A$27:$A40),COLUMN(J$1)-3)) -> 0 | K40: =IF($C40="",0,OFFSET($C68,MATCH($C40,$C$55:$C$514,0)+24-SUM($A$27:$A40),COLUMN(K$1)-3)) -> 0 | L40: =IF($C40="",0,OFFSET($C68,MATCH($C40,$C$55:$C$514,0)+24-SUM($A$27:$A40),COLUMN(L$1)-3)) -> 0
A41: 0 | D41: =IF($C41="",0,OFFSET($C69,MATCH($C41,$C$55:$C$514,0)+24-SUM($A$27:$A41),COLUMN(D$1)-3)) -> 0 | E41: =IF($C41="",0,OFFSET($C69,MATCH($C41,$C$55:$C$514,0)+24-SUM($A$27:$A41),COLUMN(E$1)-3)) -> 0 | F41: =IF($C41="",0,OFFSET($C69,MATCH($C41,$C$55:$C$514,0)+24-SUM($A$27:$A41),COLUMN(F$1)-3)) -> 0 | G41: =IF($C41="",0,OFFSET($C69,MATCH($C41,$C$55:$C$514,0)+24-SUM($A$27:$A41),COLUMN(G$1)-3)) -> 0 | H41: =IF($C41="",0,OFFSET($C69,MATCH($C41,$C$55:$C$514,0)+24-SUM($A$27:$A41),COLUMN(H$1)-3)) -> 0 | I41: =IF($C41="",0,OFFSET($C69,MATCH($C41,$C$55:$C$514,0)+24-SUM($A$27:$A41),COLUMN(I$1)-3)) -> 0 | J41: =IF($C41="",0,OFFSET($C69,MATCH($C41,$C$55:$C$514,0)+24-SUM($A$27:$A41),COLUMN(J$1)-3)) -> 0 | K41: =IF($C41="",0,OFFSET($C69,MATCH($C41,$C$55:$C$514,0)+24-SUM($A$27:$A41),COLUMN(K$1)-3)) -> 0 | L41: =IF($C41="",0,OFFSET($C69,MATCH($C41,$C$55:$C$514,0)+24-SUM($A$27:$A41),COLUMN(L$1)-3)) -> 0
A42: 0 | D42: =IF($C42="",0,OFFSET($C70,MATCH($C42,$C$55:$C$514,0)+24-SUM($A$27:$A42),COLUMN(D$1)-3)) -> 0 | E42: =IF($C42="",0,OFFSET($C70,MATCH($C42,$C$55:$C$514,0)+24-SUM($A$27:$A42),COLUMN(E$1)-3)) -> 0 | F42: =IF($C42="",0,OFFSET($C70,MATCH($C42,$C$55:$C$514,0)+24-SUM($A$27:$A42),COLUMN(F$1)-3)) -> 0 | G42: =IF($C42="",0,OFFSET($C70,MATCH($C42,$C$55:$C$514,0)+24-SUM($A$27:$A42),COLUMN(G$1)-3)) -> 0 | H42: =IF($C42="",0,OFFSET($C70,MATCH($C42,$C$55:$C$514,0)+24-SUM($A$27:$A42),COLUMN(H$1)-3)) -> 0 | I42: =IF($C42="",0,OFFSET($C70,MATCH($C42,$C$55:$C$514,0)+24-SUM($A$27:$A42),COLUMN(I$1)-3)) -> 0 | J42: =IF($C42="",0,OFFSET($C70,MATCH($C42,$C$55:$C$514,0)+24-SUM($A$27:$A42),COLUMN(J$1)-3)) -> 0 | K42: =IF($C42="",0,OFFSET($C70,MATCH($C42,$C$55:$C$514,0)+24-SUM($A$27:$A42),COLUMN(K$1)-3)) -> 0 | L42: =IF($C42="",0,OFFSET($C70,MATCH($C42,$C$55:$C$514,0)+24-SUM($A$27:$A42),COLUMN(L$1)-3)) -> 0
A43: 1 | C43: Total | D43: =SUM(D23:D42) -> 3278 | E43: =SUM(E23:E42) -> 13 | F43: =SUM(F23:F42) -> 3390.014218 | G43: =IFERROR(I43/F43,0) -> 892.4992066 | H43: =IFERROR(SUM(H27:H42)/COUNTIF(H27:H42,">0"),0) -> 0 | I43: =SUM(I23:I42) -> 3025585 | J43: =SUM(J23:J42) -> 3390.014218 | K43: =IFERROR(#REF!/#REF!,0) -> 0 | L43: =IFERROR(SUM(L27:L42)/COUNTIF(L27:L42,">0"),0) -> 0
A44: 1 | C44: Salary Bands
A45: 1 | C45: 1 - 6 | D45: =SUMIFS(D$55:D$514,$C$55:$C$514,">=1",$C$55:$C$514,"<=6") -> 232 | E45: =SUMIFS(E$55:E$514,$C$55:$C$514,">=1",$C$55:$C$514,"<=6") -> 1 | F45: =SUMIFS(F$55:F$514,$C$55:$C$514,">=1",$C$55:$C$514,"<=6") -> 222.995 | G45: =IFERROR(I45/F45,0) -> 382.6408664 | H45: =IFERROR(SUMIFS(H$55:H$514,$B$55:$B$514,">=1",$C$55:$C$514,"<>Total",$C$55:$C$514,">=1",$C$55:$C$514,"<=6")/COUNTIFS($B$55:$B$514,">=1",$C$55:$C$514,">=1",$C$55:$C$514,"<=6",#REF!,">0"),0) -> 0 | I45: =SUMIFS(I$55:I$514,$C$55:$C$514,">=1",$C$55:$C$514,"<=6") -> 85327 | J45: =SUMIFS(J$55:J$514,$C$55:$C$514,">=1",$C$55:$C$514,"<=6") -> 222.995 | K45: =IFERROR(#REF!/#REF!,0) -> 0 | L45: =IFERROR(SUMIFS(L$55:L$514,$B$55:$B$514,">=1",$C$55:$C$514,"<>Total",$C$55:$C$514,">=1",$C$55:$C$514,"<=6")/COUNTIFS($B$55:$B$514,">=1",$C$55:$C$514,">=1",$C$55:$C$514,"<=6",#REF!,">0"),0) -> 0
A46: 1 | C46: 7 - 10 | D46: =SUMIFS(D$55:D$514,$C$55:$C$514,">=7",$C$55:$C$514,"<=10") -> 1137 | E46: =SUMIFS(E$55:E$514,$C$55:$C$514,">=7",$C$55:$C$514,"<=10") -> 2 | F46: =SUMIFS(F$55:F$514,$C$55:$C$514,">=7",$C$55:$C$514,"<=10") -> 1160.368445 | G46: 805.6854732 | H46: =IFERROR(SUMIFS(H$55:H$514,$B$55:$B$514,">=1",$C$55:$C$514,"<>Total",$C$55:$C$514,">=7",$C$55:$C$514,"<=10")/COUNTIFS($B$55:$B$514,">=1",$C$55:$C$514,">=7",$C$55:$C$514,"<=10",#REF!,">0"),0) -> 0 | I46: =SUMIFS(I$55:I$514,$C$55:$C$514,">=7",$C$55:$C$514,"<=10") -> 934892 | J46: =SUMIFS(J$55:J$514,$C$55:$C$514,">=7",$C$55:$C$514,"<=10") -> 1160.368445 | K46: =IFERROR(#REF!/#REF!,0) -> 0 | L46: =IFERROR(SUMIFS(L$55:L$514,$B$55:$B$514,">=1",$C$55:$C$514,"<>Total",$C$55:$C$514,">=7",$C$55:$C$514,"<=10")/COUNTIFS($B$55:$B$514,">=1",$C$55:$C$514,">=7",$C$55:$C$514,"<=10",#REF!,">0"),0) -> 0
A47: 1 | C47: 11 - 12 | D47: =SUMIFS(D$55:D$514,$C$55:$C$514,">=11",$C$55:$C$514,"<=12") -> 333 | E47: =SUMIFS(E$55:E$514,$C$55:$C$514,">=11",$C$55:$C$514,"<=12") -> 2 | F47: =SUMIFS(F$55:F$514,$C$55:$C$514,">=11",$C$55:$C$514,"<=12") -> 325.8504156 | G47: 1542.416323 | H47: =IFERROR(SUMIFS(H$55:H$514,$B$55:$B$514,">=1",$C$55:$C$514,"<>Total",$C$55:$C$514,">=11",$C$55:$C$514,"<=12")/COUNTIFS($B$55:$B$514,">=1",$C$55:$C$514,">=11",$C$55:$C$514,"<=12",#REF!,">0"),0) -> 0 | I47: =SUMIFS(I$55:I$514,$C$55:$C$514,">=11",$C$55:$C$514,"<=12") -> 502597 | J47: =SUMIFS(J$55:J$514,$C$55:$C$514,">=11",$C$55:$C$514,"<=12") -> 325.8504156 | K47: =IFERROR(#REF!/#REF!,0) -> 0 | L47: =IFERROR(SUMIFS(L$55:L$514,$B$55:$B$514,">=1",$C$55:$C$514,"<>Total",$C$55:$C$514,">=11",$C$55:$C$514,"<=12")/COUNTIFS($B$55:$B$514,">=1",$C$55:$C$514,">=11",$C$55:$C$514,"<=12",#REF!,">0"),0) -> 0
A48: 1 | C48: 13 - 16 | D48: =SUMIFS(D$55:D$514,$C$55:$C$514,">=13",$C$55:$C$514,"<=16") -> 247 | E48: =SUMIFS(E$55:E$514,$C$55:$C$514,">=13",$C$55:$C$514,"<=16") -> 8 | F48: =SUMIFS(F$55:F$514,$C$55:$C$514,">=13",$C$55:$C$514,"<=16") -> 222.8003571 | G48: 2134.897835 | H48: =IFERROR(SUMIFS(H$55:H$514,$B$55:$B$514,">=1",$C$55:$C$514,"<>Total",$C$55:$C$514,">=13",$C$55:$C$514,"<=16")/COUNTIFS($B$55:$B$514,">=1",$C$55:$C$514,">=13",$C$55:$C$514,"<=16",#REF!,">0"),0) -> 0 | I48: =SUMIFS(I$55:I$514,$C$55:$C$514,">=13",$C$55:$C$514,"<=16") -> 475656 | J48: =SUMIFS(J$55:J$514,$C$55:$C$514,">=13",$C$55:$C$514,"<=16") -> 222.8003571 | K48: =IFERROR(#REF!/#REF!,0) -> 0 | L48: =IFERROR(SUMIFS(L$55:L$514,$B$55:$B$514,">=1",$C$55:$C$514,"<>Total",$C$55:$C$514,">=13",$C$55:$C$514,"<=16")/COUNTIFS($B$55:$B$514,">=1",$C$55:$C$514,">=13",$C$55:$C$514,"<=16",#REF!,">0"),0) -> 0
A49: 1 | C49: Other | D49: =D43-SUM(D45:D48) -> 1329 | E49: =E43-SUM(E45:E48) -> 0 | F49: =F43-SUM(F45:F48) -> 1458 | G49: 704.4670782 | H49: =IFERROR((SUMIFS(H$55:H$514,$B$55:$B$514,">=1",$C$55:$C$514,"<>Total")-SUMIFS(H$55:H$514,$B$55:$B$514,">=1",$C$55:$C$514,"<=16"))/(COUNTIFS($B$55:$B$514,">=1",$C$55:$C$514,"<>Total",#REF!,">0")-COUNTIFS($B$55:$B$514,">=1",$C$55:$C$514,"<=16",#REF!,">0"=(SUMIFS(H$55:H$514,$B$55:$B$514,">=1",$C$55:$C$514,"<>Total")-SUMIFS(H$55:H$514,$B$55:$B$514,">=1",$C$55:$C$514,"<=16"))/(COUNTIFS($B$55:$B$514,">=1",$C$55:$C$514,"<>Total",#REF!,">0")-COUNTIFS($B$55:$B$514,">=1",$C$55:$C$514,"<=16",#REF!,">0")))),0) -> 0 | I49: =I43-SUM(I45:I48) -> 1027113 | J49: =J43-SUM(J45:J48) -> 1458 | K49: =IFERROR(#REF!/#REF!,0) -> 0 | L49: =IFERROR((SUMIFS(L$55:L$514,$B$55:$B$514,">=1",$C$55:$C$514,"<>Total")-SUMIFS(L$55:L$514,$B$55:$B$514,">=1",$C$55:$C$514,"<=16"))/(COUNTIFS($B$55:$B$514,">=1",$C$55:$C$514,"<>Total",#REF!,">0")-COUNTIFS($B$55:$B$514,">=1",$C$55:$C$514,"<=16",#REF!,">0"=(SUMIFS(L$55:L$514,$B$55:$B$514,">=1",$C$55:$C$514,"<>Total")-SUMIFS(L$55:L$514,$B$55:$B$514,">=1",$C$55:$C$514,"<=16"))/(COUNTIFS($B$55:$B$514,">=1",$C$55:$C$514,"<>Total",#REF!,">0")-COUNTIFS($B$55:$B$514,">=1",$C$55:$C$514,"<=16",#REF!,">0")))),0) -> 0
A50: 1 | C50: Total | D50: =SUM(D45:D49) -> 3278 | E50: =SUM(E45:E49) -> 13 | F50: =SUM(F45:F49) -> 3390.014218 | G50: 892.4992066 | H50: =IFERROR(SUMIF($C$55:$C$514,"Total",H$55:H$514)/COUNTIF(H27:H42,">0"),0) -> 0 | I50: =SUM(I45:I49) -> 3025585 | J50: =SUM(J45:J49) -> 3390.014218 | K50: =IFERROR(#REF!/#REF!,0) -> 0 | L50: =IFERROR(SUMIF($C$55:$C$514,"Total",L$55:L$514)/COUNTIF(L27:L42,">0"),0) -> 0
A51: 1 | C51: Checks | D51: =D43-D50 -> 0 | E51: 0 | F51: 0 | G51: 0 | H51: 0 | I51: 0 | J51: 0 | K51: 0 | L51: 0
A52: 1
A53: 1 | C53: Department Programme Details
A54: 1
A55: =$A$27 -> 1 | C55: =$C$27 -> Administration
A56: =A$55 -> 1 | D56: Establishment Structure | F56: Previous Financial Year | J56: Medium-term expenditure estimates
A57: 1 | D57: As at 31 March 2023 | F57: =LEFT($D$3,4)-1 & "/" & RIGHT($D$3,2)-1 -> 2022/23
A58: 1 | B58: ProgNo. | C58: Salary level | D58: Total number of funded posts | E58: of which: number of funded posts additional to the establishment | F58: FTE Headcount | G58: Unit Costs | H58: of which: Once-off Payments per person | I58: Total Annual Cost | J58: Initial Headcount | K58: Unit Costs | L58: of which: Once-off Payments per person
A59: 1 | B59: 1 | C59: 1 | D59: 0 | E59: 0 | F59: 0 | G59: =IFERROR(IF(I59=0,O59,I59/F59),0) -> 99.95105925 | H59: 15 | I59: 0 | J59: 0 | K59: 0 | O59: 99.95105925
A60: 1 | B60: 1 | C60: 2 | D60: 1 | E60: 0 | F60: 1 | G60: =IFERROR(IF(I60=0,O60,I60/F60),0) -> 184 | H60: =1220/1000*12 -> 14.64 | I60: 184 | J60: 1 | K60: 172.7111227 | O60: 179.5147433
A61: 1 | B61: 1 | C61: 3 | D61: 7 | E61: 0 | F61: 6 | G61: 192.6666667 | H61: =1220/1000*12 -> 14.64 | I61: 1156 | J61: 6 | K61: 180.7023603 | O61: 216.6722944
A62: 1 | B62: 1 | C62: 4 | D62: 0 | E62: 0 | F62: 0 | G62: 236.0392102 | H62: =1220/1000*12 -> 14.64 | I62: 0 | J62: 0 | K62: 0 | O62: 236.0392102
A63: 1 | B63: 1 | C63: 5 | D63: 97 | E63: 1 | F63: 99 | G63: 355.7171717 | H63: =1220/1000*12 -> 14.64 | I63: 35216 | J63: 99 | K63: 349.397462 | O63: 290.5081548
A64: 1 | B64: 1 | C64: 6 | D64: 72 | E64: 0 | F64: 69.995 | G64: 357.6398314 | H64: =1352/1000*12 -> 16.224 | I64: 25033 | J64: 69.995 | K64: 349.5781969 | O64: 341.7085708
A65: 1 | B65: 1 | C65: 7 | D65: 126 | E65: 1 | F65: 136 | G65: 445.375 | H65: =1352/1000*12 -> 16.224 | I65: 60571 | J65: 136 | K65: 439.1514415 | O65: 455.5004418
A66: 1 | B66: 1 | C66: 8 | D66: 101 | E66: 0 | F66: 100 | G66: 535.75 | H66: =1450/1000*12 -> 17.4 | I66: 53575 | J66: 100 | K66: 530.0557624 | O66: 520.4674487
A67: 1 | B67: 1 | C67: 9 | D67: 18 | E67: 0 | F67: 20.29288136 | G67: 589.7141855 | H67: =1450/1000*12 -> 17.4 | I67: 11967 | J67: 20.29288136 | K67: 584.091539 | O67: 586.4171069
A68: 1 | B68: 1 | C68: 10 | D68: 158 | E68: 0 | F68: 161 | G68: 690.8819876 | H68: =1640/1000*12 -> 19.68 | I68: 111232 | J68: 161 | K68: 684.4648295 | O68: 699.4852566
A69: 1 | B69: 1 | C69: 11 | D69: 25 | E69: 0 | F69: 25 | G69: 844.8 | H69: =1640/1000*12 -> 19.68 | I69: 21120 | J69: 25 | K69: 838.0953955 | O69: 799.6834333
A70: 1 | B70: 1 | C70: 12 | D70: 76 | E70: 2 | F70: 82 | G70: 1011.987805 | H70: =1695/1000*12 -> 20.34 | I70: 82983 | J70: 82 | K70: 1006.905706 | O70: 1014.272904
A71: 1 | B71: 1 | C71: 13 | D71: 41 | E71: 6 | F71: 44 | G71: 1266.204545 | H71: =1695/1000*12 -> 20.34 | I71: 55713 | J71: 44 | K71: 1264.219289 | O71: 1152.258047
A72: 1 | B72: 1 | C72: 14 | D72: 11 | E72: 2 | F72: 11 | G72: 1573.363636 | H72: 20.34 | I72: 17307 | J72: 11 | K72: 1576.541846 | O72: 1409.161406
A73: 1 | B73: 1 | C73: 15 | D73: 6 | E73: 0 | F73: 5 | G73: 1963.2 | H73: 20.34 | I73: 9816 | J73: 5 | K73: 1972.987968 | O73: 1703.285814
A74: 1 | B74: 1 | C74: 16 | D74: 2 | E74: 0 | F74: 5 | G74: 2340.2 | H74: =1818/1000*12 -> 21.816 | I74: 11701 | J74: 5 | K74: 2353.129393 | O74: 2168.595147
A75: 1 | B75: 1 | C75: Deputy Minister | D75: 2 | E75: 0 | F75: 2 | G75: 2311 | I75: 4622 | J75: 2 | K75: 2345.804293 | O75: 2007.461925
A76: 1 | B76: 1 | C76: Minister | D76: 1 | E76: 0 | F76: 1 | G76: 2521 | I76: 2521 | J76: 1 | K76: 2558.480648 | O76: 2437.657495
A77: 1 | B77: 1 | C77: Other | D77: 0 | E77: 0 | F77: 0 | G77: 259.6159983 | I77: 0 | J77: 0 | K77: 78.87844526 | O77: 259.6159983
A78: 1 | B78: 1 | C78: Other | D78: 0 | E78: 0 | F78: 0 | G78: 259.6159983 | I78: 0 | J78: 0 | K78: 0 | O78: 259.6159983
A79: 1 | B79: 1 | C79: Total | D79: =SUM(D59:D78) -> 744 | E79: 12 | F79: 768.2878814 | G79: =IFERROR(I79/F79,0) -> 656.9373437 | H79: =IFERROR(SUM(H59:H78)/K79,0) -> 0 | I79: =SUM(I59:I78) -> 504717 | J79: =SUM(J59:J78) -> 768.2878814 | K79: =IFERROR(#REF!/#REF!,0) -> 0 | L79: =IFERROR(SUM(L59:L78)/#REF!,0) -> 0
A80: 1
A81: 1
A82: 1
A83: 1
A84: =$A$28 -> 1 | C84: =$C$28 -> International Relations
A85: =A$84 -> 1 | D85: Establishment Structure | F85: Previous Financial Year | J85: Medium-term expenditure estimates
A86: 1 | D86: As at 31 March 2023 | F86: =LEFT($D$3,4)-1 & "/" & RIGHT($D$3,2)-1 -> 2022/23
A87: 1 | C87: Salary level | D87: Total number of funded posts | E87: of which: number of funded posts additional to the establishment | F87: FTE Headcount | G87: Unit Costs | H87: of which: Once-off Payments per person | I87: Total Annual Cost | J87: Initial Headcount | K87: Unit Costs | L87: of which: Once-off Payments per person
A88: 1 | B88: 2 | C88: 1 | D88: 0 | E88: 0 | F88: 0 | G88: =IFERROR(IF(I88=0,O88,I88/F88),0) -> 99.95105925 | H88: =1220/1000*12 -> 14.64 | I88: 0 | J88: 0 | K88: 0 | O88: 99.95105925
A89: 1 | B89: 2 | C89: 2 | D89: 0 | E89: 0 | F89: 0 | G89: =IFERROR(IF(I89=0,O89,I89/F89),0) -> 179.5147433 | H89: =1220/1000*12 -> 14.64 | I89: 0 | J89: 0 | K89: 0 | O89: 179.5147433
A90: 1 | B90: 2 | C90: 3 | D90: 0 | E90: 0 | F90: 0 | G90: 216.6722944 | H90: =1220/1000*12 -> 14.64 | I90: 0 | J90: 0 | K90: 0 | O90: 216.6722944
A91: 1 | B91: 2 | C91: 4 | D91: 0 | E91: 0 | F91: 0 | G91: 236.0392102 | H91: =1220/1000*12 -> 14.64 | I91: 0 | J91: 0 | K91: 0 | O91: 236.0392102
A92: 1 | B92: 2 | C92: 5 | D92: 3 | E92: 0 | F92: 2 | G92: 1289 | H92: =1220/1000*12 -> 14.64 | I92: 2578 | J92: 2 | K92: 1305.433045 | O92: 290.5081548
A93: 1 | B93: 2 | C93: 6 | D93: 13 | E93: 0 | F93: 10 | G93: 786.4 | H93: =1352/1000*12 -> 16.224 | I93: 7864 | J93: 10 | K93: 788.6332942 | O93: 341.7085708
A94: 1 | B94: 2 | C94: 7 | D94: 110 | E94: 0 | F94: 106 | G94: 938.2641509 | H94: =1352/1000*12 -> 16.224 | I94: 99456 | J94: 106 | K94: 943.5357558 | O94: 455.5004418
A95: 1 | B95: 2 | C95: 8 | D95: 61 | E95: 0 | F95: 72 | G95: 1166.916667 | H95: =1450/1000*12 -> 17.4 | I95: 84018 | J95: 72 | K95: 1175.487161 | O95: 520.4674487
A96: 1 | B96: 2 | C96: 9 | D96: 7 | E96: 0 | F96: 3 | G96: 531 | H96: =1450/1000*12 -> 17.4 | I96: 1593 | J96: 3 | K96: 524.3559848 | O96: 586.4171069
A97: 1 | B97: 2 | C97: 10 | D97: 263 | E97: 0 | F97: 263 | G97: 1156.041825 | H97: =1640/1000*12 -> 19.68 | I97: 304039 | J97: 263 | K97: 1158.811437 | O97: 699.4852566
A98: 1 | B98: 2 | C98: 11 | D98: 6 | E98: 0 | F98: 6 | G98: 1635.5 | H98: =1640/1000*12 -> 19.68 | I98: 9813 | J98: 6 | K98: 1641.227667 | O98: 799.6834333
A99: 1 | B99: 2 | C99: 12 | D99: 149 | E99: 0 | F99: 130.7577236 | G99: 2087.922552 | H99: =1695/1000*12 -> 20.34 | I99: 273012 | J99: 130.7577236 | K99: 2099.408172 | O99: 1014.272904
A100: 1 | B100: 2 | C100: 13 | D100: 88 | F100: 77 | G100: 2555.584416 | H100: =1695/1000*12 -> 20.34 | I100: 196780 | J100: 77 | K100: 2572.617483 | O100: 1152.258047
A101: 1 | B101: 2 | C101: 14 | D101: 55 | E101: 0 | F101: 44 | G101: 2506.227273 | H101: 20.34 | I101: 110274 | J101: 44 | K101: 2523.473873 | O101: 1409.161406
A102: 1 | B102: 2 | C102: 15 | D102: 2 | E102: 0 | F102: 1 | G102: 4994 | H102: 20.34 | I102: 4994 | J102: 1 | K102: 5051.115025 | O102: 1703.285814
A103: 1 | B103: 2 | C103: 16 | D103: 0 | E103: 0 | F103: 0 | G103: 2168.595147 | H103: =1818/1000*12 -> 21.816 | I103: 0 | J103: 0 | K103: -23.13972042 | O103: 2168.595147
A104: 1 | B104: 2 | C104: Other | D104: 43 | E104: 0 | F104: 38 | G104: 1414.526316 | I104: 53752 | J104: 38 | K104: 1451.122159 | O104: 2007.461925
A105: 1 | B105: 2 | C105: Other | D105: 1172 | E105: 0 | F105: 1289 | G105: 659 | I105: 849451 | J105: 1289 | K105: 676.0498125 | O105: 2437.657495
A106: 1 | B106: 2 | C106: Other | D106: 0 | E106: 0 | F106: 0 | G106: 259.6159983 | I106: 0 | J106: 0 | K106: 0 | O106: 259.6159983
A107: 1 | B107: 2 | C107: Other | D107: 0 | E107: 0 | F107: 0 | G107: 259.6159983 | I107: 0 | J107: 0 | K107: 0 | O107: 259.6159983
A108: 1 | B108: 2 | C108: Total | D108: =SUM(D88:D107) -> 1972 | E108: 0 | F108: 2041.757724 | G108: =IFERROR(I108/F108,0) -> 978.3844463 | H108: =IFERROR(SUM(H88:H107)/K108,0) -> 0 | I108: =SUM(I88:I107) -> 1997624 | J108: =SUM(J88:J107) -> 2041.757724 | K108: =IFERROR(#REF!/#REF!,0) -> 0 | L108: =IFERROR(SUM(L88:L107)/#REF!,0) -> 0
A109: 1
A110: 1
A111: 1
A112: 1
A113: =$A$29 -> 1 | C113: =$C$29 -> International Cooperation
A114: =A$113 -> 1 | D114: Establishment Structure | F114: Previous Financial Year | J114: Medium-term expenditure estimates
A115: 1 | D115: As at 31 March 2023 | F115: =LEFT($D$3,4)-1 & "/" & RIGHT($D$3,2)-1 -> 2022/23
A116: 1 | C116: Salary level | D116: Total number of funded posts | E116: of which: number of funded posts additional to the establishment | F116: FTE Headcount | G116: Unit Costs | H116: of which: Once-off Payments per person | I116: Total Annual Cost | J116: Initial Headcount | K116: Unit Costs | L116: of which: Once-off Payments per person
A117: 1 | B117: 3 | C117: 1 | D117: 0 | E117: 0 | F117: 0 | G117: =IFERROR(IF(I117=0,O117,I117/F117),0) -> 99.95105925 | H117: =1220/1000*12 -> 14.64 | I117: 0 | J117: 0 | K117: 0 | O117: 99.95105925
A118: 1 | B118: 3 | C118: 2 | D118: 0 | E118: 0 | F118: 0 | G118: =IFERROR(IF(I118=0,O118,I118/F118),0) -> 179.5147433 | H118: =1220/1000*12 -> 14.64 | I118: 0 | J118: 0 | K118: 0 | O118: 179.5147433
A119: 1 | B119: 3 | C119: 3 | D119: 0 | E119: 0 | F119: 0 | G119: 216.6722944 | H119: =1220/1000*12 -> 14.64 | I119: 0 | J119: 0 | K119: 0 | O119: 216.6722944
A120: 1 | B120: 3 | C120: 4 | D120: 0 | E120: 0 | F120: 0 | G120: 236.0392102 | H120: =1220/1000*12 -> 14.64 | I120: 0 | J120: 0 | K120: 0 | O120: 236.0392102
A121: 1 | B121: 3 | C121: 5 | D121: 2 | E121: 0 | F121: 2 | G121: 305 | H121: =1220/1000*12 -> 14.64 | I121: 610 | J121: 2 | K121: 297.3309458 | O121: 290.5081548
A122: 1 | B122: 3 | C122: 6 | D122: 1 | E122: 0 | F122: 2 | G122: 401 | H122: =1352/1000*12 -> 16.224 | I122: 802 | J122: 2 | K122: 393.9484839 | O122: 341.7085708
A123: 1 | B123: 3 | C123: 7 | D123: 36 | E123: 1 | F123: 39 | G123: 430.7435897 | H123: =1352/1000*12 -> 16.224 | I123: 16799 | J123: 39 | K123: 424.1782613 | O123: 455.5004418
A124: 1 | B124: 3 | C124: 8 | D124: 9 | E124: 0 | F124: 5 | G124: 537.6 | H124: =1450/1000*12 -> 17.4 | I124: 2688 | J124: 5 | K124: 532.0225078 | O124: 520.4674487
A125: 1 | B125: 3 | C125: 9 | D125: 0 | E125: 0 | F125: 0 | G125: 586.4171069 | H125: =1450/1000*12 -> 17.4 | I125: 0 | J125: 0 | K125: -18.61239114 | O125: 586.4171069
A126: 1 | B126: 3 | C126: 10 | D126: 64 | E126: 0 | F126: 60.073125 | G126: 1069.463258 | H126: =1640/1000*12 -> 19.68 | I126: 64246 | J126: 60.073125 | K126: 1070.524985 | O126: 699.4852566
A127: 1 | B127: 3 | C127: 11 | D127: 1 | E127: 0 | F127: 2 | G127: 1031 | H127: =1640/1000*12 -> 19.68 | I127: 2062 | J127: 2 | K127: 1027.355077 | O127: 799.6834333
A128: 1 | B128: 3 | C128: 12 | D128: 52 | E128: 0 | F128: 53 | G128: 1628.396226 | H128: =1695/1000*12 -> 20.34 | I128: 86305 | J128: 53 | K128: 1632.799741 | O128: 1014.272904
A129: 1 | B129: 3 | C129: 13 | D129: 18 | E129: 0 | F129: 13.00035714 | G129: 2772.000769 | H129: =1695/1000*12 -> 20.34 | I129: 36037 | J129: 13.00035714 | K129: 2792.206069 | O129: 1152.258047
A130: 1 | B130: 3 | C130: 14 | D130: 4 | E130: 0 | F130: 4 | G130: 1760.5 | H130: 20.34 | I130: 7042 | J130: 4 | K130: 1766.472011 | O130: 1409.161406
A131: 1 | B131: 3 | C131: 15 | D131: 4 | E131: 0 | F131: 4 | G131: 1821 | H131: 20.34 | I131: 7284 | J131: 4 | K131: 1828.521063 | O131: 1703.285814
A132: 1 | B132: 3 | C132: 16 | D132: 0 | E132: 0 | F132: 0 | G132: 2168.595147 | H132: =1818/1000*12 -> 21.816 | I132: 0 | J132: 0 | K132: -23.13972042 | O132: 2168.595147
A133: 1 | B133: 3 | C133: Other | D133: 1 | E133: 0 | F133: 1 | G133: 2031 | I133: 2031 | J133: 1 | K133: 2083.255376 | O133: 2007.461925
A134: 1 | B134: 3 | C134: Other | D134: 110 | E134: 0 | F134: 127 | G134: 903.4330709 | I134: 114736 | J134: 127 | K134: 926.804998 | O134: 2437.657495
A135: 1 | B135: 3 | C135: Other | D135: 0 | E135: 0 | F135: 0 | G135: 259.6159983 | I135: 0 | J135: 0 | K135: 0 | O135: 259.6159983
A136: 1 | B136: 3 | C136: Other | D136: 0 | E136: 0 | F136: 0 | G136: 259.6159983 | I136: 0 | J136: 0 | K136: 0 | O136: 259.6159983
A137: 1 | B137: 3 | C137: Total | D137: =SUM(D117:D136) -> 302 | E137: 1 | F137: 312.0734821 | G137: =IFERROR(I137/F137,0) -> 1091.544202 | H137: =IFERROR(SUM(H117:H136)/K137,0) -> 0 | I137: =SUM(I117:I136) -> 340642 | J137: =SUM(J117:J136) -> 312.0734821 | K137: =IFERROR(#REF!/#REF!,0) -> 0 | L137: =IFERROR(SUM(L117:L136)/#REF!,0) -> 0
A138: 1
A139: 1
A140: 1
A141: 1
A142: =$A$30 -> 1 | C142: =$C$30 -> Public Diplomacy and Protocol Services
A143: =A$142 -> 1 | D143: Establishment Structure | F143: Previous Financial Year | J143: Medium-term expenditure estimates
A144: 1 | D144: As at 31 March 2023 | F144: =LEFT($D$3,4)-1 & "/" & RIGHT($D$3,2)-1 -> 2022/23
A145: 1 | C145: Salary level | D145: Total number of funded posts | E145: of which: number of funded posts additional to the establishment | F145: FTE Headcount | G145: Unit Costs | H145: of which: Once-off Payments per person | I145: Total Annual Cost | J145: Initial Headcount | K145: Unit Costs | L145: of which: Once-off Payments per person
A146: 1 | B146: 4 | C146: 1 | D146: 0 | E146: 0 | F146: 0 | G146: =IFERROR(IF(I146=0,O146,I146/F146),0) -> 99.95105925 | H146: =1220/1000*12 -> 14.64 | I146: 0 | J146: 0 | K146: 0 | O146: 99.95105925
A147: 1 | B147: 4 | C147: 2 | D147: 0 | E147: 0 | F147: 0 | G147: =IFERROR(IF(I147=0,O147,I147/F147),0) -> 179.5147433 | H147: =1220/1000*12 -> 14.64 | I147: 0 | J147: 0 | K147: 0 | O147: 179.5147433
A148: 1 | B148: 4 | C148: 3 | D148: 0 | E148: 0 | F148: 0 | G148: 216.6722944 | H148: =1220/1000*12 -> 14.64 | I148: 0 | J148: 0 | K148: 0 | O148: 216.6722944
A149: 1 | B149: 4 | C149: 4 | D149: 0 | E149: 0 | F149: 0 | G149: 236.0392102 | H149: =1220/1000*12 -> 14.64 | I149: 0 | J149: 0 | K149: 0 | O149: 236.0392102
A150: 1 | B150: 4 | C150: 5 | D150: 10 | E150: 0 | F150: 13 | G150: 365.8461538 | H150: =1220/1000*12 -> 14.64 | I150: 4756 | J150: 13 | K150: 359.8149032 | O150: 290.5081548
A151: 1 | B151: 4 | C151: 6 | D151: 26 | E151: 0 | F151: 18 | G151: 396 | H151: =1352/1000*12 -> 16.224 | I151: 7128 | J151: 18 | K151: 388.8849418 | O151: 341.7085708
A152: 1 | B152: 4 | C152: 7 | D152: 35 | E152: 0 | F152: 39 | G152: 505.5897436 | H152: =1352/1000*12 -> 16.224 | I152: 19718 | J152: 39 | K152: 500.7706569 | O152: 455.5004418
A153: 1 | B153: 4 | C153: 8 | D153: 86 | E153: 0 | F153: 86 | G153: 590.4534884 | H153: =1450/1000*12 -> 17.4 | I153: 50779 | J153: 86 | K153: 586.0013753 | O153: 520.4674487
A154: 1 | B154: 4 | C154: 9 | D154: 3 | E154: 0 | F154: 9 | G154: 576.3333333 | H154: =1450/1000*12 -> 17.4 | I154: 5187 | J154: 9 | K154: 570.5125755 | O154: 586.4171069
A155: 1 | B155: 4 | C155: 10 | D155: 60 | E155: 0 | F155: 61.00243902 | G155: 803.6399984 | H155: =1640/1000*12 -> 19.68 | I155: 49024 | J155: 61.00243902 | K155: 799.4534323 | O155: 699.4852566
A156: 1 | B156: 4 | C156: 11 | D156: 3 | E156: 0 | F156: 8 | G156: 766.125 | H156: =1640/1000*12 -> 19.68 | I156: 6129 | J156: 8 | K156: 758.228235 | O156: 799.6834333
A157: 1 | B157: 4 | C157: 12 | D157: 21 | E157: 0 | F157: 19.09269197 | G157: 1108.95834 | H157: =1695/1000*12 -> 20.34 | I157: 21173 | J157: 19.09269197 | K157: 1105.356888 | O157: 1014.272904
A158: 1 | B158: 4 | C158: 13 | D158: 13 | E158: 0 | F158: 12.8 | G158: 1228.203125 | H158: =1695/1000*12 -> 20.34 | I158: 15721 | J158: 12.8 | K158: 1225.646048 | O158: 1152.258047
A159: 1 | B159: 4 | C159: 14 | D159: 3 | E159: 0 | F159: 2 | G159: 1493.5 | H159: 20.34 | I159: 2987 | J159: 2 | K159: 1495.331435 | O159: 1409.161406
A160: 1 | B160: 4 | C160: 15 | D160: 0 | E160: 0 | F160: 0 | G160: 1703.285814 | H160: 20.34 | I160: 0 | J160: 0 | K160: 0 | O160: 1703.285814
A161: 1 | B161: 4 | C161: 16 | D161: 0 | E161: 0 | F161: 0 | G161: 2168.595147 | H161: =1818/1000*12 -> 21.816 | I161: 0 | J161: 0 | K161: 0 | O161: 2168.595147
A162: 1 | B162: 4 | C162: Other | D162: 0 | E162: 0 | F162: 0 | G162: 2007.461925 | I162: 0 | J162: 0 | K162: 0 | O162: 2007.461925
A163: 1 | B163: 4 | C163: Other | D163: 0 | E163: 0 | F163: 0 | G163: 2437.657495 | I163: 0 | J163: 0 | K163: 0 | O163: 2437.657495
A164: 1 | B164: 4 | C164: Other | D164: 0 | E164: 0 | F164: 0 | G164: 259.6159983 | I164: 0 | J164: 0 | K164: 0 | O164: 259.6159983
A165: 1 | B165: 4 | C165: Other | D165: 0 | E165: 0 | F165: 0 | G165: 259.6159983 | I165: 0 | J165: 0 | K165: 0 | O165: 259.6159983
A166: 1 | B166: 4 | C166: Total | D166: =SUM(D146:D165) -> 260 | E166: 0 | F166: 267.895131 | G166: =IFERROR(I166/F166,0) -> 681.6174647 | H166: =IFERROR(SUM(H146:H165)/K166,0) -> 0 | I166: =SUM(I146:I165) -> 182602 | J166: =SUM(J146:J165) -> 267.895131 | K166: =IFERROR(#REF!/#REF!,0) -> 0 | L166: =IFERROR(SUM(L146:L165)/#REF!,0) -> 0
A167: 1
A168: 1
A169: 1
A170: 1
A171: =$A$31 -> 0 | C171: =$C$31 -> 
A172: =A$171 -> 0 | D172: Establishment Structure | F172: Previous Financial Year | J172: Medium-term expenditure estimates
A173: 0 | D173: As at 31 March 2023 | F173: =LEFT($D$3,4)-1 & "/" & RIGHT($D$3,2)-1 -> 2022/23
A174: 0 | C174: Salary level | D174: Total number of funded posts | E174: of which: number of funded posts additional to the establishment | F174: FTE Headcount | G174: Unit Costs | H174: of which: Once-off Payments per person | I174: Total Annual Cost | J174: Initial Headcount | K174: Unit Costs | L174: of which: Once-off Payments per person
A175: 0 | B175: 5 | C175: 1 | D175: 0 | E175: 0 | F175: 0 | G175: =IFERROR(IF(I175=0,O175,I175/F175),0) -> 99.95105925 | H175: =1220/1000*12 -> 14.64 | I175: 0 | J175: 0 | K175: 0 | O175: 99.95105925
A176: 0 | B176: 5 | C176: 2 | D176: 0 | E176: 0 | F176: 0 | G176: =IFERROR(IF(I176=0,O176,I176/F176),0) -> 179.5147433 | H176: =1220/1000*12 -> 14.64 | I176: 0 | J176: 0 | K176: 0 | O176: 179.5147433
A177: 0 | B177: 5 | C177: 3 | D177: 0 | E177: 0 | F177: 0 | G177: 216.6722944 | H177: =1220/1000*12 -> 14.64 | I177: 0 | J177: 0 | K177: 0 | O177: 216.6722944
A178: 0 | B178: 5 | C178: 4 | D178: 0 | E178: 0 | F178: 0 | G178: 236.0392102 | H178: =1220/1000*12 -> 14.64 | I178: 0 | J178: 0 | K178: 0 | O178: 236.0392102
A179: 0 | B179: 5 | C179: 5 | D179: 0 | E179: 0 | F179: 0 | G179: 290.5081548 | H179: =1220/1000*12 -> 14.64 | I179: 0 | J179: 0 | K179: 0 | O179: 290.5081548
A180: 0 | B180: 5 | C180: 6 | D180: 0 | E180: 0 | F180: 0 | G180: 341.7085708 | H180: =1352/1000*12 -> 16.224 | I180: 0 | J180: 0 | K180: 0 | O180: 341.7085708
A181: 0 | B181: 5 | C181: 7 | D181: 0 | E181: 0 | F181: 0 | G181: 455.5004418 | H181: =1352/1000*12 -> 16.224 | I181: 0 | J181: 0 | K181: 0 | O181: 455.5004418
A182: 0 | B182: 5 | C182: 8 | D182: 0 | E182: 0 | F182: 0 | G182: 520.4674487 | H182: =1450/1000*12 -> 17.4 | I182: 0 | J182: 0 | K182: 0 | O182: 520.4674487
A183: 0 | B183: 5 | C183: 9 | D183: 0 | E183: 0 | F183: 0 | G183: 586.4171069 | H183: =1450/1000*12 -> 17.4 | I183: 0 | J183: 0 | K183: 0 | O183: 586.4171069
A184: 0 | B184: 5 | C184: 10 | D184: 0 | E184: 0 | F184: 0 | G184: 699.4852566 | H184: =1640/1000*12 -> 19.68 | I184: 0 | J184: 0 | K184: 0 | O184: 699.4852566
A185: 0 | B185: 5 | C185: 11 | D185: 0 | E185: 0 | F185: 0 | G185: 799.6834333 | H185: =1640/1000*12 -> 19.68 | I185: 0 | J185: 0 | K185: 0 | O185: 799.6834333
A186: 0 | B186: 5 | C186: 12 | D186: 0 | E186: 0 | F186: 0 | G186: 1014.272904 | H186: =1695/1000*12 -> 20.34 | I186: 0 | J186: 0 | K186: 0 | O186: 1014.272904
A187: 0 | B187: 5 | C187: 13 | D187: 0 | E187: 0 | F187: 0 | G187: 1152.258047 | H187: =1695/1000*12 -> 20.34 | I187: 0 | J187: 0 | K187: 0 | O187: 1152.258047
A188: 0 | B188: 5 | C188: 14 | D188: 0 | E188: 0 | F188: 0 | G188: 1409.161406 | H188: 20.34 | I188: 0 | J188: 0 | K188: 0 | O188: 1409.161406
A189: 0 | B189: 5 | C189: 15 | D189: 0 | E189: 0 | F189: 0 | G189: 1703.285814 | H189: 20.34 | I189: 0 | J189: 0 | K189: 0 | O189: 1703.285814
A190: 0 | B190: 5 | C190: 16 | D190: 0 | E190: 0 | F190: 0 | G190: 2168.595147 | H190: =1818/1000*12 -> 21.816 | I190: 0 | J190: 0 | K190: 0 | O190: 2168.595147
A191: 0 | B191: 5 | C191: Other | D191: 0 | E191: 0 | F191: 0 | G191: 2007.461925 | I191: 0 | J191: 0 | K191: 0 | O191: 2007.461925
A192: 0 | B192: 5 | C192: Other | D192: 0 | E192: 0 | F192: 0 | G192: 2437.657495 | I192: 0 | J192: 0 | K192: 0 | O192: 2437.657495
A193: 0 | B193: 5 | C193: Other | D193: 0 | E193: 0 | F193: 0 | G193: 259.6159983 | I193: 0 | J193: 0 | K193: 0 | O193: 259.6159983
A194: 0 | B194: 5 | C194: Other | D194: 0 | E194: 0 | F194: 0 | G194: 259.6159983 | I194: 0 | J194: 0 | K194: 0 | O194: 259.6159983
A195: 0 | B195: 5 | C195: Total | D195: =SUM(D175:D194) -> 0 | E195: 0 | F195: 0 | G195: =IFERROR(I195/F195,0) -> 0 | H195: =IFERROR(SUM(H175:H194)/K195,0) -> 0 | I195: =SUM(I175:I194) -> 0 | J195: =SUM(J175:J194) -> 0 | K195: =IFERROR(#REF!/#REF!,0) -> 0 | L195: =IFERROR(SUM(L175:L194)/#REF!,0) -> 0
A196: 0
A197: 0
A198: 0
A199: 0
A200: =$A$32 -> 0 | C200: =$C$32 -> 
... 314 more rows

Sheet 7 (hidden)
A1: Filter | C1: HUMAN RESOURCE BUDGET PLAN | K1: 1
A2: 1
A3: 1 | C3: Financial Year: | D3: 2023/24
A4: 1 | C4: Sphere of Government: | D4: National
A5: 1 | C5: Name of Department: | D5: Vote 07: National School of Government
A6: -14
A7: -13
A8: -12
A9: -11
A10: -10
A11: -9
A12: -8
A13: -7
A14: -6
A15: -5
A16: -4
A17: -3
A18: -2
A19: -1
A20: 0
A21: 1
A22: 1 | C22: Department Summary Details
A23: 1
A24: 1 | D24: Establishment Structure | F24: Previous Financial Year | J24: Medium-term expenditure estimates
A25: 1 | D25: As at 31 March 2023 | F25: =LEFT($D$3,4)-1 & "/" & RIGHT($D$3,2)-1 -> 2022/23
A26: 1 | C26: Programmes | D26: Total number of funded posts | E26: of which: number of funded posts additional to the establishment | F26: FTE Headcount | G26: Unit Costs | H26: of which: Once-off Payments per person | I26: Total Annual Cost | J26: Initial Headcount | K26: Unit Costs | L26: of which: Once-off Payments per person
A27: 1 | B27: =IF(LEN(C27)>2,ROW()-26,"") -> 1 | C27: Administration | D27: =IF($C27="",0,OFFSET($C55,MATCH($C27,$C$55:$C$514,0)+24-SUM($A$27:$A27),COLUMN(D$1)-3)) -> 87 | E27: =IF($C27="",0,OFFSET($C55,MATCH($C27,$C$55:$C$514,0)+24-SUM($A$27:$A27),COLUMN(E$1)-3)) -> 0 | F27: =IF($C27="",0,OFFSET($C55,MATCH($C27,$C$55:$C$514,0)+24-SUM($A$27:$A27),COLUMN(F$1)-3)) -> 94.43826827 | G27: =IF($C27="",0,OFFSET($C55,MATCH($C27,$C$55:$C$514,0)+24-SUM($A$27:$A27),COLUMN(G$1)-3)) -> 665.0587855 | H27: =IF($C27="",0,OFFSET($C55,MATCH($C27,$C$55:$C$514,0)+24-SUM($A$27:$A27),COLUMN(H$1)-3)) -> 0 | I27: =IF($C27="",0,OFFSET($C55,MATCH($C27,$C$55:$C$514,0)+24-SUM($A$27:$A27),COLUMN(I$1)-3)) -> 62807 | J27: =IF($C27="",0,OFFSET($C55,MATCH($C27,$C$55:$C$514,0)+24-SUM($A$27:$A27),COLUMN(J$1)-3)) -> 94.43826827 | K27: =IF($C27="",0,OFFSET($C55,MATCH($C27,$C$55:$C$514,0)+24-SUM($A$27:$A27),COLUMN(K$1)-3)) -> 0 | L27: =IF($C27="",0,OFFSET($C55,MATCH($C27,$C$55:$C$514,0)+24-SUM($A$27:$A27),COLUMN(L$1)-3)) -> 0
A28: =IF(LEN(C28)>1,1,0) -> 0 | D28: =IF($C28="",0,OFFSET($C56,MATCH($C28,$C$55:$C$514,0)+24-SUM($A$27:$A28),COLUMN(D$1)-3)) -> 0 | E28: =IF($C28="",0,OFFSET($C56,MATCH($C28,$C$55:$C$514,0)+24-SUM($A$27:$A28),COLUMN(E$1)-3)) -> 0 | F28: =IF($C28="",0,OFFSET($C56,MATCH($C28,$C$55:$C$514,0)+24-SUM($A$27:$A28),COLUMN(F$1)-3)) -> 0 | G28: =IF($C28="",0,OFFSET($C56,MATCH($C28,$C$55:$C$514,0)+24-SUM($A$27:$A28),COLUMN(G$1)-3)) -> 0 | H28: =IF($C28="",0,OFFSET($C56,MATCH($C28,$C$55:$C$514,0)+24-SUM($A$27:$A28),COLUMN(H$1)-3)) -> 0 | I28: =IF($C28="",0,OFFSET($C56,MATCH($C28,$C$55:$C$514,0)+24-SUM($A$27:$A28),COLUMN(I$1)-3)) -> 0 | J28: =IF($C28="",0,OFFSET($C56,MATCH($C28,$C$55:$C$514,0)+24-SUM($A$27:$A28),COLUMN(J$1)-3)) -> 0 | K28: =IF($C28="",0,OFFSET($C56,MATCH($C28,$C$55:$C$514,0)+24-SUM($A$27:$A28),COLUMN(K$1)-3)) -> 0 | L28: =IF($C28="",0,OFFSET($C56,MATCH($C28,$C$55:$C$514,0)+24-SUM($A$27:$A28),COLUMN(L$1)-3)) -> 0
A29: 0 | D29: =IF($C29="",0,OFFSET($C57,MATCH($C29,$C$55:$C$514,0)+24-SUM($A$27:$A29),COLUMN(D$1)-3)) -> 0 | E29: =IF($C29="",0,OFFSET($C57,MATCH($C29,$C$55:$C$514,0)+24-SUM($A$27:$A29),COLUMN(E$1)-3)) -> 0 | F29: =IF($C29="",0,OFFSET($C57,MATCH($C29,$C$55:$C$514,0)+24-SUM($A$27:$A29),COLUMN(F$1)-3)) -> 0 | G29: =IF($C29="",0,OFFSET($C57,MATCH($C29,$C$55:$C$514,0)+24-SUM($A$27:$A29),COLUMN(G$1)-3)) -> 0 | H29: =IF($C29="",0,OFFSET($C57,MATCH($C29,$C$55:$C$514,0)+24-SUM($A$27:$A29),COLUMN(H$1)-3)) -> 0 | I29: =IF($C29="",0,OFFSET($C57,MATCH($C29,$C$55:$C$514,0)+24-SUM($A$27:$A29),COLUMN(I$1)-3)) -> 0 | J29: =IF($C29="",0,OFFSET($C57,MATCH($C29,$C$55:$C$514,0)+24-SUM($A$27:$A29),COLUMN(J$1)-3)) -> 0 | K29: =IF($C29="",0,OFFSET($C57,MATCH($C29,$C$55:$C$514,0)+24-SUM($A$27:$A29),COLUMN(K$1)-3)) -> 0 | L29: =IF($C29="",0,OFFSET($C57,MATCH($C29,$C$55:$C$514,0)+24-SUM($A$27:$A29),COLUMN(L$1)-3)) -> 0
A30: 0 | D30: =IF($C30="",0,OFFSET($C58,MATCH($C30,$C$55:$C$514,0)+24-SUM($A$27:$A30),COLUMN(D$1)-3)) -> 0 | E30: =IF($C30="",0,OFFSET($C58,MATCH($C30,$C$55:$C$514,0)+24-SUM($A$27:$A30),COLUMN(E$1)-3)) -> 0 | F30: =IF($C30="",0,OFFSET($C58,MATCH($C30,$C$55:$C$514,0)+24-SUM($A$27:$A30),COLUMN(F$1)-3)) -> 0 | G30: =IF($C30="",0,OFFSET($C58,MATCH($C30,$C$55:$C$514,0)+24-SUM($A$27:$A30),COLUMN(G$1)-3)) -> 0 | H30: =IF($C30="",0,OFFSET($C58,MATCH($C30,$C$55:$C$514,0)+24-SUM($A$27:$A30),COLUMN(H$1)-3)) -> 0 | I30: =IF($C30="",0,OFFSET($C58,MATCH($C30,$C$55:$C$514,0)+24-SUM($A$27:$A30),COLUMN(I$1)-3)) -> 0 | J30: =IF($C30="",0,OFFSET($C58,MATCH($C30,$C$55:$C$514,0)+24-SUM($A$27:$A30),COLUMN(J$1)-3)) -> 0 | K30: =IF($C30="",0,OFFSET($C58,MATCH($C30,$C$55:$C$514,0)+24-SUM($A$27:$A30),COLUMN(K$1)-3)) -> 0 | L30: =IF($C30="",0,OFFSET($C58,MATCH($C30,$C$55:$C$514,0)+24-SUM($A$27:$A30),COLUMN(L$1)-3)) -> 0
A31: 0 | D31: =IF($C31="",0,OFFSET($C59,MATCH($C31,$C$55:$C$514,0)+24-SUM($A$27:$A31),COLUMN(D$1)-3)) -> 0 | E31: =IF($C31="",0,OFFSET($C59,MATCH($C31,$C$55:$C$514,0)+24-SUM($A$27:$A31),COLUMN(E$1)-3)) -> 0 | F31: =IF($C31="",0,OFFSET($C59,MATCH($C31,$C$55:$C$514,0)+24-SUM($A$27:$A31),COLUMN(F$1)-3)) -> 0 | G31: =IF($C31="",0,OFFSET($C59,MATCH($C31,$C$55:$C$514,0)+24-SUM($A$27:$A31),COLUMN(G$1)-3)) -> 0 | H31: =IF($C31="",0,OFFSET($C59,MATCH($C31,$C$55:$C$514,0)+24-SUM($A$27:$A31),COLUMN(H$1)-3)) -> 0 | I31: =IF($C31="",0,OFFSET($C59,MATCH($C31,$C$55:$C$514,0)+24-SUM($A$27:$A31),COLUMN(I$1)-3)) -> 0 | J31: =IF($C31="",0,OFFSET($C59,MATCH($C31,$C$55:$C$514,0)+24-SUM($A$27:$A31),COLUMN(J$1)-3)) -> 0 | K31: =IF($C31="",0,OFFSET($C59,MATCH($C31,$C$55:$C$514,0)+24-SUM($A$27:$A31),COLUMN(K$1)-3)) -> 0 | L31: =IF($C31="",0,OFFSET($C59,MATCH($C31,$C$55:$C$514,0)+24-SUM($A$27:$A31),COLUMN(L$1)-3)) -> 0
A32: 0 | D32: =IF($C32="",0,OFFSET($C60,MATCH($C32,$C$55:$C$514,0)+24-SUM($A$27:$A32),COLUMN(D$1)-3)) -> 0 | E32: =IF($C32="",0,OFFSET($C60,MATCH($C32,$C$55:$C$514,0)+24-SUM($A$27:$A32),COLUMN(E$1)-3)) -> 0 | F32: =IF($C32="",0,OFFSET($C60,MATCH($C32,$C$55:$C$514,0)+24-SUM($A$27:$A32),COLUMN(F$1)-3)) -> 0 | G32: =IF($C32="",0,OFFSET($C60,MATCH($C32,$C$55:$C$514,0)+24-SUM($A$27:$A32),COLUMN(G$1)-3)) -> 0 | H32: =IF($C32="",0,OFFSET($C60,MATCH($C32,$C$55:$C$514,0)+24-SUM($A$27:$A32),COLUMN(H$1)-3)) -> 0 | I32: =IF($C32="",0,OFFSET($C60,MATCH($C32,$C$55:$C$514,0)+24-SUM($A$27:$A32),COLUMN(I$1)-3)) -> 0 | J32: =IF($C32="",0,OFFSET($C60,MATCH($C32,$C$55:$C$514,0)+24-SUM($A$27:$A32),COLUMN(J$1)-3)) -> 0 | K32: =IF($C32="",0,OFFSET($C60,MATCH($C32,$C$55:$C$514,0)+24-SUM($A$27:$A32),COLUMN(K$1)-3)) -> 0 | L32: =IF($C32="",0,OFFSET($C60,MATCH($C32,$C$55:$C$514,0)+24-SUM($A$27:$A32),COLUMN(L$1)-3)) -> 0
A33: 0 | D33: =IF($C33="",0,OFFSET($C61,MATCH($C33,$C$55:$C$514,0)+24-SUM($A$27:$A33),COLUMN(D$1)-3)) -> 0 | E33: =IF($C33="",0,OFFSET($C61,MATCH($C33,$C$55:$C$514,0)+24-SUM($A$27:$A33),COLUMN(E$1)-3)) -> 0 | F33: =IF($C33="",0,OFFSET($C61,MATCH($C33,$C$55:$C$514,0)+24-SUM($A$27:$A33),COLUMN(F$1)-3)) -> 0 | G33: =IF($C33="",0,OFFSET($C61,MATCH($C33,$C$55:$C$514,0)+24-SUM($A$27:$A33),COLUMN(G$1)-3)) -> 0 | H33: =IF($C33="",0,OFFSET($C61,MATCH($C33,$C$55:$C$514,0)+24-SUM($A$27:$A33),COLUMN(H$1)-3)) -> 0 | I33: =IF($C33="",0,OFFSET($C61,MATCH($C33,$C$55:$C$514,0)+24-SUM($A$27:$A33),COLUMN(I$1)-3)) -> 0 | J33: =IF($C33="",0,OFFSET($C61,MATCH($C33,$C$55:$C$514,0)+24-SUM($A$27:$A33),COLUMN(J$1)-3)) -> 0 | K33: =IF($C33="",0,OFFSET($C61,MATCH($C33,$C$55:$C$514,0)+24-SUM($A$27:$A33),COLUMN(K$1)-3)) -> 0 | L33: =IF($C33="",0,OFFSET($C61,MATCH($C33,$C$55:$C$514,0)+24-SUM($A$27:$A33),COLUMN(L$1)-3)) -> 0
A34: 0 | D34: =IF($C34="",0,OFFSET($C62,MATCH($C34,$C$55:$C$514,0)+24-SUM($A$27:$A34),COLUMN(D$1)-3)) -> 0 | E34: =IF($C34="",0,OFFSET($C62,MATCH($C34,$C$55:$C$514,0)+24-SUM($A$27:$A34),COLUMN(E$1)-3)) -> 0 | F34: =IF($C34="",0,OFFSET($C62,MATCH($C34,$C$55:$C$514,0)+24-SUM($A$27:$A34),COLUMN(F$1)-3)) -> 0 | G34: =IF($C34="",0,OFFSET($C62,MATCH($C34,$C$55:$C$514,0)+24-SUM($A$27:$A34),COLUMN(G$1)-3)) -> 0 | H34: =IF($C34="",0,OFFSET($C62,MATCH($C34,$C$55:$C$514,0)+24-SUM($A$27:$A34),COLUMN(H$1)-3)) -> 0 | I34: =IF($C34="",0,OFFSET($C62,MATCH($C34,$C$55:$C$514,0)+24-SUM($A$27:$A34),COLUMN(I$1)-3)) -> 0 | J34: =IF($C34="",0,OFFSET($C62,MATCH($C34,$C$55:$C$514,0)+24-SUM($A$27:$A34),COLUMN(J$1)-3)) -> 0 | K34: =IF($C34="",0,OFFSET($C62,MATCH($C34,$C$55:$C$514,0)+24-SUM($A$27:$A34),COLUMN(K$1)-3)) -> 0 | L34: =IF($C34="",0,OFFSET($C62,MATCH($C34,$C$55:$C$514,0)+24-SUM($A$27:$A34),COLUMN(L$1)-3)) -> 0
A35: 0 | D35: =IF($C35="",0,OFFSET($C63,MATCH($C35,$C$55:$C$514,0)+24-SUM($A$27:$A35),COLUMN(D$1)-3)) -> 0 | E35: =IF($C35="",0,OFFSET($C63,MATCH($C35,$C$55:$C$514,0)+24-SUM($A$27:$A35),COLUMN(E$1)-3)) -> 0 | F35: =IF($C35="",0,OFFSET($C63,MATCH($C35,$C$55:$C$514,0)+24-SUM($A$27:$A35),COLUMN(F$1)-3)) -> 0 | G35: =IF($C35="",0,OFFSET($C63,MATCH($C35,$C$55:$C$514,0)+24-SUM($A$27:$A35),COLUMN(G$1)-3)) -> 0 | H35: =IF($C35="",0,OFFSET($C63,MATCH($C35,$C$55:$C$514,0)+24-SUM($A$27:$A35),COLUMN(H$1)-3)) -> 0 | I35: =IF($C35="",0,OFFSET($C63,MATCH($C35,$C$55:$C$514,0)+24-SUM($A$27:$A35),COLUMN(I$1)-3)) -> 0 | J35: =IF($C35="",0,OFFSET($C63,MATCH($C35,$C$55:$C$514,0)+24-SUM($A$27:$A35),COLUMN(J$1)-3)) -> 0 | K35: =IF($C35="",0,OFFSET($C63,MATCH($C35,$C$55:$C$514,0)+24-SUM($A$27:$A35),COLUMN(K$1)-3)) -> 0 | L35: =IF($C35="",0,OFFSET($C63,MATCH($C35,$C$55:$C$514,0)+24-SUM($A$27:$A35),COLUMN(L$1)-3)) -> 0
A36: 0 | D36: =IF($C36="",0,OFFSET($C64,MATCH($C36,$C$55:$C$514,0)+24-SUM($A$27:$A36),COLUMN(D$1)-3)) -> 0 | E36: =IF($C36="",0,OFFSET($C64,MATCH($C36,$C$55:$C$514,0)+24-SUM($A$27:$A36),COLUMN(E$1)-3)) -> 0 | F36: =IF($C36="",0,OFFSET($C64,MATCH($C36,$C$55:$C$514,0)+24-SUM($A$27:$A36),COLUMN(F$1)-3)) -> 0 | G36: =IF($C36="",0,OFFSET($C64,MATCH($C36,$C$55:$C$514,0)+24-SUM($A$27:$A36),COLUMN(G$1)-3)) -> 0 | H36: =IF($C36="",0,OFFSET($C64,MATCH($C36,$C$55:$C$514,0)+24-SUM($A$27:$A36),COLUMN(H$1)-3)) -> 0 | I36: =IF($C36="",0,OFFSET($C64,MATCH($C36,$C$55:$C$514,0)+24-SUM($A$27:$A36),COLUMN(I$1)-3)) -> 0 | J36: =IF($C36="",0,OFFSET($C64,MATCH($C36,$C$55:$C$514,0)+24-SUM($A$27:$A36),COLUMN(J$1)-3)) -> 0 | K36: =IF($C36="",0,OFFSET($C64,MATCH($C36,$C$55:$C$514,0)+24-SUM($A$27:$A36),COLUMN(K$1)-3)) -> 0 | L36: =IF($C36="",0,OFFSET($C64,MATCH($C36,$C$55:$C$514,0)+24-SUM($A$27:$A36),COLUMN(L$1)-3)) -> 0
A37: 0 | D37: =IF($C37="",0,OFFSET($C65,MATCH($C37,$C$55:$C$514,0)+24-SUM($A$27:$A37),COLUMN(D$1)-3)) -> 0 | E37: =IF($C37="",0,OFFSET($C65,MATCH($C37,$C$55:$C$514,0)+24-SUM($A$27:$A37),COLUMN(E$1)-3)) -> 0 | F37: =IF($C37="",0,OFFSET($C65,MATCH($C37,$C$55:$C$514,0)+24-SUM($A$27:$A37),COLUMN(F$1)-3)) -> 0 | G37: =IF($C37="",0,OFFSET($C65,MATCH($C37,$C$55:$C$514,0)+24-SUM($A$27:$A37),COLUMN(G$1)-3)) -> 0 | H37: =IF($C37="",0,OFFSET($C65,MATCH($C37,$C$55:$C$514,0)+24-SUM($A$27:$A37),COLUMN(H$1)-3)) -> 0 | I37: =IF($C37="",0,OFFSET($C65,MATCH($C37,$C$55:$C$514,0)+24-SUM($A$27:$A37),COLUMN(I$1)-3)) -> 0 | J37: =IF($C37="",0,OFFSET($C65,MATCH($C37,$C$55:$C$514,0)+24-SUM($A$27:$A37),COLUMN(J$1)-3)) -> 0 | K37: =IF($C37="",0,OFFSET($C65,MATCH($C37,$C$55:$C$514,0)+24-SUM($A$27:$A37),COLUMN(K$1)-3)) -> 0 | L37: =IF($C37="",0,OFFSET($C65,MATCH($C37,$C$55:$C$514,0)+24-SUM($A$27:$A37),COLUMN(L$1)-3)) -> 0
A38: 0 | D38: =IF($C38="",0,OFFSET($C66,MATCH($C38,$C$55:$C$514,0)+24-SUM($A$27:$A38),COLUMN(D$1)-3)) -> 0 | E38: =IF($C38="",0,OFFSET($C66,MATCH($C38,$C$55:$C$514,0)+24-SUM($A$27:$A38),COLUMN(E$1)-3)) -> 0 | F38: =IF($C38="",0,OFFSET($C66,MATCH($C38,$C$55:$C$514,0)+24-SUM($A$27:$A38),COLUMN(F$1)-3)) -> 0 | G38: =IF($C38="",0,OFFSET($C66,MATCH($C38,$C$55:$C$514,0)+24-SUM($A$27:$A38),COLUMN(G$1)-3)) -> 0 | H38: =IF($C38="",0,OFFSET($C66,MATCH($C38,$C$55:$C$514,0)+24-SUM($A$27:$A38),COLUMN(H$1)-3)) -> 0 | I38: =IF($C38="",0,OFFSET($C66,MATCH($C38,$C$55:$C$514,0)+24-SUM($A$27:$A38),COLUMN(I$1)-3)) -> 0 | J38: =IF($C38="",0,OFFSET($C66,MATCH($C38,$C$55:$C$514,0)+24-SUM($A$27:$A38),COLUMN(J$1)-3)) -> 0 | K38: =IF($C38="",0,OFFSET($C66,MATCH($C38,$C$55:$C$514,0)+24-SUM($A$27:$A38),COLUMN(K$1)-3)) -> 0 | L38: =IF($C38="",0,OFFSET($C66,MATCH($C38,$C$55:$C$514,0)+24-SUM($A$27:$A38),COLUMN(L$1)-3)) -> 0
A39: 0 | D39: =IF($C39="",0,OFFSET($C67,MATCH($C39,$C$55:$C$514,0)+24-SUM($A$27:$A39),COLUMN(D$1)-3)) -> 0 | E39: =IF($C39="",0,OFFSET($C67,MATCH($C39,$C$55:$C$514,0)+24-SUM($A$27:$A39),COLUMN(E$1)-3)) -> 0 | F39: =IF($C39="",0,OFFSET($C67,MATCH($C39,$C$55:$C$514,0)+24-SUM($A$27:$A39),COLUMN(F$1)-3)) -> 0 | G39: =IF($C39="",0,OFFSET($C67,MATCH($C39,$C$55:$C$514,0)+24-SUM($A$27:$A39),COLUMN(G$1)-3)) -> 0 | H39: =IF($C39="",0,OFFSET($C67,MATCH($C39,$C$55:$C$514,0)+24-SUM($A$27:$A39),COLUMN(H$1)-3)) -> 0 | I39: =IF($C39="",0,OFFSET($C67,MATCH($C39,$C$55:$C$514,0)+24-SUM($A$27:$A39),COLUMN(I$1)-3)) -> 0 | J39: =IF($C39="",0,OFFSET($C67,MATCH($C39,$C$55:$C$514,0)+24-SUM($A$27:$A39),COLUMN(J$1)-3)) -> 0 | K39: =IF($C39="",0,OFFSET($C67,MATCH($C39,$C$55:$C$514,0)+24-SUM($A$27:$A39),COLUMN(K$1)-3)) -> 0 | L39: =IF($C39="",0,OFFSET($C67,MATCH($C39,$C$55:$C$514,0)+24-SUM($A$27:$A39),COLUMN(L$1)-3)) -> 0
A40: 0 | D40: =IF($C40="",0,OFFSET($C68,MATCH($C40,$C$55:$C$514,0)+24-SUM($A$27:$A40),COLUMN(D$1)-3)) -> 0 | E40: =IF($C40="",0,OFFSET($C68,MATCH($C40,$C$55:$C$514,0)+24-SUM($A$27:$A40),COLUMN(E$1)-3)) -> 0 | F40: =IF($C40="",0,OFFSET($C68,MATCH($C40,$C$55:$C$514,0)+24-SUM($A$27:$A40),COLUMN(F$1)-3)) -> 0 | G40: =IF($C40="",0,OFFSET($C68,MATCH($C40,$C$55:$C$514,0)+24-SUM($A$27:$A40),COLUMN(G$1)-3)) -> 0 | H40: =IF($C40="",0,OFFSET($C68,MATCH($C40,$C$55:$C$514,0)+24-SUM($A$27:$A40),COLUMN(H$1)-3)) -> 0 | I40: =IF($C40="",0,OFFSET($C68,MATCH($C40,$C$55:$C$514,0)+24-SUM($A$27:$A40),COLUMN(I$1)-3)) -> 0 | J40: =IF($C40="",0,OFFSET($C68,MATCH($C40,$C$55:$C$514,0)+24-SUM($A$27:$A40),COLUMN(J$1)-3)) -> 0 | K40: =IF($C40="",0,OFFSET($C68,MATCH($C40,$C$55:$C$514,0)+24-SUM($A$27:$A40),COLUMN(K$1)-3)) -> 0 | L40: =IF($C40="",0,OFFSET($C68,MATCH($C40,$C$55:$C$514,0)+24-SUM($A$27:$A40),COLUMN(L$1)-3)) -> 0
A41: 0 | D41: =IF($C41="",0,OFFSET($C69,MATCH($C41,$C$55:$C$514,0)+24-SUM($A$27:$A41),COLUMN(D$1)-3)) -> 0 | E41: =IF($C41="",0,OFFSET($C69,MATCH($C41,$C$55:$C$514,0)+24-SUM($A$27:$A41),COLUMN(E$1)-3)) -> 0 | F41: =IF($C41="",0,OFFSET($C69,MATCH($C41,$C$55:$C$514,0)+24-SUM($A$27:$A41),COLUMN(F$1)-3)) -> 0 | G41: =IF($C41="",0,OFFSET($C69,MATCH($C41,$C$55:$C$514,0)+24-SUM($A$27:$A41),COLUMN(G$1)-3)) -> 0 | H41: =IF($C41="",0,OFFSET($C69,MATCH($C41,$C$55:$C$514,0)+24-SUM($A$27:$A41),COLUMN(H$1)-3)) -> 0 | I41: =IF($C41="",0,OFFSET($C69,MATCH($C41,$C$55:$C$514,0)+24-SUM($A$27:$A41),COLUMN(I$1)-3)) -> 0 | J41: =IF($C41="",0,OFFSET($C69,MATCH($C41,$C$55:$C$514,0)+24-SUM($A$27:$A41),COLUMN(J$1)-3)) -> 0 | K41: =IF($C41="",0,OFFSET($C69,MATCH($C41,$C$55:$C$514,0)+24-SUM($A$27:$A41),COLUMN(K$1)-3)) -> 0 | L41: =IF($C41="",0,OFFSET($C69,MATCH($C41,$C$55:$C$514,0)+24-SUM($A$27:$A41),COLUMN(L$1)-3)) -> 0
A42: 0 | D42: =IF($C42="",0,OFFSET($C70,MATCH($C42,$C$55:$C$514,0)+24-SUM($A$27:$A42),COLUMN(D$1)-3)) -> 0 | E42: =IF($C42="",0,OFFSET($C70,MATCH($C42,$C$55:$C$514,0)+24-SUM($A$27:$A42),COLUMN(E$1)-3)) -> 0 | F42: =IF($C42="",0,OFFSET($C70,MATCH($C42,$C$55:$C$514,0)+24-SUM($A$27:$A42),COLUMN(F$1)-3)) -> 0 | G42: =IF($C42="",0,OFFSET($C70,MATCH($C42,$C$55:$C$514,0)+24-SUM($A$27:$A42),COLUMN(G$1)-3)) -> 0 | H42: =IF($C42="",0,OFFSET($C70,MATCH($C42,$C$55:$C$514,0)+24-SUM($A$27:$A42),COLUMN(H$1)-3)) -> 0 | I42: =IF($C42="",0,OFFSET($C70,MATCH($C42,$C$55:$C$514,0)+24-SUM($A$27:$A42),COLUMN(I$1)-3)) -> 0 | J42: =IF($C42="",0,OFFSET($C70,MATCH($C42,$C$55:$C$514,0)+24-SUM($A$27:$A42),COLUMN(J$1)-3)) -> 0 | K42: =IF($C42="",0,OFFSET($C70,MATCH($C42,$C$55:$C$514,0)+24-SUM($A$27:$A42),COLUMN(K$1)-3)) -> 0 | L42: =IF($C42="",0,OFFSET($C70,MATCH($C42,$C$55:$C$514,0)+24-SUM($A$27:$A42),COLUMN(L$1)-3)) -> 0
A43: 1 | C43: Total | D43: =SUM(D23:D42) -> 87 | E43: =SUM(E23:E42) -> 0 | F43: =SUM(F23:F42) -> 94.43826827 | G43: =IFERROR(I43/F43,0) -> 665.0587855 | H43: =IFERROR(SUM(H27:H42)/COUNTIF(H27:H42,">0"),0) -> 0 | I43: =SUM(I23:I42) -> 62807 | J43: =SUM(J23:J42) -> 94.43826827 | K43: =IFERROR(#REF!/#REF!,0) -> 0 | L43: =IFERROR(SUM(L27:L42)/COUNTIF(L27:L42,">0"),0) -> 0
A44: 1 | C44: Salary Bands
A45: 1 | C45: 1 - 6 | D45: =SUMIFS(D$55:D$514,$C$55:$C$514,">=1",$C$55:$C$514,"<=6") -> 16 | E45: =SUMIFS(E$55:E$514,$C$55:$C$514,">=1",$C$55:$C$514,"<=6") -> 0 | F45: =SUMIFS(F$55:F$514,$C$55:$C$514,">=1",$C$55:$C$514,"<=6") -> 21 | G45: =IFERROR(I45/F45,0) -> 311.3333333 | H45: =IFERROR(SUMIFS(H$55:H$514,$B$55:$B$514,">=1",$C$55:$C$514,"<>Total",$C$55:$C$514,">=1",$C$55:$C$514,"<=6")/COUNTIFS($B$55:$B$514,">=1",$C$55:$C$514,">=1",$C$55:$C$514,"<=6",#REF!,">0"),0) -> 0 | I45: =SUMIFS(I$55:I$514,$C$55:$C$514,">=1",$C$55:$C$514,"<=6") -> 6538 | J45: =SUMIFS(J$55:J$514,$C$55:$C$514,">=1",$C$55:$C$514,"<=6") -> 21 | K45: =IFERROR(#REF!/#REF!,0) -> 0 | L45: =IFERROR(SUMIFS(L$55:L$514,$B$55:$B$514,">=1",$C$55:$C$514,"<>Total",$C$55:$C$514,">=1",$C$55:$C$514,"<=6")/COUNTIFS($B$55:$B$514,">=1",$C$55:$C$514,">=1",$C$55:$C$514,"<=6",#REF!,">0"),0) -> 0
A46: 1 | C46: 7 - 10 | D46: =SUMIFS(D$55:D$514,$C$55:$C$514,">=7",$C$55:$C$514,"<=10") -> 36 | E46: =SUMIFS(E$55:E$514,$C$55:$C$514,">=7",$C$55:$C$514,"<=10") -> 0 | F46: =SUMIFS(F$55:F$514,$C$55:$C$514,">=7",$C$55:$C$514,"<=10") -> 43 | G46: 473.9302326 | H46: =IFERROR(SUMIFS(H$55:H$514,$B$55:$B$514,">=1",$C$55:$C$514,"<>Total",$C$55:$C$514,">=7",$C$55:$C$514,"<=10")/COUNTIFS($B$55:$B$514,">=1",$C$55:$C$514,">=7",$C$55:$C$514,"<=10",#REF!,">0"),0) -> 0 | I46: =SUMIFS(I$55:I$514,$C$55:$C$514,">=7",$C$55:$C$514,"<=10") -> 20379 | J46: =SUMIFS(J$55:J$514,$C$55:$C$514,">=7",$C$55:$C$514,"<=10") -> 43 | K46: =IFERROR(#REF!/#REF!,0) -> 0 | L46: =IFERROR(SUMIFS(L$55:L$514,$B$55:$B$514,">=1",$C$55:$C$514,"<>Total",$C$55:$C$514,">=7",$C$55:$C$514,"<=10")/COUNTIFS($B$55:$B$514,">=1",$C$55:$C$514,">=7",$C$55:$C$514,"<=10",#REF!,">0"),0) -> 0
A47: 1 | C47: 11 - 12 | D47: =SUMIFS(D$55:D$514,$C$55:$C$514,">=11",$C$55:$C$514,"<=12") -> 17 | E47: =SUMIFS(E$55:E$514,$C$55:$C$514,">=11",$C$55:$C$514,"<=12") -> 0 | F47: =SUMIFS(F$55:F$514,$C$55:$C$514,">=11",$C$55:$C$514,"<=12") -> 15.43826827 | G47: 959.4340338 | H47: =IFERROR(SUMIFS(H$55:H$514,$B$55:$B$514,">=1",$C$55:$C$514,"<>Total",$C$55:$C$514,">=11",$C$55:$C$514,"<=12")/COUNTIFS($B$55:$B$514,">=1",$C$55:$C$514,">=11",$C$55:$C$514,"<=12",#REF!,">0"),0) -> 0 | I47: =SUMIFS(I$55:I$514,$C$55:$C$514,">=11",$C$55:$C$514,"<=12") -> 14812 | J47: =SUMIFS(J$55:J$514,$C$55:$C$514,">=11",$C$55:$C$514,"<=12") -> 15.43826827 | K47: =IFERROR(#REF!/#REF!,0) -> 0 | L47: =IFERROR(SUMIFS(L$55:L$514,$B$55:$B$514,">=1",$C$55:$C$514,"<>Total",$C$55:$C$514,">=11",$C$55:$C$514,"<=12")/COUNTIFS($B$55:$B$514,">=1",$C$55:$C$514,">=11",$C$55:$C$514,"<=12",#REF!,">0"),0) -> 0
A48: 1 | C48: 13 - 16 | D48: =SUMIFS(D$55:D$514,$C$55:$C$514,">=13",$C$55:$C$514,"<=16") -> 18 | E48: =SUMIFS(E$55:E$514,$C$55:$C$514,">=13",$C$55:$C$514,"<=16") -> 0 | F48: =SUMIFS(F$55:F$514,$C$55:$C$514,">=13",$C$55:$C$514,"<=16") -> 15 | G48: 1405.2 | H48: =IFERROR(SUMIFS(H$55:H$514,$B$55:$B$514,">=1",$C$55:$C$514,"<>Total",$C$55:$C$514,">=13",$C$55:$C$514,"<=16")/COUNTIFS($B$55:$B$514,">=1",$C$55:$C$514,">=13",$C$55:$C$514,"<=16",#REF!,">0"),0) -> 0 | I48: =SUMIFS(I$55:I$514,$C$55:$C$514,">=13",$C$55:$C$514,"<=16") -> 21078 | J48: =SUMIFS(J$55:J$514,$C$55:$C$514,">=13",$C$55:$C$514,"<=16") -> 15 | K48: =IFERROR(#REF!/#REF!,0) -> 0 | L48: =IFERROR(SUMIFS(L$55:L$514,$B$55:$B$514,">=1",$C$55:$C$514,"<>Total",$C$55:$C$514,">=13",$C$55:$C$514,"<=16")/COUNTIFS($B$55:$B$514,">=1",$C$55:$C$514,">=13",$C$55:$C$514,"<=16",#REF!,">0"),0) -> 0
A49: 1 | C49: Other | D49: =D43-SUM(D45:D48) -> 0 | E49: =E43-SUM(E45:E48) -> 0 | F49: =F43-SUM(F45:F48) -> 0 | G49: 0 | H49: =IFERROR((SUMIFS(H$55:H$514,$B$55:$B$514,">=1",$C$55:$C$514,"<>Total")-SUMIFS(H$55:H$514,$B$55:$B$514,">=1",$C$55:$C$514,"<=16"))/(COUNTIFS($B$55:$B$514,">=1",$C$55:$C$514,"<>Total",#REF!,">0")-COUNTIFS($B$55:$B$514,">=1",$C$55:$C$514,"<=16",#REF!,">0"=(SUMIFS(H$55:H$514,$B$55:$B$514,">=1",$C$55:$C$514,"<>Total")-SUMIFS(H$55:H$514,$B$55:$B$514,">=1",$C$55:$C$514,"<=16"))/(COUNTIFS($B$55:$B$514,">=1",$C$55:$C$514,"<>Total",#REF!,">0")-COUNTIFS($B$55:$B$514,">=1",$C$55:$C$514,"<=16",#REF!,">0")))),0) -> 0 | I49: =I43-SUM(I45:I48) -> 0 | J49: =J43-SUM(J45:J48) -> 0 | K49: =IFERROR(#REF!/#REF!,0) -> 0 | L49: =IFERROR((SUMIFS(L$55:L$514,$B$55:$B$514,">=1",$C$55:$C$514,"<>Total")-SUMIFS(L$55:L$514,$B$55:$B$514,">=1",$C$55:$C$514,"<=16"))/(COUNTIFS($B$55:$B$514,">=1",$C$55:$C$514,"<>Total",#REF!,">0")-COUNTIFS($B$55:$B$514,">=1",$C$55:$C$514,"<=16",#REF!,">0"=(SUMIFS(L$55:L$514,$B$55:$B$514,">=1",$C$55:$C$514,"<>Total")-SUMIFS(L$55:L$514,$B$55:$B$514,">=1",$C$55:$C$514,"<=16"))/(COUNTIFS($B$55:$B$514,">=1",$C$55:$C$514,"<>Total",#REF!,">0")-COUNTIFS($B$55:$B$514,">=1",$C$55:$C$514,"<=16",#REF!,">0")))),0) -> 0
A50: 1 | C50: Total | D50: =SUM(D45:D49) -> 87 | E50: =SUM(E45:E49) -> 0 | F50: =SUM(F45:F49) -> 94.43826827 | G50: 665.0587855 | H50: =IFERROR(SUMIF($C$55:$C$514,"Total",H$55:H$514)/COUNTIF(H27:H42,">0"),0) -> 0 | I50: =SUM(I45:I49) -> 62807 | J50: =SUM(J45:J49) -> 94.43826827 | K50: =IFERROR(#REF!/#REF!,0) -> 0 | L50: =IFERROR(SUMIF($C$55:$C$514,"Total",L$55:L$514)/COUNTIF(L27:L42,">0"),0) -> 0
A51: 1 | C51: Checks | D51: =D43-D50 -> 0 | E51: 0 | F51: 0 | G51: 0 | H51: 0 | I51: 0 | J51: 0 | K51: 0 | L51: 0
A52: 1
A53: 1 | C53: Department Programme Details
A54: 1
A55: =$A$27 -> 1 | C55: =$C$27 -> Administration
A56: =A$55 -> 1 | D56: Establishment Structure | F56: Previous Financial Year | J56: Medium-term expenditure estimates
A57: 1 | D57: As at 31 March 2023 | F57: =LEFT($D$3,4)-1 & "/" & RIGHT($D$3,2)-1 -> 2022/23
A58: 1 | B58: ProgNo. | C58: Salary level | D58: Total number of funded posts | E58: of which: number of funded posts additional to the establishment | F58: FTE Headcount | G58: Unit Costs | H58: of which: Once-off Payments per person | I58: Total Annual Cost | J58: Initial Headcount | K58: Unit Costs | L58: of which: Once-off Payments per person
A59: 1 | B59: 1 | C59: 1 | D59: 0 | E59: 0 | F59: 0 | G59: =IFERROR(IF(I59=0,O59,I59/F59),0) -> 99.95105925 | H59: 15 | I59: 0 | J59: 0 | K59: 0 | O59: 99.95105925
A60: 1 | B60: 1 | C60: 2 | D60: 0 | E60: 0 | F60: 0 | G60: =IFERROR(IF(I60=0,O60,I60/F60),0) -> 179.5147433 | H60: =1220/1000*12 -> 14.64 | I60: 0 | J60: 0 | K60: 0 | O60: 179.5147433
A61: 1 | B61: 1 | C61: 3 | D61: 0 | E61: 0 | F61: 0 | G61: 216.6722944 | H61: =1220/1000*12 -> 14.64 | I61: 0 | J61: 0 | K61: 0 | O61: 216.6722944
A62: 1 | B62: 1 | C62: 4 | D62: 4 | E62: 0 | F62: 4 | G62: 265.25 | H62: =1220/1000*12 -> 14.64 | I62: 1061 | J62: 4 | K62: 271.3486466 | O62: 236.0392102
A63: 1 | B63: 1 | C63: 5 | D63: 5 | E63: 0 | F63: 8 | G63: 254.375 | H63: =1220/1000*12 -> 14.64 | I63: 2035 | J63: 8 | K63: 259.3526539 | O63: 290.5081548
A64: 1 | B64: 1 | C64: 6 | D64: 7 | E64: 0 | F64: 9 | G64: 382.4444444 | H64: =1352/1000*12 -> 16.224 | I64: 3442 | J64: 9 | K64: 389.9023243 | O64: 341.7085708
A65: 1 | B65: 1 | C65: 7 | D65: 22 | E65: 0 | F65: 24 | G65: 463.7083333 | H65: =1352/1000*12 -> 16.224 | I65: 11129 | J65: 24 | K65: 473.2780738 | O65: 455.5004418
A66: 1 | B66: 1 | C66: 8 | D66: 4 | E66: 0 | F66: 5 | G66: 576.2 | H66: =1450/1000*12 -> 17.4 | I66: 2881 | J66: 5 | K66: 587.5217603 | O66: 520.4674487
A67: 1 | B67: 1 | C67: 9 | D67: 8 | E67: 0 | F67: 12 | G67: 422.1666667 | H67: =1450/1000*12 -> 17.4 | I67: 5066 | J67: 12 | K67: 429.3343396 | O67: 586.4171069
A68: 1 | B68: 1 | C68: 10 | D68: 2 | E68: 0 | F68: 2 | G68: 651.5 | H68: =1640/1000*12 -> 19.68 | I68: 1303 | J68: 2 | K68: 663.1532007 | O68: 699.4852566
A69: 1 | B69: 1 | C69: 11 | D69: 14 | E69: 0 | F69: 14 | G69: 868 | H69: =1640/1000*12 -> 19.68 | I69: 12152 | J69: 14 | K69: 880.0326427 | O69: 799.6834333
A70: 1 | B70: 1 | C70: 12 | D70: 3 | E70: 0 | F70: 1.438268268 | G70: 1849.446351 | H70: =1695/1000*12 -> 20.34 | I70: 2660 | J70: 1.438268268 | K70: 1876.070258 | O70: 1014.272904
A71: 1 | B71: 1 | C71: 13 | D71: 12 | E71: 0 | F71: 11 | G71: 1203.454545 | H71: =1695/1000*12 -> 20.34 | I71: 13238 | J71: 11 | K71: 1220.815506 | O71: 1152.258047
A72: 1 | B72: 1 | C72: 14 | D72: 4 | E72: 0 | F72: 2 | G72: 1638 | H72: 20.34 | I72: 3276 | J72: 2 | K72: 1661.607616 | O72: 1409.161406
A73: 1 | B73: 1 | C73: 15 | D73: 1 | E73: 0 | F73: 1 | G73: 2409 | H73: 20.34 | I73: 2409 | J73: 1 | K73: 2444.252507 | O73: 1703.285814
A74: 1 | B74: 1 | C74: 16 | D74: 1 | E74: 0 | F74: 1 | G74: 2155 | H74: =1818/1000*12 -> 21.816 | I74: 2155 | J74: 1 | K74: 2188.081314 | O74: 2168.595147
A75: 1 | B75: 1 | C75: Deputy Minister | D75: 0 | E75: 0 | F75: 0 | G75: 2007.461925 | I75: 0 | J75: 0 | K75: 0 | O75: 2007.461925
A76: 1 | B76: 1 | C76: Minister | D76: 0 | E76: 0 | F76: 0 | G76: 2437.657495 | I76: 0 | J76: 0 | K76: 0 | O76: 2437.657495
A77: 1 | B77: 1 | C77: Other | D77: 0 | E77: 0 | F77: 0 | G77: 259.6159983 | I77: 0 | J77: 0 | K77: 0 | O77: 259.6159983
A78: 1 | B78: 1 | C78: Other | D78: 0 | E78: 0 | F78: 0 | G78: 259.6159983 | I78: 0 | J78: 0 | K78: 0 | O78: 259.6159983
A79: 1 | B79: 1 | C79: Total | D79: =SUM(D59:D78) -> 87 | E79: 0 | F79: 94.43826827 | G79: =IFERROR(I79/F79,0) -> 665.0587855 | H79: =IFERROR(SUM(H59:H78)/K79,0) -> 0 | I79: =SUM(I59:I78) -> 62807 | J79: =SUM(J59:J78) -> 94.43826827 | K79: =IFERROR(#REF!/#REF!,0) -> 0 | L79: =IFERROR(SUM(L59:L78)/#REF!,0) -> 0
A80: 1
A81: 1
A82: 1
A83: 1
A84: =$A$28 -> 0 | C84: =$C$28 -> 
A85: =A$84 -> 0 | D85: Establishment Structure | F85: Previous Financial Year | J85: Medium-term expenditure estimates
A86: 0 | D86: As at 31 March 2023 | F86: =LEFT($D$3,4)-1 & "/" & RIGHT($D$3,2)-1 -> 2022/23
A87: 0 | C87: Salary level | D87: Total number of funded posts | E87: of which: number of funded posts additional to the establishment | F87: FTE Headcount | G87: Unit Costs | H87: of which: Once-off Payments per person | I87: Total Annual Cost | J87: Initial Headcount | K87: Unit Costs | L87: of which: Once-off Payments per person
A88: 0 | B88: 2 | C88: 1 | D88: 0 | E88: 0 | F88: 0 | G88: =IFERROR(IF(I88=0,O88,I88/F88),0) -> 99.95105925 | H88: =1220/1000*12 -> 14.64 | I88: 0 | J88: 0 | K88: 0 | O88: 99.95105925
A89: 0 | B89: 2 | C89: 2 | D89: 0 | E89: 0 | F89: 0 | G89: =IFERROR(IF(I89=0,O89,I89/F89),0) -> 179.5147433 | H89: =1220/1000*12 -> 14.64 | I89: 0 | J89: 0 | K89: 0 | O89: 179.5147433
A90: 0 | B90: 2 | C90: 3 | D90: 0 | E90: 0 | F90: 0 | G90: 216.6722944 | H90: =1220/1000*12 -> 14.64 | I90: 0 | J90: 0 | K90: 0 | O90: 216.6722944
A91: 0 | B91: 2 | C91: 4 | D91: 0 | E91: 0 | F91: 0 | G91: 236.0392102 | H91: =1220/1000*12 -> 14.64 | I91: 0 | J91: 0 | K91: 0 | O91: 236.0392102
A92: 0 | B92: 2 | C92: 5 | D92: 0 | E92: 0 | F92: 0 | G92: 290.5081548 | H92: =1220/1000*12 -> 14.64 | I92: 0 | J92: 0 | K92: 0 | O92: 290.5081548
A93: 0 | B93: 2 | C93: 6 | D93: 0 | E93: 0 | F93: 0 | G93: 341.7085708 | H93: =1352/1000*12 -> 16.224 | I93: 0 | J93: 0 | K93: 0 | O93: 341.7085708
A94: 0 | B94: 2 | C94: 7 | D94: 0 | E94: 0 | F94: 0 | G94: 455.5004418 | H94: =1352/1000*12 -> 16.224 | I94: 0 | J94: 0 | K94: 0 | O94: 455.5004418
A95: 0 | B95: 2 | C95: 8 | D95: 0 | E95: 0 | F95: 0 | G95: 520.4674487 | H95: =1450/1000*12 -> 17.4 | I95: 0 | J95: 0 | K95: 0 | O95: 520.4674487
A96: 0 | B96: 2 | C96: 9 | D96: 0 | E96: 0 | F96: 0 | G96: 586.4171069 | H96: =1450/1000*12 -> 17.4 | I96: 0 | J96: 0 | K96: 0 | O96: 586.4171069
A97: 0 | B97: 2 | C97: 10 | D97: 0 | E97: 0 | F97: 0 | G97: 699.4852566 | H97: =1640/1000*12 -> 19.68 | I97: 0 | J97: 0 | K97: 0 | O97: 699.4852566
A98: 0 | B98: 2 | C98: 11 | D98: 0 | E98: 0 | F98: 0 | G98: 799.6834333 | H98: =1640/1000*12 -> 19.68 | I98: 0 | J98: 0 | K98: 0 | O98: 799.6834333
A99: 0 | B99: 2 | C99: 12 | D99: 0 | E99: 0 | F99: 0 | G99: 1014.272904 | H99: =1695/1000*12 -> 20.34 | I99: 0 | J99: 0 | K99: 0 | O99: 1014.272904
A100: 0 | B100: 2 | C100: 13 | D100: 0 | E100: 0 | F100: 0 | G100: 1152.258047 | H100: =1695/1000*12 -> 20.34 | I100: 0 | J100: 0 | K100: 0 | O100: 1152.258047
A101: 0 | B101: 2 | C101: 14 | D101: 0 | E101: 0 | F101: 0 | G101: 1409.161406 | H101: 20.34 | I101: 0 | J101: 0 | K101: 0 | O101: 1409.161406
A102: 0 | B102: 2 | C102: 15 | D102: 0 | E102: 0 | F102: 0 | G102: 1703.285814 | H102: 20.34 | I102: 0 | J102: 0 | K102: 0 | O102: 1703.285814
A103: 0 | B103: 2 | C103: 16 | D103: 0 | E103: 0 | F103: 0 | G103: 2168.595147 | H103: =1818/1000*12 -> 21.816 | I103: 0 | J103: 0 | K103: 0 | O103: 2168.595147
A104: 0 | B104: 2 | C104: Other | D104: 0 | E104: 0 | F104: 0 | G104: 2007.461925 | I104: 0 | J104: 0 | K104: 0 | O104: 2007.461925
A105: 0 | B105: 2 | C105: Other | D105: 0 | E105: 0 | F105: 0 | G105: 2437.657495 | I105: 0 | J105: 0 | K105: 0 | O105: 2437.657495
A106: 0 | B106: 2 | C106: Other | D106: 0 | E106: 0 | F106: 0 | G106: 259.6159983 | I106: 0 | J106: 0 | K106: 0 | O106: 259.6159983
A107: 0 | B107: 2 | C107: Other | D107: 0 | E107: 0 | F107: 0 | G107: 259.6159983 | I107: 0 | J107: 0 | K107: 0 | O107: 259.6159983
A108: 0 | B108: 2 | C108: Total | D108: =SUM(D88:D107) -> 0 | E108: 0 | F108: 0 | G108: =IFERROR(I108/F108,0) -> 0 | H108: =IFERROR(SUM(H88:H107)/K108,0) -> 0 | I108: =SUM(I88:I107) -> 0 | J108: =SUM(J88:J107) -> 0 | K108: =IFERROR(#REF!/#REF!,0) -> 0 | L108: =IFERROR(SUM(L88:L107)/#REF!,0) -> 0
A109: 0
A110: 0
A111: 0
A112: 0
A113: =$A$29 -> 0 | C113: =$C$29 -> 
A114: =A$113 -> 0 | D114: Establishment Structure | F114: Previous Financial Year | J114: Medium-term expenditure estimates
A115: 0 | D115: As at 31 March 2023 | F115: =LEFT($D$3,4)-1 & "/" & RIGHT($D$3,2)-1 -> 2022/23
A116: 0 | C116: Salary level | D116: Total number of funded posts | E116: of which: number of funded posts additional to the establishment | F116: FTE Headcount | G116: Unit Costs | H116: of which: Once-off Payments per person | I116: Total Annual Cost | J116: Initial Headcount | K116: Unit Costs | L116: of which: Once-off Payments per person
A117: 0 | B117: 3 | C117: 1 | D117: 0 | E117: 0 | F117: 0 | G117: =IFERROR(IF(I117=0,O117,I117/F117),0) -> 99.95105925 | H117: =1220/1000*12 -> 14.64 | I117: 0 | J117: 0 | K117: 0 | O117: 99.95105925
A118: 0 | B118: 3 | C118: 2 | D118: 0 | E118: 0 | F118: 0 | G118: =IFERROR(IF(I118=0,O118,I118/F118),0) -> 179.5147433 | H118: =1220/1000*12 -> 14.64 | I118: 0 | J118: 0 | K118: 0 | O118: 179.5147433
A119: 0 | B119: 3 | C119: 3 | D119: 0 | E119: 0 | F119: 0 | G119: 216.6722944 | H119: =1220/1000*12 -> 14.64 | I119: 0 | J119: 0 | K119: 0 | O119: 216.6722944
A120: 0 | B120: 3 | C120: 4 | D120: 0 | E120: 0 | F120: 0 | G120: 236.0392102 | H120: =1220/1000*12 -> 14.64 | I120: 0 | J120: 0 | K120: 0 | O120: 236.0392102
A121: 0 | B121: 3 | C121: 5 | D121: 0 | E121: 0 | F121: 0 | G121: 290.5081548 | H121: =1220/1000*12 -> 14.64 | I121: 0 | J121: 0 | K121: 0 | O121: 290.5081548
A122: 0 | B122: 3 | C122: 6 | D122: 0 | E122: 0 | F122: 0 | G122: 341.7085708 | H122: =1352/1000*12 -> 16.224 | I122: 0 | J122: 0 | K122: 0 | O122: 341.7085708
A123: 0 | B123: 3 | C123: 7 | D123: 0 | E123: 0 | F123: 0 | G123: 455.5004418 | H123: =1352/1000*12 -> 16.224 | I123: 0 | J123: 0 | K123: 0 | O123: 455.5004418
A124: 0 | B124: 3 | C124: 8 | D124: 0 | E124: 0 | F124: 0 | G124: 520.4674487 | H124: =1450/1000*12 -> 17.4 | I124: 0 | J124: 0 | K124: 0 | O124: 520.4674487
A125: 0 | B125: 3 | C125: 9 | D125: 0 | E125: 0 | F125: 0 | G125: 586.4171069 | H125: =1450/1000*12 -> 17.4 | I125: 0 | J125: 0 | K125: 0 | O125: 586.4171069
A126: 0 | B126: 3 | C126: 10 | D126: 0 | E126: 0 | F126: 0 | G126: 699.4852566 | H126: =1640/1000*12 -> 19.68 | I126: 0 | J126: 0 | K126: 0 | O126: 699.4852566
A127: 0 | B127: 3 | C127: 11 | D127: 0 | E127: 0 | F127: 0 | G127: 799.6834333 | H127: =1640/1000*12 -> 19.68 | I127: 0 | J127: 0 | K127: 0 | O127: 799.6834333
A128: 0 | B128: 3 | C128: 12 | D128: 0 | E128: 0 | F128: 0 | G128: 1014.272904 | H128: =1695/1000*12 -> 20.34 | I128: 0 | J128: 0 | K128: 0 | O128: 1014.272904
A129: 0 | B129: 3 | C129: 13 | D129: 0 | E129: 0 | F129: 0 | G129: 1152.258047 | H129: =1695/1000*12 -> 20.34 | I129: 0 | J129: 0 | K129: 0 | O129: 1152.258047
A130: 0 | B130: 3 | C130: 14 | D130: 0 | E130: 0 | F130: 0 | G130: 1409.161406 | H130: 20.34 | I130: 0 | J130: 0 | K130: 0 | O130: 1409.161406
A131: 0 | B131: 3 | C131: 15 | D131: 0 | E131: 0 | F131: 0 | G131: 1703.285814 | H131: 20.34 | I131: 0 | J131: 0 | K131: 0 | O131: 1703.285814
A132: 0 | B132: 3 | C132: 16 | D132: 0 | E132: 0 | F132: 0 | G132: 2168.595147 | H132: =1818/1000*12 -> 21.816 | I132: 0 | J132: 0 | K132: 0 | O132: 2168.595147
A133: 0 | B133: 3 | C133: Other | D133: 0 | E133: 0 | F133: 0 | G133: 2007.461925 | I133: 0 | J133: 0 | K133: 0 | O133: 2007.461925
A134: 0 | B134: 3 | C134: Other | D134: 0 | E134: 0 | F134: 0 | G134: 2437.657495 | I134: 0 | J134: 0 | K134: 0 | O134: 2437.657495
A135: 0 | B135: 3 | C135: Other | D135: 0 | E135: 0 | F135: 0 | G135: 259.6159983 | I135: 0 | J135: 0 | K135: 0 | O135: 259.6159983
A136: 0 | B136: 3 | C136: Other | D136: 0 | E136: 0 | F136: 0 | G136: 259.6159983 | I136: 0 | J136: 0 | K136: 0 | O136: 259.6159983
A137: 0 | B137: 3 | C137: Total | D137: =SUM(D117:D136) -> 0 | E137: 0 | F137: 0 | G137: =IFERROR(I137/F137,0) -> 0 | H137: =IFERROR(SUM(H117:H136)/K137,0) -> 0 | I137: =SUM(I117:I136) -> 0 | J137: =SUM(J117:J136) -> 0 | K137: =IFERROR(#REF!/#REF!,0) -> 0 | L137: =IFERROR(SUM(L117:L136)/#REF!,0) -> 0
A138: 0
A139: 0
A140: 0
A141: 0
A142: =$A$30 -> 0 | C142: =$C$30 -> 
A143: =A$142 -> 0 | D143: Establishment Structure | F143: Previous Financial Year | J143: Medium-term expenditure estimates
A144: 0 | D144: As at 31 March 2023 | F144: =LEFT($D$3,4)-1 & "/" & RIGHT($D$3,2)-1 -> 2022/23
A145: 0 | C145: Salary level | D145: Total number of funded posts | E145: of which: number of funded posts additional to the establishment | F145: FTE Headcount | G145: Unit Costs | H145: of which: Once-off Payments per person | I145: Total Annual Cost | J145: Initial Headcount | K145: Unit Costs | L145: of which: Once-off Payments per person
A146: 0 | B146: 4 | C146: 1 | D146: 0 | E146: 0 | F146: 0 | G146: =IFERROR(IF(I146=0,O146,I146/F146),0) -> 99.95105925 | H146: =1220/1000*12 -> 14.64 | I146: 0 | J146: 0 | K146: 0 | O146: 99.95105925
A147: 0 | B147: 4 | C147: 2 | D147: 0 | E147: 0 | F147: 0 | G147: =IFERROR(IF(I147=0,O147,I147/F147),0) -> 179.5147433 | H147: =1220/1000*12 -> 14.64 | I147: 0 | J147: 0 | K147: 0 | O147: 179.5147433
A148: 0 | B148: 4 | C148: 3 | D148: 0 | E148: 0 | F148: 0 | G148: 216.6722944 | H148: =1220/1000*12 -> 14.64 | I148: 0 | J148: 0 | K148: 0 | O148: 216.6722944
A149: 0 | B149: 4 | C149: 4 | D149: 0 | E149: 0 | F149: 0 | G149: 236.0392102 | H149: =1220/1000*12 -> 14.64 | I149: 0 | J149: 0 | K149: 0 | O149: 236.0392102
A150: 0 | B150: 4 | C150: 5 | D150: 0 | E150: 0 | F150: 0 | G150: 290.5081548 | H150: =1220/1000*12 -> 14.64 | I150: 0 | J150: 0 | K150: 0 | O150: 290.5081548
A151: 0 | B151: 4 | C151: 6 | D151: 0 | E151: 0 | F151: 0 | G151: 341.7085708 | H151: =1352/1000*12 -> 16.224 | I151: 0 | J151: 0 | K151: 0 | O151: 341.7085708
A152: 0 | B152: 4 | C152: 7 | D152: 0 | E152: 0 | F152: 0 | G152: 455.5004418 | H152: =1352/1000*12 -> 16.224 | I152: 0 | J152: 0 | K152: 0 | O152: 455.5004418
A153: 0 | B153: 4 | C153: 8 | D153: 0 | E153: 0 | F153: 0 | G153: 520.4674487 | H153: =1450/1000*12 -> 17.4 | I153: 0 | J153: 0 | K153: 0 | O153: 520.4674487
A154: 0 | B154: 4 | C154: 9 | D154: 0 | E154: 0 | F154: 0 | G154: 586.4171069 | H154: =1450/1000*12 -> 17.4 | I154: 0 | J154: 0 | K154: 0 | O154: 586.4171069
